Workbook

Sheet Instructions
C35: Date of Optimization | D35: 2019-07-02 | F35: AAA | G35: AA | H35: A | I35: BBB | J35: BBB-
F36: 5 | G36: 12 | H36: 45 | I36: 39 | J36: 0

Sheet Net of Default Costs
B1: Default and Transition costs come from the appropriate tab of the EIOPA_RDR_20141231_PD_CoD spreadsheet
C2: Find it here | F2: https://eiopa.europa.eu/Publications/Standards/EIOPA_RFR_20141231.zip
B3: Note that Classes below BBB have been excluded due to the difficulty of matching up spreads and default costs
B4: Ignore spreads and RC beyond year 20 | H4: Weight Financials: | J4: 0.5 | U4: CORPORATE BONDS
D5: Loading | E5: 0.35 | H5: We do not have stats, but Europe seems heavily into financials (varying by country)
H6: However they are using 50% mix for their model.
A7: =I10 -> EUR | C7: Discount Rates | E7: 12.31.2014 | J7: Composite. PD+CoD | V7: Financial. Probability of default (probability) | AF7: Financial. Probability of default (percentages) | AP7: Financial. Fundamental spread (percentages) | AZ7: Financial. Cost of downgrade (percentages)
R8: Weighted
B9: Risk | C9: Gross | D9: Risk | E9: Net | F9: Gross | I9: Weights | J9: 0.05 | K9: 0.12 | L9: 0.45 | M9: 0.39 | R9: Average | Y9: Credit quality steps | AI9: Credit quality steps | AS9: Credit quality steps | BC9: Credit quality steps
B10: Free | C10: Spread | D10: Correction | E10: spread | F10: Rate | I10: =U10 -> EUR | J10: 0 | K10: 1 | L10: 2 | M10: 3 | N10: 4 | O10: 5 | P10: 6 | U10: EUR | V10: 0 | W10: 1 | X10: 2 | Y10: 3 | Z10: 4 | AA10: 5 | AB10: 6 | AE10: EUR | AF10: 0 | AG10: 1 | AH10: 2 | AI10: 3 | AJ10: 4 | AK10: 5 | AL10: 6 | AO10: EUR | AP10: 0 | AQ10: 1 | AR10: 2 | AS10: 3 | AT10: 4 | AU10: 5 | AV10: 6 | AY10: EUR | AZ10: 0 | BA10: 1 | BB10: 2 | BC10: 3 | BD10: 4 | BE10: 5 | BF10: 6
A11: 1 | B11: ='Data Entry'!M4 -> -0.005615661548 | C11: ='Final Spread'!B3 -> 0.0031810299 | D11: =(R11*(1+E$5))/100 -> 0.0011907 | E11: =C11-D11 -> 0.0019903299 | F11: =MAX(E11+B11,0) -> 0 | I11: 1 | J11: =$J$4*(AF11+AZ11)+(1-$J$4)*(AF51+AZ51) -> 0 | K11: =$J$4*(AG11+BA11)+(1-$J$4)*(AG51+BA51) -> 0.025 | L11: =$J$4*(AH11+BB11)+(1-$J$4)*(AH51+BB51) -> 0.055 | M11: =$J$4*(AI11+BC11)+(1-$J$4)*(AI51+BC51) -> 0.155 | N11: =$J$4*(AJ11+BD11)+(1-$J$4)*(AJ51+BD51) -> 0.68 | O11: =$J$4*(AK11+BE11)+(1-$J$4)*(AK51+BE51) -> 2.73 | P11: =$J$4*(AL11+BF11)+(1-$J$4)*(AL51+BF51) -> 21.5 | R11: =SUMPRODUCT(J$9:M$9,J11:M11) -> 0.0882 | T11: Maturity | U11: 1 | V11: 0 | W11: 0.0007 | X11: 0.001 | Y11: 0.0025 | Z11: 0.011 | AA11: 0.0332 | AB11: 0.1692 | AD11: Maturity | AE11: 1 | AF11: 0 | AG11: 0.05 | AH11: 0.07 | AI11: 0.18 | AJ11: 0.78 | AK11: 2.38 | AL11: 13.45 | AN11: Maturity | AO11: 1 | AP11: 0.1 | AQ11: 0.22 | AR11: 0.49 | AS11: 1.39 | AT11: 2.55 | AU11: 6.52 | AV11: 13.45 | AX11: Maturity | AY11: 1 | AZ11: 0 | BA11: 0 | BB11: 0 | BC11: 0 | BD11: 0 | BE11: 0 | BF11: 0
A12: =1+A11 -> 2 | B12: ='Data Entry'!M5 -> -0.005826650116 | C12: ='Final Spread'!B4 -> 0.004258052915 | D12: 0.001654958798 | E12: 0.002603094117 | F12: =MAX(E12+B12,0) -> 0 | I12: 2 | J12: 0.01166752226 | K12: 0.0351471569 | L12: 0.08057590485 | M12: 0.2090496115 | N12: 0.8728580821 | O12: 2.933442524 | P12: 16.46 | R12: 0.1225895406 | U12: 2 | V12: 0.00027961 | W12: 0.00147632 | X12: 0.00211938 | Y12: 0.00552137 | Z12: 0.02428142 | AA12: 0.06730863 | AB12: 0.27444586 | AE12: 2 | AF12: 0.01 | AG12: 0.05 | AH12: 0.07 | AI12: 0.19 | AJ12: 0.85 | AK12: 2.39 | AL12: 10.8 | AO12: 2 | AP12: 0.05 | AQ12: 0.22 | AR12: 0.49 | AS12: 1.39 | AT12: 2.55 | AU12: 6.52 | AV12: 10.8 | AY12: 2 | AZ12: 0.008534875707 | BA12: 0.009460590806 | BB12: 0.01964314992 | BC12: 0.03089512841 | BD12: 0.09320653024 | BE12: 0.02345860678 | BF12: 0
A13: 3 | B13: ='Data Entry'!M6 -> -0.005569626395 | C13: ='Final Spread'!B5 -> 0.00533507593 | D13: 0.002180164522 | E13: 0.003154911408 | F13: 0 | I13: 3 | J13: 0.02326189064 | K13: 0.05023842644 | L13: 0.1157912223 | M13: 0.2620408015 | N13: 1.038719589 | O13: 2.997914932 | P13: 12.79477623 | R13: 0.1614936683 | U13: 3 | V13: 0.000749237296 | W13: 0.002323652414 | X13: 0.003372945376 | Y13: 0.00902414611 | Z13: 0.03890402252 | AA13: 0.1002778228 | AB13: 0.3432175769 | AE13: 3 | AF13: 0.02 | AG13: 0.05 | AH13: 0.08 | AI13: 0.21 | AJ13: 0.9 | AK13: 2.35 | AL13: 8.78 | AO13: 3 | AP13: 0.06 | AQ13: 0.25 | AR13: 0.5 | AS13: 1.22 | AT13: 2.51 | AU13: 6.48 | AV13: 8.79 | AY13: 3 | AZ13: 0.01693121638 | BA13: 0.01887463172 | BB13: 0.03894279044 | BC13: 0.06065139878 | BD13: 0.1785173264 | BE13: 0.04964527448 | BF13: 0.004969180897
A14: 4 | B14: ='Data Entry'!M7 -> -0.005058572615 | C14: ='Final Spread'!B6 -> 0.006412098945 | D14: 0.002665973507 | E14: 0.003746125437 | F14: 0 | I14: 4 | J14: 0.02981955402 | K14: 0.06532729661 | L14: 0.1457959785 | M14: 0.3142078858 | N14: 1.183686908 | O14: 2.988108267 | P14: 10.18777193 | R14: 0.1974795191 | U14: 4 | V14: 0.001356747817 | W14: 0.003242514677 | X14: 0.00477145944 | Y14: 0.01296649009 | Z14: 0.05422525645 | AA14: 0.1312365545 | AB14: 0.390797247 | AE14: 4 | AF14: 0.02 | AG14: 0.06 | AH14: 0.08 | AI14: 0.23 | AJ14: 0.94 | AK14: 2.28 | AL14: 7.26 | AO14: 4 | AP14: 0.08 | AQ14: 0.27 | AR14: 0.53 | AS14: 1.23 | AT14: 2.49 | AU14: 6.47 | AV14: 7.27 | AY14: 4 | AZ14: 0.0252376759 | BA14: 0.02829171182 | BB14: 0.05801242092 | BC14: 0.08948857536 | BD14: 0.2571514639 | BE14: 0.0778743722 | BF14: 0.01369639761
A15: 5 | B15: ='Data Entry'!M8 -> -0.00436331274 | C15: ='Final Spread'!B7 -> 0.007489121959 | D15: 0.003174281071 | E15: 0.004314840888 | F15: 0 | I15: 5 | J15: 0.04138250636 | K15: 0.07547655862 | L15: 0.1807609954 | M15: 0.3658030023 | N15: 1.308803494 | O15: 2.933828212 | P15: 8.307992932 | R15: 0.2351319312 | U15: 5 | V15: 0.002071494612 | W15: 0.004236497683 | X15: 0.006322461566 | Y15: 0.01730462455 | Z15: 0.06980602491 | AA15: 0.1599089471 | AB15: 0.4257442597 | AE15: 5 | AF15: 0.03 | AG15: 0.06 | AH15: 0.09 | AI15: 0.24 | AJ15: 0.96 | AK15: 2.19 | AL15: 6.1 | AO15: 5 | AP15: 0.09 | AQ15: 0.3 | AR15: 0.58 | AS15: 1.18 | AT15: 2.49 | AU15: 6.47 | AV15: 6.47 | AY15: 5 | AZ15: 0.03350938393 | BA15: 0.03777014972 | BB15: 0.07698064822 | BC15: 0.1176399242 | BD15: 0.3302432523 | BE15: 0.107647273 | BF15: 0.02528194379
A16: 6 | B16: ='Data Entry'!M9 -> -0.003561036882 | C16: ='Final Spread'!B8 -> 0.008566144974 | D16: 0.003632881548 | E16: 0.004933263427 | F16: 0.001372226544 | I16: 6 | J16: 0.05298502465 | K16: 0.09073801692 | L16: 0.2108276312 | M16: 0.4120309989 | N16: 1.419902382 | O16: 2.864917743 | P16: 6.934781929 | R16: 0.2691023369 | U16: 6 | V16: 0.00287540502 | W16: 0.005310670865 | X16: 0.008030801354 | Y16: 0.02199390319 | Z16: 0.08534806415 | AA16: 0.1863069865 | AB16: 0.4529010469 | AE16: 6 | AF16: 0.03 | AG16: 0.06 | AH16: 0.09 | AI16: 0.25 | AJ16: 0.97 | AK16: 2.1 | AL16: 5.21 | AO16: 6 | AP16: 0.1 | AQ16: 0.32 | AR16: 0.61 | AS16: 1.21 | AT16: 2.49 | AU16: 6.47 | AV16: 6.47 | AY16: 6 | AZ16: 0.04179108281 | BA16: 0.0473580577 | BB16: 0.09595259676 | BC16: 0.1452935814 | BD16: 0.3986962546 | BE16: 0.1385678165 | BF16: 0.03904688916
A17: 7 | B17: ='Data Entry'!M10 -> -0.002720167856 | C17: ='Final Spread'!B9 -> 0.009643167989 | D17: 0.004175631868 | E17: 0.005467536121 | F17: 0.002747368264 | I17: 7 | J17: 0.06466557252 | K17: 0.1061706798 | L17: 0.2461537992 | M17: 0.4681104986 | N17: 1.51778094 | O17: 2.781296007 | P17: 5.902700384 | R17: 0.3093060643 | U17: 7 | V17: 0.00375795052 | W17: 0.006470642244 | X17: 0.00989903777 | Y17: 0.02699009947 | Z17: 0.1006515175 | AA17: 0.2105707559 | AB17: 0.4750458148 | AE17: 7 | AF17: 0.04 | AG17: 0.07 | AH17: 0.1 | AI17: 0.27 | AJ17: 0.98 | AK17: 2.01 | AL17: 4.51 | AO17: 7 | AP17: 0.12 | AQ17: 0.35 | AR17: 0.63 | AS17: 1.22 | AT17: 2.49 | AU17: 6.47 | AV17: 6.47 | AY17: 7 | AZ17: 0.05013233466 | BA17: 0.05711030292 | BB17: 0.1150449633 | BC17: 0.1726476648 | BD17: 0.4633604006 | BE17: 0.1703634139 | BF17: 0.05448421018
A18: 8 | B18: ='Data Entry'!M11 -> -0.001835615218 | C18: ='Final Spread'!B10 -> 0.01018710391 | D18: 0.004667326864 | E18: 0.005519777044 | F18: 0.003684161827 | I18: 8 | J18: 0.07149408821 | K18: 0.1218830814 | L18: 0.2820189599 | M18: 0.514406948 | N18: 1.598531092 | O18: 2.703072874 | P18: 5.111492938 | R18: 0.3457279158 | U18: 8 | V18: 0.004713259669 | W18: 0.00772199675 | X18: 0.01192777179 | Y18: 0.03225053182 | Z18: 0.1155857086 | AA18: 0.2328873569 | AB18: 0.4938033134 | AE18: 8 | AF18: 0.04 | AG18: 0.07 | AH18: 0.11 | AI18: 0.28 | AJ18: 0.98 | AK18: 1.92 | AL18: 3.96 | AO18: 8 | AP18: 0.12 | AQ18: 0.35 | AR18: 0.62 | AS18: 1.19 | AT18: 2.49 | AU18: 6.47 | AV18: 6.47 | AY18: 8 | AZ18: 0.05862190629 | BA18: 0.0671280194 | BB18: 0.1344652986 | BC18: 0.2000284719 | BD18: 0.5253555585 | BE18: 0.2029856126 | BF18: 0.07126362628
A19: 9 | B19: ='Data Entry'!M12 -> -0.0009545115237 | C19: ='Final Spread'!B11 -> 0.01074752273 | D19: 0.005134892987 | E19: 0.005612629747 | F19: 0.004658118224 | I19: 9 | J19: 0.07849160307 | K19: 0.1379092773 | L19: 0.313517419 | M19: 0.5610407987 | N19: 1.672583053 | O19: 2.625167393 | P19: 4.500940684 | R19: 0.3803624435 | U19: 9 | V19: 0.005738420572 | W19: 0.009069958742 | X19: 0.01411594173 | Y19: 0.03773490295 | Z19: 0.1300687295 | AA19: 0.2534513747 | AB19: 0.5101482577 | AE19: 9 | AF19: 0.04 | AG19: 0.07 | AH19: 0.11 | AI19: 0.29 | AJ19: 0.97 | AK19: 1.84 | AL19: 3.52 | AO19: 9 | AP19: 0.12 | AQ19: 0.36 | AR19: 0.62 | AS19: 1.17 | AT19: 2.49 | AU19: 6.47 | AV19: 6.47 | AY19: 9 | AZ19: 0.06728617777 | BA19: 0.07744283538 | BB19: 0.1542787842 | BC19: 0.2275406063 | BD19: 0.5851376727 | BE19: 0.2362419462 | BF19: 0.08908615269
A20: 10 | B20: ='Data Entry'!M13 -> -0.0001088364855 | C20: ='Final Spread'!B12 -> 0.01129145865 | D20: 0.005642491307 | E20: 0.005648967347 | F20: 0.005540130861 | I20: 10 | J20: 0.09065505639 | K20: 0.154246383 | L20: 0.3506532565 | M20: 0.6080154739 | N20: 1.740061492 | O20: 2.552413622 | P20: 4.005845632 | R20: 0.417962319 | U20: 10 | V20: 0.006832449594 | W20: 0.01051919171 | X20: 0.01646109201 | Y20: 0.04340584867 | Z20: 0.1440530304 | AA20: 0.272446947 | AB20: 0.5246847475 | AE20: 10 | AF20: 0.05 | AG20: 0.08 | AH20: 0.12 | AI20: 0.3 | AJ20: 0.96 | AK20: 1.76 | AL20: 3.16 | AO20: 10 | AP20: 0.12 | AQ20: 0.37 | AR20: 0.62 | AS20: 1.17 | AT20: 2.49 | AU20: 6.47 | AV20: 6.47 | AY20: 10 | AZ20: 0.07612105524 | BA20: 0.08805186429 | BB20: 0.1744813795 | BC20: 0.2551835194 | BD20: 0.642857952 | BE20: 0.269879955 | BF20: 0.1076737153
A21: 11 | B21: ='Data Entry'!M14 -> 0.0006982258933 | C21: ='Final Spread'!B13 -> 0.01141022614 | D21: 0.006159895679 | E21: 0.00525033046 | F21: 0.005948556353 | I21: 11 | J21: 0.1030484536 | K21: 0.1709962754 | L21: 0.3886901627 | M21: 0.6556564612 | N21: 1.806826469 | O21: 2.484978724 | P21: 3.606150868 | R21: 0.4562885688 | U21: 11 | V21: 0.0079956386 | W21: 0.01207368485 | X21: 0.0189596185 | Y21: 0.04922923842 | Z21: 0.1575151653 | AA21: 0.2900408038 | AB21: 0.5378022409 | AE21: 11 | AF21: 0.05 | AG21: 0.08 | AH21: 0.12 | AI21: 0.31 | AJ21: 0.95 | AK21: 1.69 | AL21: 2.86 | AO21: 11 | AP21: 0.13 | AQ21: 0.38 | AR21: 0.62 | AS21: 1.17 | AT21: 2.49 | AU21: 6.47 | AV21: 6.47 | AY21: 11 | AZ21: 0.08520655473 | BA21: 0.09905004223 | BB21: 0.1952635695 | BC21: 0.2832400685 | BD21: 0.6993698219 | BE21: 0.3039889423 | BF21: 0.1269170187
A22: 12 | B22: ='Data Entry'!M15 -> 0.001459178098 | C22: ='Final Spread'!B14 -> 0.01152899362 | D22: 0.006669392987 | E22: 0.004859600636 | F22: 0.006318778734 | I22: 12 | J22: 0.1105466676 | K22: 0.182966191 | L22: 0.4271676458 | M22: 0.7033856238 | N22: 1.861622349 | O22: 2.41217536 | P22: 3.27153488 | R22: 0.4940291102 | U22: 12 | V22: 0.009229122007 | W22: 0.01373669665 | X22: 0.02160699067 | Y22: 0.05517428245 | Z22: 0.1704484555 | AA22: 0.306380672 | AB22: 0.5497632937 | AE22: 12 | AF22: 0.05 | AG22: 0.08 | AH22: 0.13 | AI22: 0.32 | AJ22: 0.94 | AK22: 1.61 | AL22: 2.6 | AO22: 12 | AP22: 0.15 | AQ22: 0.39 | AR22: 0.62 | AS22: 1.17 | AT22: 2.49 | AU22: 6.47 | AV22: 6.47 | AY22: 12 | AZ22: 0.09438554785 | BA22: 0.1102570581 | BB22: 0.2162702392 | BC22: 0.3111952175 | BD22: 0.7534865523 | BE22: 0.3378358373 | BF22: 0.1463939733
A23: 13 | B23: ='Data Entry'!M16 -> 0.002207949525 | C23: ='Final Spread'!B15 -> 0.01164776111 | D23: 0.007145531072 | E23: 0.004502230036 | F23: 0.006710179561 | I23: 13 | J23: 0.1182138089 | K23: 0.2052582117 | L23: 0.4613533978 | M23: 0.7465330592 | N23: 1.92030491 | O23: 2.34921141 | P23: 2.981990262 | R23: 0.5292985979 | U23: 13 | V23: 0.01053457562 | W23: 0.01551073682 | X23: 0.02439795014 | Y23: 0.06121349819 | Z23: 0.1828577252 | AA23: 0.3215961286 | AB23: 0.5607534297 | AE23: 13 | AF23: 0.05 | AG23: 0.09 | AH23: 0.13 | AI23: 0.32 | AJ23: 0.93 | AK23: 1.54 | AL23: 2.37 | AO23: 13 | AP23: 0.16 | AQ23: 0.4 | AR23: 0.62 | AS23: 1.17 | AT23: 2.49 | AU23: 6.47 | AV23: 6.47 | AY23: 13 | AZ23: 0.1037384389 | BA23: 0.1217679703 | BB23: 0.2376936604 | BC23: 0.3393351404 | BD23: 0.8060509928 | BE23: 0.37157286 | BF23: 0.166060984
A24: 14 | B24: ='Data Entry'!M17 -> 0.002804664662 | C24: ='Final Spread'!B16 -> 0.01176652859 | D24: 0.007649587273 | E24: 0.00411694132 | F24: 0.006921605982 | I24: 14 | J24: 0.1358847925 | K24: 0.2226149293 | L24: 0.5006316276 | M24: 0.7893431557 | N24: 1.961266706 | O24: 2.290261597 | P24: 2.737154044 | R24: 0.5666360943 | U24: 14 | V24: 0.01191399798 | W24: 0.01739757473 | X24: 0.02732668599 | Y24: 0.0673225801 | Z24: 0.1947555206 | AA24: 0.3358004246 | AB24: 0.5709098802 | AE24: 14 | AF24: 0.06 | AG24: 0.09 | AH24: 0.14 | AI24: 0.33 | AJ24: 0.91 | AK24: 1.48 | AL24: 2.17 | AO24: 14 | AP24: 0.17 | AQ24: 0.4 | AR24: 0.62 | AS24: 1.17 | AT24: 2.49 | AU24: 6.47 | AV24: 6.47 | AY24: 14 | AZ24: 0.113059574 | BA24: 0.1333419565 | BB24: 0.2590654713 | BC24: 0.3669949563 | BD24: 0.8555573491 | BE24: 0.4043381394 | BF24: 0.1854477475
A25: 15 | B25: ='Data Entry'!M18 -> 0.003381112125 | C25: ='Final Spread'!B17 -> 0.01188529608 | D25: 0.008163963267 | E25: 0.00372133281 | F25: 0.007102444935 | I25: 15 | J25: 0.1439060749 | K25: 0.2405835986 | L25: 0.5413687784 | M25: 0.833478805 | N25: 2.003283337 | O25: 2.231851288 | P25: 2.532537253 | R25: 0.6047380198 | U25: 15 | V25: 0.01336954625 | W25: 0.01939826598 | X25: 0.03038698729 | Y25: 0.0734802081 | Z25: 0.2061593976 | AA25: 0.3490925572 | AB25: 0.5803384435 | AE25: 15 | AF25: 0.06 | AG25: 0.09 | AH25: 0.15 | AI25: 0.33 | AJ25: 0.89 | AK25: 1.41 | AL25: 2.01 | AO25: 15 | AP25: 0.18 | AQ25: 0.4 | AR25: 0.62 | AS25: 1.17 | AT25: 2.49 | AU25: 6.47 | AV25: 6.47 | AY25: 15 | AZ25: 0.1227808589 | BA25: 0.1454899936 | BB25: 0.281392292 | BC25: 0.395618763 | BD25: 0.9055950505 | BE25: 0.4376198791 | BF25: 0.2051537411
A26: 16 | B26: ='Data Entry'!M19 -> 0.003885778133 | C26: ='Final Spread'!B18 -> 0.01200406356 | D26: 0.008644636796 | E26: 0.003359426767 | F26: 0.0072452049 | I26: 16 | J26: 0.1518765602 | K26: 0.2585343964 | L26: 0.577035199 | M26: 0.87707608 | N26: 2.042298602 | O26: 2.177112041 | P26: 2.347403369 | R26: 0.6403434663 | U26: 16 | V26: 0.01490341019 | W26: 0.02151319161 | X26: 0.03357237407 | Y26: 0.07966782093 | Z26: 0.2170899845 | AA26: 0.3615592614 | AB26: 0.5891236038 | AE26: 16 | AF26: 0.06 | AG26: 0.1 | AH26: 0.15 | AI26: 0.34 | AJ26: 0.87 | AK26: 1.35 | AL26: 1.85 | AO26: 16 | AP26: 0.19 | AQ26: 0.4 | AR26: 0.62 | AS26: 1.17 | AT26: 2.49 | AU26: 6.47 | AV26: 6.47 | AY26: 16 | AZ26: 0.1324033706 | BA26: 0.1576232195 | BB26: 0.3035268115 | BC26: 0.4235781556 | BD26: 0.9523473999 | BE26: 0.4695257409 | BF26: 0.2242579233
A27: 17 | B27: ='Data Entry'!M20 -> 0.004329273949 | C27: ='Final Spread'!B19 -> 0.01212283105 | D27: 0.009173587874 | E27: 0.002949243173 | F27: 0.007278517122 | I27: 17 | J27: 0.1650570851 | K27: 0.2768814228 | L27: 0.6236740349 | M27: 0.9163925308 | N27: 2.081130834 | O27: 2.127192936 | P27: 2.187150113 | R27: 0.6795250277 | U27: 17 | V27: 0.01651771465 | W27: 0.02374210535 | X27: 0.03687620838 | Y27: 0.08586937356 | Z27: 0.2275696046 | AA27: 0.3732767877 | AB27: 0.5973347725 | AE27: 17 | AF27: 0.06 | AG27: 0.1 | AH27: 0.16 | AI27: 0.34 | AJ27: 0.86 | AK27: 1.29 | AL27: 1.72 | AO27: 17 | AP27: 0.21 | AQ27: 0.4 | AR27: 0.62 | AS27: 1.17 | AT27: 2.49 | AU27: 6.47 | AV27: 6.47 | AY27: 17 | AZ27: 0.1422517937 | BA27: 0.1701281615 | BB27: 0.3262299264 | BC27: 0.4519576824 | BD27: 0.9984765952 | BE27: 0.5011865053 | BF27: 0.2432317748
A28: 18 | B28: ='Data Entry'!M21 -> 0.004705141434 | C28: ='Final Spread'!B20 -> 0.01224159853 | D28: 0.009686682678 | E28: 0.002554915854 | F28: 0.007260057287 | I28: 18 | J28: 0.1784401718 | K28: 0.3006165157 | L28: 0.6612919969 | M28: 0.9614222081 | N28: 2.119789175 | O28: 2.082027627 | P28: 2.041729253 | R28: 0.7175320502 | U28: 18 | V28: 0.0182144439 | W28: 0.0260841861 | X28: 0.0402917872 | Y28: 0.09207109207 | Z28: 0.2376213079 | AA28: 0.3843124341 | AB28: 0.6050302644 | AE28: 18 | AF28: 0.07 | AG28: 0.11 | AH28: 0.16 | AI28: 0.35 | AJ28: 0.84 | AK28: 1.24 | AL28: 1.59 | AO28: 18 | AP28: 0.22 | AQ28: 0.4 | AR28: 0.62 | AS28: 1.17 | AT28: 2.49 | AU28: 6.47 | AV28: 6.47 | AY28: 18 | AZ28: 0.1523167513 | BA28: 0.1829967575 | BB28: 0.3494902677 | BC28: 0.4807400256 | BD28: 1.04398586 | BE28: 0.5325234449 | BF28: 0.2620045804
A29: 19 | B29: ='Data Entry'!M22 -> 0.00502325686 | C29: ='Final Spread'!B21 -> 0.01236036602 | D29: 0.01019750619 | E29: 0.002162859825 | F29: 0.007186116686 | I29: 19 | J29: 0.1918508878 | K29: 0.3194638229 | L29: 0.7042341862 | M29: 1.001377544 | N29: 2.146644784 | O29: 2.040822303 | P29: 1.915808303 | R29: 0.755370829 | U29: 19 | V29: 0.01999538397 | W29: 0.02853809291 | X29: 0.04381241915 | Y29: 0.09826123495 | Z29: 0.247268198 | AA29: 0.3947258402 | AB29: 0.6122599239 | AE29: 19 | AF29: 0.07 | AG29: 0.11 | AH29: 0.17 | AI29: 0.35 | AJ29: 0.82 | AK29: 1.19 | AL29: 1.48 | AO29: 19 | AP29: 0.23 | AQ29: 0.4 | AR29: 0.62 | AS29: 1.17 | AT29: 2.49 | AU29: 6.47 | AV29: 6.47 | AY29: 19 | AZ29: 0.1623822934 | BA29: 0.1959707875 | BB29: 0.3728135629 | BC29: 0.5092400218 | BD29: 1.087369956 | BE29: 0.5627234803 | BF29: 0.2801535253
A30: 20 | B30: ='Data Entry'!M23 -> 0.005270644866 | C30: ='Final Spread'!B22 -> 0.0124791335 | D30: 0.01068705541 | E30: 0.001792078089 | F30: 0.007062722956 | I30: 20 | J30: 0.2006419707 | K30: 0.3339906936 | L30: 0.7439411116 | M30: 1.042946801 | N30: 2.180263339 | O30: 2.005110412 | P30: 1.814973563 | R30: 0.7916337342 | U30: 20 | V30: 0.02186207959 | W30: 0.03110202089 | X30: 0.04743148684 | Y30: 0.1044298665 | Z30: 0.2565329738 | AA30: 0.4045700709 | AB30: 0.6190669241 | AE30: 20 | AF30: 0.07 | AG30: 0.11 | AH30: 0.17 | AI30: 0.35 | AJ30: 0.8 | AK30: 1.14 | AL30: 1.39 | AO30: 20 | AP30: 0.25 | AQ30: 0.4 | AR30: 0.62 | AS30: 1.17 | AT30: 2.49 | AU30: 6.47 | AV30: 6.47 | AY30: 20 | AZ30: 0.1728842099 | BA30: 0.2095798275 | BB30: 0.3972309601 | BC30: 0.5388869368 | BD30: 1.131907576 | BE30: 0.5933321553 | BF30: 0.2984009514
A31: 21 | B31: ='Data Entry'!M24 -> 0.005506296295 | E31: =E30 -> 0.001792078089 | F31: 0.007298374384 | I31: 21 | J31: 0.2200632266 | K31: 0.3596069092 | L31: 0.7864842077 | M31: 1.087344626 | N31: 2.223093329 | O31: 1.975929416 | P31: 1.71963033 | R31: 0.8321382882 | U31: 21 | V31: 0.02381580349 | W31: 0.03377375641 | X31: 0.05114249679 | Y31: 0.110568646 | Z31: 0.2654376266 | AA31: 0.413892522 | AB31: 0.6254890469 | AE31: 21 | AF31: 0.08 | AG31: 0.12 | AH31: 0.17 | AI31: 0.35 | AJ31: 0.78 | AK31: 1.1 | AL31: 1.3 | AO31: 21 | AP31: 0.26 | AQ31: 0.4 | AR31: 0.62 | AS31: 1.17 | AT31: 2.49 | AU31: 6.47 | AV31: 6.47 | AY31: 21 | AZ31: 0.1841288509 | BA31: 0.2242060001 | BB31: 0.4234837279 | BC31: 0.5706814327 | BD31: 1.179780659 | BE31: 0.6254039734 | BF31: 0.3172523851
A32: 22 | B32: ='Data Entry'!M25 -> 0.005717798138 | E32: 0.001792078089 | F32: 0.007509876227 | I32: 22 | J32: 0.2301683557 | K32: 0.3814119553 | L32: 0.8371838847 | M32: 1.139883503 | N32: 2.270666742 | O32: 1.953442375 | P32: 1.644838115 | R32: 0.8785651666 | U32: 22 | V32: 0.02585753614 | W32: 0.03655073078 | X32: 0.05493911853 | Y32: 0.1166706336 | Z32: 0.2740032483 | AA32: 0.4227356761 | AB32: 0.6315596258 | AE32: 22 | AF32: 0.08 | AG32: 0.12 | AH32: 0.18 | AI32: 0.36 | AJ32: 0.77 | AK32: 1.06 | AL32: 1.23 | AO32: 22 | AP32: 0.28 | AQ32: 0.4 | AR32: 0.63 | AS32: 1.17 | AT32: 2.49 | AU32: 6.47 | AV32: 6.47 | AY32: 22 | AZ32: 0.1961798676 | BA32: 0.2399412463 | BB32: 0.4517538249 | BC32: 0.6048424262 | BD32: 1.231379354 | BE32: 0.6591098452 | BF32: 0.3367852302
A33: 23 | B33: ='Data Entry'!M26 -> 0.005853182329 | E33: 0.001792078089 | F33: 0.007645260418 | I33: 23 | J33: 0.2459789126 | K33: 0.4094557141 | L33: 0.8912567366 | M33: 1.190745649 | N33: 2.3282508 | O33: 1.942671465 | P33: 1.575595942 | R33: 0.9268899657 | U33: 23 | V33: 0.02798795414 | W33: 0.03943007143 | X33: 0.05881521456 | Y33: 0.1227301146 | Z33: 0.2822499194 | AA33: 0.4311377369 | AB33: 0.6373082617 | AE33: 23 | AF33: 0.08 | AG33: 0.13 | AH33: 0.19 | AI33: 0.36 | AJ33: 0.76 | AK33: 1.03 | AL33: 1.16 | AO33: 23 | AP33: 0.29 | AQ33: 0.4 | AR33: 0.67 | AS33: 1.17 | AT33: 2.49 | AU33: 6.47 | AV33: 6.47 | AY33: 23 | AZ33: 0.2090613085 | BA33: 0.2568308883 | BB33: 0.4821375902 | BC33: 0.6414701924 | BD33: 1.286835004 | BE33: 0.694477432 | BF33: 0.3570019972
A34: 24 | B34: ='Data Entry'!M27 -> 0.005955712556 | E34: 0.001792078089 | F34: 0.007747790646 | I34: 24 | J34: 0.2625201176 | K34: 0.4337960389 | L34: 0.9439630523 | M34: 1.250154817 | N34: 2.386206325 | O34: 1.938655789 | P34: 1.526905291 | R34: 0.9775252828 | U34: 24 | V34: 0.03020742596 | W34: 0.04240865036 | X34: 0.06276486251 | Y34: 0.1287424409 | Z34: 0.2901966535 | AA34: 0.4391331628 | AB34: 0.642761381 | AE34: 24 | AF34: 0.09 | AG34: 0.13 | AH34: 0.19 | AI34: 0.37 | AJ34: 0.75 | AK34: 1 | AL34: 1.11 | AO34: 24 | AP34: 0.31 | AQ34: 0.41 | AR34: 0.71 | AS34: 1.17 | AT34: 2.49 | AU34: 6.47 | AV34: 6.47 | AY34: 24 | AZ34: 0.2228018351 | BA34: 0.2749273828 | BB34: 0.5147503326 | BC34: 0.6806907159 | BD34: 1.346343704 | BE34: 0.731551316 | BF34: 0.3779087725
A35: 25 | B35: ='Data Entry'!M28 -> 0.006001341748 | E35: 0.001792078089 | F35: 0.007793419837 | I35: 25 | J35: 0.2798208117 | K35: 0.4644990425 | L35: 1.005613454 | M35: 1.303381286 | N35: 2.454998436 | O35: 1.936451705 | P35: 1.478770543 | R35: 1.030575682 | U35: 25 | V35: 0.03251601371 | W35: 0.04548312916 | X35: 0.06678237076 | Y35: 0.1347038887 | Z35: 0.297861381 | AA35: 0.446753119 | AB35: 0.6479426817 | AE35: 25 | AF35: 0.09 | AG35: 0.14 | AH35: 0.2 | AI35: 0.37 | AJ35: 0.74 | AK35: 0.97 | AL35: 1.06 | AO35: 25 | AP35: 0.33 | AQ35: 0.43 | AR35: 0.75 | AS35: 1.17 | AT35: 2.49 | AU35: 6.47 | AV35: 6.47 | AY35: 25 | AZ35: 0.2374346808 | BA35: 0.2942905401 | BB35: 0.5497276151 | BC35: 0.722657149 | BD35: 1.41016855 | BE35: 0.7703935156 | BF35: 0.3995158435
A36: 26 | B36: ='Data Entry'!M29 -> 0.006106775574 | E36: 0.001792078089 | F36: 0.007898853664 | I36: 26 | J36: 0.2929135159 | K36: 0.4916396264 | L36: 1.066577997 | M36: 1.365748923 | N36: 2.530213426 | O36: 1.941133489 | P36: 1.436199292 | R36: 1.08624461 | U36: 26 | V36: 0.03491347986 | W36: 0.04865000076 | X36: 0.07086228869 | Y36: 0.1406115331 | Z36: 0.3052609599 | AA36: 0.454025862 | AB36: 0.6528734955 | AE36: 26 | AF36: 0.09 | AG36: 0.14 | AH36: 0.2 | AI36: 0.37 | AJ36: 0.73 | AK36: 0.94 | AL36: 1.01 | AO36: 26 | AP36: 0.35 | AQ36: 0.46 | AR36: 0.79 | AS36: 1.17 | AT36: 2.49 | AU36: 6.47 | AV36: 6.47 | AY36: 26 | AZ36: 0.2529977417 | BA36: 0.3149879538 | BB36: 0.5872272344 | BC36: 0.7675522796 | BD36: 1.478645225 | BE36: 0.8110842943 | BF36: 0.4218381263
A37: 27 | B37: ='Data Entry'!M30 -> 0.006154735881 | E37: 0.001792078089 | F37: 0.00794681397 | I37: 27 | J37: 0.31683458 | K37: 0.5253022392 | L37: 1.137298392 | M37: 1.437644767 | N37: 2.612583334 | O37: 1.947794395 | P37: 1.404202559 | R37: 1.151343733 | U37: 27 | V37: 0.03739929797 | W37: 0.05190562754 | X37: 0.07499941238 | Y37: 0.1464631363 | Z37: 0.3124112047 | AA37: 0.460977069 | AB37: 0.6575730863 | AE37: 27 | AF37: 0.1 | AG37: 0.15 | AH37: 0.21 | AI37: 0.38 | AJ37: 0.72 | AK37: 0.92 | AL37: 0.97 | AO37: 27 | AP37: 0.37 | AQ37: 0.49 | AR37: 0.84 | AS37: 1.19 | AT37: 2.49 | AU37: 6.47 | AV37: 6.47 | AY37: 27 | AZ37: 0.2695337815 | BA37: 0.3370956286 | BB37: 0.6274319368 | BC37: 0.8155920636 | BD37: 1.552191183 | BE37: 0.8537233302 | BF37: 0.4448954898
A38: 28 | B38: ='Data Entry'!M31 -> 0.006191862278 | E38: 0.001792078089 | F38: 0.007983940368 | I38: 28 | J38: 0.3366244132 | K38: 0.5605818726 | L38: 1.218304368 | M38: 1.509531824 | N38: 2.708020842 | O38: 1.966548148 | P38: 1.377794984 | R38: 1.221055422 | U38: 28 | V38: 0.03997266647 | W38: 0.05524627605 | X38: 0.07918878672 | Y38: 0.152257049 | Z38: 0.319326927 | AA38: 0.4676301217 | AB38: 0.6620589011 | AE38: 28 | AF38: 0.1 | AG38: 0.16 | AH38: 0.22 | AI38: 0.38 | AJ38: 0.72 | AK38: 0.9 | AL38: 0.93 | AO38: 28 | AP38: 0.39 | AQ38: 0.52 | AR38: 0.89 | AS38: 1.25 | AT38: 2.49 | AU38: 6.47 | AV38: 6.47 | AY38: 28 | AZ38: 0.2870907423 | BA38: 0.3606988111 | BB38: 0.6705529629 | BC38: 0.8670303648 | BD38: 1.631318982 | BE38: 0.8984313142 | BF38: 0.4687130388
A39: 29 | B39: ='Data Entry'!M32 -> 0.00621806378 | E39: 0.001792078089 | F39: 0.008010141869 | I39: 29 | J39: 0.3573277927 | K39: 0.5925853142 | L39: 1.295235711 | M39: 1.591966101 | N39: 2.807668664 | O39: 1.982530941 | P39: 1.356995002 | R39: 1.292699477 | U39: 29 | V39: 0.04263252488 | W39: 0.05866814816 | X39: 0.08342570459 | Y39: 0.1579921244 | Z39: 0.326021983 | AA39: 0.4740063517 | AB39: 0.6663467805 | AE39: 29 | AF39: 0.11 | AG39: 0.16 | AH39: 0.22 | AI39: 0.39 | AJ39: 0.71 | AK39: 0.88 | AL39: 0.9 | AO39: 29 | AP39: 0.41 | AQ39: 0.55 | AR39: 0.94 | AS39: 1.31 | AT39: 2.49 | AU39: 6.47 | AV39: 6.47 | AY39: 29 | AZ39: 0.3057221595 | BA39: 0.3858930349 | BB39: 0.7168345746 | BC39: 0.922165135 | BD39: 1.716654851 | BE39: 0.9453520547 | BF39: 0.4933213948
A40: 30 | B40: ='Data Entry'!M33 -> 0.006176792284 | E40: 0.001792078089 | F40: 0.007968870373 | I40: 30 | J40: 0.3789942536 | K40: 0.6314326909 | L40: 1.383872314 | M40: 1.675619456 | N40: 2.917970208 | O40: 2.005904027 | P40: 1.336825029 | R40: 1.370955765 | U40: 30 | V40: 0.04537757174 | W40: 0.06216740903 | X40: 0.0877057037 | Y40: 0.1636676423 | Z40: 0.3325093244 | AA40: 0.4801252543 | AB40: 0.6704511397 | AE40: 30 | AF40: 0.11 | AG40: 0.17 | AH40: 0.23 | AI40: 0.39 | AJ40: 0.7 | AK40: 0.86 | AL40: 0.87 | AO40: 30 | AP40: 0.44 | AQ40: 0.58 | AR40: 0.99 | AS40: 1.37 | AT40: 2.51 | AU40: 6.47 | AV40: 6.47 | AY40: 30 | AZ40: 0.3254876838 | BA40: 0.4127854071 | BB40: 0.7665597888 | BC40: 0.9813463842 | BD40: 1.808964091 | BE40: 0.9946551923 | BF40: 0.518757002
A41: 31 | B41: ='Data Entry'!M34 -> 0.006144220774 | E41: 0.001792078089 | F41: 0.007936298864
A42: 32 | B42: ='Data Entry'!M35 -> 0.00613290979 | E42: 0.001792078089 | F42: 0.007924987879
A43: 33 | B43: ='Data Entry'!M36 -> 0.006141763685 | E43: 0.001792078089 | F43: 0.007933841774
A44: =1+A43 -> 34 | B44: ='Data Entry'!M37 -> 0.00616990457 | E44: 0.001792078089 | F44: 0.007961982659
A45: 35 | B45: ='Data Entry'!M38 -> 0.006216631281 | E45: 0.001792078089 | F45: 0.00800870937
A46: 36 | B46: ='Data Entry'!M39 -> 0.006281389473 | E46: 0.001792078089 | F46: 0.008073467563
A47: 37 | B47: ='Data Entry'!M40 -> 0.006363742892 | E47: 0.001792078089 | F47: 0.008155820982 | V47: Non-financial. Probability of default (probability) | AF47: Non-financial. Probability of default (percentages) | AP47: Non-financial. Fundamental spread (percentages) | AZ47: Non-financial. Cost of downgrade (percentages)
A48: 38 | B48: ='Data Entry'!M41 -> 0.006463356294 | E48: 0.001792078089 | F48: 0.008255434383
A49: 39 | B49: ='Data Entry'!M42 -> 0.006579975771 | E49: 0.001792078089 | F49: 0.008372053861 | Y49: Credit quality steps | AI49: Credit quality steps | AS49: Credit quality steps | BC49: Credit quality steps
A50: 40 | B50: ='Data Entry'!M43 -> 0.006713417842 | E50: 0.001792078089 | F50: 0.008505495931 | U50: EUR | V50: 0 | W50: 1 | X50: 2 | Y50: 3 | Z50: 4 | AA50: 5 | AB50: 6 | AE50: EUR | AF50: 0 | AG50: 1 | AH50: 2 | AI50: 3 | AJ50: 4 | AK50: 5 | AL50: 6 | AO50: EUR | AP50: 0 | AQ50: 1 | AR50: 2 | AS50: 3 | AT50: 4 | AU50: 5 | AV50: 6 | AY50: EUR | AZ50: 0 | BA50: 1 | BB50: 2 | BC50: 3 | BD50: 4 | BE50: 5 | BF50: 6
A51: 41 | B51: ='Data Entry'!M44 -> 0.006863557742 | E51: 0.001792078089 | F51: 0.008655635832 | T51: Maturity | U51: 1 | V51: 0 | W51: 0 | X51: 0.0005 | Y51: 0.0019 | Z51: 0.0083 | AA51: 0.0427 | AB51: 0.3256 | AD51: Maturity | AE51: 1 | AF51: 0 | AG51: 0 | AH51: 0.04 | AI51: 0.13 | AJ51: 0.58 | AK51: 3.08 | AL51: 29.55 | AN51: Maturity | AO51: 1 | AP51: 0.05 | AQ51: 0.16 | AR51: 0.23 | AS51: 0.47 | AT51: 1.66 | AU51: 20.56 | AV51: 29.55 | AX51: Maturity | AY51: 1 | AZ51: 0 | BA51: 0 | BB51: 0 | BC51: 0 | BD51: 0 | BE51: 0 | BF51: 0
A52: 42 | B52: ='Data Entry'!M45 -> 0.007030320971 | E52: 0.001792078089 | F52: 0.008822399061 | U52: 2 | V52: 1.366e-05 | W52: 8.797e-05 | X52: 0.00121255 | Y52: 0.00448965 | Z52: 0.02019262 | AA52: 0.09474471 | AB52: 0.48924141 | AE52: 2 | AF52: 0 | AG52: 0 | AH52: 0.04 | AI52: 0.16 | AJ52: 0.71 | AK52: 3.42 | AL52: 22.12 | AO52: 2 | AP52: 0.01 | AQ52: 0.16 | AR52: 0.23 | AS52: 0.47 | AT52: 1.66 | AU52: 20.56 | AV52: 22.12 | AY52: 2 | AZ52: 0.004800168818 | BA52: 0.01083372299 | BB52: 0.03150865978 | BC52: 0.03720409452 | BD52: 0.09250963402 | BE52: 0.03342644088 | BF52: 0
A53: 43 | B53: ='Data Entry'!M46 -> 0.007213675728 | E53: 0.001792078089 | F53: 0.009005753817 | U53: 3 | V53: 5.2615662e-05 | W53: 0.000285705689 | X53: 0.002177073029 | Y53: 0.007786574 | Z53: 0.03523885593 | AA53: 0.1472572493 | AB53: 0.5772976181 | AE53: 3 | AF53: 0 | AG53: 0.01 | AH53: 0.05 | AI53: 0.18 | AJ53: 0.82 | AK53: 3.53 | AL53: 16.8 | AO53: 3 | AP53: 0.01 | AQ53: 0.16 | AR53: 0.25 | AS53: 0.52 | AT53: 1.6 | AU53: 20.51 | AV53: 20.51 | AY53: 3 | AZ53: 0.0095925649 | BA53: 0.02160222116 | BB53: 0.0626396541 | BC53: 0.07343020417 | BD53: 0.1789218514 | BE53: 0.06618458917 | BF53: 0.004583279072
A54: 44 | B54: ='Data Entry'!M47 -> 0.00741362848 | E54: 0.001792078089 | F54: 0.00920570657 | U54: 4 | V54: 0.0001289689854 | W54: 0.0006100993397 | X54: 0.003424201052 | Y54: 0.01181153763 | Z54: 0.0527337935 | AA54: 0.1967847028 | AB54: 0.6293520911 | AE54: 4 | AF54: 0 | AG54: 0.01 | AH54: 0.06 | AI54: 0.2 | AJ54: 0.91 | AK54: 3.52 | AL54: 13.09 | AO54: 4 | AP54: 0.02 | AQ54: 0.17 | AR54: 0.28 | AS54: 0.56 | AT54: 1.59 | AU54: 20.5 | AV54: 20.5 | AY54: 4 | AZ54: 0.01440143214 | BA54: 0.03236288139 | BB54: 0.09357953598 | BC54: 0.1089271963 | BD54: 0.2602223522 | BE54: 0.09834216182 | BF54: 0.0118474644
A55: 45 | B55: ='Data Entry'!M48 -> 0.007630217054 | E55: 0.001792078089 | F55: 0.009422295144 | U55: 5 | V55: 0.0002544758932 | W55: 0.001076643091 | X55: 0.00497984044 | Y55: 0.01656893937 | Z55: 0.07197347429 | AA55: 0.2422345041 | AB55: 0.6636589766 | AE55: 5 | AF55: 0 | AG55: 0.01 | AH55: 0.07 | AI55: 0.23 | AJ55: 0.99 | AK55: 3.44 | AL55: 10.47 | AO55: 5 | AP55: 0.02 | AQ55: 0.19 | AR55: 0.32 | AS55: 0.58 | AT55: 1.59 | AU55: 20.5 | AV55: 20.5 | AY55: 5 | AZ55: 0.01925562879 | BA55: 0.04318296751 | BB55: 0.1245413426 | BC55: 0.1439660803 | BD55: 0.3373637356 | BE55: 0.1300091514 | BF55: 0.0207039203
A56: 46 | B56: ='Data Entry'!M49 -> 0.00786350917 | E56: 0.001792078089 | F56: 0.009655587259 | U56: 6 | V56: 0.00044043215 | W56: 0.001700695765 | X56: 0.006866098389 | Y56: 0.02204371697 | Z56: 0.09234884452 | AA56: 0.2835025608 | AB56: 0.688728766 | AE56: 6 | AF56: 0.01 | AG56: 0.02 | AH56: 0.08 | AI56: 0.25 | AJ56: 1.06 | AK56: 3.33 | AL56: 8.59 | AO56: 6 | AP56: 0.03 | AQ56: 0.22 | AR56: 0.34 | AS56: 0.61 | AT56: 1.59 | AU56: 20.5 | AV56: 20.5 | AY56: 6 | AZ56: 0.02417896649 | BA56: 0.05411797614 | BB56: 0.1557026655 | BC56: 0.1787684164 | BD56: 0.4111085097 | BE56: 0.1612676693 | BF56: 0.03051696862
A57: 47 | B57: ='Data Entry'!M50 -> 0.00811359758 | E57: 0.001792078089 | F57: 0.00990567567 | U57: 7 | V57: 0.0006977889574 | W57: 0.002497739174 | X57: 0.009101192736 | Y57: 0.02820422165 | Z57: 0.1133671119 | AA57: 0.3208661113 | AB57: 0.708604337 | AE57: 7 | AF57: 0.01 | AG57: 0.02 | AH57: 0.09 | AI57: 0.28 | AJ57: 1.11 | AK57: 3.19 | AL57: 7.2 | AO57: 7 | AP57: 0.04 | AQ57: 0.25 | AR57: 0.36 | AS57: 0.63 | AT57: 1.59 | AU57: 20.5 | AV57: 20.5 | AY57: 7 | AZ57: 0.02919881038 | BA57: 0.06523105673 | BB57: 0.1872626352 | BC57: 0.2135733325 | BD57: 0.4822014793 | BE57: 0.1922286 | BF57: 0.04091655831
A58: 48 | B58: ='Data Entry'!M51 -> 0.008380597636 | E58: 0.001792078089 | F58: 0.01017267573 | U58: 8 | V58: 0.001037303621 | W58: 0.003483202383 | X58: 0.0116991872 | Y58: 0.03500666576 | Z58: 0.1346448045 | AA58: 0.3547208277 | AB58: 0.7252668602 | AE58: 8 | AF58: 0.01 | AG58: 0.03 | AH58: 0.1 | AI58: 0.3 | AJ58: 1.14 | AK58: 3.06 | AL58: 6.14 | AO58: 8 | AP58: 0.04 | AQ58: 0.24 | AR58: 0.36 | AS58: 0.66 | AT58: 1.7 | AU58: 20.5 | AV58: 20.5 | AY58: 8 | AZ58: 0.03436627013 | BA58: 0.07663814332 | BB58: 0.2195726212 | BC58: 0.2487854241 | BD58: 0.5517066255 | BE58: 0.2231601347 | BF58: 0.05172224942
A59: 49 | B59: ='Data Entry'!M52 -> 0.008664645611 | E59: 0.001792078089 | F59: 0.0104567237 | U59: 9 | V59: 0.001469652832 | W59: 0.004672128548 | X59: 0.01466984368 | Y59: 0.04239942068 | Z59: 0.1558916408 | AA59: 0.3854717349 | AB59: 0.7397354697 | AE59: 9 | AF59: 0.01 | AG59: 0.04 | AH59: 0.11 | AI59: 0.32 | AJ59: 1.17 | AK59: 2.92 | AL59: 5.33 | AO59: 9 | AP59: 0.05 | AQ59: 0.25 | AR59: 0.37 | AS59: 0.69 | AT59: 1.79 | AU59: 20.5 | AV59: 20.5 | AY59: 9 | AZ59: 0.03969702837 | BA59: 0.08837571922 | BB59: 0.2527560537 | BC59: 0.2845409912 | BD59: 0.6200284324 | BE59: 0.2540928388 | BF59: 0.06279521496
A60: 50 | B60: ='Data Entry'!M53 -> 0.008965896356 | E60: 0.001792078089 | F60: 0.01075797445 | U60: 10 | V60: 0.002005489247 | W60: 0.006078814339 | X60: 0.01801865728 | Y60: 0.05032659234 | Z60: 0.1768930952 | AA60: 0.413491944 | AB60: 0.7525719246 | AE60: 10 | AF60: 0.01 | AG60: 0.04 | AH60: 0.12 | AI60: 0.34 | AJ60: 1.19 | AK60: 2.79 | AL60: 4.67 | AO60: 10 | AP60: 0.06 | AQ60: 0.25 | AR60: 0.41 | AS60: 0.7 | AT60: 1.88 | AU60: 20.5 | AV60: 20.5 | AY60: 10 | AZ60: 0.04518905755 | BA60: 0.1004409018 | BB60: 0.2868251335 | BC60: 0.3208474284 | BD60: 0.6872650318 | BE60: 0.2849472898 | BF60: 0.07401754871
A61: 51 | B61: ='Data Entry'!M54 -> 0.009284521878 | E61: 0.001792078089 | F61: 0.01107659997 | U61: 11 | V61: 0.00265544395 | W61: 0.007716481841 | X61: 0.02174705487 | Y61: 0.05873077667 | Z61: 0.1974946143 | AA61: 0.4391105447 | AB61: 0.7641138238 | AE61: 11 | AF61: 0.02 | AG61: 0.05 | AH61: 0.14 | AI61: 0.36 | AJ61: 1.21 | AK61: 2.66 | AL61: 4.14 | AO61: 11 | AP61: 0.07 | AQ61: 0.26 | AR61: 0.46 | AS61: 0.72 | AT61: 1.96 | AU61: 20.5 | AV61: 20.5 | AY61: 11 | AZ61: 0.05089035252 | BA61: 0.1129425085 | BB61: 0.3221167559 | BC61: 0.3580728539 | BD61: 0.7542831153 | BE61: 0.3159685055 | BF61: 0.08538471791
A62: 52 | B62: ='Data Entry'!M55 -> 0.009620709806 | E62: 0.001792078089 | F62: 0.0114127879 | U62: 12 | V62: 0.003430085325 | W62: 0.009597008135 | X62: 0.02585271378 | Y62: 0.06755507466 | Z62: 0.2175883365 | AA62: 0.4626124308 | AB62: 0.7745836591 | AE62: 12 | AF62: 0.02 | AG62: 0.05 | AH62: 0.15 | AI62: 0.38 | AJ62: 1.21 | AK62: 2.53 | AL62: 3.7 | AO62: 12 | AP62: 0.08 | AQ62: 0.26 | AR62: 0.51 | AS62: 0.78 | AT62: 2.03 | AU62: 20.5 | AV62: 20.5 | AY62: 12 | AZ62: 0.05670778728 | BA62: 0.1256753239 | BB62: 0.3580650525 | BC62: 0.3955760301 | BD62: 0.819758145 | BE62: 0.3465148825 | BF62: 0.09667578726
A63: 53 | B63: ='Data Entry'!M56 -> 0.009974662273 | E63: =E62 -> 0.001792078089 | F63: 0.01176674036 | U63: 13 | V63: 0.00433984657 | W63: 0.01173072033 | X63: 0.03032995578 | Y63: 0.07674449864 | Z63: 0.2371023194 | AA63: 0.4842425046 | AB63: 0.784140818 | AE63: 13 | AF63: 0.02 | AG63: 0.06 | AH63: 0.16 | AI63: 0.4 | AJ63: 1.22 | AK63: 2.41 | AL63: 3.32 | AO63: 13 | AP63: 0.09 | AQ63: 0.26 | AR63: 0.55 | AS63: 0.83 | AT63: 2.1 | AU63: 20.5 | AV63: 20.5 | AY63: 13 | AZ63: 0.06268917894 | BA63: 0.1387484531 | BB63: 0.3950131352 | BC63: 0.4337309779 | BD63: 0.8845588279 | BE63: 0.3768499595 | BF63: 0.1079195398
A64: 54 | B64: ='Data Entry'!M57 -> 0.01034659534 | E64: 0.001792078089 | F64: 0.01213867343 | U64: 14 | V64: 0.005394933388 | W64: 0.01412625496 | X64: 0.03517017905 | Y64: 0.08624690207 | Z64: 0.2559919732 | AA64: 0.5042110384 | AB64: 0.7929071713 | AE64: 14 | AF64: 0.03 | AG64: 0.07 | AH64: 0.17 | AI64: 0.41 | AJ64: 1.21 | AK64: 2.29 | AL64: 3 | AO64: 14 | AP64: 0.09 | AQ64: 0.26 | AR64: 0.6 | AS64: 0.88 | AT64: 2.16 | AU64: 20.5 | AV64: 20.5 | AY64: 14 | AZ64: 0.06871001103 | BA64: 0.1518879021 | BB64: 0.4321977838 | BC64: 0.4716913552 | BD64: 0.9469760634 | BE64: 0.4061850538 | BF64: 0.1188603399
A65: 55 | B65: ='Data Entry'!M58 -> 0.01073673734 | E65: 0.001792078089 | F65: 0.01252881543 | U65: 15 | V65: 0.006605221564 | W65: 0.01679047637 | X65: 0.04036229983 | Y65: 0.09601354793 | Z65: 0.2742333323 | AA65: 0.5226989003 | AB65: 0.8009802688 | AE65: 15 | AF65: 0.03 | AG65: 0.08 | AH65: 0.18 | AI65: 0.43 | AJ65: 1.2 | AK65: 2.18 | AL65: 2.72 | AO65: 15 | AP65: 0.1 | AQ65: 0.26 | AR65: 0.65 | AS65: 0.94 | AT65: 2.21 | AU65: 20.5 | AV65: 20.5 | AY65: 15 | AZ65: 0.07503129087 | BA65: 0.1656772035 | BB65: 0.4713452649 | BC65: 0.511338847 | BD65: 1.010971623 | BE65: 0.4360826973 | BF65: 0.1299207642
A66: 56 | B66: ='Data Entry'!M59 -> 0.01114532881 | E66: 0.001792078089 | F66: 0.0129374069 | U66: 16 | V66: 0.007980152284 | W66: 0.01972844664 | X66: 0.04589318338 | Y66: 0.1059994098 | Z66: 0.2918178099 | AA66: 0.5398621911 | AB66: 0.8084405993 | AE66: 16 | AF66: 0.03 | AG66: 0.08 | AH66: 0.19 | AI66: 0.44 | AJ66: 1.19 | AK66: 2.07 | AL66: 2.48 | AO66: 16 | AP66: 0.12 | AQ66: 0.26 | AR66: 0.7 | AS66: 0.99 | AT66: 2.26 | AU66: 20.5 | AV66: 20.5 | AY66: 16 | AZ66: 0.08134974989 | BA66: 0.1794455732 | BB66: 0.5105435866 | BC66: 0.5505740044 | BD66: 1.072249803 | BE66: 0.4646983413 | BF66: 0.1405488154
A67: 57 | B67: ='Data Entry'!M60 -> 0.0115726213 | E67: 0.001792078089 | F67: 0.01336469939 | U67: 17 | V67: 0.009528631142 | W67: 0.02294343896 | X67: 0.05174805089 | Y67: 0.1161632798 | Z67: 0.3087481342 | AA67: 0.5558361916 | AB67: 0.8153559084 | AE67: 17 | AF67: 0.04 | AG67: 0.09 | AH67: 0.21 | AI67: 0.45 | AJ67: 1.17 | AK67: 1.97 | AL67: 2.26 | AO67: 17 | AP67: 0.13 | AQ67: 0.28 | AR67: 0.76 | AS67: 1.04 | AT67: 2.31 | AU67: 20.5 | AV67: 20.5 | AY67: 17 | AZ67: 0.08786237655 | BA67: 0.1936346841 | BB67: 0.5511181434 | BC67: 0.5908273791 | BD67: 1.133785072 | BE67: 0.4931993668 | BF67: 0.1510684509
A68: 58 | B68: ='Data Entry'!M61 -> 0.01201887719 | E68: 0.001792078089 | F68: 0.01381095528 | U68: 18 | V68: 0.01125893521 | W68: 0.02643698662 | X68: 0.05791085414 | Y68: 0.1264677398 | Z68: 0.3250352136 | AA68: 0.570738659 | AB68: 0.8217839881 | AE68: 18 | AF68: 0.04 | AG68: 0.1 | AH68: 0.22 | AI68: 0.46 | AJ68: 1.16 | AK68: 1.87 | AL68: 2.07 | AO68: 18 | AP68: 0.14 | AQ68: 0.31 | AR68: 0.81 | AS68: 1.09 | AT68: 2.35 | AU68: 20.5 | AV68: 20.5 | AY68: 18 | AZ68: 0.09456359243 | BA68: 0.2082362739 | BB68: 0.5930937261 | BC68: 0.6321043906 | BD68: 1.195592489 | BE68: 0.5215318095 | BF68: 0.1614539256
A69: 59 | B69: ='Data Entry'!M62 -> 0.01248436885 | E69: 0.001792078089 | F69: 0.01427644694 | U69: 19 | V69: 0.01317863111 | W69: 0.03020896 | X69: 0.06436461337 | Y69: 0.1368790402 | Z69: 0.3406957311 | AA69: 0.5846725575 | AB69: 0.8277746164 | AE69: 19 | AF69: 0.05 | AG69: 0.11 | AH69: 0.23 | AI69: 0.47 | AJ69: 1.13 | AK69: 1.78 | AL69: 1.9 | AO69: 19 | AP69: 0.15 | AQ69: 0.33 | AR69: 0.86 | AS69: 1.14 | AT69: 2.39 | AU69: 20.5 | AV69: 20.5 | AY69: 19 | AZ69: 0.1013194821 | BA69: 0.2229568582 | BB69: 0.6356548095 | BC69: 0.6735150657 | BD69: 1.255919611 | BE69: 0.5489211267 | BF69: 0.1714630813
A70: 60 | B70: ='Data Entry'!M63 -> 0.01296937828 | E70: 0.001792078089 | F70: 0.01476145637 | U70: 20 | V70: 0.01529450602 | W70: 0.03425766488 | X70: 0.07109171683 | Y70: 0.1473669174 | Z70: 0.3557503074 | AA70: 0.597728313 | AB70: 0.8333709867 | AE70: 20 | AF70: 0.05 | AG70: 0.11 | AH70: 0.24 | AI70: 0.48 | AJ70: 1.11 | AK70: 1.7 | AL70: 1.76 | AO70: 20 | AP70: 0.16 | AQ70: 0.35 | AR70: 0.92 | AS70: 1.2 | AT70: 2.43 | AU70: 20.5 | AV70: 20.5 | AY70: 20 | AZ70: 0.1083997315 | BA70: 0.2384015597 | BB70: 0.6806512631 | BC70: 0.7170066644 | BD70: 1.318619102 | BE70: 0.5768886681 | BF70: 0.1815461744
A71: 61 | B71: ='Data Entry'!M64 -> 0.0134387068 | E71: 0.001792078089 | F71: 0.01523078489 | U71: 21 | V71: 0.01761251244 | W71: 0.03857995612 | X71: 0.07807418229 | Y71: 0.1579043749 | Z71: 0.3702221059 | AA71: 0.609985677 | AB71: 0.8386108085 | AE71: 21 | AF71: 0.06 | AG71: 0.12 | AH71: 0.25 | AI71: 0.49 | AJ71: 1.1 | AK71: 1.62 | AL71: 1.63 | AO71: 21 | AP71: 0.17 | AQ71: 0.38 | AR71: 0.98 | AS71: 1.25 | AT71: 2.48 | AU71: 20.5 | AV71: 20.5 | AY71: 21 | AZ71: 0.1159976023 | BA71: 0.2550078183 | BB71: 0.7294846874 | BC71: 0.76400782 | BD71: 1.386405999 | BE71: 0.6064548581 | BF71: 0.1920082759
A72: 62 | B72: ='Data Entry'!M65 -> 0.01389310272 | E72: 0.001792078089 | F72: 0.01568518081 | U72: 22 | V72: 0.02013772711 | W72: 0.04317136149 | X72: 0.08529388203 | Y72: 0.1684674448 | Z72: 0.384135781 | AA72: 0.62151527 | AB72: 0.8435271764 | AE72: 22 | AF72: 0.06 | AG72: 0.13 | AH72: 0.26 | AI72: 0.5 | AJ72: 1.08 | AK72: 1.55 | AL72: 1.52 | AO72: 22 | AP72: 0.19 | AQ72: 0.4 | AR72: 1.04 | AS72: 1.31 | AT72: 2.54 | AU72: 20.5 | AV72: 20.5 | AY72: 22 | AZ72: 0.1241568438 | BA72: 0.2728826642 | BB72: 0.7826139445 | BC72: 0.8149245794 | BD72: 1.45995413 | BE72: 0.6377749055 | BF72: 0.2028909992
A73: 63 | B73: ='Data Entry'!M66 -> 0.01433326752 | E73: 0.001792078089 | F73: 0.01612534561 | U73: 23 | V73: 0.02287432366 | W73: 0.04802621148 | X73: 0.09273273376 | Y73: 0.1790349424 | Z73: 0.397516693 | AA73: 0.6323798641 | AB73: 0.8481492723 | AE73: 23 | AF73: 0.07 | AG73: 0.14 | AH73: 0.27 | AI73: 0.51 | AJ73: 1.07 | AK73: 1.49 | AL73: 1.42 | AO73: 23 | AP73: 0.2 | AQ73: 0.43 | AR73: 1.11 | AS73: 1.38 | AT73: 2.61 | AU73: 20.5 | AV73: 20.5 | AY73: 23 | AZ73: 0.1328965167 | BA73: 0.29208054 | BB73: 0.8403758831 | BC73: 0.8700211047 | BD73: 1.539666597 | BE73: 0.6708654971 | BF73: 0.2141898869
A74: 64 | B74: ='Data Entry'!M67 -> 0.01475985939 | E74: 0.001792078089 | F74: 0.01655193748 | U74: 24 | V74: 0.02582555845 | W74: 0.05313777129 | X74: 0.1003728601 | Y74: 0.1895882227 | Z74: 0.4103903272 | AA74: 0.6426354535 | AB74: 0.8525029379 | AE74: 24 | AF74: 0.07 | AG74: 0.15 | AH74: 0.28 | AI74: 0.52 | AJ74: 1.05 | AK74: 1.44 | AL74: 1.34 | AO74: 24 | AP74: 0.21 | AQ74: 0.46 | AR74: 1.18 | AS74: 1.45 | AT74: 2.68 | AU74: 20.5 | AV74: 20.5 | AY74: 24 | AZ74: 0.1422384001 | BA74: 0.3126646951 | BB74: 0.9031757721 | BC74: 0.9296189187 | BD74: 1.626068945 | BE74: 0.7057602617 | BF74: 0.2259018086
A75: 65 | B75: ='Data Entry'!M68 -> 0.01517349657 | E75: 0.001792078089 | F75: 0.01696557466 | U75: 25 | V75: 0.02899376846 | W75: 0.05849837225 | X75: 0.1081967202 | Y75: 0.2001109445 | Z75: 0.4227818715 | AA75: 0.6523321511 | AB75: 0.8566111471 | AE75: 25 | AF75: 0.08 | AG75: 0.16 | AH75: 0.29 | AI75: 0.52 | AJ75: 1.04 | AK75: 1.39 | AL75: 1.26 | AO75: 25 | AP75: 0.23 | AQ75: 0.49 | AR75: 1.26 | AS75: 1.52 | AT75: 2.76 | AU75: 20.5 | AV75: 20.5 | AY75: 25 | AZ75: 0.1522069426 | BA75: 0.3347075449 | BB75: 0.9714992933 | BC75: 0.9941054234 | BD75: 1.719828323 | BE75: 0.7425098943 | BF75: 0.238025243
A76: =1+A75 -> 66 | B76: ='Data Entry'!M69 -> 0.01557476031 | E76: 0.001792078089 | F76: =MAX(E76+B76,0) -> 0.0173668384 | U76: 26 | V76: 0.03238038035 | W76: 0.0640995403 | X76: 0.1161872153 | Y76: 0.2105888464 | Z76: 0.4347159156 | AA76: 0.6615149442 | AB76: 0.8604943985 | AE76: 26 | AF76: 0.08 | AG76: 0.17 | AH76: 0.3 | AI76: 0.53 | AJ76: 1.03 | AK76: 1.35 | AL76: 1.19 | AO76: 26 | AP76: 0.25 | AQ76: 0.53 | AR76: 1.35 | AS76: 1.6 | AT76: 2.85 | AU76: 20.5 | AV76: 20.5 | AY76: 26 | AZ76: 0.1628292901 | BA76: 0.358291299 | BB76: 1.04592876 | BC76: 1.063945566 | BD76: 1.821781626 | BE76: 0.7811826843 | BF76: 0.2505604573
A77: 67 | B77: ='Data Entry'!M70 -> 0.0159641976 | E77: 0.001792078089 | F77: 0.01775627569 | U77: 27 | V77: 0.03598592917 | W77: 0.06993211972 | X77: 0.1243277733 | Y77: 0.2210095364 | Z77: 0.4462162422 | AA77: 0.6702243331 | AB77: 0.8641710435 | AE77: 27 | AF77: 0.09 | AG77: 0.18 | AH77: 0.31 | AI77: 0.54 | AJ77: 1.02 | AK77: 1.3 | AL77: 1.13 | AO77: 27 | AP77: 0.27 | AQ77: 0.56 | AR77: 1.44 | AS77: 1.68 | AT77: 2.95 | AU77: 20.5 | AV77: 20.5 | AY77: 27 | AZ77: 0.1741353786 | BA77: 0.3835088498 | BB77: 1.127164848 | BC77: 1.13969747 | BD77: 1.932975486 | BE77: 0.8218654603 | BF77: 0.2635096279
A78: 68 | B78: ='Data Entry'!M71 -> 0.01634232367 | E78: 0.001792078089 | F78: 0.01813440176 | U78: 28 | V78: 0.03981008565 | W78: 0.07598639078 | X78: 0.1326024128 | Y78: 0.2313622969 | Z78: 0.4573056891 | AA78: 0.6784968742 | AB78: 0.8676575622 | AE78: 28 | AF78: 0.1 | AG78: 0.19 | AH78: 0.33 | AI78: 0.55 | AJ78: 1.01 | AK78: 1.27 | AL78: 1.08 | AO78: 28 | AP78: 0.28 | AQ78: 0.6 | AR78: 1.54 | AS78: 1.77 | AT78: 3.06 | AU78: 20.5 | AV78: 20.5 | AY78: 28 | AZ78: 0.186158084 | BA78: 0.4104649341 | BB78: 1.216055774 | BC78: 1.222033283 | BD78: 2.054722703 | BE78: 0.8646649815 | BF78: 0.2768769298
A79: 69 | B79: ='Data Entry'!M72 -> 0.01670962423 | E79: 0.001792078089 | F79: 0.01850170232 | U79: 29 | V79: 0.04385169069 | W79: 0.08225218041 | X79: 0.1409957913 | Y79: 0.2416379055 | Z79: 0.4680060642 | AA79: 0.6863656439 | AB79: 0.8709687964 | AE79: 29 | AF79: 0.1 | AG79: 0.2 | AH79: 0.34 | AI79: 0.56 | AJ79: 1 | AK79: 1.23 | AL79: 1.03 | AO79: 29 | AP79: 0.3 | AQ79: 0.64 | AR79: 1.65 | AS79: 1.87 | AT79: 3.19 | AU79: 20.5 | AV79: 20.5 | AY79: 29 | AZ79: 0.1989334259 | BA79: 0.4392775934 | BB79: 1.313636848 | BC79: 1.311767067 | BD79: 2.188682476 | BE79: 0.9097098274 | BF79: 0.2906686099
A80: 70 | B80: ='Data Entry'!M73 -> 0.0170665576 | E80: 0.001792078089 | F80: 0.01885863569 | U80: 30 | V80: 0.0481087958 | W80: 0.0887189652 | X80: 0.1494932382 | Y80: 0.2518284708 | Z80: 0.4783381006 | AA80: 0.6938606368 | AB80: 0.8741181478 | AE80: 30 | AF80: 0.11 | AG80: 0.21 | AH80: 0.35 | AI80: 0.57 | AJ80: 0.99 | AK80: 1.2 | AL80: 0.98 | AO80: 30 | AP80: 0.32 | AQ80: 0.68 | AR80: 1.77 | AS80: 1.98 | AT80: 3.33 | AU80: 20.5 | AV80: 20.5 | AY80: 30 | AZ80: 0.2125008234 | BA80: 0.4700799747 | BB80: 1.421184839 | BC80: 1.409892527 | BD80: 2.336976324 | BE80: 0.9571528623 | BF80: 0.3048930554
A81: 71 | B81: ='Data Entry'!M74 -> 0.01741355657 | E81: 0.001792078089 | F81: 0.01920563466
A82: 72 | B82: ='Data Entry'!M75 -> 0.01775103017 | E82: 0.001792078089 | F82: 0.01954310826
A83: 73 | B83: ='Data Entry'!M76 -> 0.01807936531 | E83: 0.001792078089 | F83: 0.0198714434
A84: 74 | B84: ='Data Entry'!M77 -> 0.01839892819 | E84: 0.001792078089 | F84: 0.02019100628
A85: 75 | B85: ='Data Entry'!M78 -> 0.01871006573 | E85: 0.001792078089 | F85: 0.02050214381
A86: 76 | B86: ='Data Entry'!M79 -> 0.01901310677 | E86: 0.001792078089 | F86: 0.02080518486
A87: 77 | B87: ='Data Entry'!M80 -> 0.01930836328 | E87: 0.001792078089 | F87: 0.02110044137
A88: 78 | B88: ='Data Entry'!M81 -> 0.0195961314 | E88: 0.001792078089 | F88: 0.02138820949
A89: 79 | B89: ='Data Entry'!M82 -> 0.01987669243 | E89: 0.001792078089 | F89: 0.02166877052
A90: 80 | B90: ='Data Entry'!M83 -> 0.02015031377 | E90: 0.001792078089 | F90: 0.02194239186
A91: 81 | B91: ='Data Entry'!M84 -> 0.02041724974 | E91: 0.001792078089 | F91: 0.02220932783
A92: 82 | B92: ='Data Entry'!M85 -> 0.02067774239 | E92: 0.001792078089 | F92: 0.02246982048
A93: 83 | B93: ='Data Entry'!M86 -> 0.02093202222 | E93: 0.001792078089 | F93: 0.02272410031
A94: 84 | B94: ='Data Entry'!M87 -> 0.02118030887 | E94: 0.001792078089 | F94: 0.02297238696
A95: 85 | B95: ='Data Entry'!M88 -> 0.02142281175 | E95: =E94 -> 0.001792078089 | F95: 0.02321488984
A96: 86 | B96: ='Data Entry'!M89 -> 0.02165973062 | E96: 0.001792078089 | F96: 0.02345180871
A97: 87 | B97: ='Data Entry'!M90 -> 0.02189125616 | E97: 0.001792078089 | F97: 0.02368333425
A98: 88 | B98: ='Data Entry'!M91 -> 0.02211757045 | E98: 0.001792078089 | F98: 0.02390964853
A99: 89 | B99: ='Data Entry'!M92 -> 0.02233884746 | E99: 0.001792078089 | F99: 0.02413092555
A100: 90 | B100: ='Data Entry'!M93 -> 0.02255525353 | E100: 0.001792078089 | F100: 0.02434733161
A101: 91 | B101: ='Data Entry'!M94 -> 0.02276694772 | E101: 0.001792078089 | F101: 0.02455902581
A102: 92 | B102: ='Data Entry'!M95 -> 0.02297408228 | E102: 0.001792078089 | F102: 0.02476616037
A103: 93 | B103: ='Data Entry'!M96 -> 0.02317680294 | E103: 0.001792078089 | F103: 0.02496888103
A104: 94 | B104: ='Data Entry'!M97 -> 0.02337524929 | E104: 0.001792078089 | F104: 0.02516732738
A105: 95 | B105: ='Data Entry'!M98 -> 0.0235695551 | E105: 0.001792078089 | F105: 0.02536163319
A106: 96 | B106: ='Data Entry'!M99 -> 0.02375984863 | E106: 0.001792078089 | F106: 0.02555192672
A107: 97 | B107: ='Data Entry'!M100 -> 0.02394625287 | E107: 0.001792078089 | F107: 0.02573833096
A108: 98 | B108: ='Data Entry'!M101 -> 0.02412888584 | E108: 0.001792078089 | F108: 0.02592096393
A109: 99 | B109: ='Data Entry'!M102 -> 0.02430786086 | E109: 0.001792078089 | F109: 0.02609993895
A110: 100 | B110: ='Data Entry'!M103 -> 0.02448328672 | E110: 0.001792078089 | F110: 0.02627536481

Sheet Final Spread
B1: Final | E1: =N7 -> 0.05 | F1: =N8 -> 0.12 | G1: =N9 -> 0.45 | H1: =N10 -> 0.39 | I1: =N11 -> 0
A2: Duration | B2: Spread | D2: Maturity | E2: AAA | F2: AA | G2: A | H2: BBB | I2: BBB- | K2: Weighted
A3: 1 | B3: =B4+B4-B5 -> 0.0031810299 | D3: 1 | E3: =Results!J3 -> 0.0005518757764 | F3: =Results!K3 -> 0.001869561107 | G3: =Results!L3 -> 0.004628074032 | H3: =Results!M3 -> 0.003095830533 | I3: =Results!N3 -> 0.01283497469 | K3: =SUMPRODUCT(E$1:I$1,E3:I3) -> 0.003541948344
A4: =1+A3 -> 2 | B4: =B5+B5-B6 -> 0.004258052915 | D4: 2 | E4: =Results!J4 -> 0.003509134337 | F4: =Results!K4 -> 0.001461800119 | G4: =Results!L4 -> 0.004694834608 | H4: =Results!M4 -> 0.003087311956 | I4: =Results!N4 -> 0.01599538972 | K4: 0.003667599968 | M4: Weights
A5: 3 | B5: =B6+B6-B7 -> 0.00533507593 | D5: 3 | E5: =Results!J5 -> 0.00485051512 | F5: =Results!K5 -> 0.001632371879 | G5: =Results!L5 -> 0.005282334958 | H5: =Results!M5 -> 0.004920220324 | I5: =Results!N5 -> 0.01903519992 | K5: 0.004734347039 | M5: Actual | N5: Weights
A6: 4 | B6: =B7+B7-B8 -> 0.006412098945 | D6: 4 | E6: =Results!J6 -> 0.00525488899 | F6: =Results!K6 -> 0.002025598404 | G6: =Results!L6 -> 0.006032156434 | H6: =Results!M6 -> 0.00746248941 | I6: =Results!N6 -> 0.02173503392 | K6: 0.006130657523 | M6: Filings | N6: Used
A7: 5 | B7: =K7 -> 0.007489121959 | D7: 5 | E7: =Results!J7 -> 0.005070923692 | F7: =Results!K7 -> 0.002403077662 | G7: =Results!L7 -> 0.00671023159 | H7: =Results!M7 -> 0.01007077497 | I7: =Results!N7 -> 0.02397190926 | K7: 0.007489121959 | M7: AAA 5% | N7: =Instructions!F36/100 -> 0.05
A8: 6 | B8: =0.5*B7+0.5*B9 -> 0.008566144974 | D8: 6 | E8: =Results!J8 -> 0.004542631056 | F8: =Results!K8 -> 0.002682559896 | G8: =Results!L8 -> 0.007241363549 | H8: =Results!M8 -> 0.01246587601 | I8: =Results!N8 -> 0.02575773757 | K8: 0.008669343981 | M8: AA 10% | N8: =Instructions!G36/100 -> 0.12
A9: 7 | B9: =K9 -> 0.009643167989 | D9: 7 | E9: =Results!J9 -> 0.003837900219 | F9: =Results!K9 -> 0.002856238794 | G9: =Results!L9 -> 0.007625316662 | H9: =Results!M9 -> 0.01455674827 | I9: =Results!N9 -> 0.02715980476 | K9: 0.009643167989 | M9: A 40% | N9: =Instructions!H36/100 -> 0.45
A10: 8 | B10: =0.67*B9+0.33*B12 -> 0.01018710391 | D10: 8 | E10: =Results!J10 -> 0.003010680951 | F10: =Results!K10 -> 0.002888169942 | G10: =Results!L10 -> 0.007833211907 | H10: =Results!M10 -> 0.01628416821 | I10: =Results!N10 -> 0.02820121878 | K10: 0.0103728854 | M10: BBB 35% | N10: =Instructions!I36/100 -> 0.39
A11: 9 | B11: =0.33*B9+0.67*B12 -> 0.01074752273 | D11: 9 | E11: =Results!J11 -> 0.002142938126 | F11: =Results!K11 -> 0.002818433497 | G11: =Results!L11 -> 0.007911290174 | H11: =Results!M11 -> 0.01769472389 | I11: =Results!N11 -> 0.02896811704 | K11: 0.01090638182 | M11: BB 5%
A12: 10 | B12: =K12 -> 0.01129145865 | D12: 10 | E12: =Results!J12 -> 0.001287030404 | F12: =Results!K12 -> 0.002683655298 | G12: =Results!L12 -> 0.00790134903 | H12: =Results!M12 -> 0.01884477291 | I12: =Results!N12 -> 0.02953289653 | K12: 0.01129145865 | M12: B 5%
A13: 11 | B13: =0.9*B12+0.1*B22 -> 0.01141022614 | D13: 11 | E13: =Results!J13 -> 0.0004579246038 | F13: =Results!K13 -> 0.002496729388 | G13: =Results!L13 -> 0.007820527678 | H13: =Results!M13 -> 0.01977136819 | I13: =Results!N13 -> 0.02993619962 | K13: 0.01155257481
A14: 12 | B14: =0.8*B12+0.2*B22 -> 0.01152899362 | D14: 12 | E14: =Results!J14 -> 0 | F14: =Results!K14 -> 0.002276414692 | G14: =Results!L14 -> 0.007691023759 | H14: =Results!M14 -> 0.02051742395 | I14: =Results!N14 -> 0.03021833268 | K14: 0.01173592579
A15: 13 | B15: =0.7*B12+0.3*B22 -> 0.01164776111 | D15: 13 | E15: =Results!J15 -> 0 | F15: =Results!K15 -> 0.001999837363 | G15: =Results!L15 -> 0.007492728586 | H15: =Results!M15 -> 0.02108219095 | I15: =Results!N15 -> 0.03037320123 | K15: 0.01183376282
A16: 14 | B16: =0.6*B12+0.4*B22 -> 0.01176652859 | D16: 14 | E16: =Results!J16 -> 0 | F16: =Results!K16 -> 0.001816931146 | G16: =Results!L16 -> 0.007377792224 | H16: =Results!M16 -> 0.02163495259 | I16: =Results!N16 -> 0.03056386031 | K16: 0.01197566975
A17: 15 | B17: =0.5*B12+0.5*B22 -> 0.01188529608 | D17: 15 | E17: =Results!J17 -> 0 | F17: =Results!K17 -> 0.001604691463 | G17: =Results!L17 -> 0.007224985897 | H17: =Results!M17 -> 0.02206918703 | I17: =Results!N17 -> 0.03067762017 | K17: 0.01205078957
A18: 16 | B18: =0.4*B12+0.6*B22 -> 0.01200406356 | D18: 16 | E18: =Results!J18 -> 0 | F18: =Results!K18 -> 0.001422125619 | G18: =Results!L18 -> 0.007094742271 | H18: =Results!M18 -> 0.02245772969 | I18: =Results!N18 -> 0.03078164613 | K18: 0.01212180367
A19: 17 | B19: =0.3*B12+0.7*B22 -> 0.01212283105 | D19: 17 | E19: =Results!J19 -> 0 | F19: =Results!K19 -> 0.001264929466 | G19: =Results!L19 -> 0.006983905095 | H19: =Results!M19 -> 0.02280778043 | I19: =Results!N19 -> 0.03087812944 | K19: 0.0121895832
A20: 18 | B20: =0.2*B12+0.8*B22 -> 0.01224159853 | D20: 18 | E20: =Results!J20 -> 0 | F20: =Results!K20 -> 0.001144831371 | G20: =Results!L20 -> 0.006905131306 | H20: =Results!M20 -> 0.02314060074 | I20: =Results!N20 -> 0.03098400682 | K20: 0.01226952314
A21: 19 | B21: =0.1*B12+0.9*B22 -> 0.01236036602 | D21: 19 | E21: =Results!J21 -> 0 | F21: =Results!K21 -> 0.001056345022 | G21: =Results!L21 -> 0.006853689723 | H21: =Results!M21 -> 0.02345859737 | I21: =Results!N21 -> 0.03109799891 | K21: 0.01235977475
A22: 20 | B22: =K22 -> 0.0124791335 | D22: 20 | E22: =Results!J22 -> 0 | F22: =Results!K22 -> 0.00101610121 | G22: =Results!L22 -> 0.006846828797 | H22: =Results!M22 -> 0.02378494461 | I22: =Results!N22 -> 0.03124015995 | K22: 0.0124791335
A23: 21 | B23: =0.9*B22+0.1*B32 -> 0.01261890049 | D23: 21 | E23: =Results!J23 -> 0 | F23: =Results!K23 -> 0.0009681576724 | G23: =Results!L23 -> 0.006829114609 | H23: =Results!M23 -> 0.02406913971 | I23: =Results!N23 -> 0.03135735422 | K23: 0.01257624498
A24: 22 | B24: =0.8*B22+0.2*B32 -> 0.01275866748 | D24: 22 | E24: =Results!J24 -> 0 | F24: =Results!K24 -> 0.0009274772817 | G24: =Results!L24 -> 0.006815931057 | H24: =Results!M24 -> 0.02433068441 | I24: =Results!N24 -> 0.03146686222 | K24: 0.01266743317
A25: 23 | B25: =0.7*B22+0.3*B32 -> 0.01289843447 | D25: 23 | E25: =Results!J25 -> 0 | F25: =Results!K25 -> 0.0009481689574 | G25: =Results!L25 -> 0.006861737994 | H25: =Results!M25 -> 0.02462749179 | I25: =Results!N25 -> 0.03162472045 | K25: 0.01280628417
A26: 24 | B26: =0.6*B22+0.4*B32 -> 0.01303820146 | D26: 24 | E26: =Results!J26 -> 0 | F26: =Results!K26 -> 0.0009887743579 | G26: =Results!L26 -> 0.006925371443 | H26: =Results!M26 -> 0.02492130739 | I26: =Results!N26 -> 0.03179108478 | K26: 0.01295437995
A27: 25 | B27: =0.5*B22+0.5*B32 -> 0.01317796845 | D27: 25 | E27: =Results!J27 -> 0 | F27: =Results!K27 -> 0.001074870194 | G27: =Results!L27 -> 0.007032656552 | H27: =Results!M27 -> 0.02524041998 | I27: =Results!N27 -> 0.03199289264 | K27: 0.01313744366
A28: 26 | B28: =0.4*B22+0.6*B32 -> 0.01331773544 | D28: 26 | E28: =Results!J28 -> 0 | F28: =Results!K28 -> 0.001091053207 | G28: =Results!L28 -> 0.007068400993 | H28: =Results!M28 -> 0.02547173394 | I28: =Results!N28 -> 0.03211589509 | K28: 0.01324568307
A29: 27 | B29: =0.3*B22+0.7*B32 -> 0.01345750243 | D29: 27 | E29: =Results!J29 -> 0 | F29: =Results!K29 -> 0.001155716004 | G29: =Results!L29 -> 0.007151177496 | H29: =Results!M29 -> 0.02573561552 | I29: =Results!N29 -> 0.03227946981 | K29: 0.01339360585
A30: 28 | B30: =0.2*B22+0.8*B32 -> 0.01359726942 | D30: 28 | E30: =Results!J30 -> 0 | F30: =Results!K30 -> 0.001223177279 | G30: =Results!L30 -> 0.007235459413 | H30: =Results!M30 -> 0.02598807992 | I30: =Results!N30 -> 0.0324387809 | K30: 0.01353808918
A31: 29 | B31: =0.1*B22+0.9*B32 -> 0.0137370364 | D31: 29 | E31: =Results!J31 -> 0 | F31: =Results!K31 -> 0.00129435603 | G31: =Results!L31 -> 0.007322299227 | H31: =Results!M31 -> 0.02623151164 | I31: =Results!N31 -> 0.03259547683 | K31: 0.01368064692
A32: 30 | B32: =K32 -> 0.01387680339 | D32: 30 | E32: =Results!J32 -> 0 | F32: =Results!K32 -> 0.001426519121 | G32: =Results!L32 -> 0.007469079595 | H32: =Results!M32 -> 0.02652444944 | I32: =Results!N32 -> 0.03280745707 | K32: 0.01387680339
D33: avg | E33: =AVERAGE(E3:E32) -> 0.001150548109 | F33: =AVERAGE(F3:F32) -> 0.001683955781 | G33: =AVERAGE(G3:G32) -> 0.006962091555 | H33: =AVERAGE(H3:H32) -> 0.01941160419 | I33: =AVERAGE(I3:I32) -> 0.02868044772

Sheet Results
K1: Spreads | R1: Raw Yields
I2: Maturity | J2: AAA | K2: AA | L2: A | M2: BBB | N2: BBB- | P2: Maturity | Q2: AAA | R2: AA | S2: A | T2: BBB | U2: BBB-
I3: ='All Curves'!A10 -> 1 | J3: ='All Curves'!H10 -> 0.0005518757764 | K3: ='All Curves'!I10 -> 0.001869561107 | L3: ='All Curves'!J10 -> 0.004628074032 | M3: ='All Curves'!K10 -> 0.003095830533 | N3: ='All Curves'!L10 -> 0.01283497469 | P3: =I3 -> 1 | Q3: ='All Curves'!C10 -> -0.005063785772 | R3: ='All Curves'!D10 -> -0.003746100441 | S3: ='All Curves'!E10 -> -0.0009875875159 | T3: ='All Curves'!F10 -> -0.002519831015 | U3: ='All Curves'!G10 -> 0.00721931314
I4: ='All Curves'!A11 -> 2 | J4: ='All Curves'!H11 -> 0.003509134337 | K4: ='All Curves'!I11 -> 0.001461800119 | L4: ='All Curves'!J11 -> 0.004694834608 | M4: ='All Curves'!K11 -> 0.003087311956 | N4: ='All Curves'!L11 -> 0.01599538972 | P4: 2 | Q4: ='All Curves'!C11 -> -0.002317515779 | R4: ='All Curves'!D11 -> -0.004364849998 | S4: ='All Curves'!E11 -> -0.001131815508 | T4: ='All Curves'!F11 -> -0.00273933816 | U4: ='All Curves'!G11 -> 0.0101687396
I5: ='All Curves'!A12 -> 3 | J5: ='All Curves'!H12 -> 0.00485051512 | K5: ='All Curves'!I12 -> 0.001632371879 | L5: ='All Curves'!J12 -> 0.005282334958 | M5: ='All Curves'!K12 -> 0.004920220324 | N5: ='All Curves'!L12 -> 0.01903519992 | P5: 3 | Q5: ='All Curves'!C12 -> -0.0007191112746 | R5: ='All Curves'!D12 -> -0.003937254516 | S5: ='All Curves'!E12 -> -0.0002872914367 | T5: ='All Curves'!F12 -> -0.0006494060713 | U5: ='All Curves'!G12 -> 0.01346557353
I6: ='All Curves'!A13 -> 4 | J6: ='All Curves'!H13 -> 0.00525488899 | K6: ='All Curves'!I13 -> 0.002025598404 | L6: ='All Curves'!J13 -> 0.006032156434 | M6: ='All Curves'!K13 -> 0.00746248941 | N6: ='All Curves'!L13 -> 0.02173503392 | P6: 4 | Q6: ='All Curves'!C13 -> 0.0001963163751 | R6: ='All Curves'!D13 -> -0.003032974211 | S6: ='All Curves'!E13 -> 0.0009735838188 | T6: ='All Curves'!F13 -> 0.002403916795 | U6: ='All Curves'!G13 -> 0.0166764613
I7: ='All Curves'!A14 -> 5 | J7: ='All Curves'!H14 -> 0.005070923692 | K7: ='All Curves'!I14 -> 0.002403077662 | L7: ='All Curves'!J14 -> 0.00671023159 | M7: ='All Curves'!K14 -> 0.01007077497 | N7: ='All Curves'!L14 -> 0.02397190926 | P7: 5 | Q7: ='All Curves'!C14 -> 0.0007076109526 | R7: ='All Curves'!D14 -> -0.001960235078 | S7: ='All Curves'!E14 -> 0.00234691885 | T7: ='All Curves'!F14 -> 0.005707462234 | U7: ='All Curves'!G14 -> 0.01960859652
I8: ='All Curves'!A15 -> 6 | J8: ='All Curves'!H15 -> 0.004542631056 | K8: ='All Curves'!I15 -> 0.002682559896 | L8: ='All Curves'!J15 -> 0.007241363549 | M8: ='All Curves'!K15 -> 0.01246587601 | N8: ='All Curves'!L15 -> 0.02575773757 | P8: 6 | Q8: ='All Curves'!C15 -> 0.0009815941741 | R8: ='All Curves'!D15 -> -0.0008784769867 | S8: ='All Curves'!E15 -> 0.003680326667 | T8: ='All Curves'!F15 -> 0.008904839128 | U8: ='All Curves'!G15 -> 0.02219670069
I9: ='All Curves'!A16 -> 7 | J9: ='All Curves'!H16 -> 0.003837900219 | K9: ='All Curves'!I16 -> 0.002856238794 | L9: ='All Curves'!J16 -> 0.007625316662 | M9: ='All Curves'!K16 -> 0.01455674827 | N9: ='All Curves'!L16 -> 0.02715980476 | P9: 7 | Q9: ='All Curves'!C16 -> 0.001117732362 | R9: ='All Curves'!D16 -> 0.000136070938 | S9: ='All Curves'!E16 -> 0.004905148805 | T9: ='All Curves'!F16 -> 0.01183658041 | U9: ='All Curves'!G16 -> 0.0244396369
I10: ='All Curves'!A17 -> 8 | J10: ='All Curves'!H17 -> 0.003010680951 | K10: ='All Curves'!I17 -> 0.002888169942 | L10: ='All Curves'!J17 -> 0.007833211907 | M10: ='All Curves'!K17 -> 0.01628416821 | N10: ='All Curves'!L17 -> 0.02820121878 | P10: 8 | Q10: ='All Curves'!C17 -> 0.001175065733 | R10: ='All Curves'!D17 -> 0.001052554725 | S10: ='All Curves'!E17 -> 0.00599759669 | T10: ='All Curves'!F17 -> 0.01444855299 | U10: ='All Curves'!G17 -> 0.02636560356
I11: ='All Curves'!A18 -> 9 | J11: ='All Curves'!H18 -> 0.002142938126 | K11: ='All Curves'!I18 -> 0.002818433497 | L11: ='All Curves'!J18 -> 0.007911290174 | M11: ='All Curves'!K18 -> 0.01769472389 | N11: ='All Curves'!L18 -> 0.02896811704 | P11: 9 | Q11: ='All Curves'!C18 -> 0.001188426602 | R11: ='All Curves'!D18 -> 0.001863921973 | S11: ='All Curves'!E18 -> 0.00695677865 | T11: ='All Curves'!F18 -> 0.01674021236 | U11: ='All Curves'!G18 -> 0.02801360552
I12: ='All Curves'!A19 -> 10 | J12: ='All Curves'!H19 -> 0.001287030404 | K12: ='All Curves'!I19 -> 0.002683655298 | L12: ='All Curves'!J19 -> 0.00790134903 | M12: ='All Curves'!K19 -> 0.01884477291 | N12: ='All Curves'!L19 -> 0.02953289653 | P12: 10 | Q12: ='All Curves'!C19 -> 0.001178193918 | R12: ='All Curves'!D19 -> 0.002574818813 | S12: ='All Curves'!E19 -> 0.007792512545 | T12: ='All Curves'!F19 -> 0.01873593642 | U12: ='All Curves'!G19 -> 0.02942406005
I13: ='All Curves'!A20 -> 11 | J13: ='All Curves'!H20 -> 0.0004579246038 | K13: ='All Curves'!I20 -> 0.002496729388 | L13: ='All Curves'!J20 -> 0.007820527678 | M13: ='All Curves'!K20 -> 0.01977136819 | N13: ='All Curves'!L20 -> 0.02993619962 | P13: 11 | Q13: ='All Curves'!C20 -> 0.001156150497 | R13: ='All Curves'!D20 -> 0.003194955282 | S13: ='All Curves'!E20 -> 0.008518753572 | T13: ='All Curves'!F20 -> 0.02046959408 | U13: ='All Curves'!G20 -> 0.03063442552
I14: ='All Curves'!A21 -> 12 | J14: ='All Curves'!H21 -> 0 | K14: ='All Curves'!I21 -> 0.002276414692 | L14: ='All Curves'!J21 -> 0.007691023759 | M14: ='All Curves'!K21 -> 0.02051742395 | N14: ='All Curves'!L21 -> 0.03021833268 | P14: 12 | Q14: ='All Curves'!C21 -> 0.001128992736 | R14: ='All Curves'!D21 -> 0.003735592789 | S14: ='All Curves'!E21 -> 0.009150201856 | T14: ='All Curves'!F21 -> 0.02197660205 | U14: ='All Curves'!G21 -> 0.03167751077
I15: ='All Curves'!A22 -> 13 | J15: ='All Curves'!H22 -> 0 | K15: ='All Curves'!I22 -> 0.001999837363 | L15: ='All Curves'!J22 -> 0.007492728586 | M15: ='All Curves'!K22 -> 0.02108219095 | N15: ='All Curves'!L22 -> 0.03037320123 | P15: 13 | Q15: ='All Curves'!C22 -> 0.00110042808 | R15: ='All Curves'!D22 -> 0.004207786888 | S15: ='All Curves'!E22 -> 0.00970067811 | T15: ='All Curves'!F22 -> 0.02329014047 | U15: ='All Curves'!G22 -> 0.03258115075
I16: ='All Curves'!A23 -> 14 | J16: ='All Curves'!H23 -> 0 | K16: ='All Curves'!I23 -> 0.001816931146 | L16: ='All Curves'!J23 -> 0.007377792224 | M16: ='All Curves'!K23 -> 0.02163495259 | N16: ='All Curves'!L23 -> 0.03056386031 | P16: 14 | Q16: ='All Curves'!C23 -> 0.001072424208 | R16: ='All Curves'!D23 -> 0.004621595808 | S16: ='All Curves'!E23 -> 0.01018245689 | T16: ='All Curves'!F23 -> 0.02443961726 | U16: ='All Curves'!G23 -> 0.03336852498
I17: ='All Curves'!A24 -> 15 | J17: ='All Curves'!H24 -> 0 | K17: ='All Curves'!I24 -> 0.001604691463 | L17: ='All Curves'!J24 -> 0.007224985897 | M17: ='All Curves'!K24 -> 0.02206918703 | N17: ='All Curves'!L24 -> 0.03067762017 | P17: 15 | Q17: ='All Curves'!C24 -> 0.001045949673 | R17: ='All Curves'!D24 -> 0.004985803588 | S17: ='All Curves'!E24 -> 0.01060609802 | T17: ='All Curves'!F24 -> 0.02545029915 | U17: ='All Curves'!G24 -> 0.03405873229
I18: ='All Curves'!A25 -> 16 | J18: ='All Curves'!H25 -> 0 | K18: ='All Curves'!I25 -> 0.001422125619 | L18: ='All Curves'!J25 -> 0.007094742271 | M18: ='All Curves'!K25 -> 0.02245772969 | N18: ='All Curves'!L25 -> 0.03078164613 | P18: 16 | Q18: ='All Curves'!C25 -> 0.001021410414 | R18: ='All Curves'!D25 -> 0.005307903752 | S18: ='All Curves'!E25 -> 0.0109805204 | T18: ='All Curves'!F25 -> 0.02634350782 | U18: ='All Curves'!G25 -> 0.03466742426
I19: ='All Curves'!A26 -> 17 | J19: ='All Curves'!H26 -> 0 | K19: ='All Curves'!I26 -> 0.001264929466 | L19: ='All Curves'!J26 -> 0.006983905095 | M19: ='All Curves'!K26 -> 0.02280778043 | N19: ='All Curves'!L26 -> 0.03087812944 | P19: 17 | Q19: ='All Curves'!C26 -> 0.0009989049603 | R19: ='All Curves'!D26 -> 0.005594203416 | S19: ='All Curves'!E26 -> 0.01131317904 | T19: ='All Curves'!F26 -> 0.02713705438 | U19: ='All Curves'!G26 -> 0.03520740339
I20: ='All Curves'!A27 -> 18 | J20: ='All Curves'!H27 -> 0 | K20: ='All Curves'!I27 -> 0.001144831371 | L20: ='All Curves'!J27 -> 0.006905131306 | M20: ='All Curves'!K27 -> 0.02314060074 | N20: ='All Curves'!L27 -> 0.03098400682 | P20: 18 | Q20: ='All Curves'!C27 -> 0.0009783719846 | R20: ='All Curves'!D27 -> 0.005849972804 | S20: ='All Curves'!E27 -> 0.01161027274 | T20: ='All Curves'!F27 -> 0.02784574217 | U20: ='All Curves'!G27 -> 0.03568914825
I21: ='All Curves'!A28 -> 19 | J21: ='All Curves'!H28 -> 0 | K21: ='All Curves'!I28 -> 0.001056345022 | L21: ='All Curves'!J28 -> 0.006853689723 | M21: ='All Curves'!K28 -> 0.02345859737 | N21: ='All Curves'!L28 -> 0.03109799891 | P21: 19 | Q21: ='All Curves'!C28 -> 0.0009596742652 | R21: ='All Curves'!D28 -> 0.006079601882 | S21: ='All Curves'!E28 -> 0.01187694658 | T21: ='All Curves'!F28 -> 0.02848185423 | U21: ='All Curves'!G28 -> 0.03612125577
I22: ='All Curves'!A29 -> 20 | J22: ='All Curves'!H29 -> 0 | K22: ='All Curves'!I29 -> 0.00101610121 | L22: ='All Curves'!J29 -> 0.006846828797 | M22: ='All Curves'!K29 -> 0.02378494461 | N22: ='All Curves'!L29 -> 0.03124015995 | P22: 20 | Q22: ='All Curves'!C29 -> 0.0009426453651 | R22: ='All Curves'!D29 -> 0.006286746076 | S22: ='All Curves'!E29 -> 0.01211747366 | T22: ='All Curves'!F29 -> 0.02905558947 | U22: ='All Curves'!G29 -> 0.03651080482
I23: ='All Curves'!A30 -> 21 | J23: ='All Curves'!H30 -> 0 | K23: ='All Curves'!I30 -> 0.0009681576724 | L23: ='All Curves'!J30 -> 0.006829114609 | M23: ='All Curves'!K30 -> 0.02406913971 | N23: ='All Curves'!L30 -> 0.03135735422 | P23: 21 | Q23: ='All Curves'!C30 -> 0.0009271146485 | R23: ='All Curves'!D30 -> 0.006474453967 | S23: ='All Curves'!E30 -> 0.0123354109 | T23: ='All Curves'!F30 -> 0.029575436 | U23: ='All Curves'!G30 -> 0.03686365051
I24: ='All Curves'!A31 -> 22 | J24: ='All Curves'!H31 -> 0 | K24: ='All Curves'!I31 -> 0.0009274772817 | L24: ='All Curves'!J31 -> 0.006815931057 | M24: ='All Curves'!K31 -> 0.02433068441 | N24: ='All Curves'!L31 -> 0.03146686222 | P24: 22 | Q24: ='All Curves'!C31 -> 0.0009129198828 | R24: ='All Curves'!D31 -> 0.006645275419 | S24: ='All Curves'!E31 -> 0.01253372919 | T24: ='All Curves'!F31 -> 0.03004848255 | U24: ='All Curves'!G31 -> 0.03718466036
I25: ='All Curves'!A32 -> 23 | J25: ='All Curves'!H32 -> 0 | K25: ='All Curves'!I32 -> 0.0009481689574 | L25: ='All Curves'!J32 -> 0.006861737994 | M25: ='All Curves'!K32 -> 0.02462749179 | N25: ='All Curves'!L32 -> 0.03162472045 | P25: 23 | Q25: ='All Curves'!C32 -> 0.0008999128602 | R25: ='All Curves'!D32 -> 0.006801351286 | S25: ='All Curves'!E32 -> 0.01271492032 | T25: ='All Curves'!F32 -> 0.03048067412 | U25: ='All Curves'!G32 -> 0.03747790278
I26: ='All Curves'!A33 -> 24 | J26: ='All Curves'!H33 -> 0 | K26: ='All Curves'!I33 -> 0.0009887743579 | L26: ='All Curves'!J33 -> 0.006925371443 | M26: ='All Curves'!K33 -> 0.02492130739 | N26: ='All Curves'!L33 -> 0.03179108478 | P26: 24 | Q26: ='All Curves'!C33 -> 0.0008879612071 | R26: ='All Curves'!D33 -> 0.006944486914 | S26: ='All Curves'!E33 -> 0.012881084 | T26: ='All Curves'!F33 -> 0.03087701994 | U26: ='All Curves'!G33 -> 0.03774679733
I27: ='All Curves'!A34 -> 25 | J27: ='All Curves'!H34 -> 0 | K27: ='All Curves'!I34 -> 0.001074870194 | L27: ='All Curves'!J34 -> 0.007032656552 | M27: ='All Curves'!K34 -> 0.02524041998 | N27: ='All Curves'!L34 -> 0.03199289264 | P27: 25 | Q27: ='All Curves'!C34 -> 0.0008769482063 | R27: ='All Curves'!D34 -> 0.007076211942 | S27: ='All Curves'!E34 -> 0.0130339983 | T27: ='All Curves'!F34 -> 0.03124176173 | U27: ='All Curves'!G34 -> 0.03799423439
I28: ='All Curves'!A35 -> 26 | J28: ='All Curves'!H35 -> 0 | K28: ='All Curves'!I35 -> 0.001091053207 | L28: ='All Curves'!J35 -> 0.007068400993 | M28: ='All Curves'!K35 -> 0.02547173394 | N28: ='All Curves'!L35 -> 0.03211589509 | P28: 26 | Q28: ='All Curves'!C35 -> 0.0008667716653 | R28: ='All Curves'!D35 -> 0.007197828782 | S28: ='All Curves'!E35 -> 0.01317517657 | T28: ='All Curves'!F35 -> 0.03157850952 | U28: ='All Curves'!G35 -> 0.03822267067
I29: ='All Curves'!A36 -> 27 | J29: ='All Curves'!H36 -> 0 | K29: ='All Curves'!I36 -> 0.001155716004 | L29: ='All Curves'!J36 -> 0.007151177496 | M29: ='All Curves'!K36 -> 0.02573561552 | N29: ='All Curves'!L36 -> 0.03227946981 | P29: 27 | Q29: ='All Curves'!C36 -> 0.0008573424043 | R29: ='All Curves'!D36 -> 0.007310451884 | S29: ='All Curves'!E36 -> 0.01330591338 | T29: ='All Curves'!F36 -> 0.0318903514 | U29: ='All Curves'!G36 -> 0.03843420569
I30: ='All Curves'!A37 -> 28 | J30: ='All Curves'!H37 -> 0 | K30: ='All Curves'!I37 -> 0.001223177279 | L30: ='All Curves'!J37 -> 0.007235459413 | M30: ='All Curves'!K37 -> 0.02598807992 | N30: ='All Curves'!L37 -> 0.0324387809 | P30: 28 | Q30: ='All Curves'!C37 -> 0.0008485826675 | R30: ='All Curves'!D37 -> 0.007415039557 | S30: ='All Curves'!E37 -> 0.01342732169 | T30: ='All Curves'!F37 -> 0.0321799422 | U30: ='All Curves'!G37 -> 0.03863064318
I31: ='All Curves'!A38 -> 29 | J31: ='All Curves'!H38 -> 0 | K31: ='All Curves'!I38 -> 0.00129435603 | L31: ='All Curves'!J38 -> 0.007322299227 | M31: ='All Curves'!K38 -> 0.02623151164 | N31: ='All Curves'!L38 -> 0.03259547683 | P31: 29 | Q31: ='All Curves'!C38 -> 0.0008404246113 | R31: ='All Curves'!D38 -> 0.00751241981 | S31: ='All Curves'!E38 -> 0.01354036301 | T31: ='All Curves'!F38 -> 0.03244957542 | U31: ='All Curves'!G38 -> 0.03881354061
I32: ='All Curves'!A39 -> 30 | J32: ='All Curves'!H39 -> 0 | K32: ='All Curves'!I39 -> 0.001426519121 | L32: ='All Curves'!J39 -> 0.007469079595 | M32: ='All Curves'!K39 -> 0.02652444944 | N32: ='All Curves'!L39 -> 0.03280745707 | P32: 30 | Q32: ='All Curves'!C39 -> 0.0008328089368 | R32: ='All Curves'!D39 -> 0.007603311405 | S32: ='All Curves'!E39 -> 0.01364587188 | T32: ='All Curves'!F39 -> 0.03270124172 | U32: ='All Curves'!G39 -> 0.03898424935

Sheet Data Entry
J2: Check
B3: AAA | C3: NXT_CPN_DT | D3: MATURITY | E3: CPN_FREQ | F3: PX_CLEAN_MID | G3: INT_ACC | H3: CPN | I3: PX_DIRTY_MID | J3: Check | L3: BMA Yield Curves with Swap Adjustment
B4: EI450522 Corp | C4: 11/4/2019 | D4: 11/4/2023 | E4: 1 | F4: 117.1005 | G4: 2.400109589 | H4: 3.62 | I4: 119.5006096 | J4: =IF(ROUND(F4+G4,2)=ROUND(I4,2),1,0) -> 1 | L4: 1 Year | M4: -0.005615661548
B5: EI940328 Corp | C5: 9/27/2019 | D5: 3/29/2021 | E5: 4 | F5: 100.971 | G5: 0.007291666667 | H5: 0.375 | I5: 100.9782917 | J5: =IF(ROUND(F5+G5,2)=ROUND(I5,2),1,0) -> 1 | L5: 2 Years | M5: -0.005826650116
C6: #N/A Field Not Applicable | D6: 7/25/2016 | E6: 2 | F6: #N/A N/A | G6: 0 | H6: 3.815 | I6: #N/A N/A | L6: 3 Years | M6: -0.005569626395
B7: EJ847779 Corp | C7: 9/30/2019 | D7: 9/30/2031 | E7: 4 | F7: 104.087 | G7: 0.005116666667 | H7: 0.307 | I7: 104.0921167 | J7: 1 | L7: 4 Years | M7: -0.005058572615
B8: EH090036 Corp | C8: 7/15/2019 | D8: 7/15/2019 | E8: 4 | F8: 99.969 | G8: 0 | H8: 0 | I8: 99.969 | J8: 1 | L8: 5 Years | M8: -0.00436331274
C9: #N/A Field Not Applicable | D9: 5/27/2016 | E9: 1 | F9: #N/A N/A | G9: 0 | H9: 3.5 | I9: #N/A N/A | L9: 6 Years | M9: -0.003561036882
B10: EH839339 Corp | C10: 1/1/2020 | D10: 1/1/2020 | E10: 1 | F10: 102.7275 | G10: 2.520547945 | H10: 5 | I10: 105.2480479 | J10: 1 | L10: 7 Years | M10: -0.002720167856
B11: EJ356270 Corp | C11: #N/A Field Not Applicable | D11: 9/13/2017 | E11: 4 | F11: #N/A N/A | G11: 0 | H11: 0 | I11: #N/A N/A | L11: 8 Years | M11: -0.001835615218
B12: EJ882882 Corp | C12: 10/17/2019 | D12: 10/17/2028 | E12: 1 | F12: 123.9615 | G12: 2.099232877 | H12: 2.947 | I12: 126.0607329 | J12: 1 | L12: 9 Years | M12: -0.0009545115237
B13: EG140359 Corp | C13: 4/2/2020 | D13: 4/28/2027 | E13: 1 | F13: 132.7575 | G13: 1.130054645 | H13: 4.4 | I13: 133.8875546 | J13: 1 | L13: 10 Years | M13: -0.0001088364855
B14: EH612351 Corp | C14: #N/A Field Not Applicable | D14: 1/1/2018 | E14: 1 | F14: #N/A N/A | G14: 0 | H14: 5 | I14: #N/A N/A | L14: 11 Years | M14: 0.0006982258933
B15: EG630073 Corp | C15: #N/A Field Not Applicable | D15: 8/29/2017 | E15: 1 | F15: #N/A N/A | G15: 0 | H15: 4.96 | I15: #N/A N/A | L15: 12 Years | M15: 0.001459178098
C16: #N/A Field Not Applicable | D16: 5/11/2016 | E16: 2 | F16: #N/A N/A | G16: 0 | H16: 0.451 | I16: #N/A N/A | L16: 13 Years | M16: 0.002207949525
B17: EG140359 Corp | C17: 4/2/2020 | D17: 4/28/2027 | E17: 1 | F17: 132.7575 | G17: 1.130054645 | H17: 4.4 | I17: 133.8875546 | J17: 1 | L17: 14 Years | M17: 0.002804664662
C18: #N/A Field Not Applicable | D18: 11/30/2015 | E18: 1 | F18: #N/A N/A | G18: 0 | H18: 2.6 | I18: #N/A N/A | L18: 15 Years | M18: 0.003381112125
C19: #N/A Field Not Applicable | D19: 5/11/2016 | E19: 2 | F19: #N/A N/A | G19: 0 | H19: 0.451 | I19: #N/A N/A | L19: 16 Years | M19: 0.003885778133
C20: #N/A Field Not Applicable | D20: 2/18/2015 | E20: 4 | F20: #N/A N/A | G20: 0 | H20: 0.204 | I20: #N/A N/A | L20: 17 Years | M20: 0.004329273949
C21: #N/A Field Not Applicable | D21: 1/1/2018 | E21: 4 | F21: #N/A N/A | G21: 0 | H21: 0 | I21: #N/A N/A | L21: 18 Years | M21: 0.004705141434
C22: #N/A Field Not Applicable | D22: 10/15/2015 | E22: 4 | F22: #N/A N/A | G22: 0 | H22: 0 | I22: #N/A N/A | L22: 19 Years | M22: 0.00502325686
B23: EI916617 Corp | C23: 1/24/2020 | D23: 1/24/2024 | E23: 1 | F23: 119.517 | G23: 1.819520548 | H23: 4.125 | I23: 121.3365205 | J23: 1 | L23: 20 Years | M23: 0.005270644866
B24: EJ847779 Corp | C24: 9/30/2019 | D24: 9/30/2031 | E24: 4 | F24: 104.087 | G24: 0.005116666667 | H24: 0.307 | I24: 104.0921167 | J24: 1 | L24: 21 Years | M24: 0.005506296295
B25: EJ280225 Corp | C25: 7/20/2019 | D25: 7/20/2019 | E25: 1 | F25: 100.127 | G25: 2.390410959 | H25: 2.5 | I25: 102.517411 | J25: 1 | L25: 22 Years | M25: 0.005717798138
B26: EI936540 Corp | C26: 12/30/2019 | D26: 12/30/2026 | E26: 2 | F26: 102.9735 | G26: 0 | H26: 0 | I26: 102.9735 | J26: 1 | L26: 23 Years | M26: 0.005853182329
B27: EK177778 Corp | C27: #N/A Field Not Applicable | D27: 10/17/2018 | E27: 4 | F27: #N/A N/A | G27: 0 | H27: 0 | I27: #N/A N/A | L27: 24 Years | M27: 0.005955712556
B28: EF164254 Corp | C28: 12/9/2019 | D28: 12/9/2025 | E28: 1 | F28: 103.95 | G28: 0.48035 | H28: 0.847 | I28: 104.43035 | J28: 1 | L28: 25 Years | M28: 0.006001341748
B29: EK382893 Corp | C29: #N/A Field Not Applicable | D29: 7/17/2017 | E29: 4 | F29: #N/A N/A | G29: 0 | H29: 0 | I29: #N/A N/A | L29: 26 Years | M29: 0.006106775574
B30: EJ676146 Corp | C30: 5/22/2020 | D30: 5/22/2028 | E30: 1 | F30: 118.255 | G30: 0.2690437158 | H30: 2.29 | I30: 118.5240437 | J30: 1 | L30: 27 Years | M30: 0.006154735881
C31: #N/A Field Not Applicable | D31: 2/11/2016 | E31: 4 | F31: #N/A N/A | G31: 0 | H31: 0.002 | I31: #N/A N/A | L31: 28 Years | M31: 0.006191862278
C32: #N/A Field Not Applicable | D32: 4/28/2016 | E32: 1 | F32: #N/A N/A | G32: 0 | H32: 3.053 | I32: #N/A N/A | L32: 29 Years | M32: 0.00621806378
B33: EJ101156 Corp | C33: #N/A Field Not Applicable | D33: 5/23/2018 | E33: 1 | F33: #N/A N/A | G33: 0 | H33: 2 | I33: #N/A N/A | L33: 30 Years | M33: 0.006176792284
C34: #N/A Field Not Applicable | D34: 1/28/2016 | E34: 1 | F34: #N/A N/A | G34: 0 | H34: 3.5 | I34: #N/A N/A | L34: 31 Years | M34: 0.006144220774
L35: 32 Years | M35: 0.00613290979
B36: AA | C36: NXT_CPN_DT | D36: MATURITY | E36: CPN_FREQ | F36: PX_CLEAN_MID | G36: INT_ACC | H36: CPN | I36: PX_DIRTY_MID | J36: Check | L36: 33 Years | M36: 0.006141763685
B37: EK694389 Corp | C37: 1/20/2020 | D37: 1/20/2023 | E37: 1 | F37: 103.65 | G37: 0.2260273973 | H37: 0.5 | I37: 103.8760274 | J37: =IF(ROUND(F37+G37,2)=ROUND(I37,2),1,0) -> 1 | L37: 34 Years | M37: 0.00616990457
B38: EK580922 Corp | C38: 1/20/2020 | D38: 1/20/2027 | E38: 1 | F38: 111.207 | G38: 0.7345890411 | H38: 1.625 | I38: 111.941589 | J38: =IF(ROUND(F38+G38,2)=ROUND(I38,2),1,0) -> 1 | L38: 35 Years | M38: 0.006216631281
B39: EK287929 Corp | C39: 6/27/2020 | D39: 6/27/2024 | E39: 1 | F39: 110.8375 | G39: 0.03346994536 | H39: 1.75 | I39: 110.8709699 | J39: 1 | L39: 36 Years | M39: 0.006281389473
B40: EK168580 Corp | C40: 6/7/2020 | D40: 6/7/2021 | E40: 1 | F40: 103.9 | G40: 0.1014344262 | H40: 1.375 | I40: 104.0014344 | J40: 1 | L40: 37 Years | M40: 0.006363742892
B41: EK581060 Corp | C41: 4/6/2020 | D41: 4/6/2022 | E41: 1 | F41: 103.638 | G41: 0.2431693989 | H41: 1 | I41: 103.8811694 | J41: 1 | L41: 38 Years | M41: 0.006463356294
B42: EJ278694 Corp | C42: #N/A Field Not Applicable | D42: 9/15/2017 | E42: 1 | F42: #N/A N/A | G42: 0 | H42: 1.625 | I42: #N/A N/A | L42: 39 Years | M42: 0.006579975771
B43: EK028616 Corp | C43: #N/A Field Not Applicable | D43: 1/22/2019 | E43: 1 | F43: #N/A N/A | G43: 0 | H43: 1.25 | I43: #N/A N/A | L43: 40 Years | M43: 0.006713417842
B44: EI724913 Corp | C44: #N/A Field Not Applicable | D44: 12/5/2016 | E44: 1 | F44: #N/A N/A | G44: 0 | H44: 2.75 | I44: #N/A N/A | L44: 41 Years | M44: 0.006863557742
B45: EJ767407 Corp | C45: #N/A Field Not Applicable | D45: 7/31/2018 | E45: 1 | F45: #N/A N/A | G45: 0 | H45: 1.25 | I45: #N/A N/A | L45: 42 Years | M45: 0.007030320971
B46: EJ342546 Corp | C46: 9/5/2019 | D46: 9/5/2022 | E46: 1 | F46: 109.195 | G46: 1.861643836 | H46: 2.25 | I46: 111.0566438 | J46: 1 | L46: 43 Years | M46: 0.007213675728
B47: EK137054 Corp | C47: 3/24/2020 | D47: 3/24/2021 | E47: 1 | F47: 103.4105 | G47: 0.4528688525 | H47: 1.625 | I47: 103.8633689 | J47: 1 | L47: 44 Years | M47: 0.00741362848
B48: EH820129 Corp | C48: #N/A Field Not Applicable | D48: 5/14/2018 | E48: 1 | F48: #N/A N/A | G48: 0 | H48: 4.375 | I48: #N/A N/A | L48: 45 Years | M48: 0.007630217054
B49: EJ144100 Corp | C49: #N/A Field Not Applicable | D49: 5/2/2019 | E49: 1 | F49: #N/A N/A | G49: 0 | H49: 2.625 | I49: #N/A N/A | L49: 46 Years | M49: 0.00786350917
B50: EJ958165 Corp | C50: 12/3/2019 | D50: 12/3/2029 | E50: 1 | F50: 127.8 | G50: 1.604794521 | H50: 2.75 | I50: 129.4047945 | J50: 1 | L50: 47 Years | M50: 0.00811359758
C51: #N/A Field Not Applicable | D51: 2/9/2016 | E51: 1 | F51: #N/A N/A | G51: 0 | H51: 4.5 | I51: #N/A N/A | L51: 48 Years | M51: 0.008380597636
B52: EJ653095 Corp | C52: 5/4/2020 | D52: 5/4/2020 | E52: 1 | F52: 101.2955 | G52: 0.2083333333 | H52: 1.25 | I52: 101.5038333 | J52: 1 | L52: 49 Years | M52: 0.008664645611
B53: EJ535336 Corp | C53: 2/7/2020 | D53: 2/7/2028 | E53: 1 | F53: 119.264 | G53: 1.070079452 | H53: 2.657 | I53: 120.3340795 | J53: 1 | L53: 50 Years | M53: 0.008965896356
B54: EJ814580 Corp | C54: 9/12/2019 | D54: 9/12/2023 | E54: 1 | F54: 111.5315 | G54: 2.020547945 | H54: 2.5 | I54: 113.5520479 | J54: 1 | L54: 51 Years | M54: 0.009284521878
B55: EJ818473 Corp | C55: 9/10/2019 | D55: 9/10/2021 | E55: 1 | F55: 105.347 | G55: 1.729109589 | H55: 2.125 | I55: 107.0761096 | J55: 1 | L55: 52 Years | M55: 0.009620709806
B56: FF102475 Corp | C56: #N/A Field Not Applicable | D56: 6/1/2019 | E56: 1 | F56: #N/A N/A | G56: 0 | H56: 7.75 | I56: #N/A N/A | L56: 53 Years | M56: 0.009974662273
C57: #N/A Field Not Applicable | D57: 4/8/2016 | E57: 1 | F57: #N/A N/A | G57: 0 | H57: 0.625 | I57: #N/A N/A | L57: 54 Years | M57: 0.01034659534
B58: EJ044527 Corp | C58: 3/8/2020 | D58: 3/8/2024 | E58: 1 | F58: 114.5695 | G58: 0.9672131148 | H58: 3 | I58: 115.5372131 | J58: 1 | L58: 55 Years | M58: 0.01073673734
B59: EH973009 Corp | C59: 9/23/2019 | D59: 9/23/2021 | E59: 1 | F59: 110.3105 | G59: 3.404109589 | H59: 4.375 | I59: 113.7146096 | J59: 1 | L59: 56 Years | M59: 0.01114532881
B60: EJ441040 Corp | C60: 2/20/2020 | D60: 2/20/2023 | E60: 1 | F60: 108.1415 | G60: 0.7342465753 | H60: 2 | I60: 108.8772466 | J60: 1 | L60: 57 Years | M60: 0.0115726213
B61: EG456896 Corp | C61: #N/A Field Not Applicable | D61: 5/22/2017 | E61: 1 | F61: #N/A N/A | G61: 0 | H61: 4.625 | I61: #N/A N/A | L61: 58 Years | M61: 0.01201887719
B62: EJ135951 Corp | C62: #N/A Field Not Applicable | D62: 4/19/2018 | E62: 2 | F62: #N/A N/A | G62: 0 | H62: 0.186 | I62: #N/A N/A | L62: 59 Years | M62: 0.01248436885
B63: EI690374 Corp | C63: 6/1/2020 | D63: 6/1/2021 | E63: 1 | F63: 108.104 | G63: 0.3381147541 | H63: 3.75 | I63: 108.4421148 | J63: 1 | L63: 60 Years | M63: 0.01296937828
B64: EJ135911 Corp | C64: 10/21/2019 | D64: 4/19/2020 | E64: 2 | F64: 100.648 | G64: 0.0816 | H64: 0.408 | I64: 100.7296 | J64: 1 | L64: 61 Years | M64: 0.0134387068
B65: EF849040 Corp | C65: #N/A Field Not Applicable | D65: 1/16/2017 | E65: 1 | F65: #N/A N/A | G65: 0 | H65: 4 | I65: #N/A N/A | L65: 62 Years | M65: 0.01389310272
B66: ED691592 Corp | C66: #N/A Field Not Applicable | D66: 11/23/2016 | E66: 1 | F66: #N/A N/A | G66: 0 | H66: 4.25 | I66: #N/A N/A | L66: 63 Years | M66: 0.01433326752
B67: EJ484653 Corp | C67: 12/19/2019 | D67: 12/19/2024 | E67: 2 | F67: 102.308 | G67: 0.003833333333 | H67: 0.092 | I67: 102.3118333 | J67: 1 | L67: 64 Years | M67: 0.01475985939
L68: 65 Years | M68: 0.01517349657
L69: 66 Years | M69: 0.01557476031
L70: 67 Years | M70: 0.0159641976
B71: A | C71: NXT_CPN_DT | D71: MATURITY | E71: CPN_FREQ | F71: PX_CLEAN_MID | G71: INT_ACC | H71: CPN | I71: PX_DIRTY_MID | J71: Check | L71: 68 Years | M71: 0.01634232367
B72: EK693429 Corp | C72: 1/19/2020 | D72: 1/19/2022 | E72: 1 | F72: 102.721 | G72: 0.3979452055 | H72: 0.875 | I72: 103.1189452 | J72: =IF(ROUND(F72+G72,2)=ROUND(I72,2),1,0) -> 1 | L72: 69 Years | M72: 0.01670962423
B73: EK693249 Corp | C73: 4/16/2020 | D73: 4/16/2020 | E73: 1 | F73: 100.8065 | G73: 0.1510928962 | H73: 0.7 | I73: 100.9575929 | J73: =IF(ROUND(F73+G73,2)=ROUND(I73,2),1,0) -> 1 | L73: 70 Years | M73: 0.0170665576
B74: EK688802 Corp | C74: 1/13/2020 | D74: 1/13/2025 | E74: 1 | F74: 105.5315 | G74: 0.5890410959 | H74: 1.25 | I74: 106.1205411 | J74: 1 | L74: 71 Years | M74: 0.01741355657
B75: EK698834 Corp | C75: 1/22/2020 | D75: 1/22/2020 | E75: 1 | F75: 100.5905 | G75: 0.3349315068 | H75: 0.75 | I75: 100.9254315 | J75: 1 | L75: 72 Years | M75: 0.01775103017
B76: EK686239 Corp | C76: 1/14/2020 | D76: 1/14/2022 | E76: 1 | F76: 103.025 | G76: 0.5270547945 | H76: 1.125 | I76: 103.5520548 | J76: 1 | L76: 73 Years | M76: 0.01807936531
C77: #N/A Field Not Applicable | D77: 7/22/2016 | E77: 4 | F77: #N/A N/A | G77: 0 | H77: 0.051 | I77: #N/A N/A | L77: 74 Years | M77: 0.01839892819
B78: EK686209 Corp | C78: #N/A Field Not Applicable | D78: 1/16/2017 | E78: 4 | F78: #N/A N/A | G78: 0 | H78: 0 | I78: #N/A N/A | L78: 75 Years | M78: 0.01871006573
B79: EK273196 Corp | C79: 5/20/2020 | D79: 5/20/2024 | E79: 1 | F79: 111.0565 | G79: 0.2920081967 | H79: 2.375 | I79: 111.3485082 | J79: 1 | L79: 76 Years | M79: 0.01901310677
B80: EK468511 Corp | C80: 9/8/2019 | D80: 9/8/2021 | E80: 1 | F80: 100.243 | G80: 1.023972603 | H80: 1.25 | I80: 101.2669726 | J80: 1 | L80: 77 Years | M80: 0.01930836328
B81: EK172836 Corp | C81: #N/A Field Not Applicable | D81: 4/15/2019 | E81: 4 | F81: #N/A N/A | G81: 0 | H81: 0.242 | I81: #N/A N/A | L81: 78 Years | M81: 0.0195961314
B82: EJ680121 Corp | C82: #N/A Field Not Applicable | D82: 5/28/2018 | E82: 4 | F82: #N/A N/A | G82: 0 | H82: 0.332 | I82: #N/A N/A | L82: 79 Years | M82: 0.01987669243
B83: EK513950 Corp | C83: 1/31/2020 | D83: 1/31/2022 | E83: 1 | F83: 103.891 | G83: 0.5801369863 | H83: 1.375 | I83: 104.471137 | J83: 1 | L83: 80 Years | M83: 0.02015031377
C84: #N/A Field Not Applicable | D84: 1/18/2016 | E84: 1 | F84: #N/A N/A | G84: 0 | H84: 3.125 | I84: #N/A N/A | L84: 81 Years | M84: 0.02041724974
C85: #N/A Field Not Applicable | D85: 3/11/2016 | E85: 4 | F85: #N/A N/A | G85: 0 | H85: 0.131 | I85: #N/A N/A | L85: 82 Years | M85: 0.02067774239
B86: EK585182 Corp | C86: 1/13/2020 | D86: 1/13/2020 | E86: 1 | F86: 100.6085 | G86: 0.4123287671 | H86: 0.875 | I86: 101.0208288 | J86: 1 | L86: 83 Years | M86: 0.02093202222
B87: EK508181 Corp | C87: 9/25/2019 | D87: 9/25/2026 | E87: 1 | F87: 113.5335 | G87: 1.709769863 | H87: 2.213 | I87: 115.2432699 | J87: 1 | L87: 84 Years | M87: 0.02118030887
B88: EK040755 Corp | C88: 1/29/2020 | D88: 1/29/2029 | E88: 1 | F88: 126.098 | G88: 1.549315068 | H88: 3.625 | I88: 127.6473151 | J88: 1 | L88: 85 Years | M88: 0.02142281175
B89: EK460868 Corp | C89: 9/3/2019 | D89: 9/3/2021 | E89: 1 | F89: 103.097 | G89: 1.04109589 | H89: 1.25 | I89: 104.1380959 | J89: 1 | L89: 86 Years | M89: 0.02165973062
B90: EK702408 Corp | C90: #N/A Field Not Applicable | D90: 1/23/2017 | E90: 4 | F90: #N/A N/A | G90: 0 | H90: 0 | I90: #N/A N/A | L90: 87 Years | M90: 0.02189125616
B91: EJ950581 Corp | C91: 11/27/2019 | D91: 11/27/2020 | E91: 1 | F91: 103.7245 | G91: 1.425 | H91: 2.375 | I91: 105.1495 | J91: 1 | L91: 88 Years | M91: 0.02211757045
B92: EK497926 Corp | C92: #N/A Field Not Applicable | D92: 9/23/2016 | E92: 4 | F92: #N/A N/A | G92: 0 | H92: 0.004 | I92: #N/A N/A | L92: 89 Years | M92: 0.02233884746
B93: EK599845 Corp | C93: 11/19/2019 | D93: 11/19/2021 | E93: 1 | F93: 102.6555 | G93: 0.6219178082 | H93: 1 | I93: 103.2774178 | J93: 1 | L93: 90 Years | M93: 0.02255525353
C94: #N/A Field Not Applicable | D94: 8/28/2015 | E94: 4 | F94: #N/A N/A | G94: 0 | H94: 0.367 | I94: #N/A N/A | L94: 91 Years | M94: 0.02276694772
B95: EK602110 Corp | C95: #N/A Field Not Applicable | D95: 11/20/2018 | E95: 1 | F95: #N/A N/A | G95: 0 | H95: 0.625 | I95: #N/A N/A | L95: 92 Years | M95: 0.02297408228
C96: #N/A Field Not Applicable | D96: 9/22/2015 | E96: 1 | F96: #N/A N/A | G96: 0 | H96: 2.875 | I96: #N/A N/A | L96: 93 Years | M96: 0.02317680294
B97: EK508151 Corp | C97: 9/26/2019 | D97: 9/26/2022 | E97: 1 | F97: 105.4395 | G97: 1.174810959 | H97: 1.526 | I97: 106.614311 | J97: 1 | L97: 94 Years | M97: 0.02337524929
B98: EI419006 Corp | C98: #N/A Field Not Applicable | D98: 10/6/2017 | E98: 1 | F98: #N/A N/A | G98: 0 | H98: 3.625 | I98: #N/A N/A | L98: 95 Years | M98: 0.0235695551
B99: EK110960 Corp | C99: 3/17/2020 | D99: 3/17/2021 | E99: 1 | F99: 104.0595 | G99: 0.6328551913 | H99: 2.125 | I99: 104.6923552 | J99: 1 | L99: 96 Years | M99: 0.02375984863
B100: EK602254 Corp | C100: #N/A Field Not Applicable | D100: 11/20/2018 | E100: 4 | F100: #N/A N/A | G100: 0 | H100: 0 | I100: #N/A N/A | L100: 97 Years | M100: 0.02394625287
B101: EJ333910 Corp | C101: #N/A Field Not Applicable | D101: 2/28/2018 | E101: 1 | F101: #N/A N/A | G101: 0 | H101: 2.375 | I101: #N/A N/A | L101: 98 Years | M101: 0.02412888584
C102: #N/A Field Not Applicable | D102: 4/11/2016 | E102: 1 | F102: #N/A N/A | G102: 0 | H102: 4.25 | I102: #N/A N/A | L102: 99 Years | M102: 0.02430786086
L103: 100 Years | M103: 0.02448328672
B106: BBB | C106: NXT_CPN_DT | D106: MATURITY | E106: CPN_FREQ | F106: PX_CLEAN_MID | G106: INT_ACC | H106: CPN | I106: PX_DIRTY_MID | J106: Check
B107: EK717275 Corp | C107: 2/2/2020 | D107: 2/2/2022 | E107: 1 | F107: 102.5905 | G107: 0.3643835616 | H107: 0.875 | I107: 102.9548836 | J107: =IF(ROUND(F107+G107,2)=ROUND(I107,2),1,0) -> 1
B108: EK698996 Corp | C108: 1/27/2020 | D108: 1/27/2023 | E108: 1 | F108: 104.649 | G108: 0.4869863014 | H108: 1.125 | I108: 105.1359863 | J108: =IF(ROUND(F108+G108,2)=ROUND(I108,2),1,0) -> 1
B109: EK696067 Corp | C109: 1/21/2020 | D109: 1/21/2025 | E109: 1 | F109: 106.6325 | G109: 0.6178082192 | H109: 1.375 | I109: 107.2503082 | J109: 1
B110: EK699236 Corp | C110: 1/27/2020 | D110: 1/27/2025 | E110: 1 | F110: 109.022 | G110: 0.8510356164 | H110: 1.966 | I110: 109.8730356 | J110: 1
B111: EK693999 Corp | C111: #N/A Field Not Applicable | D111: 1/20/2017 | E111: 1 | F111: #N/A N/A | G111: 0 | H111: 0.875 | I111: #N/A N/A
B112: EH971828 Corp | C112: #N/A Field Not Applicable | D112: 9/14/2016 | E112: 1 | F112: #N/A N/A | G112: 0 | H112: 4 | I112: #N/A N/A
B113: EJ349686 Corp | C113: 3/11/2020 | D113: 3/11/2020 | E113: 1 | F113: 103.492 | G113: 1.531762295 | H113: 4.875 | I113: 105.0237623 | J113: 1
B114: EK107962 Corp | C114: 3/17/2020 | D114: 3/17/2021 | E114: 1 | F114: 104.117 | G114: 0.7445355191 | H114: 2.5 | I114: 104.8615355 | J114: 1
B115: EK548924 Corp | C115: 4/21/2020 | D115: 4/21/2023 | E115: 1 | F115: 105.9705 | G115: 0.3032786885 | H115: 1.5 | I115: 106.2737787 | J115: 1
C116: #N/A Field Not Applicable | D116: 2/26/2016 | E116: 2 | F116: #N/A N/A | G116: 0 | H116: 0.771 | I116: #N/A N/A
C117: #N/A Field Not Applicable | D117: 3/24/2015 | E117: 1 | F117: #N/A N/A | G117: 0 | H117: 3.406 | I117: #N/A N/A
B118: EJ395595 Corp | C118: #N/A Field Not Applicable | D118: 4/17/2018 | E118: 1 | F118: #N/A N/A | G118: 0 | H118: 3.625 | I118: #N/A N/A
B119: EJ847665 Corp | C119: 9/30/2019 | D119: 9/30/2020 | E119: 1 | F119: 104.293 | G119: 2.56130137 | H119: 3.375 | I119: 106.8543014 | J119: 1
B120: EK516651 Corp | C120: 10/8/2019 | D120: 10/8/2024 | E120: 1 | F120: 109.8455 | G120: 1.381849315 | H120: 1.875 | I120: 111.2273493 | J120: 1
B121: EI429288 Corp | C121: #N/A Field Not Applicable | D121: 10/13/2016 | E121: 1 | F121: #N/A N/A | G121: 0 | H121: 3.5 | I121: #N/A N/A
B122: EK150567 Corp | C122: 4/3/2020 | D122: 4/3/2023 | E122: 1 | F122: 110.585 | G122: 0.8169398907 | H122: 3.25 | I122: 111.4019399 | J122: 1
B123: EI845994 Corp | C123: #N/A Field Not Applicable | D123: 10/24/2018 | E123: 1 | F123: #N/A N/A | G123: 0 | H123: 5.75 | I123: #N/A N/A
B124: EH969948 Corp | C124: 9/16/2019 | D124: 9/16/2024 | E124: 1 | F124: 124.318 | G124: 4.085958904 | H124: 5.125 | I124: 128.4039589 | J124: 1
B125: EK605375 Corp | C125: 11/24/2019 | D125: 11/24/2021 | E125: 1 | F125: 103.857 | G125: 0.9123287671 | H125: 1.5 | I125: 104.7693288 | J125: 1
B126: EJ218052 Corp | C126: #N/A Field Not Applicable | D126: 6/7/2019 | E126: 1 | F126: #N/A N/A | G126: 0 | H126: 2.75 | I126: #N/A N/A
C127: #N/A Field Not Applicable | D127: 7/7/2015 | E127: 1 | F127: #N/A N/A | G127: 0 | H127: 6.5 | I127: #N/A N/A
B128: EJ467908 Corp | C128: 12/14/2019 | D128: 12/14/2027 | E128: 1 | F128: 108.354 | G128: 1.992328767 | H128: 3.6 | I128: 110.3463288 | J128: 1
B129: EJ450786 Corp | C129: 11/26/2019 | D129: 11/26/2019 | E129: 1 | F129: 101.007 | G129: 1.431506849 | H129: 2.375 | I129: 102.4385068 | J129: 1
B130: EJ102177 Corp | C130: 3/28/2020 | D130: 3/28/2022 | E130: 1 | F130: 109.484 | G130: 0.9371584699 | H130: 3.5 | I130: 110.4211585 | J130: 1
B131: EK312649 Corp | C131: #N/A Field Not Applicable | D131: 6/10/2019 | E131: 1 | F131: #N/A N/A | G131: 0 | H131: 1.125 | I131: #N/A N/A
C132: #N/A Field Not Applicable | D132: 9/21/2015 | E132: 1 | F132: #N/A N/A | G132: 0 | H132: 4.375 | I132: #N/A N/A
B133: EI892036 Corp | C133: #N/A Field Not Applicable | D133: 11/30/2016 | E133: 1 | F133: #N/A N/A | G133: 0 | H133: 6.625 | I133: #N/A N/A
B134: EJ509326 Corp | C134: #N/A Field Not Applicable | D134: 1/30/2018 | E134: 1 | F134: #N/A N/A | G134: 0 | H134: 3.375 | I134: #N/A N/A
B135: EI822377 Corp | C135: 9/30/2019 | D135: 9/30/2019 | E135: 1 | F135: 101.131 | G135: 3.415068493 | H135: 4.5 | I135: 104.5460685 | J135: 1
B136: EK148750 Corp | C136: 4/4/2020 | D136: 4/4/2022 | E136: 1 | F136: 108.2545 | G136: 0.7148224044 | H136: 2.875 | I136: 108.9693224 | J136: 1
B137: EJ379759 Corp | C137: 10/4/2019 | D137: 10/4/2019 | E137: 1 | F137: 100.6045 | G137: 1.682876712 | H137: 2.25 | I137: 102.2873767 | J137: 1
B141: BBB- | C141: NXT_CPN_DT | D141: MATURITY | E141: CPN_FREQ | F141: PX_CLEAN_MID | G141: INT_ACC | H141: CPN | I141: PX_DIRTY_MID | J141: Check
B142: EK013804 Corp | C142: 2017-01-15 | D142: 2018-01-15 | E142: 1 | F142: 99.962 | G142: 1.758196721 | H142: 2.75 | I142: 101.7201967 | J142: =IF(ROUND(F142+G142,2)=ROUND(I142,2),1,0) -> 1
B143: EJ377788 Corp | C143: 2017-04-01 | D143: 2019-04-01 | E143: 1 | F143: 98.819 | G143: 1.397945205 | H143: 3.25 | I143: 100.2169452 | J143: =IF(ROUND(F143+G143,2)=ROUND(I143,2),1,0) -> 1
B144: EK707457 Corp | C144: 2017-07-26 | D144: 2018-07-26 | E144: 1 | F144: 102.824 | G144: 0.224657534 | H144: 2 | I144: 103.0486575 | J144: 1
B145: EI895589 Corp | C145: 2017-03-07 | D145: 2022-03-07 | E145: 1 | F145: 101.3585 | G145: 2.929452055 | H145: 5.875 | I145: 104.2879521 | J145: 1
B146: EJ386439 Corp | C146: 2016-10-10 | D146: 2022-10-10 | E146: 1 | F146: 126.3945 | G146: 6.443647541 | H146: 7.125 | I146: 132.8381475 | J146: 1
B147: EK628309 Corp | C147: 2016-12-10 | D147: 2026-12-10 | E147: 1 | F147: 109.4965 | G147: 1.659836066 | H147: 2.25 | I147: 111.1563361 | J147: 1
B148: EJ675561 Corp | C148: 2017-05-28 | D148: 2020-05-28 | E148: 1 | F148: 108.7805 | G148: 0.719178082 | H148: 2.625 | I148: 109.4996781 | J148: 1
B149: EJ849685 Corp | C149: 2016-10-07 | D149: 2021-10-07 | E149: 1 | F149: 115.6125 | G149: 3.308060109 | H149: 3.625 | I149: 118.9205601 | J149: 1
B150: EK559980 Corp | C150: 2016-10-28 | D150: 2021-10-28 | E150: 1 | F150: 105.7605 | G150: 1.175887978 | H150: 1.375 | I150: 106.936388 | J150: 1
B151: EK270939 Corp | C151: 2017-05-20 | D151: 2021-05-20 | E151: 1 | F151: 110.898 | G151: 0.998630137 | H151: 3.375 | I151: 111.8966301 | J151: 1
B152: EK055402 Corp | C152: 2017-02-05 | D152: 2021-02-05 | E152: 1 | F152: 109.3975 | G152: 1.527663934 | H152: 2.625 | I152: 110.9251639 | J152: 1
B153: EK067443 Corp | C153: 2017-02-18 | D153: 2019-02-18 | E153: 1 | F153: 106.0695 | G153: 1.571038251 | H153: 2.875 | I153: 107.6405383 | J153: 1
J154: 1
B155: EI676558 Corp | C155: 2017-05-19 | D155: 2018-05-19 | E155: 1 | F155: 108.3405 | G155: 1.493150685 | H155: 5 | I155: 109.8336507 | J155: 1
B156: EJ040163 Corp | C156: 2017-03-01 | D156: 2022-03-01 | E156: 1 | F156: 121.11 | G156: 2.189041096 | H156: 4.25 | I156: 123.2990411 | J156: 1
B157: EI407591 Corp | C157: 2016-09-21 | D157: 2020-09-21 | E157: 1 | F157: 114.853 | G157: 3.586065574 | H157: 3.75 | I157: 118.4390656 | J157: 1
B158: EJ439007 Corp | C158: 2016-11-21 | D158: 2022-11-21 | E158: 1 | F158: 113.9235 | G158: 2.072745902 | H158: 2.625 | I158: 115.9962459 | J158: 1
B159: EJ816251 Corp | C159: 2016-09-11 | D159: 2018-09-11 | E159: 1 | F159: 107.5015 | G159: 3.71704918 | H159: 3.779 | I159: 111.2185492 | J159: 1
B160: EJ016322 Corp | C160: 2017-02-14 | D160: 2017-02-14 | E160: 1 | F160: 101.818 | G160: 2.229508197 | H160: 4 | I160: 104.0475082 | J160: 1
B161: EK127234 Corp | C161: 2017-06-22 | D161: 2020-06-22 | E161: 1 | F161: 107.3755 | G161: 0.410958904 | H161: 2 | I161: 107.7864589 | J161: 1
B162: EJ522806 Corp | C162: 2017-01-25 | D162: 2023-01-25 | E162: 1 | F162: 109.535 | G162: 2.026404372 | H162: 3.311 | I162: 111.5614044 | J162: 1
J163: 1
J164: 1
B165: EJ740581 Corp | C165: 2017-07-08 | D165: 2019-07-08 | E165: 1 | F165: 107.6815 | G165: 0.484931507 | H165: 3 | I165: 108.1664315 | J165: 1
J166: 1
B167: EJ895735 Corp | C167: 2017-04-28 | D167: 2017-04-28 | E167: 1 | F167: 101.7425 | G167: 0.979452055 | H167: 2.75 | I167: 102.7219521 | J167: 1
J168: 1
B169: EJ452712 Corp | C169: 2017-02-27 | D169: 2020-02-27 | E169: 1 | F169: 110.615 | G169: 1.630806011 | H169: 3.125 | I169: 112.245806 | J169: 1
B170: EI125776 Corp | C170: 2017-02-01 | D170: 2017-02-01 | E170: 1 | F170: 101.6615 | G170: 2.445696721 | H170: 4.125 | I170: 104.1071967 | J170: 1
J171: 1
B172: EJ374009 Corp | C172: 2016-09-28 | D172: 2020-09-28 | E172: 1 | F172: 112.7765 | G172: 3.162909836 | H172: 3.375 | I172: 115.9394098 | J172: 1

Sheet All Curves
A1: NSS | C1: AAA Rate | D1: AA Rate | E1: A Rate | F1: BBB Rate | G1: BBB- Rate
A2: b0 | C2: ='AAA Yield Curve'!B5 -> 0.0006118786408 | D2: ='AA Yield Curve'!B5 -> 0.01023933725 | E2: ='A Yield Curve'!B5 -> 0.0167058129 | F2: ='BBB Yield Curve'!B5 -> 0.04 | G2: ='BBB- Yield Curve'!B5 -> 0.04393502744
A3: b1 | C3: ='AAA Yield Curve'!B6 -> -0.01034331861 | D3: ='AA Yield Curve'!B6 -> -0.01129705305 | E3: ='A Yield Curve'!B6 -> -0.01551909046 | F3: ='BBB Yield Curve'!B6 -> -0.03753882351 | G3: ='BBB- Yield Curve'!B6 -> -0.03844534327
A4: b2 | C4: ='AAA Yield Curve'!B7 -> -0.09821982764 | D4: ='AA Yield Curve'!B7 -> -0.1222822973 | E4: ='A Yield Curve'!B7 -> -0.01519008892 | F4: ='BBB Yield Curve'!B7 -> -11.4070793 | G4: ='BBB- Yield Curve'!B7 -> -0.01790825737
A5: b3 | C5: ='AAA Yield Curve'!B8 -> 0.1118771644 | D5: ='AA Yield Curve'!B8 -> 0.09403882093 | E5: ='A Yield Curve'!B8 -> -0.0151900894 | F5: ='BBB Yield Curve'!B8 -> 11.33513639 | G5: ='BBB- Yield Curve'!B8 -> -0.01790825768
A6: tau | C6: ='AAA Yield Curve'!B9 -> 2 | D6: ='AA Yield Curve'!B9 -> 2 | E6: ='A Yield Curve'!B9 -> 2 | F6: ='BBB Yield Curve'!B9 -> 2 | G6: ='BBB- Yield Curve'!B9 -> 2
A7: rho | C7: ='AAA Yield Curve'!B10 -> 2 | D7: ='AA Yield Curve'!B10 -> 2 | E7: ='A Yield Curve'!B10 -> 2 | F7: ='BBB Yield Curve'!B10 -> 2 | G7: ='BBB- Yield Curve'!B10 -> 2
A9: Year | B9: Risk Free Rate | C9: AAA Rate | D9: AA Rate | E9: A Rate | F9: BBB Rate | G9: BBB- Rate | H9: Spread AAA | I9: Spread AA | J9: Spread A | K9: Spread BBB | L9: Spread BBB-
A10: 1 | B10: ='Data Entry'!M4 -> -0.005615661548 | C10: =C$2+C$3*((1-EXP(-$A10/C$6))/($A10/C$6))+C$4*((1-EXP(-$A10/C$6))/($A10/C$6)-EXP(-$A10/C$6))+C$5*((1-EXP(-$A10/C$7))/($A10/C$7)-EXP(-$A10/C$7)) -> -0.005063785772 | D10: =D$2+D$3*((1-EXP(-$A10/D$6))/($A10/D$6))+D$4*((1-EXP(-$A10/D$6))/($A10/D$6)-EXP(-$A10/D$6))+D$5*((1-EXP(-$A10/D$7))/($A10/D$7)-EXP(-$A10/D$7)) -> -0.003746100441 | E10: =E$2+E$3*((1-EXP(-$A10/E$6))/($A10/E$6))+E$4*((1-EXP(-$A10/E$6))/($A10/E$6)-EXP(-$A10/E$6))+E$5*((1-EXP(-$A10/E$7))/($A10/E$7)-EXP(-$A10/E$7)) -> -0.0009875875159 | F10: =F$2+F$3*((1-EXP(-$A10/F$6))/($A10/F$6))+F$4*((1-EXP(-$A10/F$6))/($A10/F$6)-EXP(-$A10/F$6))+F$5*((1-EXP(-$A10/F$7))/($A10/F$7)-EXP(-$A10/F$7)) -> -0.002519831015 | G10: 0.00721931314 | H10: =MAX(C10-$B10,0) -> 0.0005518757764 | I10: =MAX(D10-$B10,0) -> 0.001869561107 | J10: =MAX(E10-$B10,0) -> 0.004628074032 | K10: 0.003095830533 | L10: 0.01283497469
A11: =A10+1 -> 2 | B11: ='Data Entry'!M5 -> -0.005826650116 | C11: =C$2+C$3*((1-EXP(-$A11/C$6))/($A11/C$6))+C$4*((1-EXP(-$A11/C$6))/($A11/C$6)-EXP(-$A11/C$6))+C$5*((1-EXP(-$A11/C$7))/($A11/C$7)-EXP(-$A11/C$7)) -> -0.002317515779 | D11: -0.004364849998 | E11: -0.001131815508 | F11: -0.00273933816 | G11: 0.0101687396 | H11: =MAX(C11-$B11,0) -> 0.003509134337 | I11: =MAX(D11-$B11,0) -> 0.001461800119 | J11: =MAX(E11-$B11,0) -> 0.004694834608 | K11: =MAX(F11-$B11,0) -> 0.003087311956 | L11: =MAX(G11-$B11,0) -> 0.01599538972
A12: =A11+1 -> 3 | B12: ='Data Entry'!M6 -> -0.005569626395 | C12: -0.0007191112746 | D12: -0.003937254516 | E12: -0.0002872914367 | F12: -0.0006494060713 | G12: 0.01346557353 | H12: 0.00485051512 | I12: 0.001632371879 | J12: 0.005282334958 | K12: 0.004920220324 | L12: 0.01903519992
A13: 4 | B13: ='Data Entry'!M7 -> -0.005058572615 | C13: 0.0001963163751 | D13: -0.003032974211 | E13: 0.0009735838188 | F13: 0.002403916795 | G13: 0.0166764613 | H13: 0.00525488899 | I13: 0.002025598404 | J13: 0.006032156434 | K13: 0.00746248941 | L13: 0.02173503392
A14: 5 | B14: ='Data Entry'!M8 -> -0.00436331274 | C14: 0.0007076109526 | D14: -0.001960235078 | E14: 0.00234691885 | F14: 0.005707462234 | G14: 0.01960859652 | H14: 0.005070923692 | I14: 0.002403077662 | J14: 0.00671023159 | K14: 0.01007077497 | L14: 0.02397190926
A15: 6 | B15: ='Data Entry'!M9 -> -0.003561036882 | C15: 0.0009815941741 | D15: -0.0008784769867 | E15: 0.003680326667 | F15: 0.008904839128 | G15: 0.02219670069 | H15: 0.004542631056 | I15: 0.002682559896 | J15: 0.007241363549 | K15: 0.01246587601 | L15: 0.02575773757
A16: 7 | B16: ='Data Entry'!M10 -> -0.002720167856 | C16: 0.001117732362 | D16: 0.000136070938 | E16: 0.004905148805 | F16: 0.01183658041 | G16: 0.0244396369 | H16: 0.003837900219 | I16: 0.002856238794 | J16: 0.007625316662 | K16: 0.01455674827 | L16: 0.02715980476
A17: 8 | B17: ='Data Entry'!M11 -> -0.001835615218 | C17: 0.001175065733 | D17: 0.001052554725 | E17: 0.00599759669 | F17: 0.01444855299 | G17: 0.02636560356 | H17: 0.003010680951 | I17: 0.002888169942 | J17: 0.007833211907 | K17: 0.01628416821 | L17: 0.02820121878
A18: 9 | B18: ='Data Entry'!M12 -> -0.0009545115237 | C18: 0.001188426602 | D18: 0.001863921973 | E18: 0.00695677865 | F18: 0.01674021236 | G18: 0.02801360552 | H18: 0.002142938126 | I18: 0.002818433497 | J18: 0.007911290174 | K18: 0.01769472389 | L18: 0.02896811704
A19: 10 | B19: ='Data Entry'!M13 -> -0.0001088364855 | C19: 0.001178193918 | D19: 0.002574818813 | E19: 0.007792512545 | F19: 0.01873593642 | G19: 0.02942406005 | H19: 0.001287030404 | I19: 0.002683655298 | J19: 0.00790134903 | K19: 0.01884477291 | L19: 0.02953289653
A20: 11 | B20: ='Data Entry'!M14 -> 0.0006982258933 | C20: 0.001156150497 | D20: 0.003194955282 | E20: 0.008518753572 | F20: 0.02046959408 | G20: 0.03063442552 | H20: 0.0004579246038 | I20: 0.002496729388 | J20: 0.007820527678 | K20: 0.01977136819 | L20: 0.02993619962
A21: 12 | B21: ='Data Entry'!M15 -> 0.001459178098 | C21: 0.001128992736 | D21: 0.003735592789 | E21: 0.009150201856 | F21: 0.02197660205 | G21: 0.03167751077 | H21: 0 | I21: 0.002276414692 | J21: 0.007691023759 | K21: 0.02051742395 | L21: 0.03021833268
A22: 13 | B22: ='Data Entry'!M16 -> 0.002207949525 | C22: 0.00110042808 | D22: 0.004207786888 | E22: 0.00970067811 | F22: 0.02329014047 | G22: 0.03258115075 | H22: 0 | I22: 0.001999837363 | J22: 0.007492728586 | K22: 0.02108219095 | L22: 0.03037320123
A23: 14 | B23: ='Data Entry'!M17 -> 0.002804664662 | C23: 0.001072424208 | D23: 0.004621595808 | E23: 0.01018245689 | F23: 0.02443961726 | G23: 0.03336852498 | H23: 0 | I23: 0.001816931146 | J23: 0.007377792224 | K23: 0.02163495259 | L23: 0.03056386031
A24: 15 | B24: ='Data Entry'!M18 -> 0.003381112125 | C24: 0.001045949673 | D24: 0.004985803588 | E24: 0.01060609802 | F24: 0.02545029915 | G24: 0.03405873229 | H24: 0 | I24: 0.001604691463 | J24: 0.007224985897 | K24: 0.02206918703 | L24: 0.03067762017
A25: 16 | B25: ='Data Entry'!M19 -> 0.003885778133 | C25: 0.001021410414 | D25: 0.005307903752 | E25: 0.0109805204 | F25: 0.02634350782 | G25: 0.03466742426 | H25: 0 | I25: 0.001422125619 | J25: 0.007094742271 | K25: 0.02245772969 | L25: 0.03078164613
A26: 17 | B26: ='Data Entry'!M20 -> 0.004329273949 | C26: 0.0009989049603 | D26: 0.005594203416 | E26: 0.01131317904 | F26: 0.02713705438 | G26: 0.03520740339 | H26: 0 | I26: 0.001264929466 | J26: 0.006983905095 | K26: 0.02280778043 | L26: 0.03087812944
A27: 18 | B27: ='Data Entry'!M21 -> 0.004705141434 | C27: 0.0009783719846 | D27: 0.005849972804 | E27: 0.01161027274 | F27: 0.02784574217 | G27: 0.03568914825 | H27: 0 | I27: 0.001144831371 | J27: 0.006905131306 | K27: 0.02314060074 | L27: 0.03098400682
A28: 19 | B28: ='Data Entry'!M22 -> 0.00502325686 | C28: 0.0009596742652 | D28: 0.006079601882 | E28: 0.01187694658 | F28: 0.02848185423 | G28: 0.03612125577 | H28: 0 | I28: 0.001056345022 | J28: 0.006853689723 | K28: 0.02345859737 | L28: 0.03109799891
A29: 20 | B29: ='Data Entry'!M23 -> 0.005270644866 | C29: 0.0009426453651 | D29: 0.006286746076 | E29: 0.01211747366 | F29: 0.02905558947 | G29: 0.03651080482 | H29: 0 | I29: 0.00101610121 | J29: 0.006846828797 | K29: 0.02378494461 | L29: 0.03124015995
A30: 21 | B30: ='Data Entry'!M24 -> 0.005506296295 | C30: 0.0009271146485 | D30: 0.006474453967 | E30: 0.0123354109 | F30: 0.029575436 | G30: 0.03686365051 | H30: 0 | I30: 0.0009681576724 | J30: 0.006829114609 | K30: 0.02406913971 | L30: 0.03135735422
A31: 22 | B31: ='Data Entry'!M25 -> 0.005717798138 | C31: 0.0009129198828 | D31: 0.006645275419 | E31: 0.01253372919 | F31: 0.03004848255 | G31: 0.03718466036 | H31: 0 | I31: 0.0009274772817 | J31: 0.006815931057 | K31: 0.02433068441 | L31: 0.03146686222
A32: 23 | B32: ='Data Entry'!M26 -> 0.005853182329 | C32: 0.0008999128602 | D32: 0.006801351286 | E32: 0.01271492032 | F32: 0.03048067412 | G32: 0.03747790278 | H32: 0 | I32: 0.0009481689574 | J32: 0.006861737994 | K32: 0.02462749179 | L32: 0.03162472045
A33: 24 | B33: ='Data Entry'!M27 -> 0.005955712556 | C33: 0.0008879612071 | D33: 0.006944486914 | E33: 0.012881084 | F33: 0.03087701994 | G33: 0.03774679733 | H33: 0 | I33: 0.0009887743579 | J33: 0.006925371443 | K33: 0.02492130739 | L33: 0.03179108478
A34: 25 | B34: ='Data Entry'!M28 -> 0.006001341748 | C34: 0.0008769482063 | D34: 0.007076211942 | E34: 0.0130339983 | F34: 0.03124176173 | G34: 0.03799423439 | H34: 0 | I34: 0.001074870194 | J34: 0.007032656552 | K34: 0.02524041998 | L34: 0.03199289264
A35: 26 | B35: ='Data Entry'!M29 -> 0.006106775574 | C35: 0.0008667716653 | D35: 0.007197828782 | E35: 0.01317517657 | F35: 0.03157850952 | G35: 0.03822267067 | H35: 0 | I35: 0.001091053207 | J35: 0.007068400993 | K35: 0.02547173394 | L35: 0.03211589509
A36: 27 | B36: ='Data Entry'!M30 -> 0.006154735881 | C36: 0.0008573424043 | D36: 0.007310451884 | E36: 0.01330591338 | F36: 0.0318903514 | G36: 0.03843420569 | H36: 0 | I36: 0.001155716004 | J36: 0.007151177496 | K36: 0.02573561552 | L36: 0.03227946981
A37: 28 | B37: ='Data Entry'!M31 -> 0.006191862278 | C37: 0.0008485826675 | D37: 0.007415039557 | E37: 0.01342732169 | F37: 0.0321799422 | G37: 0.03863064318 | H37: 0 | I37: 0.001223177279 | J37: 0.007235459413 | K37: 0.02598807992 | L37: 0.0324387809
A38: 29 | B38: ='Data Entry'!M32 -> 0.00621806378 | C38: 0.0008404246113 | D38: 0.00751241981 | E38: 0.01354036301 | F38: 0.03244957542 | G38: 0.03881354061 | H38: 0 | I38: 0.00129435603 | J38: 0.007322299227 | K38: 0.02623151164 | L38: 0.03259547683
A39: 30 | B39: ='Data Entry'!M33 -> 0.006176792284 | C39: 0.0008328089368 | D39: 0.007603311405 | E39: 0.01364587188 | F39: 0.03270124172 | G39: 0.03898424935 | H39: 0 | I39: 0.001426519121 | J39: 0.007469079595 | K39: 0.02652444944 | L39: 0.03280745707
A40: 31 | B40: ='Data Entry'!M34 -> 0.006144220774 | C40: 0.0008256836878 | D40: 0.007688341069 | E40: 0.01374457594 | F40: 0.03293667674 | G40: 0.03914394734 | H40: 0 | I40: 0.001544120295 | J40: 0.007600355166 | K40: 0.02679245597 | L40: 0.03299972656
A41: 32 | B41: ='Data Entry'!M35 -> 0.00613290979 | C41: 0.0008190032131 | D41: 0.007768057621 | E41: 0.01383711234 | F41: 0.03315740026 | G41: 0.03929366584 | H41: 0 | I41: 0.001635147832 | J41: 0.007704202554 | K41: 0.02702449047 | L41: 0.03316075606
A42: 33 | B42: ='Data Entry'!M36 -> 0.006141763685 | C42: 0.000812727278 | D42: 0.007842943622 | E42: 0.0139240413 | F42: 0.03336474853 | G42: 0.0394343115 | H42: 0 | I42: 0.001701179937 | J42: 0.007782277614 | K42: 0.02722298485 | L42: 0.03329254782
A43: 34 | B43: ='Data Entry'!M37 -> 0.00616990457 | C43: 0.0008068203097 | D43: 0.007913425024 | E43: 0.01400585728 | F43: 0.03355990102 | G43: 0.03956668449 | H43: 0 | I43: 0.001743520454 | J43: 0.007835952714 | K43: 0.02738999646 | L43: 0.03339677992
A44: 35 | B44: ='Data Entry'!M38 -> 0.006216631281 | C44: 0.0008012507571 | D44: 0.007979879195 | E44: 0.01408299837 | F44: 0.03374390266 | G44: 0.03969149368 | H44: 0 | I44: 0.001763247915 | J44: 0.00786636709 | K44: 0.02752727138 | L44: 0.0334748624
A45: 36 | B45: ='Data Entry'!M39 -> 0.006281389473 | C45: 0.0007959905478 | D45: 0.008042641638 | E45: 0.01415585403 | F45: 0.03391768242 | G45: 0.03980936925 | H45: 0 | I45: 0.001761252165 | J45: 0.007874464552 | K45: 0.02763629295 | L45: 0.03352797978
A46: 37 | B46: ='Data Entry'!M40 -> 0.006363742892 | C46: 0.0007910146276 | D46: 0.00810201162 | E46: 0.01422477165 | F46: 0.03408206895 | G46: 0.0399208733 | H46: 0 | I46: 0.001738268727 | J46: 0.007861028757 | K46: 0.02771832606 | L46: 0.03355713041
A47: 38 | B47: ='Data Entry'!M41 -> 0.006463356294 | C47: 0.0007863005697 | D47: 0.008158256928 | E47: 0.0142900621 | F47: 0.03423780371 | G47: 0.0400265088 | H47: 0 | I47: 0.001694900634 | J47: 0.007826705803 | K47: 0.02777444742 | L47: 0.03356315251
A48: 39 | B48: ='Data Entry'!M42 -> 0.006579975771 | C48: 0.000781828241 | D48: 0.008211617899 | E48: 0.01435200436 | F48: 0.03438555217 | G48: 0.04012672714 | H48: 0 | I48: 0.001631642128 | J48: 0.007772028586 | K48: 0.0278055764 | L48: 0.03354675137
A49: 40 | B49: ='Data Entry'!M43 -> 0.006713417842 | C49: 0.0007775795183 | D49: 0.008262310845 | E49: 0.01441084953 | F49: 0.03452591327 | G49: 0.0402219346 | H49: 0 | I49: 0.001548893003 | J49: 0.007697431687 | K49: 0.02781249543 | L49: 0.03350851676
A50: 41 | B50: ='Data Entry'!M44 -> 0.006863557742 | C50: 0.000773538044 | D50: 0.008310530978 | E50: 0.01446682422 | F50: 0.03465942752 | G50: 0.04031249781 | H50: 0 | I50: 0.001446973236 | J50: 0.007603266478 | K50: 0.02779586978 | L50: 0.03344894007
A51: 42 | B51: ='Data Entry'!M45 -> 0.007030320971 | C51: 0.000769689017 | D51: 0.008356454923 | E51: 0.01452013346 | F51: 0.03478658398 | G51: 0.0403987485 | H51: 0 | I51: 0.001326133952 | J51: 0.007489812489 | K51: 0.027756263 | L51: 0.03336842753
A52: 43 | B52: ='Data Entry'!M46 -> 0.007213675728 | C52: 0.0007660190122 | D52: 0.008400242876 | E52: 0.01457096321 | F52: 0.03490782619 | G52: 0.04048098753 | H52: 0 | I52: 0.001186567148 | J52: 0.007357287477 | K52: 0.02769415046 | L52: 0.03326731181
A53: 44 | B53: ='Data Entry'!M47 -> 0.00741362848 | C53: 0.0007625158243 | D53: 0.00844204047 | E53: 0.01461948251 | F53: 0.0350235574 | G53: 0.04055948843 | H53: 0 | I53: 0.00102841199 | J53: 0.007205854031 | K53: 0.02760992892 | L53: 0.03314585995
A54: 45 | B54: ='Data Entry'!M48 -> 0.007630217054 | C54: 0.0007591683327 | D54: 0.008481980396 | E54: =E$2+E$3*((1-EXP(-$A54/E$6))/($A54/E$6))+E$4*((1-EXP(-$A54/E$6))/($A54/E$6)-EXP(-$A54/E$6))+E$5*((1-EXP(-$A54/E$7))/($A54/E$7)-EXP(-$A54/E$7)) -> 0.01466584541 | F54: 0.035134145 | G54: 0.04063450041 | H54: 0 | I54: 0.0008517633414 | J54: 0.007035628351 | K54: 0.02750392795 | L54: 0.03300428335
A55: 46 | B55: ='Data Entry'!M49 -> 0.00786350917 | C55: 0.0007559663838 | D55: 0.008520183804 | E55: 0.01471019252 | F55: 0.03523992445 | G55: 0.04070625099 | H55: 0 | I55: 0.0006566746341 | J55: 0.006846683353 | K55: 0.02737641528 | L55: 0.03284274182
A56: 47 | B56: ='Data Entry'!M50 -> 0.00811359758 | C56: 0.0007529006876 | D56: 0.008556761536 | E56: 0.01475265253 | F56: 0.03534120265 | G56: 0.04077494836 | H56: 0 | I56: 0.0004431639553 | J56: 0.006639054949 | K56: 0.02722760507 | L56: 0.03266135078
A57: 48 | B57: ='Data Entry'!M51 -> 0.008380597636 | C57: 0.0007499627286 | D57: 0.008591815196 | E57: 0.01479334337 | F57: 0.03543826093 | G57: 0.04084078334 | H57: 0 | I57: 0.0002112175596 | J57: 0.006412745734 | K57: 0.02705766329 | L57: 0.03246018571
A58: 49 | B58: ='Data Entry'!M52 -> 0.008664645611 | C58: 0.0007471446862 | D58: 0.008625438094 | E58: 0.01483237336 | F58: 0.03553135764 | G58: 0.04090393118 | H58: 0 | I58: 0 | J58: 0.006167727749 | K58: 0.02686671203 | L58: 0.03223928557
A59: 50 | B59: ='Data Entry'!M53 -> 0.008965896356 | C59: 0.0007444393654 | D59: 0.008657716077 | E59: 0.01486984215 | F59: 0.03562073049 | G59: 0.0409645531 | H59: 0 | I59: 0 | J59: 0.005903945794 | K59: 0.02665483414 | L59: 0.03199865675
A60: 51 | B60: ='Data Entry'!M54 -> 0.009284521878 | C60: 0.0007418401356 | D60: 0.008688728257 | E60: 0.01490584158 | F60: 0.03570659852 | G60: 0.0410227977 | H60: 0 | I60: 0 | J60: 0.005621319698 | K60: 0.02642207664 | L60: 0.03173827582
A61: 52 | B61: ='Data Entry'!M55 -> 0.009620709806 | C61: 0.0007393408761 | D61: 0.008718547661 | E61: 0.01494045641 | F61: 0.03578916393 | G61: 0.04107880212 | H61: 0 | I61: 0 | J61: 0.005319746604 | K61: 0.02616845413 | L61: 0.03145809231
A62: 53 | B62: ='Data Entry'!M56 -> 0.009974662273 | C62: 0.0007369359283 | D62: 0.008747241804 | E62: 0.01497376502 | F62: 0.03586861367 | G62: 0.04113269316 | H62: 0 | I62: 0 | J62: 0.004999102749 | K62: 0.0258939514 | L62: 0.03115803089
A63: 54 | B63: ='Data Entry'!M57 -> 0.01034659534 | C63: 0.0007346200527 | D63: 0.008774873201 | E63: 0.01500583998 | F63: 0.03594512082 | G63: 0.04118458824 | H63: 0 | I63: 0 | J63: 0.00465924464 | K63: 0.02559852548 | L63: 0.0308379929
A64: 55 | B64: ='Data Entry'!M58 -> 0.01073673734 | C64: 0.0007323883906 | D64: 0.00880149982 | E64: 0.01503674858 | F64: =F$2+F$3*((1-EXP(-$A64/F$6))/($A64/F$6))+F$4*((1-EXP(-$A64/F$6))/($A64/F$6)-EXP(-$A64/F$6))+F$5*((1-EXP(-$A64/F$7))/($A64/F$7)-EXP(-$A64/F$7)) -> 0.0360188459 | G64: 0.04123459623 | H64: 0 | I64: 0 | J64: 0.004300011237 | K64: 0.02528210856 | L64: 0.03049785888
A65: 56 | B65: ='Data Entry'!M59 -> 0.01114532881 | C65: 0.0007302364308 | D65: 0.008827175489 | E65: 0.0150665533 | F65: 0.03608993794 | G65: 0.04128281821 | H65: 0 | I65: 0 | J65: 0.003921224487 | K65: 0.02494460912 | L65: 0.0301374894
A66: 57 | B66: ='Data Entry'!M60 -> 0.0115726213 | C66: 0.0007281599784 | D66: 0.008851950257 | E66: 0.01509531224 | F66: 0.03615853552 | G66: 0.0413293482 | H66: 0 | I66: 0 | J66: 0.003522690943 | K66: 0.02458591422 | L66: 0.0297567269
A67: 58 | B67: ='Data Entry'!M61 -> 0.01201887719 | C67: 0.0007261551277 | D67: 0.008875870722 | E67: 0.01512307949 | F67: 0.03622476766 | G67: 0.0413742737 | H67: 0 | I67: 0 | J67: 0.003104202301 | K67: 0.02420589047 | L67: 0.02935539651
A68: 59 | B68: ='Data Entry'!M62 -> 0.01248436885 | C68: 0.0007242182381 | D68: 0.008898980324 | E68: 0.01514990548 | F68: 0.03628875465 | G68: 0.04141767631 | H68: 0 | I68: 0 | J68: 0.002665536639 | K68: 0.02380438581 | L68: 0.02893330746
A69: 60 | B69: ='Data Entry'!M63 -> 0.01296937828 | C69: 0.0007223459115 | D69: 0.008921319607 | E69: 0.01517583728 | F69: 0.03635060874 | G69: 0.04145963216 | H69: 0 | I69: 0 | J69: 0.002206458995 | K69: 0.02338123046 | L69: 0.02849025388
A70: 61 | B70: ='Data Entry'!M64 -> 0.0134387068 | C70: 0.0007205349726 | D70: 0.008942926453 | E70: 0.01520091884 | F70: 0.03641043483 | G70: 0.04150021241 | H70: 0 | I70: 0 | J70: 0.001762212047 | K70: 0.02297172803 | L70: 0.02806150561
A71: 62 | B71: ='Data Entry'!M65 -> 0.01389310272 | C71: 0.0007187824512 | D71: 0.008963836305 | E71: 0.01522519133 | F71: 0.03646833104 | G71: 0.04153948362 | H71: 0 | I71: 0 | J71: 0.001332088605 | K71: 0.02257522832 | L71: 0.0276463809
A72: 63 | B72: ='Data Entry'!M66 -> 0.01433326752 | C72: 0.0007170855653 | D72: 0.008984082352 | E72: 0.01524869326 | F72: 0.03652438928 | G72: 0.04157750812 | H72: 0 | I72: 0 | J72: 0.000915425739 | K72: 0.02219112176 | L72: 0.02724424061
A73: 64 | B73: ='Data Entry'!M67 -> 0.01475985939 | C73: 0.0007154417071 | D73: 0.00900369571 | E73: 0.01527146075 | F73: 0.0365786957 | G73: 0.04161434436 | H73: 0 | I73: 0 | J73: 0.0005116013618 | K73: 0.02181883631 | L73: 0.02685448497
A74: 65 | B74: ='Data Entry'!M68 -> 0.01517349657 | C74: 0.0007138484291 | D74: 0.009022705579 | E74: 0.01529352771 | F74: 0.03663133115 | G74: 0.04165004718 | H74: 0 | I74: 0 | J74: 0.0001200311371 | K74: 0.02145783458 | L74: 0.02647655061
A75: 66 | B75: ='Data Entry'!M69 -> 0.01557476031 | C75: =C$2+C$3*((1-EXP(-$A75/C$6))/($A75/C$6))+C$4*((1-EXP(-$A75/C$6))/($A75/C$6)-EXP(-$A75/C$6))+C$5*((1-EXP(-$A75/C$7))/($A75/C$7)-EXP(-$A75/C$7)) -> 0.0007123034324 | D75: 0.009041139393 | E75: 0.01531492597 | F75: 0.03668237158 | G75: 0.04168466809 | H75: =MAX(C75-$B75,0) -> 0 | I75: =MAX(D75-$B75,0) -> 0 | J75: =MAX(E75-$B75,0) -> 0 | K75: =MAX(F75-$B75,0) -> 0.02110761127 | L75: =MAX(G75-$B75,0) -> 0.02610990778
A76: =A75+1 -> 67 | B76: ='Data Entry'!M70 -> 0.0159641976 | C76: 0.0007108045549 | D76: 0.009059022943 | E76: 0.01533568547 | F76: 0.03673188843 | G76: 0.04171825555 | H76: 0 | I76: 0 | J76: 0 | K76: 0.02076769082 | L76: 0.02575405794
A77: 68 | B77: ='Data Entry'!M71 -> 0.01634232367 | C77: 0.000709349762 | D77: 0.009076380506 | E77: 0.01535583441 | F77: 0.03677994889 | G77: 0.04175085513 | H77: 0 | I77: 0 | J77: 0 | K77: 0.02043762522 | L77: 0.02540853146
A78: 69 | B78: ='Data Entry'!M72 -> 0.01670962423 | C78: 0.0007079371371 | D78: 0.009093234952 | E78: 0.01537539931 | F78: 0.0368266163 | G78: 0.0417825098 | H78: 0 | I78: 0 | J78: 0 | K78: 0.02011699206 | L78: 0.02507288557
A79: 70 | B79: ='Data Entry'!M73 -> 0.0170665576 | C79: 0.0007065648728 | D79: 0.009109607842 | E79: 0.01539440522 | F79: 0.03687195035 | G79: 0.04181326006 | H79: 0 | I79: 0 | J79: 0 | K79: 0.01980539275 | L79: 0.02474670246
A80: 71 | B80: ='Data Entry'!M74 -> 0.01741355657 | C80: 0.0007052312639 | D80: 0.009125519524 | E80: 0.01541287575 | F80: 0.03691600739 | G80: 0.0418431441 | H80: 0 | I80: 0 | J80: 0 | K80: 0.01950245082 | L80: 0.02442958754
A81: 72 | B81: ='Data Entry'!M75 -> 0.01775103017 | C81: 0.0007039346997 | D81: 0.009140989215 | E81: 0.01543083321 | F81: 0.03695884062 | G81: 0.04187219804 | H81: 0 | I81: 0 | J81: 0 | K81: 0.01920781044 | L81: 0.02412116786
A82: 73 | B82: ='Data Entry'!M76 -> 0.01807936531 | C82: 0.0007026736578 | D82: 0.009156035078 | E82: 0.01544829869 | F82: 0.03700050034 | G82: 0.04190045598 | H82: 0 | I82: 0 | J82: 0 | K82: 0.01892113503 | L82: 0.02382109067
A83: 74 | B83: ='Data Entry'!M77 -> 0.01839892819 | C83: 0.0007014466981 | D83: 0.009170674297 | E83: 0.01546529212 | F83: 0.03704103411 | G83: 0.04192795018 | H83: 0 | I83: 0 | J83: 0 | K83: 0.01864210592 | L83: 0.02352902199
A84: 75 | B84: ='Data Entry'!M78 -> 0.01871006573 | C84: 0.0007002524574 | D84: 0.009184923136 | E84: 0.0154818324 | F84: 0.03708048699 | G84: 0.04195471121 | H84: 0 | I84: 0 | J84: 0 | K84: 0.01837042127 | L84: 0.02324464549
A85: 76 | B85: ='Data Entry'!M79 -> 0.01901310677 | C85: 0.000699089644 | D85: 0.009198797006 | E85: 0.01549793741 | F85: 0.03711890164 | G85: 0.04198076801 | H85: 0 | I85: 0 | J85: 0 | K85: 0.01810579487 | L85: 0.02296766124
A86: 77 | B86: ='Data Entry'!M80 -> 0.01930836328 | C86: 0.0006979570336 | D86: 0.009212310516 | E86: 0.0155136241 | F86: 0.0371563185 | G86: 0.042006148 | H86: 0 | I86: 0 | J86: 0 | K86: 0.01784795522 | L86: 0.02269778472
A87: 78 | B87: ='Data Entry'!M81 -> 0.0195961314 | C87: 0.0006968534644 | D87: 0.009225477525 | E87: 0.01552890857 | F87: 0.03719277596 | G87: 0.04203087722 | H87: 0 | I87: 0 | J87: 0 | K87: 0.01759664456 | L87: 0.02243474582
A88: 79 | B88: ='Data Entry'!M82 -> 0.01987669243 | C88: 0.0006957778338 | D88: 0.009238311193 | E88: 0.0155438061 | F88: 0.03722831044 | G88: 0.04205498039 | H88: 0 | I88: 0 | J88: 0 | K88: 0.017351618 | L88: 0.02217828796
A89: 80 | B89: ='Data Entry'!M83 -> 0.02015031377 | C89: 0.0006947290938 | D89: 0.009250824019 | E89: 0.01555833118 | F89: 0.03726295656 | G89: 0.04207848098 | H89: 0 | I89: 0 | J89: 0 | K89: 0.01711264279 | L89: 0.02192816721
A90: 81 | B90: ='Data Entry'!M84 -> 0.02041724974 | C90: 0.0006937062487 | D90: 0.009263027886 | E90: 0.01557249762 | F90: 0.03729674722 | G90: 0.04210140131 | H90: 0 | I90: 0 | J90: 0 | K90: 0.01687949748 | L90: 0.02168415157
A91: 82 | B91: ='Data Entry'!M85 -> 0.02067774239 | C91: 0.0006927083511 | D91: 0.009274934097 | E91: 0.01558631854 | F91: 0.03732971371 | G91: 0.0421237626 | H91: 0 | I91: 0 | J91: 0 | K91: 0.01665197133 | L91: 0.02144602021
A92: 83 | B92: ='Data Entry'!M86 -> 0.02093202222 | C92: 0.0006917344992 | D92: 0.009286553413 | E92: 0.01559980642 | F92: 0.03736188584 | G92: 0.04214558507 | H92: 0 | I92: 0 | J92: 0 | K92: 0.01642986362 | L92: 0.02121356285
A93: 84 | B93: ='Data Entry'!M87 -> 0.02118030887 | C93: 0.0006907838342 | D93: 0.009297896077 | E93: 0.01561297317 | F93: 0.03739329196 | G93: 0.04216688795 | H93: 0 | I93: 0 | J93: 0 | K93: 0.01621298309 | L93: 0.02098657908
A94: 85 | B94: ='Data Entry'!M88 -> 0.02142281175 | C94: 0.0006898555378 | D94: 0.009308971856 | E94: 0.01562583011 | F94: 0.03742395911 | G94: 0.04218768959 | H94: 0 | I94: 0 | J94: 0 | K94: 0.01600114736 | L94: 0.02076487784
A95: 86 | B95: ='Data Entry'!M89 -> 0.02165973062 | C95: 0.0006889488297 | D95: 0.009319790058 | E95: 0.01563838805 | F95: 0.03745391308 | G95: 0.04220800748 | H95: 0 | I95: 0 | J95: 0 | K95: 0.01579418245 | L95: 0.02054827685
A96: 87 | B96: ='Data Entry'!M90 -> 0.02189125616 | C96: 0.0006880629654 | D96: 0.009330359566 | E96: 0.0156506573 | F96: 0.03748317844 | G96: 0.04222785828 | H96: 0 | I96: 0 | J96: 0 | K96: 0.01559192228 | L96: 0.02033660212
A97: 88 | B97: ='Data Entry'!M91 -> 0.02211757045 | C97: 0.0006871972345 | D97: 0.009340688858 | E97: 0.0156626477 | F97: 0.03751177869 | G97: 0.04224725793 | H97: 0 | I97: 0 | J97: 0 | K97: 0.01539420824 | L97: 0.02012968748
A98: 89 | B98: ='Data Entry'!M92 -> 0.02233884746 | C98: 0.0006863509581 | D98: 0.009350786031 | E98: 0.01567436866 | F98: 0.03753973623 | G98: 0.04226622163 | H98: 0 | I98: 0 | J98: 0 | K98: 0.01520088877 | L98: 0.01992737417
A99: 90 | B99: ='Data Entry'!M93 -> 0.02255525353 | C99: 0.000685523488 | D99: 0.009360658823 | E99: 0.01568582915 | F99: 0.03756707249 | G99: 0.04228476392 | H99: 0 | I99: 0 | J99: 0 | K99: 0.01501181897 | L99: 0.01972951039
A100: 91 | B100: ='Data Entry'!M94 -> 0.02276694772 | C100: 0.0006847142039 | D100: 0.009370314629 | E100: 0.01569703776 | F100: 0.03759380796 | G100: 0.04230289868 | H100: 0 | I100: 0 | J100: 0 | K100: 0.01482686024 | L100: 0.01953595096
A101: 92 | B101: ='Data Entry'!M95 -> 0.02297408228 | C101: 0.000683922513 | D101: 0.009379760528 | E101: 0.01570800271 | F101: 0.03761996222 | G101: 0.04232063921 | H101: 0 | I101: 0 | J101: 0 | K101: 0.01464587994 | L101: 0.01934655693
A102: 93 | B102: ='Data Entry'!M96 -> 0.02317680294 | C102: 0.0006831478477 | D102: 0.009389003288 | E102: 0.01571873185 | F102: 0.03764555403 | G102: 0.04233799823 | H102: 0 | I102: 0 | J102: 0 | K102: 0.01446875109 | L102: 0.01916119529
A103: 94 | B103: ='Data Entry'!M97 -> 0.02337524929 | C103: 0.0006823896647 | D103: 0.009398049394 | E103: 0.01572923271 | F103: 0.03767060132 | G103: 0.0423549879 | H103: 0 | I103: 0 | J103: 0 | K103: 0.01429535204 | L103: 0.01897973861
A104: 95 | B104: ='Data Entry'!M98 -> 0.0235695551 | C104: 0.0006816474434 | D104: 0.009406905056 | E104: 0.01573951251 | F104: 0.03769512131 | G104: 0.04237161989 | H104: 0 | I104: 0 | J104: 0 | K104: 0.01412556621 | L104: 0.01880206479
A105: 96 | B105: ='Data Entry'!M99 -> 0.02375984863 | C105: 0.000680920685 | D105: 0.009415576225 | E105: 0.01574957813 | F105: 0.03771913046 | G105: 0.04238790539 | H105: 0 | I105: 0 | J105: 0 | K105: 0.01395928184 | L105: 0.01862805676
A106: 97 | B106: ='Data Entry'!M100 -> 0.02394625287 | C106: 0.0006802089114 | D106: 0.009424068606 | E106: 0.01575943623 | F106: 0.03774264458 | G106: 0.0424038551 | H106: 0 | I106: 0 | J106: 0 | K106: 0.01379639172 | L106: 0.01845760223
A107: 98 | B107: ='Data Entry'!M101 -> 0.02412888584 | C107: 0.0006795116637 | D107: 0.009432387674 | E107: 0.01576909313 | F107: 0.03776567882 | G107: 0.04241947931 | H107: 0 | I107: 0 | J107: 0 | K107: 0.01363679298 | L107: 0.01829059346
A108: 99 | B108: ='Data Entry'!M102 -> 0.02430786086 | C108: 0.0006788285019 | D108: 0.00944053868 | E108: 0.01577855495 | F108: 0.03778824772 | G108: 0.04243478787 | H108: 0 | I108: 0 | J108: 0 | K108: 0.01348038686 | L108: 0.01812692701
A109: 100 | B109: ='Data Entry'!M103 -> 0.02448328672 | C109: 0.0006781590032 | D109: 0.009448526666 | E109: 0.01578782753 | F109: 0.03781036525 | G109: 0.04244979027 | H109: 0 | I109: 0 | J109: 0 | K109: 0.01332707852 | L109: 0.01796650355
A110: 101 | B110: ='Data Entry'!M104 -> 0 | C110: 0.000677502762 | D110: 0.009456356474 | E110: 0.01579691649 | F110: 0.0378320448 | G110: 0.04246449559 | H110: 0.000677502762 | I110: 0.009456356474 | J110: 0.01579691649 | K110: 0.0378320448 | L110: 0.04246449559
A111: 102 | B111: ='Data Entry'!M105 -> 0 | C111: 0.0006768593883 | D111: 0.009464032756 | E111: 0.01580582724 | F111: 0.03785329926 | G111: 0.04247891257 | H111: 0.0006768593883 | I111: 0.009464032756 | J111: 0.01580582724 | K111: 0.03785329926 | L111: 0.04247891257
A112: 103 | B112: ='Data Entry'!M106 -> 0 | C112: 0.0006762285072 | D112: 0.009471559984 | E112: 0.01581456496 | F112: 0.03787414101 | G112: 0.04249304961 | H112: 0.0006762285072 | I112: 0.009471559984 | J112: 0.01581456496 | K112: 0.03787414101 | L112: 0.04249304961
A113: 104 | B113: ='Data Entry'!M107 -> 0 | C113: 0.0006756097585 | D113: 0.009478942458 | E113: 0.01582313466 | F113: 0.03789458197 | G113: 0.04250691478 | H113: 0.0006756097585 | I113: 0.009478942458 | J113: 0.01582313466 | K113: 0.03789458197 | L113: 0.04250691478
A114: 105 | B114: ='Data Entry'!M108 -> 0 | C114: 0.0006750027955 | D114: 0.009486184313 | E114: 0.01583154111 | F114: 0.03791463357 | G114: 0.04252051585 | H114: 0.0006750027955 | I114: 0.009486184313 | J114: 0.01583154111 | K114: 0.03791463357 | L114: 0.04252051585
A115: 106 | B115: ='Data Entry'!M109 -> 0 | C115: 0.0006744072846 | D115: 0.009493289529 | E115: 0.01583978896 | F115: =F$2+F$3*((1-EXP(-$A115/F$6))/($A115/F$6))+F$4*((1-EXP(-$A115/F$6))/($A115/F$6)-EXP(-$A115/F$6))+F$5*((1-EXP(-$A115/F$7))/($A115/F$7)-EXP(-$A115/F$7)) -> 0.03793430683 | G115: 0.0425338603 | H115: 0.0006744072846 | I115: 0.009493289529 | J115: 0.01583978896 | K115: 0.03793430683 | L115: 0.0425338603
A116: 107 | B116: ='Data Entry'!M110 -> 0 | C116: 0.0006738229048 | D116: 0.009500261938 | E116: 0.01584788264 | F116: 0.03795361238 | G116: 0.04254695532 | H116: 0.0006738229048 | I116: 0.009500261938 | J116: 0.01584788264 | K116: 0.03795361238 | L116: 0.04254695532
A117: 108 | B117: ='Data Entry'!M111 -> 0 | C117: 0.0006732493468 | D117: 0.009507105228 | E117: 0.01585582644 | F117: 0.03797256041 | G117: 0.04255980784 | H117: 0.0006732493468 | I117: 0.009507105228 | J117: 0.01585582644 | K117: 0.03797256041 | L117: 0.04255980784
A118: 109 | B118: ='Data Entry'!M112 -> 0 | C118: 0.0006726863128 | D118: 0.009513822953 | E118: 0.01586362448 | F118: 0.03799116078 | G118: 0.04257242453 | H118: 0.0006726863128 | I118: 0.009513822953 | J118: 0.01586362448 | K118: 0.03799116078 | L118: 0.04257242453
A119: 110 | B119: ='Data Entry'!M113 -> 0 | C119: 0.0006721335157 | D119: 0.009520418537 | E119: 0.01587128074 | F119: 0.03800942295 | G119: 0.04258481183 | H119: 0.0006721335157 | I119: 0.009520418537 | J119: 0.01587128074 | K119: 0.03800942295 | L119: 0.04258481183
A120: 111 | B120: ='Data Entry'!M114 -> 0 | C120: 0.000671590679 | D120: 0.009526895283 | E120: 0.01587879905 | F120: 0.03802735608 | G120: 0.04259697594 | H120: 0.000671590679 | I120: 0.009526895283 | J120: 0.01587879905 | K120: 0.03802735608 | L120: 0.04259697594
A121: 112 | B121: ='Data Entry'!M115 -> 0 | C121: 0.0006710575358 | D121: 0.009533256372 | E121: 0.0158861831 | F121: 0.03804496897 | G121: 0.04260892282 | H121: 0.0006710575358 | I121: 0.009533256372 | J121: 0.0158861831 | K121: 0.03804496897 | L121: 0.04260892282
A122: 113 | B122: ='Data Entry'!M116 -> 0 | C122: 0.0006705338288 | D122: 0.009539504875 | E122: 0.01589343646 | F122: 0.03806227013 | G122: 0.04262065826 | H122: 0.0006705338288 | I122: 0.009539504875 | J122: 0.01589343646 | K122: 0.03806227013 | L122: 0.04262065826
A123: 114 | B123: ='Data Entry'!M117 -> 0 | C123: 0.0006700193096 | D123: 0.009545643756 | E123: 0.01590056257 | F123: 0.03807926776 | G123: 0.04263218782 | H123: 0.0006700193096 | I123: 0.009545643756 | J123: 0.01590056257 | K123: 0.03807926776 | L123: 0.04263218782
A124: 115 | B124: ='Data Entry'!M118 -> 0 | C124: 0.0006695137386 | D124: 0.009551675873 | E124: 0.01590756475 | F124: 0.03809596978 | G124: 0.04264351686 | H124: 0.0006695137386 | I124: 0.009551675873 | J124: 0.01590756475 | K124: 0.03809596978 | L124: 0.04264351686
A125: 116 | B125: ='Data Entry'!M119 -> 0 | C125: 0.0006690168843 | D125: 0.009557603988 | E125: 0.0159144462 | F125: 0.03811238383 | G125: 0.04265465057 | H125: 0.0006690168843 | I125: 0.009557603988 | J125: 0.0159144462 | K125: 0.03811238383 | L125: 0.04265465057
A126: 117 | B126: ='Data Entry'!M120 -> 0 | C126: 0.0006685285232 | D126: 0.009563430768 | E126: 0.01592121002 | F126: 0.0381285173 | G126: 0.04266559396 | H126: 0.0006685285232 | I126: 0.009563430768 | J126: 0.01592121002 | K126: 0.0381285173 | L126: 0.04266559396
A127: 118 | B127: ='Data Entry'!M121 -> 0 | C127: 0.0006680484395 | D127: 0.009569158789 | E127: 0.01592785919 | F127: 0.03814437733 | G127: 0.04267635187 | H127: 0.0006680484395 | I127: 0.009569158789 | J127: 0.01592785919 | K127: 0.03814437733 | L127: 0.04267635187
A128: 119 | B128: ='Data Entry'!M122 -> 0 | C128: 0.0006675764244 | D128: 0.009574790541 | E128: 0.01593439662 | F128: 0.03815997079 | G128: 0.04268692898 | H128: 0.0006675764244 | I128: 0.009574790541 | J128: 0.01593439662 | K128: 0.03815997079 | L128: 0.04268692898
A129: 120 | B129: ='Data Entry'!M123 -> 0 | C129: 0.0006671122762 | D129: 0.009580328431 | E129: 0.01594082509 | F129: 0.03817530437 | G129: 0.0426973298 | H129: 0.0006671122762 | I129: 0.009580328431 | J129: 0.01594082509 | K129: 0.03817530437 | L129: 0.0426973298
A130: 121 | B130: ='Data Entry'!M124 -> 0 | C130: 0.0006666557998 | D130: 0.009585774784 | E130: 0.0159471473 | F130: 0.0381903845 | G130: 0.0427075587 | H130: 0.0006666557998 | I130: 0.009585774784 | J130: 0.0159471473 | K130: 0.0381903845 | L130: 0.0427075587
A131: 122 | B131: ='Data Entry'!M125 -> 0 | C131: 0.0006662068067 | D131: 0.009591131854 | E131: 0.01595336587 | F131: 0.03820521741 | G131: 0.04271761992 | H131: 0.0006662068067 | I131: 0.009591131854 | J131: 0.01595336587 | K131: 0.03820521741 | L131: 0.04271761992
A132: 123 | B132: ='Data Entry'!M126 -> 0 | C132: 0.0006657651143 | D132: 0.009596401816 | E132: 0.01595948333 | F132: 0.03821980914 | G132: 0.04272751755 | H132: 0.0006657651143 | I132: 0.009596401816 | J132: 0.01595948333 | K132: 0.03821980914 | L132: 0.04272751755
A133: 124 | B133: ='Data Entry'!M127 -> 0 | C133: 0.000665330546 | D133: 0.00960158678 | E133: 0.01596550211 | F133: 0.03823416552 | G133: 0.04273725553 | H133: 0.000665330546 | I133: 0.00960158678 | J133: 0.01596550211 | K133: 0.03823416552 | L133: 0.04273725553
A134: 125 | B134: ='Data Entry'!M128 -> 0 | C134: 0.0006649029308 | D134: 0.009606688783 | E134: 0.0159714246 | F134: 0.0382482922 | G134: 0.0427468377 | H134: 0.0006649029308 | I134: 0.009606688783 | J134: 0.0159714246 | K134: 0.0382482922 | L134: 0.0427468377
A135: 126 | B135: ='Data Entry'!M129 -> 0 | C135: 0.0006644821031 | D135: 0.009611709803 | E135: 0.01597725308 | F135: 0.03826219464 | G135: 0.04275626778 | H135: 0.0006644821031 | I135: 0.009611709803 | J135: 0.01597725308 | K135: 0.03826219464 | L135: 0.04275626778
A136: 127 | B136: ='Data Entry'!M130 -> 0 | C136: 0.0006640679026 | D136: 0.009616651752 | E136: 0.01598298977 | F136: 0.03827587815 | G136: 0.04276554935 | H136: 0.0006640679026 | I136: 0.009616651752 | J136: 0.01598298977 | K136: 0.03827587815 | L136: 0.04276554935
A137: 128 | B137: ='Data Entry'!M131 -> 0 | C137: 0.000663660174 | D137: 0.009621516482 | E137: 0.01598863683 | F137: 0.03828934785 | G137: 0.0427746859 | H137: 0.000663660174 | I137: 0.009621516482 | J137: 0.01598863683 | K137: 0.03828934785 | L137: 0.0427746859
A138: 129 | B138: ='Data Entry'!M132 -> 0 | C138: 0.0006632587667 | D138: 0.00962630579 | E138: 0.01599419633 | F138: 0.03830260872 | G138: 0.0427836808 | H138: 0.0006632587667 | I138: 0.00962630579 | J138: 0.01599419633 | K138: 0.03830260872 | L138: 0.0427836808
A139: 130 | B139: ='Data Entry'!M133 -> 0 | C139: =C$2+C$3*((1-EXP(-$A139/C$6))/($A139/C$6))+C$4*((1-EXP(-$A139/C$6))/($A139/C$6)-EXP(-$A139/C$6))+C$5*((1-EXP(-$A139/C$7))/($A139/C$7)-EXP(-$A139/C$7)) -> 0.000662863535 | D139: 0.009631021417 | E139: 0.0159996703 | F139: 0.03831566557 | G139: 0.04279253731 | H139: =MAX(C139-$B139,0) -> 0.000662863535 | I139: =MAX(D139-$B139,0) -> 0.009631021417 | J139: =MAX(E139-$B139,0) -> 0.0159996703 | K139: =MAX(F139-$B139,0) -> 0.03831566557 | L139: =MAX(G139-$B139,0) -> 0.04279253731
A140: =A139+1 -> 131 | B140: ='Data Entry'!M134 -> 0 | C140: 0.0006624743373 | D140: 0.009635665049 | E140: 0.01600506071 | F140: 0.03832852309 | G140: 0.04280125861 | H140: 0.0006624743373 | I140: 0.009635665049 | J140: 0.01600506071 | K140: 0.03832852309 | L140: 0.04280125861
A141: 132 | B141: ='Data Entry'!M135 -> 0 | C141: 0.0006620910366 | D141: 0.009640238324 | E141: 0.01601036943 | F141: 0.03834118579 | G141: 0.04280984776 | H141: 0.0006620910366 | I141: 0.009640238324 | J141: 0.01601036943 | K141: 0.03834118579 | L141: 0.04280984776
A142: 133 | B142: ='Data Entry'!M136 -> 0 | C142: 0.0006617134998 | D142: 0.009644742827 | E142: 0.01601559833 | F142: 0.03835365808 | G142: 0.04281830776 | H142: 0.0006617134998 | I142: 0.009644742827 | J142: 0.01601559833 | K142: 0.03835365808 | L142: 0.04281830776
A143: 134 | B143: ='Data Entry'!M137 -> 0 | C143: 0.0006613415979 | D143: 0.009649180099 | E143: 0.01602074919 | F143: 0.03836594421 | G143: 0.04282664149 | H143: 0.0006613415979 | I143: 0.009649180099 | J143: 0.01602074919 | K143: 0.03836594421 | L143: 0.04282664149
A144: 135 | B144: ='Data Entry'!M138 -> 0 | C144: 0.0006609752056 | D144: 0.009653551633 | E144: 0.01602582373 | F144: 0.03837804833 | G144: 0.04283485176 | H144: 0.0006609752056 | I144: 0.009653551633 | J144: 0.01602582373 | K144: 0.03837804833 | L144: 0.04283485176
A145: 136 | B145: ='Data Entry'!M139 -> 0 | C145: 0.0006606142014 | D145: 0.00965785888 | E145: 0.01603082365 | F145: 0.03838997444 | G145: 0.04284294128 | H145: 0.0006606142014 | I145: 0.00965785888 | J145: 0.01603082365 | K145: 0.03838997444 | L145: 0.04284294128
A146: 137 | B146: ='Data Entry'!M140 -> 0 | C146: 0.0006602584674 | D146: 0.009662103248 | E146: 0.01603575058 | F146: 0.03840172646 | G146: 0.04285091272 | H146: 0.0006602584674 | I146: 0.009662103248 | J146: 0.01603575058 | K146: 0.03840172646 | L146: 0.04285091272
A147: 138 | B147: ='Data Entry'!M141 -> 0 | C147: 0.000659907889 | D147: 0.009666286103 | E147: 0.01604060611 | F147: 0.03841330815 | G147: 0.04285876862 | H147: 0.000659907889 | I147: 0.009666286103 | J147: 0.01604060611 | K147: 0.03841330815 | L147: 0.04285876862
A148: 139 | B148: ='Data Entry'!M142 -> 0 | C148: 0.0006595623548 | D148: 0.009670408773 | E148: 0.01604539177 | F148: 0.0384247232 | G148: 0.04286651149 | H148: 0.0006595623548 | I148: 0.009670408773 | J148: 0.01604539177 | K148: 0.0384247232 | L148: 0.04286651149
A149: 140 | B149: ='Data Entry'!M143 -> 0 | C149: 0.0006592217568 | D149: 0.009674472548 | E149: 0.01605010906 | F149: 0.03843597518 | G149: 0.04287414375 | H149: 0.0006592217568 | I149: 0.009674472548 | J149: 0.01605010906 | K149: 0.03843597518 | L149: 0.04287414375
A150: 141 | B150: ='Data Entry'!M144 -> 0 | C150: 0.0006588859901 | D150: 0.009678478681 | E150: 0.01605475944 | F150: 0.03844706755 | G150: 0.04288166774 | H150: 0.0006588859901 | I150: 0.009678478681 | J150: 0.01605475944 | K150: 0.03844706755 | L150: 0.04288166774
A151: 142 | B151: ='Data Entry'!M145 -> 0 | C151: 0.0006585549524 | D151: 0.009682428389 | E151: 0.01605934433 | F151: 0.03845800369 | G151: 0.04288908577 | H151: 0.0006585549524 | I151: 0.009682428389 | J151: 0.01605934433 | K151: 0.03845800369 | L151: 0.04288908577
A152: 143 | B152: ='Data Entry'!M146 -> 0 | C152: 0.0006582285446 | D152: 0.009686322857 | E152: 0.01606386509 | F152: 0.03846878688 | G152: 0.04289640005 | H152: 0.0006582285446 | I152: 0.009686322857 | J152: 0.01606386509 | K152: 0.03846878688 | L152: 0.04289640005
A153: 144 | B153: ='Data Entry'!M147 -> 0 | C153: 0.0006579066703 | D153: 0.009690163234 | E153: 0.01606832306 | F153: 0.03847942031 | G153: 0.04290361274 | H153: 0.0006579066703 | I153: 0.009690163234 | J153: 0.01606832306 | K153: 0.03847942031 | L153: 0.04290361274
A154: 145 | B154: ='Data Entry'!M148 -> 0 | C154: 0.0006575892356 | D154: 0.009693950642 | E154: 0.01607271954 | F154: 0.03848990707 | G154: 0.04291072594 | H154: 0.0006575892356 | I154: 0.009693950642 | J154: 0.01607271954 | K154: 0.03848990707 | L154: 0.04291072594
A155: 146 | B155: ='Data Entry'!M149 -> 0 | C155: 0.0006572761493 | D155: 0.009697686166 | E155: 0.01607705579 | F155: 0.03850025017 | G155: 0.04291774171 | H155: 0.0006572761493 | I155: 0.009697686166 | J155: 0.01607705579 | K155: 0.03850025017 | L155: 0.04291774171
A156: 147 | B156: ='Data Entry'!M150 -> 0 | C156: 0.0006569673227 | D156: 0.009701370868 | E156: 0.01608133305 | F156: 0.03851045255 | G156: 0.04292466202 | H156: 0.0006569673227 | I156: 0.009701370868 | J156: 0.01608133305 | K156: 0.03851045255 | L156: 0.04292466202
A157: 148 | B157: ='Data Entry'!M151 -> 0 | C157: 0.0006566626695 | D157: 0.009705005776 | E157: 0.01608555251 | F157: 0.03852051706 | G157: 0.04293148881 | H157: 0.0006566626695 | I157: 0.009705005776 | J157: 0.01608555251 | K157: 0.03852051706 | L157: 0.04293148881
A158: 149 | B158: ='Data Entry'!M152 -> 0 | C158: 0.0006563621055 | D158: 0.009708591893 | E158: 0.01608971533 | F158: 0.03853044647 | G158: 0.04293822397 | H158: 0.0006563621055 | I158: 0.009708591893 | J158: 0.01608971533 | K158: 0.03853044647 | L158: 0.04293822397
A159: 150 | B159: ='Data Entry'!M153 -> 0 | C159: 0.0006560655491 | D159: 0.009712130195 | E159: 0.01609382265 | F159: 0.0385402435 | G159: 0.04294486933 | H159: 0.0006560655491 | I159: 0.009712130195 | J159: 0.01609382265 | K159: 0.0385402435 | L159: 0.04294486933
A160: 151 | B160: ='Data Entry'!M154 -> 0 | C160: 0.0006557729206 | D160: 0.009715621633 | E160: 0.01609787557 | F160: 0.03854991076 | G160: 0.04295142666 | H160: 0.0006557729206 | I160: 0.009715621633 | J160: 0.01609787557 | K160: 0.03854991076 | L160: 0.04295142666
A161: 152 | B161: ='Data Entry'!M155 -> 0 | C161: 0.0006554841424 | D161: 0.00971906713 | E161: 0.01610187515 | F161: 0.03855945082 | G161: 0.04295789772 | H161: 0.0006554841424 | I161: 0.00971906713 | J161: 0.01610187515 | K161: 0.03855945082 | L161: 0.04295789772
A162: 153 | B162: ='Data Entry'!M156 -> 0 | C162: 0.0006551991391 | D162: 0.009722467589 | E162: 0.01610582246 | F162: 0.03856886617 | G162: 0.04296428419 | H162: 0.0006551991391 | I162: 0.009722467589 | J162: 0.01610582246 | K162: 0.03856886617 | L162: 0.04296428419
A163: 154 | B163: ='Data Entry'!M157 -> 0 | C163: 0.0006549178372 | D163: 0.009725823885 | E163: 0.0161097185 | F163: 0.03857815925 | G163: 0.04297058772 | H163: 0.0006549178372 | I163: 0.009725823885 | J163: 0.0161097185 | K163: 0.03857815925 | L163: 0.04297058772
A164: 155 | B164: ='Data Entry'!M158 -> 0 | C164: 0.000654640165 | D164: 0.009729136875 | E164: 0.01611356427 | F164: 0.03858733242 | G164: 0.04297680991 | H164: 0.000654640165 | I164: 0.009729136875 | J164: 0.01611356427 | K164: 0.03858733242 | L164: 0.04297680991
A165: 156 | B165: ='Data Entry'!M159 -> 0 | C165: 0.0006543660526 | D165: 0.00973240739 | E165: 0.01611736074 | F165: 0.03859638798 | G165: 0.04298295233 | H165: 0.0006543660526 | I165: 0.00973240739 | J165: 0.01611736074 | K165: 0.03859638798 | L165: 0.04298295233
A166: 157 | B166: ='Data Entry'!M160 -> 0 | C166: 0.0006540954322 | D166: 0.009735636243 | E166: 0.01612110884 | F166: =F$2+F$3*((1-EXP(-$A166/F$6))/($A166/F$6))+F$4*((1-EXP(-$A166/F$6))/($A166/F$6)-EXP(-$A166/F$6))+F$5*((1-EXP(-$A166/F$7))/($A166/F$7)-EXP(-$A166/F$7)) -> 0.03860532818 | G166: 0.0429890165 | H166: 0.0006540954322 | I166: 0.009735636243 | J166: 0.01612110884 | K166: 0.03860532818 | L166: 0.0429890165
A167: 158 | B167: ='Data Entry'!M161 -> 0 | C167: 0.0006538282373 | D167: 0.009738824224 | E167: 0.0161248095 | F167: 0.03861415522 | G167: 0.04299500391 | H167: 0.0006538282373 | I167: 0.009738824224 | J167: 0.0161248095 | K167: 0.03861415522 | L167: 0.04299500391
A168: 159 | B168: ='Data Entry'!M162 -> 0 | C168: 0.0006535644034 | D168: 0.009741972104 | E168: 0.01612846361 | F168: 0.03862287122 | G168: 0.04300091601 | H168: 0.0006535644034 | I168: 0.009741972104 | J168: 0.01612846361 | K168: 0.03862287122 | L168: 0.04300091601
A169: 160 | B169: ='Data Entry'!M163 -> 0 | C169: 0.0006533038673 | D169: 0.009745080636 | E169: 0.01613207204 | F169: 0.03863147828 | G169: 0.04300675421 | H169: 0.0006533038673 | I169: 0.009745080636 | J169: 0.01613207204 | K169: 0.03863147828 | L169: 0.04300675421
A170: 161 | B170: ='Data Entry'!M164 -> 0 | C170: 0.0006530465678 | D170: 0.009748150553 | E170: 0.01613563565 | F170: 0.03863997841 | G170: 0.04301251988 | H170: 0.0006530465678 | I170: 0.009748150553 | J170: 0.01613563565 | K170: 0.03863997841 | L170: 0.04301251988
A171: 162 | B171: ='Data Entry'!M165 -> 0 | C171: 0.0006527924448 | D171: 0.00975118257 | E171: 0.01613915526 | F171: 0.03864837361 | G171: 0.04301821437 | H171: 0.0006527924448 | I171: 0.00975118257 | J171: 0.01613915526 | K171: 0.03864837361 | L171: 0.04301821437
A172: 163 | B172: ='Data Entry'!M166 -> 0 | C172: 0.0006525414399 | D172: 0.009754177384 | E172: 0.01614263169 | F172: 0.03865666579 | G172: 0.04302383899 | H172: 0.0006525414399 | I172: 0.009754177384 | J172: 0.01614263169 | K172: 0.03865666579 | L172: 0.04302383899
A173: 164 | B173: ='Data Entry'!M167 -> 0 | C173: 0.000652293496 | D173: 0.009757135676 | E173: 0.01614606572 | F173: 0.03866485686 | G173: 0.04302939502 | H173: 0.000652293496 | I173: 0.009757135676 | J173: 0.01614606572 | K173: 0.03866485686 | L173: 0.04302939502
A174: 165 | B174: ='Data Entry'!M168 -> 0 | C174: 0.0006520485574 | D174: 0.00976005811 | E174: 0.01614945813 | F174: 0.03867294863 | G174: 0.0430348837 | H174: 0.0006520485574 | I174: 0.00976005811 | J174: 0.01614945813 | K174: 0.03867294863 | L174: 0.0430348837
A175: 166 | B175: ='Data Entry'!M169 -> 0 | C175: 0.00065180657 | D175: 0.009762945334 | E175: 0.01615280966 | F175: 0.03868094292 | G175: 0.04304030625 | H175: 0.00065180657 | I175: 0.009762945334 | J175: 0.01615280966 | K175: 0.03868094292 | L175: 0.04304030625
A176: 167 | B176: ='Data Entry'!M170 -> 0 | C176: 0.0006515674806 | D176: 0.00976579798 | E176: 0.01615612106 | F176: 0.03868884146 | G176: 0.04304566386 | H176: 0.0006515674806 | I176: 0.00976579798 | J176: 0.01615612106 | K176: 0.03868884146 | L176: 0.04304566386
A177: 168 | B177: ='Data Entry'!M171 -> 0 | C177: 0.0006513312375 | D177: 0.009768616666 | E177: 0.01615939303 | F177: 0.03869664598 | G177: 0.04305095769 | H177: 0.0006513312375 | I177: 0.009768616666 | J177: 0.01615939303 | K177: 0.03869664598 | L177: 0.04305095769
A178: 169 | B178: ='Data Entry'!M172 -> 0 | C178: 0.0006510977902 | D178: 0.009771401995 | E178: 0.01616262629 | F178: 0.03870435813 | G178: 0.04305618888 | H178: 0.0006510977902 | I178: 0.009771401995 | J178: 0.01616262629 | K178: 0.03870435813 | L178: 0.04305618888
A179: 170 | B179: ='Data Entry'!M173 -> 0 | C179: 0.0006508670893 | D179: 0.009774154555 | E179: 0.0161658215 | F179: 0.03871197956 | G179: 0.04306135851 | H179: 0.0006508670893 | I179: 0.009774154555 | J179: 0.0161658215 | K179: 0.03871197956 | L179: 0.04306135851
A180: 171 | B180: ='Data Entry'!M174 -> 0 | C180: 0.0006506390867 | D180: 0.009776874922 | E180: 0.01616897935 | F180: 0.03871951184 | G180: 0.04306646769 | H180: 0.0006506390867 | I180: 0.009776874922 | J180: 0.01616897935 | K180: 0.03871951184 | L180: 0.04306646769
A181: 172 | B181: ='Data Entry'!M175 -> 0 | C181: 0.0006504137353 | D181: 0.009779563656 | E181: 0.01617210047 | F181: 0.03872695654 | G181: 0.04307151746 | H181: 0.0006504137353 | I181: 0.009779563656 | J181: 0.01617210047 | K181: 0.03872695654 | L181: 0.04307151746
A182: 173 | B182: ='Data Entry'!M176 -> 0 | C182: 0.0006501909891 | D182: 0.009782221307 | E182: 0.01617518552 | F182: 0.03873431517 | G182: 0.04307650884 | H182: 0.0006501909891 | I182: 0.009782221307 | J182: 0.01617518552 | K182: 0.03873431517 | L182: 0.04307650884
A183: 174 | B183: ='Data Entry'!M177 -> 0 | C183: 0.0006499708031 | D183: 0.00978484841 | E183: 0.0161782351 | F183: 0.03874158922 | G183: 0.04308144286 | H183: 0.0006499708031 | I183: 0.00978484841 | J183: 0.0161782351 | K183: 0.03874158922 | L183: 0.04308144286
A184: 175 | B184: ='Data Entry'!M178 -> 0 | C184: 0.0006497531336 | D184: 0.009787445489 | E184: 0.01618124983 | F184: 0.03874878014 | G184: 0.04308632048 | H184: 0.0006497531336 | I184: 0.009787445489 | J184: 0.01618124983 | K184: 0.03874878014 | L184: 0.04308632048
A185: 176 | B185: ='Data Entry'!M179 -> 0 | C185: 0.0006495379377 | D185: 0.009790013056 | E185: 0.0161842303 | F185: 0.03875588934 | G185: 0.04309114268 | H185: 0.0006495379377 | I185: 0.009790013056 | J185: 0.0161842303 | K185: 0.03875588934 | L185: 0.04309114268
A186: 177 | B186: ='Data Entry'!M180 -> 0 | C186: 0.0006493251733 | D186: 0.009792551611 | E186: 0.0161871771 | F186: 0.03876291822 | G186: 0.04309591039 | H186: 0.0006493251733 | I186: 0.009792551611 | J186: 0.0161871771 | K186: 0.03876291822 | L186: 0.04309591039
A187: 178 | B187: ='Data Entry'!M181 -> 0 | C187: 0.0006491147995 | D187: 0.009795061643 | E187: 0.01619009078 | F187: 0.03876986812 | G187: 0.04310062453 | H187: 0.0006491147995 | I187: 0.009795061643 | J187: 0.01619009078 | K187: 0.03876986812 | L187: 0.04310062453
A188: 179 | B188: ='Data Entry'!M182 -> 0 | C188: 0.0006489067763 | D188: 0.009797543629 | E188: 0.01619297191 | F188: 0.03877674036 | G188: 0.043105286 | H188: 0.0006489067763 | I188: 0.009797543629 | J188: 0.01619297191 | K188: 0.03877674036 | L188: 0.043105286
A189: 180 | B189: ='Data Entry'!M183 -> 0 | C189: 0.0006487010644 | D189: 0.009799998038 | E189: 0.01619582103 | F189: 0.03878353625 | G189: 0.04310989568 | H189: 0.0006487010644 | I189: 0.009799998038 | J189: 0.01619582103 | K189: 0.03878353625 | L189: 0.04310989568
A190: 181 | B190: ='Data Entry'!M184 -> 0 | C190: 0.0006484976256 | D190: 0.009802425327 | E190: 0.01619863866 | F190: 0.03879025704 | G190: 0.04311445442 | H190: 0.0006484976256 | I190: 0.009802425327 | J190: 0.01619863866 | K190: 0.03879025704 | L190: 0.04311445442
A191: 182 | B191: ='Data Entry'!M185 -> 0 | C191: 0.0006482964224 | D191: 0.009804825942 | E191: 0.01620142533 | F191: 0.03879690398 | G191: 0.04311896306 | H191: 0.0006482964224 | I191: 0.009804825942 | J191: 0.01620142533 | K191: 0.03879690398 | L191: 0.04311896306
A192: 183 | B192: ='Data Entry'!M186 -> 0 | C192: 0.0006480974181 | D192: 0.009807200321 | E192: 0.01620418155 | F192: 0.03880347828 | G192: 0.04312342243 | H192: 0.0006480974181 | I192: 0.009807200321 | J192: 0.01620418155 | K192: 0.03880347828 | L192: 0.04312342243
A193: 184 | B193: ='Data Entry'!M187 -> 0 | C193: 0.0006479005769 | D193: 0.009809548891 | E193: 0.01620690781 | F193: 0.03880998111 | G193: 0.04312783332 | H193: 0.0006479005769 | I193: 0.009809548891 | J193: 0.01620690781 | K193: 0.03880998111 | L193: 0.04312783332
A194: 185 | B194: ='Data Entry'!M188 -> 0 | C194: 0.0006477058638 | D194: 0.009811872071 | E194: 0.01620960459 | F194: 0.03881641365 | G194: 0.04313219654 | H194: 0.0006477058638 | I194: 0.009811872071 | J194: 0.01620960459 | K194: 0.03881641365 | L194: 0.04313219654
A195: 186 | B195: ='Data Entry'!M189 -> 0 | C195: 0.0006475132443 | D195: 0.009814170271 | E195: 0.01621227238 | F195: 0.03882277701 | G195: 0.04313651283 | H195: 0.0006475132443 | I195: 0.009814170271 | J195: 0.01621227238 | K195: 0.03882277701 | L195: 0.04313651283
A196: 187 | B196: ='Data Entry'!M190 -> 0 | C196: 0.0006473226849 | D196: 0.009816443891 | E196: 0.01621491163 | F196: 0.03882907232 | G196: 0.04314078296 | H196: 0.0006473226849 | I196: 0.009816443891 | J196: 0.01621491163 | K196: 0.03882907232 | L196: 0.04314078296
A197: 188 | B197: ='Data Entry'!M191 -> 0 | C197: 0.0006471341528 | D197: 0.009818693324 | E197: 0.01621752281 | F197: 0.03883530066 | G197: 0.04314500767 | H197: 0.0006471341528 | I197: 0.009818693324 | J197: 0.01621752281 | K197: 0.03883530066 | L197: 0.04314500767
A198: 189 | B198: ='Data Entry'!M192 -> 0 | C198: 0.0006469476157 | D198: 0.009820918954 | E198: 0.01622010635 | F198: 0.03884146309 | G198: 0.04314918767 | H198: 0.0006469476157 | I198: 0.009820918954 | J198: 0.01622010635 | K198: 0.03884146309 | L198: 0.04314918767
A199: 190 | B199: ='Data Entry'!M193 -> 0 | C199: 0.0006467630421 | D199: 0.009823121155 | E199: 0.0162226627 | F199: 0.03884756066 | G199: 0.04315332366 | H199: 0.0006467630421 | I199: 0.009823121155 | J199: 0.0162226627 | K199: 0.03884756066 | L199: 0.04315332366
A200: 191 | B200: ='Data Entry'!M194 -> 0 | C200: 0.0006465804013 | D200: 0.009825300297 | E200: 0.01622519229 | F200: 0.03885359437 | G200: 0.04315741635 | H200: 0.0006465804013 | I200: 0.009825300297 | J200: 0.01622519229 | K200: 0.03885359437 | L200: 0.04315741635
A201: 192 | B201: ='Data Entry'!M195 -> 0 | C201: 0.0006463996629 | D201: 0.009827456739 | E201: 0.01622769552 | F201: 0.03885956523 | G201: 0.04316146641 | H201: 0.0006463996629 | I201: 0.009827456739 | J201: 0.01622769552 | K201: 0.03885956523 | L201: 0.04316146641
... 168 more rows

Sheet AAA Yield Curve
D1: Bond Name | E1: Next Coupon Date | F1: Maturity | G1: Cpn Payment Freq | H1: Clean Price | I1: AI | J1: Coupon Rate | K1: Cash Price | L1: Yield to Maturity | M1: Macauley Duration | N1: Duration | O1: Inverse of Macauley Duration | P1: Weights for Optimization
A2: Parameters | C2: 1 | D2: ='Data Entry'!B4 -> EI450522 Corp | E2: ='Data Entry'!C4 -> 11/4/2019 | F2: ='Data Entry'!D4 -> 11/4/2023 | G2: ='Data Entry'!E4 -> 1 | H2: ='Data Entry'!F4 -> 117.1005 | I2: ='Data Entry'!G4 -> 2.400109589 | J2: ='Data Entry'!H4/100 -> 0.0362 | K2: ='Data Entry'!I4 -> 119.5006096 | L2: =MAX(YIELD(B$3,F2,J2,H2,100,G2,0),0) -> 0 | M2: =MDURATION(B$3,F2,J2,L2,G2,0) -> 4.03236899 | N2: =DURATION(B$3,F2,J2,L2,G2,0) -> 4.03236899 | O2: =1/M2 -> 0.2479931778 | P2: =O2/$O$33 -> 0.01030485106
A3: Current Day t=0 | B3: =Instructions!D35 -> 2019-07-02 | C3: =C2+1 -> 2 | D3: ='Data Entry'!B5 -> EI940328 Corp | E3: ='Data Entry'!C5 -> 9/27/2019 | F3: ='Data Entry'!D5 -> 3/29/2021 | G3: ='Data Entry'!E5 -> 4 | H3: ='Data Entry'!F5 -> 100.971 | I3: ='Data Entry'!G5 -> 0.007291666667 | J3: ='Data Entry'!H5/100 -> 0.00375 | K3: ='Data Entry'!I5 -> 100.9782917 | L3: =MAX(YIELD(B$3,F3,J3,H3,100,G3,0),0) -> 0 | M3: =MDURATION(B$3,F3,J3,L3,G3,0) -> 1.736776881 | N3: =DURATION(B$3,F3,J3,L3,G3,0) -> 1.736776881 | O3: =1/M3 -> 0.5757791982 | P3: =O3/$O$33 -> 0.02392533106
A4: Nelson Siegel Parameters | C4: 3
A5: b0 | B5: 0.0006118786408 | C5: 4 | D5: ='Data Entry'!B7 -> EJ847779 Corp | E5: ='Data Entry'!C7 -> 9/30/2019 | F5: ='Data Entry'!D7 -> 9/30/2031 | G5: ='Data Entry'!E7 -> 4 | H5: ='Data Entry'!F7 -> 104.087 | I5: ='Data Entry'!G7 -> 0.005116666667 | J5: ='Data Entry'!H7/100 -> 0.00307 | K5: ='Data Entry'!I7 -> 104.0921167 | L5: 0 | M5: =MDURATION(B$3,F5,J5,L5,G5,0) -> 12.02697782 | N5: =DURATION(B$3,F5,J5,L5,G5,0) -> 12.02697782 | O5: =1/M5 -> 0.0831464076 | P5: 0.003454979503
A6: b1 | B6: -0.01034331861 | C6: 5 | D6: ='Data Entry'!B8 -> EH090036 Corp | E6: ='Data Entry'!C8 -> 7/15/2019 | F6: ='Data Entry'!D8 -> 7/15/2019 | G6: ='Data Entry'!E8 -> 4 | H6: ='Data Entry'!F8 -> 99.969 | I6: ='Data Entry'!G8 -> 0 | J6: ='Data Entry'!H8/100 -> 0 | K6: ='Data Entry'!I8 -> 99.969 | L6: 0.008587277441 | M6: 0.03603375315 | N6: 0.03611111111
A7: b2 | B7: -0.09821982764 | C7: 6
A8: b3 | B8: 0.1118771644 | C8: 7 | D8: ='Data Entry'!B10 -> EH839339 Corp | E8: ='Data Entry'!C10 -> 1/1/2020 | F8: ='Data Entry'!D10 -> 1/1/2020 | G8: ='Data Entry'!E10 -> 1 | H8: ='Data Entry'!F10 -> 102.7275 | I8: ='Data Entry'!G10 -> 2.520547945 | J8: ='Data Entry'!H10/100 -> 0.05 | K8: ='Data Entry'!I10 -> 105.2480479 | L8: 0 | M8: 0.4972222222 | N8: 0.4972222222 | O8: 2.011173184 | P8: =O8/$O$33 -> 0.08357020262
A9: tau | B9: 2 | C9: 8 | D9: ='Data Entry'!B11 -> EJ356270 Corp
A10: rho | B10: 2 | C10: 9 | D10: ='Data Entry'!B12 -> EJ882882 Corp | E10: ='Data Entry'!C12 -> 10/17/2019 | F10: ='Data Entry'!D12 -> 10/17/2028 | G10: ='Data Entry'!E12 -> 1 | H10: ='Data Entry'!F12 -> 123.9615 | I10: ='Data Entry'!G12 -> 2.099232877 | J10: ='Data Entry'!H12/100 -> 0.02947 | K10: ='Data Entry'!I12 -> 126.0607329 | L10: 0.003247834135 | M10: 8.222886195 | N10: 8.249592765 | O10: 0.1216118011 | P10: 0.00505333053
C11: 10 | D11: ='Data Entry'!B13 -> EG140359 Corp | E11: ='Data Entry'!C13 -> 4/2/2020 | F11: ='Data Entry'!D13 -> 4/28/2027 | G11: ='Data Entry'!E13 -> 1 | H11: ='Data Entry'!F13 -> 132.7575 | I11: ='Data Entry'!G13 -> 1.130054645 | J11: ='Data Entry'!H13/100 -> 0.044 | K11: ='Data Entry'!I13 -> 133.8875546 | L11: 0.001790371818 | M11: 6.891952418 | N11: 6.904291576 | O11: 0.1450967649 | P11: 0.006029200339
C12: 11
C13: 12 | D13: ='Data Entry'!B15 -> EG630073 Corp
B14: 0.007482076291 | C14: 13
B15: -0.01166111242 | C15: 14 | D15: ='Data Entry'!B17 -> EG140359 Corp | E15: ='Data Entry'!C17 -> 4/2/2020 | F15: ='Data Entry'!D17 -> 4/28/2027 | G15: ='Data Entry'!E17 -> 1 | H15: ='Data Entry'!F17 -> 132.7575 | I15: ='Data Entry'!G17 -> 1.130054645 | J15: ='Data Entry'!H17/100 -> 0.044 | K15: ='Data Entry'!I17 -> 133.8875546 | L15: 0.001790371818 | M15: 6.891952418 | N15: 6.904291576 | O15: 0.1450967649 | P15: 0.006029200339
B16: -0.00199513967 | C16: 15
B17: -0.001995135534 | C17: 16
B18: 2 | C18: 17
B19: 2 | C19: 18
C20: 19
B21: 0.001 | C21: 20 | D21: ='Data Entry'!B23 -> EI916617 Corp | E21: ='Data Entry'!C23 -> 1/24/2020 | F21: ='Data Entry'!D23 -> 1/24/2024 | G21: ='Data Entry'!E23 -> 1 | H21: ='Data Entry'!F23 -> 119.517 | I21: ='Data Entry'!G23 -> 1.819520548 | J21: ='Data Entry'!H23/100 -> 0.04125 | K21: ='Data Entry'!I23 -> 121.3365205 | L21: 0 | M21: 4.219142199 | N21: 4.219142199 | O21: 0.2370150028 | P21: 0.009848675369
B22: -0.02438760263 | C22: 21 | D22: ='Data Entry'!B24 -> EJ847779 Corp | E22: ='Data Entry'!C24 -> 9/30/2019 | F22: ='Data Entry'!D24 -> 9/30/2031 | G22: ='Data Entry'!E24 -> 4 | H22: ='Data Entry'!F24 -> 104.087 | I22: ='Data Entry'!G24 -> 0.005116666667 | J22: ='Data Entry'!H24/100 -> 0.00307 | K22: ='Data Entry'!I24 -> 104.0921167 | L22: 0 | M22: =MDURATION(B$3,F22,J22,L22,G22,0) -> 12.02697782 | N22: =DURATION(B$3,F22,J22,L22,G22,0) -> 12.02697782 | O22: =1/M22 -> 0.0831464076 | P22: =O22/$O$33 -> 0.003454979503
B23: -0.07872901762 | C23: 22 | D23: ='Data Entry'!B25 -> EJ280225 Corp | E23: ='Data Entry'!C25 -> 7/20/2019 | F23: ='Data Entry'!D25 -> 7/20/2019 | G23: ='Data Entry'!E25 -> 1 | H23: ='Data Entry'!F25 -> 100.127 | I23: ='Data Entry'!G25 -> 2.390410959 | J23: ='Data Entry'!H25/100 -> 0.025 | K23: ='Data Entry'!I25 -> 102.517411 | L23: 0 | M23: =MDURATION(B$3,F23,J23,L23,G23,0) -> 0.05 | N23: =DURATION(B$3,F23,J23,L23,G23,0) -> 0.05 | O23: =1/M23 -> 20 | P23: =O23/$O$33 -> 0.8310592371
A24: 0.009460992116 | B24: 0.1339026975 | C24: 23 | D24: ='Data Entry'!B26 -> EI936540 Corp | E24: ='Data Entry'!C26 -> 12/30/2019 | F24: ='Data Entry'!D26 -> 12/30/2026 | G24: ='Data Entry'!E26 -> 2 | H24: ='Data Entry'!F26 -> 102.9735 | I24: ='Data Entry'!G26 -> 0 | J24: ='Data Entry'!H26/100 -> 0 | K24: ='Data Entry'!I26 -> 102.9735 | L24: 0 | M24: 7.494444444 | N24: 7.494444444 | O24: 0.133432172 | P24: 0.005544501953
A25: -0.02274231375 | C25: 24
A26: 0.846805739 | C26: 25 | D26: ='Data Entry'!B28 -> EF164254 Corp | E26: ='Data Entry'!C28 -> 12/9/2019 | F26: ='Data Entry'!D28 -> 12/9/2025 | G26: ='Data Entry'!E28 -> 1 | H26: ='Data Entry'!F28 -> 103.95 | I26: ='Data Entry'!G28 -> 0.48035 | J26: ='Data Entry'!H28/100 -> 0.00847 | K26: ='Data Entry'!I28 -> 104.43035 | L26: 0.00228024243 | M26: 6.252338594 | N26: 6.266595442 | O26: 0.1599401544 | P26: 0.006645987134
A27: -0.8500427873 | C27: 26
A28: 0.2683479991 | C28: 27 | D28: ='Data Entry'!B30 -> EJ676146 Corp | E28: ='Data Entry'!C30 -> 5/22/2020 | F28: ='Data Entry'!D30 -> 5/22/2028 | G28: ='Data Entry'!E30 -> 1 | H28: ='Data Entry'!F30 -> 118.255 | I28: ='Data Entry'!G30 -> 0.2690437158 | J28: ='Data Entry'!H30/100 -> 0.0229 | K28: ='Data Entry'!I30 -> 118.5240437 | L28: 0.002144478591 | M28: 8.180484283 | N28: 8.198027157 | O28: 0.1222421516 | P28: 0.005079523463
A29: 0.286035528 | C29: 28
C30: 29
C31: 30 | D31: ='Data Entry'!B33 -> EJ101156 Corp
C32: 31
N33: Sum | O33: =SUM(O2:O32) -> 24.06567319
A35: Payment Dates | B35: =IF(E2=0,F2,E2) -> 11/4/2019 | C35: =B35+IF($G2=1,365,0)+IF($G2=2,182.5,0)+IF($G2=4,91.25,0) -> 2020-11-03 | D35: =C35+IF($G2=1,365,0)+IF($G2=2,182.5,0)+IF($G2=4,91.25,0) -> 2021-11-03 | E35: 2022-11-03 | F35: 2023-11-03 | G35: 2024-11-02 | H35: 2025-11-02 | I35: 2026-11-02 | J35: 2027-11-02 | K35: 2028-11-01 | L35: 2029-11-01 | M35: 2030-11-01 | N35: 2031-11-01 | O35: 2032-10-31 | P35: 2033-10-31 | Q35: 2034-10-31 | R35: 2035-10-31 | S35: 2036-10-30 | T35: 2037-10-30 | U35: 2038-10-30 | V35: 2039-10-30 | W35: 2040-10-29 | X35: 2041-10-29 | Y35: 2042-10-29 | Z35: 2043-10-29 | AA35: 2044-10-28 | AB35: 2045-10-28 | AC35: 2046-10-28 | AD35: 2047-10-28 | AE35: 2048-10-27 | AF35: 2049-10-27 | AG35: 2050-10-27 | AH35: 2051-10-27 | AI35: 2052-10-26 | AJ35: 2053-10-26 | AK35: 2054-10-26 | AL35: 2055-10-26 | AM35: 2056-10-25 | AN35: 2057-10-25 | AO35: 2058-10-25 | AP35: 2059-10-25 | AQ35: 2060-10-24 | AR35: 2061-10-24 | AS35: 2062-10-24 | AT35: 2063-10-24 | AU35: 2064-10-23 | AV35: 2065-10-23 | AW35: 2066-10-23 | AX35: 2067-10-23 | AY35: 2068-10-22 | AZ35: 2069-10-22 | BA35: 2070-10-22 | BB35: 2071-10-22 | BC35: 2072-10-21 | BD35: 2073-10-21 | BE35: 2074-10-21 | BF35: 2075-10-21 | BG35: 2076-10-20 | BH35: 2077-10-20 | BI35: 2078-10-20 | BJ35: 2079-10-20 | BK35: 2080-10-19 | BL35: 2081-10-19 | BM35: 2082-10-19 | BN35: 2083-10-19 | BO35: 2084-10-18 | BP35: =BO35+IF($G2=1,365,0)+IF($G2=2,182.5,0)+IF($G2=4,91.25,0) -> 2085-10-18 | BQ35: 2086-10-18 | BR35: 2087-10-18 | BS35: 2088-10-17 | BT35: 2089-10-17 | BU35: 2090-10-17 | BV35: 2091-10-17 | BW35: 2092-10-16 | BX35: 2093-10-16 | BY35: 2094-10-16 | BZ35: 2095-10-16 | CA35: 2096-10-15 | CB35: 2097-10-15 | CC35: 2098-10-15 | CD35: 2099-10-15 | CE35: 2100-10-15 | CF35: 2101-10-15 | CG35: 2102-10-15 | CH35: 2103-10-15 | CI35: 2104-10-14 | CJ35: 2105-10-14 | CK35: 2106-10-14 | CL35: 2107-10-14 | CM35: 2108-10-13 | CN35: 2109-10-13 | CO35: 2110-10-13 | CP35: 2111-10-13 | CQ35: 2112-10-12 | CR35: 2113-10-12 | CS35: 2114-10-12 | CT35: 2115-10-12 | CU35: 2116-10-11 | CV35: 2117-10-11 | CW35: 2118-10-11 | CX35: 2119-10-11 | CY35: 2120-10-10 | CZ35: 2121-10-10 | DA35: 2122-10-10 | DB35: 2123-10-10 | DC35: 2124-10-09 | DD35: 2125-10-09 | DE35: 2126-10-09 | DF35: 2127-10-09 | DG35: 2128-10-08 | DH35: 2129-10-08 | DI35: 2130-10-08 | DJ35: 2131-10-08 | DK35: 2132-10-07 | DL35: 2133-10-07 | DM35: 2134-10-07 | DN35: 2135-10-07 | DO35: 2136-10-06 | DP35: 2137-10-06 | DQ35: 2138-10-06 | DR35: 2139-10-06 | DS35: 2140-10-05 | DT35: 2141-10-05 | DU35: 2142-10-05 | DV35: 2143-10-05 | DW35: 2144-10-04 | DX35: 2145-10-04 | DY35: 2146-10-04 | DZ35: 2147-10-04 | EA35: 2148-10-03 | EB35: =EA35+IF($G2=1,365,0)+IF($G2=2,182.5,0)+IF($G2=4,91.25,0) -> 2149-10-03 | EC35: 2150-10-03 | ED35: 2151-10-03 | EE35: 2152-10-02 | EF35: 2153-10-02 | EG35: 2154-10-02 | EH35: 2155-10-02 | EI35: 2156-10-01 | EJ35: 2157-10-01 | EK35: 2158-10-01 | EL35: 2159-10-01 | EM35: 2160-09-30 | EN35: 2161-09-30 | EO35: 2162-09-30 | EP35: 2163-09-30 | EQ35: 2164-09-29 | ER35: 2165-09-29 | ES35: 2166-09-29 | ET35: 2167-09-29 | EU35: 2168-09-28 | EV35: 2169-09-28 | EW35: 2170-09-28 | EX35: 2171-09-28 | EY35: 2172-09-27 | EZ35: 2173-09-27 | FA35: 2174-09-27 | FB35: 2175-09-27 | FC35: 2176-09-26 | FD35: 2177-09-26 | FE35: 2178-09-26 | FF35: 2179-09-26 | FG35: 2180-09-25 | FH35: 2181-09-25 | FI35: 2182-09-25 | FJ35: 2183-09-25 | FK35: 2184-09-24 | FL35: 2185-09-24 | FM35: 2186-09-24 | FN35: 2187-09-24 | FO35: 2188-09-23 | FP35: 2189-09-23 | FQ35: 2190-09-23 | FR35: 2191-09-23 | FS35: 2192-09-22 | FT35: 2193-09-22 | FU35: 2194-09-22 | FV35: 2195-09-22 | FW35: 2196-09-21 | FX35: 2197-09-21 | FY35: 2198-09-21 | FZ35: 2199-09-21 | GA35: 2200-09-21 | GB35: 2201-09-21 | GC35: 2202-09-21 | GD35: 2203-09-21 | GE35: 2204-09-20 | GF35: 2205-09-20 | GG35: 2206-09-20 | GH35: 2207-09-20 | GI35: 2208-09-19 | GJ35: 2209-09-19 | GK35: 2210-09-19 | GL35: 2211-09-19 | GM35: 2212-09-18 | GN35: =GM35+IF($G2=1,365,0)+IF($G2=2,182.5,0)+IF($G2=4,91.25,0) -> 2213-09-18 | GO35: 2214-09-18 | GP35: 2215-09-18 | GQ35: 2216-09-17 | GR35: 2217-09-17 | GS35: 2218-09-17
A36: Bond 1 | B36: =(IF(B35=F2,100,0)+IF(G2=1,1,0)*J2*100+IF(G2=2,0.5,0)*J2*100+IF(G2=4,0.25,0)*J2*100)*IF(ISBLANK(F2)=TRUE,0,1) -> 3.62 | C36: =IF(C35>$F2+1,0,1)*(IF(D36=0,100,0)+IF($G2=1,1,0)*$J2*100+IF($G2=2,0.5,0)*$J2*100+IF($G2=4,0.25,0)*$J2*100) -> 3.62 | D36: =IF(D35>$F2+1,0,1)*(IF(E36=0,100,0)+IF($G2=1,1,0)*$J2*100+IF($G2=2,0.5,0)*$J2*100+IF($G2=4,0.25,0)*$J2*100) -> 3.62 | E36: 3.62 | F36: 103.62 | G36: 0 | H36: 0 | I36: 0 | J36: 0 | K36: 0 | L36: 0 | M36: 0 | N36: 0 | O36: 0 | P36: 0 | Q36: 0 | R36: 0 | S36: 0 | T36: 0 | U36: 0 | V36: 0 | W36: 0 | X36: 0 | Y36: 0 | Z36: 0 | AA36: 0 | AB36: 0 | AC36: 0 | AD36: 0 | AE36: 0 | AF36: 0 | AG36: 0 | AH36: 0 | AI36: 0 | AJ36: 0 | AK36: 0 | AL36: 0 | AM36: 0 | AN36: 0 | AO36: 0 | AP36: 0 | AQ36: 0 | AR36: 0 | AS36: 0 | AT36: 0 | AU36: 0 | AV36: 0 | AW36: 0 | AX36: 0 | AY36: 0 | AZ36: 0 | BA36: 0 | BB36: 0 | BC36: 0 | BD36: 0 | BE36: 0 | BF36: 0 | BG36: 0 | BH36: 0 | BI36: 0 | BJ36: 0 | BK36: 0 | BL36: 0 | BM36: 0 | BN36: 0 | BO36: 0 | BP36: =IF(BP35>$F2+1,0,1)*(IF(BQ36=0,100,0)+IF($G2=1,1,0)*$J2*100+IF($G2=2,0.5,0)*$J2*100+IF($G2=4,0.25,0)*$J2*100) -> 0 | BQ36: 0 | BR36: 0 | BS36: 0 | BT36: 0 | BU36: 0 | BV36: 0 | BW36: 0 | BX36: 0 | BY36: 0 | BZ36: 0 | CA36: 0 | CB36: 0 | CC36: 0 | CD36: 0 | CE36: 0 | CF36: 0 | CG36: 0 | CH36: 0 | CI36: 0 | CJ36: 0 | CK36: 0 | CL36: 0 | CM36: 0 | CN36: 0 | CO36: 0 | CP36: 0 | CQ36: 0 | CR36: 0 | CS36: 0 | CT36: 0 | CU36: 0 | CV36: 0 | CW36: 0 | CX36: 0 | CY36: 0 | CZ36: 0 | DA36: 0 | DB36: 0 | DC36: 0 | DD36: 0 | DE36: 0 | DF36: 0 | DG36: 0 | DH36: 0 | DI36: 0 | DJ36: 0 | DK36: 0 | DL36: 0 | DM36: 0 | DN36: 0 | DO36: 0 | DP36: 0 | DQ36: 0 | DR36: 0 | DS36: 0 | DT36: 0 | DU36: 0 | DV36: 0 | DW36: 0 | DX36: 0 | DY36: 0 | DZ36: 0 | EA36: 0 | EB36: =IF(EB35>$F2+1,0,1)*(IF(EC36=0,100,0)+IF($G2=1,1,0)*$J2*100+IF($G2=2,0.5,0)*$J2*100+IF($G2=4,0.25,0)*$J2*100) -> 0 | EC36: 0 | ED36: 0 | EE36: 0 | EF36: 0 | EG36: 0 | EH36: 0 | EI36: 0 | EJ36: 0 | EK36: 0 | EL36: 0 | EM36: 0 | EN36: 0 | EO36: 0 | EP36: 0 | EQ36: 0 | ER36: 0 | ES36: 0 | ET36: 0 | EU36: 0 | EV36: 0 | EW36: 0 | EX36: 0 | EY36: 0 | EZ36: 0 | FA36: 0 | FB36: 0 | FC36: 0 | FD36: 0 | FE36: 0 | FF36: 0 | FG36: 0 | FH36: 0 | FI36: 0 | FJ36: 0 | FK36: 0 | FL36: 0 | FM36: 0 | FN36: 0 | FO36: 0 | FP36: 0 | FQ36: 0 | FR36: 0 | FS36: 0 | FT36: 0 | FU36: 0 | FV36: 0 | FW36: 0 | FX36: 0 | FY36: 0 | FZ36: 0 | GA36: 0 | GB36: 0 | GC36: 0 | GD36: 0 | GE36: 0 | GF36: 0 | GG36: 0 | GH36: 0 | GI36: 0 | GJ36: 0 | GK36: 0 | GL36: 0 | GM36: 0 | GN36: =IF(GN35>$F2+1,0,1)*(IF(GO36=0,100,0)+IF($G2=1,1,0)*$J2*100+IF($G2=2,0.5,0)*$J2*100+IF($G2=4,0.25,0)*$J2*100) -> 0 | GO36: 0 | GP36: 0 | GQ36: 0 | GR36: 0 | GS36: 0
A37: Payment Dates | B37: =IF(E3=0,F3,E3) -> 9/27/2019 | C37: =B37+IF($G3=1,365,0)+IF($G3=2,182.5,0)+IF($G3=4,91.25,0) -> 2019-12-27T06:00:00 | D37: =C37+IF($G3=1,365,0)+IF($G3=2,182.5,0)+IF($G3=4,91.25,0) -> 2020-03-27T12:00:00 | E37: 2020-06-26T18:00:00 | F37: 2020-09-26 | G37: 2020-12-26T06:00:00 | H37: 2021-03-27T12:00:00 | I37: 2021-06-26T18:00:00 | J37: 2021-09-26 | K37: 2021-12-26T06:00:00 | L37: 2022-03-27T12:00:00 | M37: 2022-06-26T18:00:00 | N37: 2022-09-26 | O37: 2022-12-26T06:00:00 | P37: 2023-03-27T12:00:00 | Q37: 2023-06-26T18:00:00 | R37: 2023-09-26 | S37: 2023-12-26T06:00:00 | T37: 2024-03-26T12:00:00 | U37: 2024-06-25T18:00:00 | V37: 2024-09-25 | W37: 2024-12-25T06:00:00 | X37: 2025-03-26T12:00:00 | Y37: 2025-06-25T18:00:00 | Z37: 2025-09-25 | AA37: 2025-12-25T06:00:00 | AB37: 2026-03-26T12:00:00 | AC37: 2026-06-25T18:00:00 | AD37: 2026-09-25 | AE37: 2026-12-25T06:00:00 | AF37: 2027-03-26T12:00:00 | AG37: 2027-06-25T18:00:00 | AH37: 2027-09-25 | AI37: 2027-12-25T06:00:00 | AJ37: 2028-03-25T12:00:00 | AK37: 2028-06-24T18:00:00 | AL37: 2028-09-24 | AM37: 2028-12-24T06:00:00 | AN37: 2029-03-25T12:00:00 | AO37: 2029-06-24T18:00:00 | AP37: 2029-09-24 | AQ37: 2029-12-24T06:00:00 | AR37: 2030-03-25T12:00:00 | AS37: 2030-06-24T18:00:00 | AT37: 2030-09-24 | AU37: 2030-12-24T06:00:00 | AV37: 2031-03-25T12:00:00 | AW37: 2031-06-24T18:00:00 | AX37: 2031-09-24 | AY37: 2031-12-24T06:00:00 | AZ37: 2032-03-24T12:00:00 | BA37: 2032-06-23T18:00:00 | BB37: 2032-09-23 | BC37: 2032-12-23T06:00:00 | BD37: 2033-03-24T12:00:00 | BE37: 2033-06-23T18:00:00 | BF37: 2033-09-23 | BG37: 2033-12-23T06:00:00 | BH37: 2034-03-24T12:00:00 | BI37: 2034-06-23T18:00:00 | BJ37: 2034-09-23 | BK37: 2034-12-23T06:00:00 | BL37: 2035-03-24T12:00:00 | BM37: 2035-06-23T18:00:00 | BN37: 2035-09-23 | BO37: 2035-12-23T06:00:00 | BP37: =BO37+IF($G3=1,365,0)+IF($G3=2,182.5,0)+IF($G3=4,91.25,0) -> 2036-03-23T12:00:00 | BQ37: 2036-06-22T18:00:00 | BR37: 2036-09-22 | BS37: 2036-12-22T06:00:00 | BT37: 2037-03-23T12:00:00 | BU37: 2037-06-22T18:00:00 | BV37: 2037-09-22 | BW37: 2037-12-22T06:00:00 | BX37: 2038-03-23T12:00:00 | BY37: 2038-06-22T18:00:00 | BZ37: 2038-09-22 | CA37: 2038-12-22T06:00:00 | CB37: 2039-03-23T12:00:00 | CC37: 2039-06-22T18:00:00 | CD37: 2039-09-22 | CE37: 2039-12-22T06:00:00 | CF37: 2040-03-22T12:00:00 | CG37: 2040-06-21T18:00:00 | CH37: 2040-09-21 | CI37: 2040-12-21T06:00:00 | CJ37: 2041-03-22T12:00:00 | CK37: 2041-06-21T18:00:00 | CL37: 2041-09-21 | CM37: 2041-12-21T06:00:00 | CN37: 2042-03-22T12:00:00 | CO37: 2042-06-21T18:00:00 | CP37: 2042-09-21 | CQ37: 2042-12-21T06:00:00 | CR37: 2043-03-22T12:00:00 | CS37: 2043-06-21T18:00:00 | CT37: 2043-09-21 | CU37: 2043-12-21T06:00:00 | CV37: 2044-03-21T12:00:00 | CW37: 2044-06-20T18:00:00 | CX37: 2044-09-20 | CY37: 2044-12-20T06:00:00 | CZ37: 2045-03-21T12:00:00 | DA37: 2045-06-20T18:00:00 | DB37: 2045-09-20 | DC37: 2045-12-20T06:00:00 | DD37: 2046-03-21T12:00:00 | DE37: 2046-06-20T18:00:00 | DF37: 2046-09-20 | DG37: 2046-12-20T06:00:00 | DH37: 2047-03-21T12:00:00 | DI37: 2047-06-20T18:00:00 | DJ37: 2047-09-20 | DK37: 2047-12-20T06:00:00 | DL37: 2048-03-20T12:00:00 | DM37: 2048-06-19T18:00:00 | DN37: 2048-09-19 | DO37: 2048-12-19T06:00:00 | DP37: 2049-03-20T12:00:00 | DQ37: 2049-06-19T18:00:00 | DR37: 2049-09-19 | DS37: 2049-12-19T06:00:00 | DT37: 2050-03-20T12:00:00 | DU37: 2050-06-19T18:00:00 | DV37: 2050-09-19 | DW37: 2050-12-19T06:00:00 | DX37: 2051-03-20T12:00:00 | DY37: 2051-06-19T18:00:00 | DZ37: 2051-09-19 | EA37: 2051-12-19T06:00:00 | EB37: =EA37+IF($G3=1,365,0)+IF($G3=2,182.5,0)+IF($G3=4,91.25,0) -> 2052-03-19T12:00:00 | EC37: 2052-06-18T18:00:00 | ED37: 2052-09-18 | EE37: 2052-12-18T06:00:00 | EF37: 2053-03-19T12:00:00 | EG37: 2053-06-18T18:00:00 | EH37: 2053-09-18 | EI37: 2053-12-18T06:00:00 | EJ37: 2054-03-19T12:00:00 | EK37: 2054-06-18T18:00:00 | EL37: 2054-09-18 | EM37: 2054-12-18T06:00:00 | EN37: 2055-03-19T12:00:00 | EO37: 2055-06-18T18:00:00 | EP37: 2055-09-18 | EQ37: 2055-12-18T06:00:00 | ER37: 2056-03-18T12:00:00 | ES37: 2056-06-17T18:00:00 | ET37: 2056-09-17 | EU37: 2056-12-17T06:00:00 | EV37: 2057-03-18T12:00:00 | EW37: 2057-06-17T18:00:00 | EX37: 2057-09-17 | EY37: 2057-12-17T06:00:00 | EZ37: 2058-03-18T12:00:00 | FA37: 2058-06-17T18:00:00 | FB37: 2058-09-17 | FC37: 2058-12-17T06:00:00 | FD37: 2059-03-18T12:00:00 | FE37: 2059-06-17T18:00:00 | FF37: 2059-09-17 | FG37: 2059-12-17T06:00:00 | FH37: 2060-03-17T12:00:00 | FI37: 2060-06-16T18:00:00 | FJ37: 2060-09-16 | FK37: 2060-12-16T06:00:00 | FL37: 2061-03-17T12:00:00 | FM37: 2061-06-16T18:00:00 | FN37: 2061-09-16 | FO37: 2061-12-16T06:00:00 | FP37: 2062-03-17T12:00:00 | FQ37: 2062-06-16T18:00:00 | FR37: 2062-09-16 | FS37: 2062-12-16T06:00:00 | FT37: 2063-03-17T12:00:00 | FU37: 2063-06-16T18:00:00 | FV37: 2063-09-16 | FW37: 2063-12-16T06:00:00 | FX37: 2064-03-16T12:00:00 | FY37: 2064-06-15T18:00:00 | FZ37: 2064-09-15 | GA37: 2064-12-15T06:00:00 | GB37: 2065-03-16T12:00:00 | GC37: 2065-06-15T18:00:00 | GD37: 2065-09-15 | GE37: 2065-12-15T06:00:00 | GF37: 2066-03-16T12:00:00 | GG37: 2066-06-15T18:00:00 | GH37: 2066-09-15 | GI37: 2066-12-15T06:00:00 | GJ37: 2067-03-16T12:00:00 | GK37: 2067-06-15T18:00:00 | GL37: 2067-09-15 | GM37: 2067-12-15T06:00:00 | GN37: =GM37+IF($G3=1,365,0)+IF($G3=2,182.5,0)+IF($G3=4,91.25,0) -> 2068-03-15T12:00:00 | GO37: 2068-06-14T18:00:00 | GP37: 2068-09-14 | GQ37: 2068-12-14T06:00:00 | GR37: 2069-03-15T12:00:00 | GS37: 2069-06-14T18:00:00
A38: Bond 2 | B38: =(IF(B37=F3,100,0)+IF(G3=1,1,0)*J3*100+IF(G3=2,0.5,0)*J3*100+IF(G3=4,0.25,0)*J3*100)*IF(ISBLANK(F3)=TRUE,0,1) -> 0.09375 | C38: =IF(C37>$F3+1,0,1)*(IF(D38=0,100,0)+IF($G3=1,1,0)*$J3*100+IF($G3=2,0.5,0)*$J3*100+IF($G3=4,0.25,0)*$J3*100) -> 0.09375 | D38: =IF(D37>$F3+1,0,1)*(IF(E38=0,100,0)+IF($G3=1,1,0)*$J3*100+IF($G3=2,0.5,0)*$J3*100+IF($G3=4,0.25,0)*$J3*100) -> 0.09375 | E38: 0.09375 | F38: 0.09375 | G38: 0.09375 | H38: 100.09375 | I38: 0 | J38: 0 | K38: 0 | L38: 0 | M38: 0 | N38: 0 | O38: 0 | P38: 0 | Q38: 0 | R38: 0 | S38: 0 | T38: 0 | U38: 0 | V38: 0 | W38: 0 | X38: 0 | Y38: 0 | Z38: 0 | AA38: 0 | AB38: 0 | AC38: 0 | AD38: 0 | AE38: 0 | AF38: 0 | AG38: 0 | AH38: 0 | AI38: 0 | AJ38: 0 | AK38: 0 | AL38: 0 | AM38: 0 | AN38: 0 | AO38: 0 | AP38: 0 | AQ38: 0 | AR38: 0 | AS38: 0 | AT38: 0 | AU38: 0 | AV38: 0 | AW38: 0 | AX38: 0 | AY38: 0 | AZ38: 0 | BA38: 0 | BB38: 0 | BC38: 0 | BD38: 0 | BE38: 0 | BF38: 0 | BG38: 0 | BH38: 0 | BI38: 0 | BJ38: 0 | BK38: 0 | BL38: 0 | BM38: 0 | BN38: 0 | BO38: 0 | BP38: =IF(BP37>$F3+1,0,1)*(IF(BQ38=0,100,0)+IF($G3=1,1,0)*$J3*100+IF($G3=2,0.5,0)*$J3*100+IF($G3=4,0.25,0)*$J3*100) -> 0 | BQ38: 0 | BR38: 0 | BS38: 0 | BT38: 0 | BU38: 0 | BV38: 0 | BW38: 0 | BX38: 0 | BY38: 0 | BZ38: 0 | CA38: 0 | CB38: 0 | CC38: 0 | CD38: 0 | CE38: 0 | CF38: 0 | CG38: 0 | CH38: 0 | CI38: 0 | CJ38: 0 | CK38: 0 | CL38: 0 | CM38: 0 | CN38: 0 | CO38: 0 | CP38: 0 | CQ38: 0 | CR38: 0 | CS38: 0 | CT38: 0 | CU38: 0 | CV38: 0 | CW38: 0 | CX38: 0 | CY38: 0 | CZ38: 0 | DA38: 0 | DB38: 0 | DC38: 0 | DD38: 0 | DE38: 0 | DF38: 0 | DG38: 0 | DH38: 0 | DI38: 0 | DJ38: 0 | DK38: 0 | DL38: 0 | DM38: 0 | DN38: 0 | DO38: 0 | DP38: 0 | DQ38: 0 | DR38: 0 | DS38: 0 | DT38: 0 | DU38: 0 | DV38: 0 | DW38: 0 | DX38: 0 | DY38: 0 | DZ38: 0 | EA38: 0 | EB38: =IF(EB37>$F3+1,0,1)*(IF(EC38=0,100,0)+IF($G3=1,1,0)*$J3*100+IF($G3=2,0.5,0)*$J3*100+IF($G3=4,0.25,0)*$J3*100) -> 0 | EC38: 0 | ED38: 0 | EE38: 0 | EF38: 0 | EG38: 0 | EH38: 0 | EI38: 0 | EJ38: 0 | EK38: 0 | EL38: 0 | EM38: 0 | EN38: 0 | EO38: 0 | EP38: 0 | EQ38: 0 | ER38: 0 | ES38: 0 | ET38: 0 | EU38: 0 | EV38: 0 | EW38: 0 | EX38: 0 | EY38: 0 | EZ38: 0 | FA38: 0 | FB38: 0 | FC38: 0 | FD38: 0 | FE38: 0 | FF38: 0 | FG38: 0 | FH38: 0 | FI38: 0 | FJ38: 0 | FK38: 0 | FL38: 0 | FM38: 0 | FN38: 0 | FO38: 0 | FP38: 0 | FQ38: 0 | FR38: 0 | FS38: 0 | FT38: 0 | FU38: 0 | FV38: 0 | FW38: 0 | FX38: 0 | FY38: 0 | FZ38: 0 | GA38: 0 | GB38: 0 | GC38: 0 | GD38: 0 | GE38: 0 | GF38: 0 | GG38: 0 | GH38: 0 | GI38: 0 | GJ38: 0 | GK38: 0 | GL38: 0 | GM38: 0 | GN38: =IF(GN37>$F3+1,0,1)*(IF(GO38=0,100,0)+IF($G3=1,1,0)*$J3*100+IF($G3=2,0.5,0)*$J3*100+IF($G3=4,0.25,0)*$J3*100) -> 0 | GO38: 0 | GP38: 0 | GQ38: 0 | GR38: 0 | GS38: 0
A39: Payment Dates | B39: =IF(E4=0,F4,E4) -> 00:00:00 | C39: =B39+IF($G4=1,365,0)+IF($G4=2,182.5,0)+IF($G4=4,91.25,0) -> 00:00:00 | D39: =C39+IF($G4=1,365,0)+IF($G4=2,182.5,0)+IF($G4=4,91.25,0) -> 00:00:00 | E39: 00:00:00 | F39: 00:00:00 | G39: 00:00:00 | H39: 00:00:00 | I39: 00:00:00 | J39: 00:00:00 | K39: 00:00:00 | L39: 00:00:00 | M39: 00:00:00 | N39: 00:00:00 | O39: 00:00:00 | P39: 00:00:00 | Q39: 00:00:00 | R39: 00:00:00 | S39: 00:00:00 | T39: 00:00:00 | U39: 00:00:00 | V39: 00:00:00 | W39: 00:00:00 | X39: 00:00:00 | Y39: 00:00:00 | Z39: 00:00:00 | AA39: 00:00:00 | AB39: 00:00:00 | AC39: 00:00:00 | AD39: 00:00:00 | AE39: 00:00:00 | AF39: 00:00:00 | AG39: 00:00:00 | AH39: 00:00:00 | AI39: 00:00:00 | AJ39: 00:00:00 | AK39: 00:00:00 | AL39: 00:00:00 | AM39: 00:00:00 | AN39: 00:00:00 | AO39: 00:00:00 | AP39: 00:00:00 | AQ39: 00:00:00 | AR39: 00:00:00 | AS39: 00:00:00 | AT39: 00:00:00 | AU39: 00:00:00 | AV39: 00:00:00 | AW39: 00:00:00 | AX39: 00:00:00 | AY39: 00:00:00 | AZ39: 00:00:00 | BA39: 00:00:00 | BB39: 00:00:00 | BC39: 00:00:00 | BD39: 00:00:00 | BE39: 00:00:00 | BF39: 00:00:00 | BG39: 00:00:00 | BH39: 00:00:00 | BI39: 00:00:00 | BJ39: 00:00:00 | BK39: 00:00:00 | BL39: 00:00:00 | BM39: 00:00:00 | BN39: 00:00:00 | BO39: 00:00:00 | BP39: =BO39+IF($G4=1,365,0)+IF($G4=2,182.5,0)+IF($G4=4,91.25,0) -> 00:00:00 | BQ39: 00:00:00 | BR39: 00:00:00 | BS39: 00:00:00 | BT39: 00:00:00 | BU39: 00:00:00 | BV39: 00:00:00 | BW39: 00:00:00 | BX39: 00:00:00 | BY39: 00:00:00 | BZ39: 00:00:00 | CA39: 00:00:00 | CB39: 00:00:00 | CC39: 00:00:00 | CD39: 00:00:00 | CE39: 00:00:00 | CF39: 00:00:00 | CG39: 00:00:00 | CH39: 00:00:00 | CI39: 00:00:00 | CJ39: 00:00:00 | CK39: 00:00:00 | CL39: 00:00:00 | CM39: 00:00:00 | CN39: 00:00:00 | CO39: 00:00:00 | CP39: 00:00:00 | CQ39: 00:00:00 | CR39: 00:00:00 | CS39: 00:00:00 | CT39: 00:00:00 | CU39: 00:00:00 | CV39: 00:00:00 | CW39: 00:00:00 | CX39: 00:00:00 | CY39: 00:00:00 | CZ39: 00:00:00 | DA39: 00:00:00 | DB39: 00:00:00 | DC39: 00:00:00 | DD39: 00:00:00 | DE39: 00:00:00 | DF39: 00:00:00 | DG39: 00:00:00 | DH39: 00:00:00 | DI39: 00:00:00 | DJ39: 00:00:00 | DK39: 00:00:00 | DL39: 00:00:00 | DM39: 00:00:00 | DN39: 00:00:00 | DO39: 00:00:00 | DP39: 00:00:00 | DQ39: 00:00:00 | DR39: 00:00:00 | DS39: 00:00:00 | DT39: 00:00:00 | DU39: 00:00:00 | DV39: 00:00:00 | DW39: 00:00:00 | DX39: 00:00:00 | DY39: 00:00:00 | DZ39: 00:00:00 | EA39: 00:00:00 | EB39: =EA39+IF($G4=1,365,0)+IF($G4=2,182.5,0)+IF($G4=4,91.25,0) -> 00:00:00 | EC39: 00:00:00 | ED39: 00:00:00 | EE39: 00:00:00 | EF39: 00:00:00 | EG39: 00:00:00 | EH39: 00:00:00 | EI39: 00:00:00 | EJ39: 00:00:00 | EK39: 00:00:00 | EL39: 00:00:00 | EM39: 00:00:00 | EN39: 00:00:00 | EO39: 00:00:00 | EP39: 00:00:00 | EQ39: 00:00:00 | ER39: 00:00:00 | ES39: 00:00:00 | ET39: 00:00:00 | EU39: 00:00:00 | EV39: 00:00:00 | EW39: 00:00:00 | EX39: 00:00:00 | EY39: 00:00:00 | EZ39: 00:00:00 | FA39: 00:00:00 | FB39: 00:00:00 | FC39: 00:00:00 | FD39: 00:00:00 | FE39: 00:00:00 | FF39: 00:00:00 | FG39: 00:00:00 | FH39: 00:00:00 | FI39: 00:00:00 | FJ39: 00:00:00 | FK39: 00:00:00 | FL39: 00:00:00 | FM39: 00:00:00 | FN39: 00:00:00 | FO39: 00:00:00 | FP39: 00:00:00 | FQ39: 00:00:00 | FR39: 00:00:00 | FS39: 00:00:00 | FT39: 00:00:00 | FU39: 00:00:00 | FV39: 00:00:00 | FW39: 00:00:00 | FX39: 00:00:00 | FY39: 00:00:00 | FZ39: 00:00:00 | GA39: 00:00:00 | GB39: 00:00:00 | GC39: 00:00:00 | GD39: 00:00:00 | GE39: 00:00:00 | GF39: 00:00:00 | GG39: 00:00:00 | GH39: 00:00:00 | GI39: 00:00:00 | GJ39: 00:00:00 | GK39: 00:00:00 | GL39: 00:00:00 | GM39: 00:00:00 | GN39: =GM39+IF($G4=1,365,0)+IF($G4=2,182.5,0)+IF($G4=4,91.25,0) -> 00:00:00 | GO39: 00:00:00 | GP39: 00:00:00 | GQ39: 00:00:00 | GR39: 00:00:00 | GS39: 00:00:00
A40: Bond 3 | B40: =(IF(B39=F4,100,0)+IF(G4=1,1,0)*J4*100+IF(G4=2,0.5,0)*J4*100+IF(G4=4,0.25,0)*J4*100)*IF(ISBLANK(F4)=TRUE,0,1) -> 0 | C40: =IF(C39>$F4+1,0,1)*(IF(D40=0,100,0)+IF($G4=1,1,0)*$J4*100+IF($G4=2,0.5,0)*$J4*100+IF($G4=4,0.25,0)*$J4*100) -> 100 | D40: =IF(D39>$F4+1,0,1)*(IF(E40=0,100,0)+IF($G4=1,1,0)*$J4*100+IF($G4=2,0.5,0)*$J4*100+IF($G4=4,0.25,0)*$J4*100) -> 0 | E40: 100 | F40: 0 | G40: 100 | H40: 0 | I40: 100 | J40: 0 | K40: 100 | L40: 0 | M40: 100 | N40: 0 | O40: 100 | P40: 0 | Q40: 100 | R40: 0 | S40: 100 | T40: 0 | U40: 100 | V40: 0 | W40: 100 | X40: 0 | Y40: 100 | Z40: 0 | AA40: 100 | AB40: 0 | AC40: 100 | AD40: 0 | AE40: 100 | AF40: 0 | AG40: 100 | AH40: 0 | AI40: 100 | AJ40: 0 | AK40: 100 | AL40: 0 | AM40: 100 | AN40: 0 | AO40: 100 | AP40: 0 | AQ40: 100 | AR40: 0 | AS40: 100 | AT40: 0 | AU40: 100 | AV40: 0 | AW40: 100 | AX40: 0 | AY40: 100 | AZ40: 0 | BA40: 100 | BB40: 0 | BC40: 100 | BD40: 0 | BE40: 100 | BF40: 0 | BG40: 100 | BH40: 0 | BI40: 100 | BJ40: 0 | BK40: 100 | BL40: 0 | BM40: 100 | BN40: 0 | BO40: 100 | BP40: =IF(BP39>$F4+1,0,1)*(IF(BQ40=0,100,0)+IF($G4=1,1,0)*$J4*100+IF($G4=2,0.5,0)*$J4*100+IF($G4=4,0.25,0)*$J4*100) -> 0 | BQ40: 100 | BR40: 0 | BS40: 100 | BT40: 0 | BU40: 100 | BV40: 0 | BW40: 100 | BX40: 0 | BY40: 100 | BZ40: 0 | CA40: 100 | CB40: 0 | CC40: 100 | CD40: 0 | CE40: 100 | CF40: 0 | CG40: 100 | CH40: 0 | CI40: 100 | CJ40: 0 | CK40: 100 | CL40: 0 | CM40: 100 | CN40: 0 | CO40: 100 | CP40: 0 | CQ40: 100 | CR40: 0 | CS40: 100 | CT40: 0 | CU40: 100 | CV40: 0 | CW40: 100 | CX40: 0 | CY40: 100 | CZ40: 0 | DA40: 100 | DB40: 0 | DC40: 100 | DD40: 0 | DE40: 100 | DF40: 0 | DG40: 100 | DH40: 0 | DI40: 100 | DJ40: 0 | DK40: 100 | DL40: 0 | DM40: 100 | DN40: 0 | DO40: 100 | DP40: 0 | DQ40: 100 | DR40: 0 | DS40: 100 | DT40: 0 | DU40: 100 | DV40: 0 | DW40: 100 | DX40: 0 | DY40: 100 | DZ40: 0 | EA40: 100 | EB40: =IF(EB39>$F4+1,0,1)*(IF(EC40=0,100,0)+IF($G4=1,1,0)*$J4*100+IF($G4=2,0.5,0)*$J4*100+IF($G4=4,0.25,0)*$J4*100) -> 0 | EC40: 100 | ED40: 0 | EE40: 100 | EF40: 0 | EG40: 100 | EH40: 0 | EI40: 100 | EJ40: 0 | EK40: 100 | EL40: 0 | EM40: 100 | EN40: 0 | EO40: 100 | EP40: 0 | EQ40: 100 | ER40: 0 | ES40: 100 | ET40: 0 | EU40: 100 | EV40: 0 | EW40: 100 | EX40: 0 | EY40: 100 | EZ40: 0 | FA40: 100 | FB40: 0 | FC40: 100 | FD40: 0 | FE40: 100 | FF40: 0 | FG40: 100 | FH40: 0 | FI40: 100 | FJ40: 0 | FK40: 100 | FL40: 0 | FM40: 100 | FN40: 0 | FO40: 100 | FP40: 0 | FQ40: 100 | FR40: 0 | FS40: 100 | FT40: 0 | FU40: 100 | FV40: 0 | FW40: 100 | FX40: 0 | FY40: 100 | FZ40: 0 | GA40: 100 | GB40: 0 | GC40: 100 | GD40: 0 | GE40: 100 | GF40: 0 | GG40: 100 | GH40: 0 | GI40: 100 | GJ40: 0 | GK40: 100 | GL40: 0 | GM40: 100 | GN40: =IF(GN39>$F4+1,0,1)*(IF(GO40=0,100,0)+IF($G4=1,1,0)*$J4*100+IF($G4=2,0.5,0)*$J4*100+IF($G4=4,0.25,0)*$J4*100) -> 0 | GO40: 100 | GP40: 0 | GQ40: 100 | GR40: 0 | GS40: 100
A41: Payment Dates | B41: =IF(E5=0,F5,E5)+1 -> 2019-10-01 | C41: =B41+IF($G5=1,365,0)+IF($G5=2,182.5,0)+IF($G5=4,91.25,0) -> 2019-12-31T06:00:00 | D41: =C41+IF($G5=1,365,0)+IF($G5=2,182.5,0)+IF($G5=4,91.25,0) -> 2020-03-31T12:00:00 | E41: 2020-06-30T18:00:00 | F41: 2020-09-30 | G41: 2020-12-30T06:00:00 | H41: 2021-03-31T12:00:00 | I41: 2021-06-30T18:00:00 | J41: 2021-09-30 | K41: 2021-12-30T06:00:00 | L41: 2022-03-31T12:00:00 | M41: 2022-06-30T18:00:00 | N41: 2022-09-30 | O41: 2022-12-30T06:00:00 | P41: 2023-03-31T12:00:00 | Q41: 2023-06-30T18:00:00 | R41: 2023-09-30 | S41: 2023-12-30T06:00:00 | T41: 2024-03-30T12:00:00 | U41: 2024-06-29T18:00:00 | V41: 2024-09-29 | W41: 2024-12-29T06:00:00 | X41: 2025-03-30T12:00:00 | Y41: 2025-06-29T18:00:00 | Z41: 2025-09-29 | AA41: 2025-12-29T06:00:00 | AB41: 2026-03-30T12:00:00 | AC41: 2026-06-29T18:00:00 | AD41: 2026-09-29 | AE41: 2026-12-29T06:00:00 | AF41: 2027-03-30T12:00:00 | AG41: 2027-06-29T18:00:00 | AH41: 2027-09-29 | AI41: 2027-12-29T06:00:00 | AJ41: 2028-03-29T12:00:00 | AK41: 2028-06-28T18:00:00 | AL41: 2028-09-28 | AM41: 2028-12-28T06:00:00 | AN41: 2029-03-29T12:00:00 | AO41: 2029-06-28T18:00:00 | AP41: 2029-09-28 | AQ41: 2029-12-28T06:00:00 | AR41: 2030-03-29T12:00:00 | AS41: 2030-06-28T18:00:00 | AT41: 2030-09-28 | AU41: 2030-12-28T06:00:00 | AV41: 2031-03-29T12:00:00 | AW41: 2031-06-28T18:00:00 | AX41: 2031-09-28 | AY41: 2031-12-28T06:00:00 | AZ41: 2032-03-28T12:00:00 | BA41: 2032-06-27T18:00:00 | BB41: 2032-09-27 | BC41: 2032-12-27T06:00:00 | BD41: 2033-03-28T12:00:00 | BE41: 2033-06-27T18:00:00 | BF41: 2033-09-27 | BG41: 2033-12-27T06:00:00 | BH41: 2034-03-28T12:00:00 | BI41: 2034-06-27T18:00:00 | BJ41: 2034-09-27 | BK41: 2034-12-27T06:00:00 | BL41: 2035-03-28T12:00:00 | BM41: 2035-06-27T18:00:00 | BN41: 2035-09-27 | BO41: 2035-12-27T06:00:00 | BP41: =BO41+IF($G5=1,365,0)+IF($G5=2,182.5,0)+IF($G5=4,91.25,0) -> 2036-03-27T12:00:00 | BQ41: 2036-06-26T18:00:00 | BR41: 2036-09-26 | BS41: 2036-12-26T06:00:00 | BT41: 2037-03-27T12:00:00 | BU41: 2037-06-26T18:00:00 | BV41: 2037-09-26 | BW41: 2037-12-26T06:00:00 | BX41: 2038-03-27T12:00:00 | BY41: 2038-06-26T18:00:00 | BZ41: 2038-09-26 | CA41: 2038-12-26T06:00:00 | CB41: 2039-03-27T12:00:00 | CC41: 2039-06-26T18:00:00 | CD41: 2039-09-26 | CE41: 2039-12-26T06:00:00 | CF41: 2040-03-26T12:00:00 | CG41: 2040-06-25T18:00:00 | CH41: 2040-09-25 | CI41: 2040-12-25T06:00:00 | CJ41: 2041-03-26T12:00:00 | CK41: 2041-06-25T18:00:00 | CL41: 2041-09-25 | CM41: 2041-12-25T06:00:00 | CN41: 2042-03-26T12:00:00 | CO41: 2042-06-25T18:00:00 | CP41: 2042-09-25 | CQ41: 2042-12-25T06:00:00 | CR41: 2043-03-26T12:00:00 | CS41: 2043-06-25T18:00:00 | CT41: 2043-09-25 | CU41: 2043-12-25T06:00:00 | CV41: 2044-03-25T12:00:00 | CW41: 2044-06-24T18:00:00 | CX41: 2044-09-24 | CY41: 2044-12-24T06:00:00 | CZ41: 2045-03-25T12:00:00 | DA41: 2045-06-24T18:00:00 | DB41: 2045-09-24 | DC41: 2045-12-24T06:00:00 | DD41: 2046-03-25T12:00:00 | DE41: 2046-06-24T18:00:00 | DF41: 2046-09-24 | DG41: 2046-12-24T06:00:00 | DH41: 2047-03-25T12:00:00 | DI41: 2047-06-24T18:00:00 | DJ41: 2047-09-24 | DK41: 2047-12-24T06:00:00 | DL41: 2048-03-24T12:00:00 | DM41: 2048-06-23T18:00:00 | DN41: 2048-09-23 | DO41: 2048-12-23T06:00:00 | DP41: 2049-03-24T12:00:00 | DQ41: 2049-06-23T18:00:00 | DR41: 2049-09-23 | DS41: 2049-12-23T06:00:00 | DT41: 2050-03-24T12:00:00 | DU41: 2050-06-23T18:00:00 | DV41: 2050-09-23 | DW41: 2050-12-23T06:00:00 | DX41: 2051-03-24T12:00:00 | DY41: 2051-06-23T18:00:00 | DZ41: 2051-09-23 | EA41: 2051-12-23T06:00:00 | EB41: =EA41+IF($G5=1,365,0)+IF($G5=2,182.5,0)+IF($G5=4,91.25,0) -> 2052-03-23T12:00:00 | EC41: 2052-06-22T18:00:00 | ED41: 2052-09-22 | EE41: 2052-12-22T06:00:00 | EF41: 2053-03-23T12:00:00 | EG41: 2053-06-22T18:00:00 | EH41: 2053-09-22 | EI41: 2053-12-22T06:00:00 | EJ41: 2054-03-23T12:00:00 | EK41: 2054-06-22T18:00:00 | EL41: 2054-09-22 | EM41: 2054-12-22T06:00:00 | EN41: 2055-03-23T12:00:00 | EO41: 2055-06-22T18:00:00 | EP41: 2055-09-22 | EQ41: 2055-12-22T06:00:00 | ER41: 2056-03-22T12:00:00 | ES41: 2056-06-21T18:00:00 | ET41: 2056-09-21 | EU41: 2056-12-21T06:00:00 | EV41: 2057-03-22T12:00:00 | EW41: 2057-06-21T18:00:00 | EX41: 2057-09-21 | EY41: 2057-12-21T06:00:00 | EZ41: 2058-03-22T12:00:00 | FA41: 2058-06-21T18:00:00 | FB41: 2058-09-21 | FC41: 2058-12-21T06:00:00 | FD41: 2059-03-22T12:00:00 | FE41: 2059-06-21T18:00:00 | FF41: 2059-09-21 | FG41: 2059-12-21T06:00:00 | FH41: 2060-03-21T12:00:00 | FI41: 2060-06-20T18:00:00 | FJ41: 2060-09-20 | FK41: 2060-12-20T06:00:00 | FL41: 2061-03-21T12:00:00 | FM41: 2061-06-20T18:00:00 | FN41: 2061-09-20 | FO41: 2061-12-20T06:00:00 | FP41: 2062-03-21T12:00:00 | FQ41: 2062-06-20T18:00:00 | FR41: 2062-09-20 | FS41: 2062-12-20T06:00:00 | FT41: 2063-03-21T12:00:00 | FU41: 2063-06-20T18:00:00 | FV41: 2063-09-20 | FW41: 2063-12-20T06:00:00 | FX41: 2064-03-20T12:00:00 | FY41: 2064-06-19T18:00:00 | FZ41: 2064-09-19 | GA41: 2064-12-19T06:00:00 | GB41: 2065-03-20T12:00:00 | GC41: 2065-06-19T18:00:00 | GD41: 2065-09-19 | GE41: 2065-12-19T06:00:00 | GF41: 2066-03-20T12:00:00 | GG41: 2066-06-19T18:00:00 | GH41: 2066-09-19 | GI41: 2066-12-19T06:00:00 | GJ41: 2067-03-20T12:00:00 | GK41: 2067-06-19T18:00:00 | GL41: 2067-09-19 | GM41: 2067-12-19T06:00:00 | GN41: =GM41+IF($G5=1,365,0)+IF($G5=2,182.5,0)+IF($G5=4,91.25,0) -> 2068-03-19T12:00:00 | GO41: 2068-06-18T18:00:00 | GP41: 2068-09-18 | GQ41: 2068-12-18T06:00:00 | GR41: 2069-03-19T12:00:00 | GS41: 2069-06-18T18:00:00
A42: Bond 4 | B42: =(IF(B41=F5,100,0)+IF(G5=1,1,0)*J5*100+IF(G5=2,0.5,0)*J5*100+IF(G5=4,0.25,0)*J5*100)*IF(ISBLANK(F5)=TRUE,0,1) -> 0.07675 | C42: =IF(C41>$F5+1,0,1)*(IF(D42=0,100,0)+IF($G5=1,1,0)*$J5*100+IF($G5=2,0.5,0)*$J5*100+IF($G5=4,0.25,0)*$J5*100) -> 0.07675 | D42: =IF(D41>$F5+1,0,1)*(IF(E42=0,100,0)+IF($G5=1,1,0)*$J5*100+IF($G5=2,0.5,0)*$J5*100+IF($G5=4,0.25,0)*$J5*100) -> 0.07675 | E42: 0.07675 | F42: 0.07675 | G42: 0.07675 | H42: 0.07675 | I42: 0.07675 | J42: 0.07675 | K42: 0.07675 | L42: 0.07675 | M42: 0.07675 | N42: 0.07675 | O42: 0.07675 | P42: 0.07675 | Q42: 0.07675 | R42: 0.07675 | S42: 0.07675 | T42: 0.07675 | U42: 0.07675 | V42: 0.07675 | W42: 0.07675 | X42: 0.07675 | Y42: 0.07675 | Z42: 0.07675 | AA42: 0.07675 | AB42: 0.07675 | AC42: 0.07675 | AD42: 0.07675 | AE42: 0.07675 | AF42: 0.07675 | AG42: 0.07675 | AH42: 0.07675 | AI42: 0.07675 | AJ42: 0.07675 | AK42: 0.07675 | AL42: 0.07675 | AM42: 0.07675 | AN42: 0.07675 | AO42: 0.07675 | AP42: 0.07675 | AQ42: 0.07675 | AR42: 0.07675 | AS42: 0.07675 | AT42: 0.07675 | AU42: 0.07675 | AV42: 0.07675 | AW42: 0.07675 | AX42: 100.07675 | AY42: 0 | AZ42: 0 | BA42: 0 | BB42: 0 | BC42: 0 | BD42: 0 | BE42: 0 | BF42: 0 | BG42: 0 | BH42: 0 | BI42: 0 | BJ42: 0 | BK42: 0 | BL42: 0 | BM42: 0 | BN42: 0 | BO42: 0 | BP42: =IF(BP41>$F5+1,0,1)*(IF(BQ42=0,100,0)+IF($G5=1,1,0)*$J5*100+IF($G5=2,0.5,0)*$J5*100+IF($G5=4,0.25,0)*$J5*100) -> 0 | BQ42: 0 | BR42: 0 | BS42: 0 | BT42: 0 | BU42: 0 | BV42: 0 | BW42: 0 | BX42: 0 | BY42: 0 | BZ42: 0 | CA42: 0 | CB42: 0 | CC42: 0 | CD42: 0 | CE42: 0 | CF42: 0 | CG42: 0 | CH42: 0 | CI42: 0 | CJ42: 0 | CK42: 0 | CL42: 0 | CM42: 0 | CN42: 0 | CO42: 0 | CP42: 0 | CQ42: 0 | CR42: 0 | CS42: 0 | CT42: 0 | CU42: 0 | CV42: 0 | CW42: 0 | CX42: 0 | CY42: 0 | CZ42: 0 | DA42: 0 | DB42: 0 | DC42: 0 | DD42: 0 | DE42: 0 | DF42: 0 | DG42: 0 | DH42: 0 | DI42: 0 | DJ42: 0 | DK42: 0 | DL42: 0 | DM42: 0 | DN42: 0 | DO42: 0 | DP42: 0 | DQ42: 0 | DR42: 0 | DS42: 0 | DT42: 0 | DU42: 0 | DV42: 0 | DW42: 0 | DX42: 0 | DY42: 0 | DZ42: 0 | EA42: 0 | EB42: =IF(EB41>$F5+1,0,1)*(IF(EC42=0,100,0)+IF($G5=1,1,0)*$J5*100+IF($G5=2,0.5,0)*$J5*100+IF($G5=4,0.25,0)*$J5*100) -> 0 | EC42: 0 | ED42: 0 | EE42: 0 | EF42: 0 | EG42: 0 | EH42: 0 | EI42: 0 | EJ42: 0 | EK42: 0 | EL42: 0 | EM42: 0 | EN42: 0 | EO42: 0 | EP42: 0 | EQ42: 0 | ER42: 0 | ES42: 0 | ET42: 0 | EU42: 0 | EV42: 0 | EW42: 0 | EX42: 0 | EY42: 0 | EZ42: 0 | FA42: 0 | FB42: 0 | FC42: 0 | FD42: 0 | FE42: 0 | FF42: 0 | FG42: 0 | FH42: 0 | FI42: 0 | FJ42: 0 | FK42: 0 | FL42: 0 | FM42: 0 | FN42: 0 | FO42: 0 | FP42: 0 | FQ42: 0 | FR42: 0 | FS42: 0 | FT42: 0 | FU42: 0 | FV42: 0 | FW42: 0 | FX42: 0 | FY42: 0 | FZ42: 0 | GA42: 0 | GB42: 0 | GC42: 0 | GD42: 0 | GE42: 0 | GF42: 0 | GG42: 0 | GH42: 0 | GI42: 0 | GJ42: 0 | GK42: 0 | GL42: 0 | GM42: 0 | GN42: =IF(GN41>$F5+1,0,1)*(IF(GO42=0,100,0)+IF($G5=1,1,0)*$J5*100+IF($G5=2,0.5,0)*$J5*100+IF($G5=4,0.25,0)*$J5*100) -> 0 | GO42: 0 | GP42: 0 | GQ42: 0 | GR42: 0 | GS42: 0
A43: Payment Dates | B43: =IF(E6=0,F6,E6) -> 7/15/2019 | C43: =B43+IF($G6=1,365,0)+IF($G6=2,182.5,0)+IF($G6=4,91.25,0) -> 2019-10-14T06:00:00 | D43: =C43+IF($G6=1,365,0)+IF($G6=2,182.5,0)+IF($G6=4,91.25,0) -> 2020-01-13T12:00:00 | E43: 2020-04-13T18:00:00 | F43: 2020-07-14 | G43: 2020-10-13T06:00:00 | H43: 2021-01-12T12:00:00 | I43: 2021-04-13T18:00:00 | J43: 2021-07-14 | K43: 2021-10-13T06:00:00 | L43: 2022-01-12T12:00:00 | M43: 2022-04-13T18:00:00 | N43: 2022-07-14 | O43: 2022-10-13T06:00:00 | P43: 2023-01-12T12:00:00 | Q43: 2023-04-13T18:00:00 | R43: 2023-07-14 | S43: 2023-10-13T06:00:00 | T43: 2024-01-12T12:00:00 | U43: 2024-04-12T18:00:00 | V43: 2024-07-13 | W43: 2024-10-12T06:00:00 | X43: 2025-01-11T12:00:00 | Y43: 2025-04-12T18:00:00 | Z43: 2025-07-13 | AA43: 2025-10-12T06:00:00 | AB43: 2026-01-11T12:00:00 | AC43: 2026-04-12T18:00:00 | AD43: 2026-07-13 | AE43: 2026-10-12T06:00:00 | AF43: 2027-01-11T12:00:00 | AG43: 2027-04-12T18:00:00 | AH43: 2027-07-13 | AI43: 2027-10-12T06:00:00 | AJ43: 2028-01-11T12:00:00 | AK43: 2028-04-11T18:00:00 | AL43: 2028-07-12 | AM43: 2028-10-11T06:00:00 | AN43: 2029-01-10T12:00:00 | AO43: 2029-04-11T18:00:00 | AP43: 2029-07-12 | AQ43: 2029-10-11T06:00:00 | AR43: 2030-01-10T12:00:00 | AS43: 2030-04-11T18:00:00 | AT43: 2030-07-12 | AU43: 2030-10-11T06:00:00 | AV43: 2031-01-10T12:00:00 | AW43: 2031-04-11T18:00:00 | AX43: 2031-07-12 | AY43: 2031-10-11T06:00:00 | AZ43: 2032-01-10T12:00:00 | BA43: 2032-04-10T18:00:00 | BB43: 2032-07-11 | BC43: 2032-10-10T06:00:00 | BD43: 2033-01-09T12:00:00 | BE43: 2033-04-10T18:00:00 | BF43: 2033-07-11 | BG43: 2033-10-10T06:00:00 | BH43: 2034-01-09T12:00:00 | BI43: 2034-04-10T18:00:00 | BJ43: 2034-07-11 | BK43: 2034-10-10T06:00:00 | BL43: 2035-01-09T12:00:00 | BM43: 2035-04-10T18:00:00 | BN43: 2035-07-11 | BO43: 2035-10-10T06:00:00 | BP43: =BO43+IF($G6=1,365,0)+IF($G6=2,182.5,0)+IF($G6=4,91.25,0) -> 2036-01-09T12:00:00 | BQ43: 2036-04-09T18:00:00 | BR43: 2036-07-10 | BS43: 2036-10-09T06:00:00 | BT43: 2037-01-08T12:00:00 | BU43: 2037-04-09T18:00:00 | BV43: 2037-07-10 | BW43: 2037-10-09T06:00:00 | BX43: 2038-01-08T12:00:00 | BY43: 2038-04-09T18:00:00 | BZ43: 2038-07-10 | CA43: 2038-10-09T06:00:00 | CB43: 2039-01-08T12:00:00 | CC43: 2039-04-09T18:00:00 | CD43: 2039-07-10 | CE43: 2039-10-09T06:00:00 | CF43: 2040-01-08T12:00:00 | CG43: 2040-04-08T18:00:00 | CH43: 2040-07-09 | CI43: 2040-10-08T06:00:00 | CJ43: 2041-01-07T12:00:00 | CK43: 2041-04-08T18:00:00 | CL43: 2041-07-09 | CM43: 2041-10-08T06:00:00 | CN43: 2042-01-07T12:00:00 | CO43: 2042-04-08T18:00:00 | CP43: 2042-07-09 | CQ43: 2042-10-08T06:00:00 | CR43: 2043-01-07T12:00:00 | CS43: 2043-04-08T18:00:00 | CT43: 2043-07-09 | CU43: 2043-10-08T06:00:00 | CV43: 2044-01-07T12:00:00 | CW43: 2044-04-07T18:00:00 | CX43: 2044-07-08 | CY43: 2044-10-07T06:00:00 | CZ43: 2045-01-06T12:00:00 | DA43: 2045-04-07T18:00:00 | DB43: 2045-07-08 | DC43: 2045-10-07T06:00:00 | DD43: 2046-01-06T12:00:00 | DE43: 2046-04-07T18:00:00 | DF43: 2046-07-08 | DG43: 2046-10-07T06:00:00 | DH43: 2047-01-06T12:00:00 | DI43: 2047-04-07T18:00:00 | DJ43: 2047-07-08 | DK43: 2047-10-07T06:00:00 | DL43: 2048-01-06T12:00:00 | DM43: 2048-04-06T18:00:00 | DN43: 2048-07-07 | DO43: 2048-10-06T06:00:00 | DP43: 2049-01-05T12:00:00 | DQ43: 2049-04-06T18:00:00 | DR43: 2049-07-07 | DS43: 2049-10-06T06:00:00 | DT43: 2050-01-05T12:00:00 | DU43: 2050-04-06T18:00:00 | DV43: 2050-07-07 | DW43: 2050-10-06T06:00:00 | DX43: 2051-01-05T12:00:00 | DY43: 2051-04-06T18:00:00 | DZ43: 2051-07-07 | EA43: 2051-10-06T06:00:00 | EB43: =EA43+IF($G6=1,365,0)+IF($G6=2,182.5,0)+IF($G6=4,91.25,0) -> 2052-01-05T12:00:00 | EC43: 2052-04-05T18:00:00 | ED43: 2052-07-06 | EE43: 2052-10-05T06:00:00 | EF43: 2053-01-04T12:00:00 | EG43: 2053-04-05T18:00:00 | EH43: 2053-07-06 | EI43: 2053-10-05T06:00:00 | EJ43: 2054-01-04T12:00:00 | EK43: 2054-04-05T18:00:00 | EL43: 2054-07-06 | EM43: 2054-10-05T06:00:00 | EN43: 2055-01-04T12:00:00 | EO43: 2055-04-05T18:00:00 | EP43: 2055-07-06 | EQ43: 2055-10-05T06:00:00 | ER43: 2056-01-04T12:00:00 | ES43: 2056-04-04T18:00:00 | ET43: 2056-07-05 | EU43: 2056-10-04T06:00:00 | EV43: 2057-01-03T12:00:00 | EW43: 2057-04-04T18:00:00 | EX43: 2057-07-05 | EY43: 2057-10-04T06:00:00 | EZ43: 2058-01-03T12:00:00 | FA43: 2058-04-04T18:00:00 | FB43: 2058-07-05 | FC43: 2058-10-04T06:00:00 | FD43: 2059-01-03T12:00:00 | FE43: 2059-04-04T18:00:00 | FF43: 2059-07-05 | FG43: 2059-10-04T06:00:00 | FH43: 2060-01-03T12:00:00 | FI43: 2060-04-03T18:00:00 | FJ43: 2060-07-04 | FK43: 2060-10-03T06:00:00 | FL43: 2061-01-02T12:00:00 | FM43: 2061-04-03T18:00:00 | FN43: 2061-07-04 | FO43: 2061-10-03T06:00:00 | FP43: 2062-01-02T12:00:00 | FQ43: 2062-04-03T18:00:00 | FR43: 2062-07-04 | FS43: 2062-10-03T06:00:00 | FT43: 2063-01-02T12:00:00 | FU43: 2063-04-03T18:00:00 | FV43: 2063-07-04 | FW43: 2063-10-03T06:00:00 | FX43: 2064-01-02T12:00:00 | FY43: 2064-04-02T18:00:00 | FZ43: 2064-07-03 | GA43: 2064-10-02T06:00:00 | GB43: 2065-01-01T12:00:00 | GC43: 2065-04-02T18:00:00 | GD43: 2065-07-03 | GE43: 2065-10-02T06:00:00 | GF43: 2066-01-01T12:00:00 | GG43: 2066-04-02T18:00:00 | GH43: 2066-07-03 | GI43: 2066-10-02T06:00:00 | GJ43: 2067-01-01T12:00:00 | GK43: 2067-04-02T18:00:00 | GL43: 2067-07-03 | GM43: 2067-10-02T06:00:00 | GN43: =GM43+IF($G6=1,365,0)+IF($G6=2,182.5,0)+IF($G6=4,91.25,0) -> 2068-01-01T12:00:00 | GO43: 2068-04-01T18:00:00 | GP43: 2068-07-02 | GQ43: 2068-10-01T06:00:00 | GR43: 2068-12-31T12:00:00 | GS43: 2069-04-01T18:00:00
A44: Bond 5 | B44: =(IF(B43=F6,100,0)+IF(G6=1,1,0)*J6*100+IF(G6=2,0.5,0)*J6*100+IF(G6=4,0.25,0)*J6*100)*IF(ISBLANK(F6)=TRUE,0,1) -> 100 | C44: =IF(C43>$F6+1,0,1)*(IF(D44=0,100,0)+IF($G6=1,1,0)*$J6*100+IF($G6=2,0.5,0)*$J6*100+IF($G6=4,0.25,0)*$J6*100) -> 0 | D44: =IF(D43>$F6+1,0,1)*(IF(E44=0,100,0)+IF($G6=1,1,0)*$J6*100+IF($G6=2,0.5,0)*$J6*100+IF($G6=4,0.25,0)*$J6*100) -> 0 | E44: 0 | F44: 0 | G44: 0 | H44: 0 | I44: 0 | J44: 0 | K44: 0 | L44: 0 | M44: 0 | N44: 0 | O44: 0 | P44: 0 | Q44: 0 | R44: 0 | S44: 0 | T44: 0 | U44: 0 | V44: 0 | W44: 0 | X44: 0 | Y44: 0 | Z44: 0 | AA44: 0 | AB44: 0 | AC44: 0 | AD44: 0 | AE44: 0 | AF44: 0 | AG44: 0 | AH44: 0 | AI44: 0 | AJ44: 0 | AK44: 0 | AL44: 0 | AM44: 0 | AN44: 0 | AO44: 0 | AP44: 0 | AQ44: 0 | AR44: 0 | AS44: 0 | AT44: 0 | AU44: 0 | AV44: 0 | AW44: 0 | AX44: 0 | AY44: 0 | AZ44: 0 | BA44: 0 | BB44: 0 | BC44: 0 | BD44: 0 | BE44: 0 | BF44: 0 | BG44: 0 | BH44: 0 | BI44: 0 | BJ44: 0 | BK44: 0 | BL44: 0 | BM44: 0 | BN44: 0 | BO44: 0 | BP44: =IF(BP43>$F6+1,0,1)*(IF(BQ44=0,100,0)+IF($G6=1,1,0)*$J6*100+IF($G6=2,0.5,0)*$J6*100+IF($G6=4,0.25,0)*$J6*100) -> 0 | BQ44: 0 | BR44: 0 | BS44: 0 | BT44: 0 | BU44: 0 | BV44: 0 | BW44: 0 | BX44: 0 | BY44: 0 | BZ44: 0 | CA44: 0 | CB44: 0 | CC44: 0 | CD44: 0 | CE44: 0 | CF44: 0 | CG44: 0 | CH44: 0 | CI44: 0 | CJ44: 0 | CK44: 0 | CL44: 0 | CM44: 0 | CN44: 0 | CO44: 0 | CP44: 0 | CQ44: 0 | CR44: 0 | CS44: 0 | CT44: 0 | CU44: 0 | CV44: 0 | CW44: 0 | CX44: 0 | CY44: 0 | CZ44: 0 | DA44: 0 | DB44: 0 | DC44: 0 | DD44: 0 | DE44: 0 | DF44: 0 | DG44: 0 | DH44: 0 | DI44: 0 | DJ44: 0 | DK44: 0 | DL44: 0 | DM44: 0 | DN44: 0 | DO44: 0 | DP44: 0 | DQ44: 0 | DR44: 0 | DS44: 0 | DT44: 0 | DU44: 0 | DV44: 0 | DW44: 0 | DX44: 0 | DY44: 0 | DZ44: 0 | EA44: 0 | EB44: =IF(EB43>$F6+1,0,1)*(IF(EC44=0,100,0)+IF($G6=1,1,0)*$J6*100+IF($G6=2,0.5,0)*$J6*100+IF($G6=4,0.25,0)*$J6*100) -> 0 | EC44: 0 | ED44: 0 | EE44: 0 | EF44: 0 | EG44: 0 | EH44: 0 | EI44: 0 | EJ44: 0 | EK44: 0 | EL44: 0 | EM44: 0 | EN44: 0 | EO44: 0 | EP44: 0 | EQ44: 0 | ER44: 0 | ES44: 0 | ET44: 0 | EU44: 0 | EV44: 0 | EW44: 0 | EX44: 0 | EY44: 0 | EZ44: 0 | FA44: 0 | FB44: 0 | FC44: 0 | FD44: 0 | FE44: 0 | FF44: 0 | FG44: 0 | FH44: 0 | FI44: 0 | FJ44: 0 | FK44: 0 | FL44: 0 | FM44: 0 | FN44: 0 | FO44: 0 | FP44: 0 | FQ44: 0 | FR44: 0 | FS44: 0 | FT44: 0 | FU44: 0 | FV44: 0 | FW44: 0 | FX44: 0 | FY44: 0 | FZ44: 0 | GA44: 0 | GB44: 0 | GC44: 0 | GD44: 0 | GE44: 0 | GF44: 0 | GG44: 0 | GH44: 0 | GI44: 0 | GJ44: 0 | GK44: 0 | GL44: 0 | GM44: 0 | GN44: =IF(GN43>$F6+1,0,1)*(IF(GO44=0,100,0)+IF($G6=1,1,0)*$J6*100+IF($G6=2,0.5,0)*$J6*100+IF($G6=4,0.25,0)*$J6*100) -> 0 | GO44: 0 | GP44: 0 | GQ44: 0 | GR44: 0 | GS44: 0
A45: Payment Dates | B45: =IF(E7=0,F7,E7) -> 00:00:00 | C45: =B45+IF($G7=1,365,0)+IF($G7=2,182.5,0)+IF($G7=4,91.25,0) -> 00:00:00 | D45: =C45+IF($G7=1,365,0)+IF($G7=2,182.5,0)+IF($G7=4,91.25,0) -> 00:00:00 | E45: 00:00:00 | F45: 00:00:00 | G45: 00:00:00 | H45: 00:00:00 | I45: 00:00:00 | J45: 00:00:00 | K45: 00:00:00 | L45: 00:00:00 | M45: 00:00:00 | N45: 00:00:00 | O45: 00:00:00 | P45: 00:00:00 | Q45: 00:00:00 | R45: 00:00:00 | S45: 00:00:00 | T45: 00:00:00 | U45: 00:00:00 | V45: 00:00:00 | W45: 00:00:00 | X45: 00:00:00 | Y45: 00:00:00 | Z45: 00:00:00 | AA45: 00:00:00 | AB45: 00:00:00 | AC45: 00:00:00 | AD45: 00:00:00 | AE45: 00:00:00 | AF45: 00:00:00 | AG45: 00:00:00 | AH45: 00:00:00 | AI45: 00:00:00 | AJ45: 00:00:00 | AK45: 00:00:00 | AL45: 00:00:00 | AM45: 00:00:00 | AN45: 00:00:00 | AO45: 00:00:00 | AP45: 00:00:00 | AQ45: 00:00:00 | AR45: 00:00:00 | AS45: 00:00:00 | AT45: 00:00:00 | AU45: 00:00:00 | AV45: 00:00:00 | AW45: 00:00:00 | AX45: 00:00:00 | AY45: 00:00:00 | AZ45: 00:00:00 | BA45: 00:00:00 | BB45: 00:00:00 | BC45: 00:00:00 | BD45: 00:00:00 | BE45: 00:00:00 | BF45: 00:00:00 | BG45: 00:00:00 | BH45: 00:00:00 | BI45: 00:00:00 | BJ45: 00:00:00 | BK45: 00:00:00 | BL45: 00:00:00 | BM45: 00:00:00 | BN45: 00:00:00 | BO45: 00:00:00 | BP45: =BO45+IF($G7=1,365,0)+IF($G7=2,182.5,0)+IF($G7=4,91.25,0) -> 00:00:00 | BQ45: 00:00:00 | BR45: 00:00:00 | BS45: 00:00:00 | BT45: 00:00:00 | BU45: 00:00:00 | BV45: 00:00:00 | BW45: 00:00:00 | BX45: 00:00:00 | BY45: 00:00:00 | BZ45: 00:00:00 | CA45: 00:00:00 | CB45: 00:00:00 | CC45: 00:00:00 | CD45: 00:00:00 | CE45: 00:00:00 | CF45: 00:00:00 | CG45: 00:00:00 | CH45: 00:00:00 | CI45: 00:00:00 | CJ45: 00:00:00 | CK45: 00:00:00 | CL45: 00:00:00 | CM45: 00:00:00 | CN45: 00:00:00 | CO45: 00:00:00 | CP45: 00:00:00 | CQ45: 00:00:00 | CR45: 00:00:00 | CS45: 00:00:00 | CT45: 00:00:00 | CU45: 00:00:00 | CV45: 00:00:00 | CW45: 00:00:00 | CX45: 00:00:00 | CY45: 00:00:00 | CZ45: 00:00:00 | DA45: 00:00:00 | DB45: 00:00:00 | DC45: 00:00:00 | DD45: 00:00:00 | DE45: 00:00:00 | DF45: 00:00:00 | DG45: 00:00:00 | DH45: 00:00:00 | DI45: 00:00:00 | DJ45: 00:00:00 | DK45: 00:00:00 | DL45: 00:00:00 | DM45: 00:00:00 | DN45: 00:00:00 | DO45: 00:00:00 | DP45: 00:00:00 | DQ45: 00:00:00 | DR45: 00:00:00 | DS45: 00:00:00 | DT45: 00:00:00 | DU45: 00:00:00 | DV45: 00:00:00 | DW45: 00:00:00 | DX45: 00:00:00 | DY45: 00:00:00 | DZ45: 00:00:00 | EA45: 00:00:00 | EB45: =EA45+IF($G7=1,365,0)+IF($G7=2,182.5,0)+IF($G7=4,91.25,0) -> 00:00:00 | EC45: 00:00:00 | ED45: 00:00:00 | EE45: 00:00:00 | EF45: 00:00:00 | EG45: 00:00:00 | EH45: 00:00:00 | EI45: 00:00:00 | EJ45: 00:00:00 | EK45: 00:00:00 | EL45: 00:00:00 | EM45: 00:00:00 | EN45: 00:00:00 | EO45: 00:00:00 | EP45: 00:00:00 | EQ45: 00:00:00 | ER45: 00:00:00 | ES45: 00:00:00 | ET45: 00:00:00 | EU45: 00:00:00 | EV45: 00:00:00 | EW45: 00:00:00 | EX45: 00:00:00 | EY45: 00:00:00 | EZ45: 00:00:00 | FA45: 00:00:00 | FB45: 00:00:00 | FC45: 00:00:00 | FD45: 00:00:00 | FE45: 00:00:00 | FF45: 00:00:00 | FG45: 00:00:00 | FH45: 00:00:00 | FI45: 00:00:00 | FJ45: 00:00:00 | FK45: 00:00:00 | FL45: 00:00:00 | FM45: 00:00:00 | FN45: 00:00:00 | FO45: 00:00:00 | FP45: 00:00:00 | FQ45: 00:00:00 | FR45: 00:00:00 | FS45: 00:00:00 | FT45: 00:00:00 | FU45: 00:00:00 | FV45: 00:00:00 | FW45: 00:00:00 | FX45: 00:00:00 | FY45: 00:00:00 | FZ45: 00:00:00 | GA45: 00:00:00 | GB45: 00:00:00 | GC45: 00:00:00 | GD45: 00:00:00 | GE45: 00:00:00 | GF45: 00:00:00 | GG45: 00:00:00 | GH45: 00:00:00 | GI45: 00:00:00 | GJ45: 00:00:00 | GK45: 00:00:00 | GL45: 00:00:00 | GM45: 00:00:00 | GN45: =GM45+IF($G7=1,365,0)+IF($G7=2,182.5,0)+IF($G7=4,91.25,0) -> 00:00:00 | GO45: 00:00:00 | GP45: 00:00:00 | GQ45: 00:00:00 | GR45: 00:00:00 | GS45: 00:00:00
A46: Bond 6 | B46: =(IF(B45=F7,100,0)+IF(G7=1,1,0)*J7*100+IF(G7=2,0.5,0)*J7*100+IF(G7=4,0.25,0)*J7*100)*IF(ISBLANK(F7)=TRUE,0,1) -> 0 | C46: =IF(C45>$F7+1,0,1)*(IF(D46=0,100,0)+IF($G7=1,1,0)*$J7*100+IF($G7=2,0.5,0)*$J7*100+IF($G7=4,0.25,0)*$J7*100) -> 100 | D46: =IF(D45>$F7+1,0,1)*(IF(E46=0,100,0)+IF($G7=1,1,0)*$J7*100+IF($G7=2,0.5,0)*$J7*100+IF($G7=4,0.25,0)*$J7*100) -> 0 | E46: 100 | F46: 0 | G46: 100 | H46: 0 | I46: 100 | J46: 0 | K46: 100 | L46: 0 | M46: 100 | N46: 0 | O46: 100 | P46: 0 | Q46: 100 | R46: 0 | S46: 100 | T46: 0 | U46: 100 | V46: 0 | W46: 100 | X46: 0 | Y46: 100 | Z46: 0 | AA46: 100 | AB46: 0 | AC46: 100 | AD46: 0 | AE46: 100 | AF46: 0 | AG46: 100 | AH46: 0 | AI46: 100 | AJ46: 0 | AK46: 100 | AL46: 0 | AM46: 100 | AN46: 0 | AO46: 100 | AP46: 0 | AQ46: 100 | AR46: 0 | AS46: 100 | AT46: 0 | AU46: 100 | AV46: 0 | AW46: 100 | AX46: 0 | AY46: 100 | AZ46: 0 | BA46: 100 | BB46: 0 | BC46: 100 | BD46: 0 | BE46: 100 | BF46: 0 | BG46: 100 | BH46: 0 | BI46: 100 | BJ46: 0 | BK46: 100 | BL46: 0 | BM46: 100 | BN46: 0 | BO46: 100 | BP46: =IF(BP45>$F7+1,0,1)*(IF(BQ46=0,100,0)+IF($G7=1,1,0)*$J7*100+IF($G7=2,0.5,0)*$J7*100+IF($G7=4,0.25,0)*$J7*100) -> 0 | BQ46: 100 | BR46: 0 | BS46: 100 | BT46: 0 | BU46: 100 | BV46: 0 | BW46: 100 | BX46: 0 | BY46: 100 | BZ46: 0 | CA46: 100 | CB46: 0 | CC46: 100 | CD46: 0 | CE46: 100 | CF46: 0 | CG46: 100 | CH46: 0 | CI46: 100 | CJ46: 0 | CK46: 100 | CL46: 0 | CM46: 100 | CN46: 0 | CO46: 100 | CP46: 0 | CQ46: 100 | CR46: 0 | CS46: 100 | CT46: 0 | CU46: 100 | CV46: 0 | CW46: 100 | CX46: 0 | CY46: 100 | CZ46: 0 | DA46: 100 | DB46: 0 | DC46: 100 | DD46: 0 | DE46: 100 | DF46: 0 | DG46: 100 | DH46: 0 | DI46: 100 | DJ46: 0 | DK46: 100 | DL46: 0 | DM46: 100 | DN46: 0 | DO46: 100 | DP46: 0 | DQ46: 100 | DR46: 0 | DS46: 100 | DT46: 0 | DU46: 100 | DV46: 0 | DW46: 100 | DX46: 0 | DY46: 100 | DZ46: 0 | EA46: 100 | EB46: =IF(EB45>$F7+1,0,1)*(IF(EC46=0,100,0)+IF($G7=1,1,0)*$J7*100+IF($G7=2,0.5,0)*$J7*100+IF($G7=4,0.25,0)*$J7*100) -> 0 | EC46: 100 | ED46: 0 | EE46: 100 | EF46: 0 | EG46: 100 | EH46: 0 | EI46: 100 | EJ46: 0 | EK46: 100 | EL46: 0 | EM46: 100 | EN46: 0 | EO46: 100 | EP46: 0 | EQ46: 100 | ER46: 0 | ES46: 100 | ET46: 0 | EU46: 100 | EV46: 0 | EW46: 100 | EX46: 0 | EY46: 100 | EZ46: 0 | FA46: 100 | FB46: 0 | FC46: 100 | FD46: 0 | FE46: 100 | FF46: 0 | FG46: 100 | FH46: 0 | FI46: 100 | FJ46: 0 | FK46: 100 | FL46: 0 | FM46: 100 | FN46: 0 | FO46: 100 | FP46: 0 | FQ46: 100 | FR46: 0 | FS46: 100 | FT46: 0 | FU46: 100 | FV46: 0 | FW46: 100 | FX46: 0 | FY46: 100 | FZ46: 0 | GA46: 100 | GB46: 0 | GC46: 100 | GD46: 0 | GE46: 100 | GF46: 0 | GG46: 100 | GH46: 0 | GI46: 100 | GJ46: 0 | GK46: 100 | GL46: 0 | GM46: 100 | GN46: =IF(GN45>$F7+1,0,1)*(IF(GO46=0,100,0)+IF($G7=1,1,0)*$J7*100+IF($G7=2,0.5,0)*$J7*100+IF($G7=4,0.25,0)*$J7*100) -> 0 | GO46: 100 | GP46: 0 | GQ46: 100 | GR46: 0 | GS46: 100
A47: Payment Dates | B47: =IF(E8=0,F8,E8) -> 1/1/2020 | C47: =B47+IF($G8=1,365,0)+IF($G8=2,182.5,0)+IF($G8=4,91.25,0) -> 2020-12-31 | D47: =C47+IF($G8=1,365,0)+IF($G8=2,182.5,0)+IF($G8=4,91.25,0) -> 2021-12-31 | E47: 2022-12-31 | F47: 2023-12-31 | G47: 2024-12-30 | H47: 2025-12-30 | I47: 2026-12-30 | J47: 2027-12-30 | K47: 2028-12-29 | L47: 2029-12-29 | M47: 2030-12-29 | N47: 2031-12-29 | O47: 2032-12-28 | P47: 2033-12-28 | Q47: 2034-12-28 | R47: 2035-12-28 | S47: 2036-12-27 | T47: 2037-12-27 | U47: 2038-12-27 | V47: 2039-12-27 | W47: 2040-12-26 | X47: 2041-12-26 | Y47: 2042-12-26 | Z47: 2043-12-26 | AA47: 2044-12-25 | AB47: 2045-12-25 | AC47: 2046-12-25 | AD47: 2047-12-25 | AE47: 2048-12-24 | AF47: 2049-12-24 | AG47: 2050-12-24 | AH47: 2051-12-24 | AI47: 2052-12-23 | AJ47: 2053-12-23 | AK47: 2054-12-23 | AL47: 2055-12-23 | AM47: 2056-12-22 | AN47: 2057-12-22 | AO47: 2058-12-22 | AP47: 2059-12-22 | AQ47: 2060-12-21 | AR47: 2061-12-21 | AS47: 2062-12-21 | AT47: 2063-12-21 | AU47: 2064-12-20 | AV47: 2065-12-20 | AW47: 2066-12-20 | AX47: 2067-12-20 | AY47: 2068-12-19 | AZ47: 2069-12-19 | BA47: 2070-12-19 | BB47: 2071-12-19 | BC47: 2072-12-18 | BD47: 2073-12-18 | BE47: 2074-12-18 | BF47: 2075-12-18 | BG47: 2076-12-17 | BH47: 2077-12-17 | BI47: 2078-12-17 | BJ47: 2079-12-17 | BK47: 2080-12-16 | BL47: 2081-12-16 | BM47: 2082-12-16 | BN47: 2083-12-16 | BO47: 2084-12-15 | BP47: =BO47+IF($G8=1,365,0)+IF($G8=2,182.5,0)+IF($G8=4,91.25,0) -> 2085-12-15 | BQ47: 2086-12-15 | BR47: 2087-12-15 | BS47: 2088-12-14 | BT47: 2089-12-14 | BU47: 2090-12-14 | BV47: 2091-12-14 | BW47: 2092-12-13 | BX47: 2093-12-13 | BY47: 2094-12-13 | BZ47: 2095-12-13 | CA47: 2096-12-12 | CB47: 2097-12-12 | CC47: 2098-12-12 | CD47: 2099-12-12 | CE47: 2100-12-12 | CF47: 2101-12-12 | CG47: 2102-12-12 | CH47: 2103-12-12 | CI47: 2104-12-11 | CJ47: 2105-12-11 | CK47: 2106-12-11 | CL47: 2107-12-11 | CM47: 2108-12-10 | CN47: 2109-12-10 | CO47: 2110-12-10 | CP47: 2111-12-10 | CQ47: 2112-12-09 | CR47: 2113-12-09 | CS47: 2114-12-09 | CT47: 2115-12-09 | CU47: 2116-12-08 | CV47: 2117-12-08 | CW47: 2118-12-08 | CX47: 2119-12-08 | CY47: 2120-12-07 | CZ47: 2121-12-07 | DA47: 2122-12-07 | DB47: 2123-12-07 | DC47: 2124-12-06 | DD47: 2125-12-06 | DE47: 2126-12-06 | DF47: 2127-12-06 | DG47: 2128-12-05 | DH47: 2129-12-05 | DI47: 2130-12-05 | DJ47: 2131-12-05 | DK47: 2132-12-04 | DL47: 2133-12-04 | DM47: 2134-12-04 | DN47: 2135-12-04 | DO47: 2136-12-03 | DP47: 2137-12-03 | DQ47: 2138-12-03 | DR47: 2139-12-03 | DS47: 2140-12-02 | DT47: 2141-12-02 | DU47: 2142-12-02 | DV47: 2143-12-02 | DW47: 2144-12-01 | DX47: 2145-12-01 | DY47: 2146-12-01 | DZ47: 2147-12-01 | EA47: 2148-11-30 | EB47: =EA47+IF($G8=1,365,0)+IF($G8=2,182.5,0)+IF($G8=4,91.25,0) -> 2149-11-30 | EC47: 2150-11-30 | ED47: 2151-11-30 | EE47: 2152-11-29 | EF47: 2153-11-29 | EG47: 2154-11-29 | EH47: 2155-11-29 | EI47: 2156-11-28 | EJ47: 2157-11-28 | EK47: 2158-11-28 | EL47: 2159-11-28 | EM47: 2160-11-27 | EN47: 2161-11-27 | EO47: 2162-11-27 | EP47: 2163-11-27 | EQ47: 2164-11-26 | ER47: 2165-11-26 | ES47: 2166-11-26 | ET47: 2167-11-26 | EU47: 2168-11-25 | EV47: 2169-11-25 | EW47: 2170-11-25 | EX47: 2171-11-25 | EY47: 2172-11-24 | EZ47: 2173-11-24 | FA47: 2174-11-24 | FB47: 2175-11-24 | FC47: 2176-11-23 | FD47: 2177-11-23 | FE47: 2178-11-23 | FF47: 2179-11-23 | FG47: 2180-11-22 | FH47: 2181-11-22 | FI47: 2182-11-22 | FJ47: 2183-11-22 | FK47: 2184-11-21 | FL47: 2185-11-21 | FM47: 2186-11-21 | FN47: 2187-11-21 | FO47: 2188-11-20 | FP47: 2189-11-20 | FQ47: 2190-11-20 | FR47: 2191-11-20 | FS47: 2192-11-19 | FT47: 2193-11-19 | FU47: 2194-11-19 | FV47: 2195-11-19 | FW47: 2196-11-18 | FX47: 2197-11-18 | FY47: 2198-11-18 | FZ47: 2199-11-18 | GA47: 2200-11-18 | GB47: 2201-11-18 | GC47: 2202-11-18 | GD47: 2203-11-18 | GE47: 2204-11-17 | GF47: 2205-11-17 | GG47: 2206-11-17 | GH47: 2207-11-17 | GI47: 2208-11-16 | GJ47: 2209-11-16 | GK47: 2210-11-16 | GL47: 2211-11-16 | GM47: 2212-11-15 | GN47: =GM47+IF($G8=1,365,0)+IF($G8=2,182.5,0)+IF($G8=4,91.25,0) -> 2213-11-15 | GO47: 2214-11-15 | GP47: 2215-11-15 | GQ47: 2216-11-14 | GR47: 2217-11-14 | GS47: 2218-11-14
A48: Bond 7 | B48: =(IF(B47=F8,100,0)+IF(G8=1,1,0)*J8*100+IF(G8=2,0.5,0)*J8*100+IF(G8=4,0.25,0)*J8*100)*IF(ISBLANK(F8)=TRUE,0,1) -> 105 | C48: =IF(C47>$F8+1,0,1)*(IF(D48=0,100,0)+IF($G8=1,1,0)*$J8*100+IF($G8=2,0.5,0)*$J8*100+IF($G8=4,0.25,0)*$J8*100) -> 0 | D48: =IF(D47>$F8+1,0,1)*(IF(E48=0,100,0)+IF($G8=1,1,0)*$J8*100+IF($G8=2,0.5,0)*$J8*100+IF($G8=4,0.25,0)*$J8*100) -> 0 | E48: 0 | F48: 0 | G48: 0 | H48: 0 | I48: 0 | J48: 0 | K48: 0 | L48: 0 | M48: 0 | N48: 0 | O48: 0 | P48: 0 | Q48: 0 | R48: 0 | S48: 0 | T48: 0 | U48: 0 | V48: 0 | W48: 0 | X48: 0 | Y48: 0 | Z48: 0 | AA48: 0 | AB48: 0 | AC48: 0 | AD48: 0 | AE48: 0 | AF48: 0 | AG48: 0 | AH48: 0 | AI48: 0 | AJ48: 0 | AK48: 0 | AL48: 0 | AM48: 0 | AN48: 0 | AO48: 0 | AP48: 0 | AQ48: 0 | AR48: 0 | AS48: 0 | AT48: 0 | AU48: 0 | AV48: 0 | AW48: 0 | AX48: 0 | AY48: 0 | AZ48: 0 | BA48: 0 | BB48: 0 | BC48: 0 | BD48: 0 | BE48: 0 | BF48: 0 | BG48: 0 | BH48: 0 | BI48: 0 | BJ48: 0 | BK48: 0 | BL48: 0 | BM48: 0 | BN48: 0 | BO48: 0 | BP48: =IF(BP47>$F8+1,0,1)*(IF(BQ48=0,100,0)+IF($G8=1,1,0)*$J8*100+IF($G8=2,0.5,0)*$J8*100+IF($G8=4,0.25,0)*$J8*100) -> 0 | BQ48: 0 | BR48: 0 | BS48: 0 | BT48: 0 | BU48: 0 | BV48: 0 | BW48: 0 | BX48: 0 | BY48: 0 | BZ48: 0 | CA48: 0 | CB48: 0 | CC48: 0 | CD48: 0 | CE48: 0 | CF48: 0 | CG48: 0 | CH48: 0 | CI48: 0 | CJ48: 0 | CK48: 0 | CL48: 0 | CM48: 0 | CN48: 0 | CO48: 0 | CP48: 0 | CQ48: 0 | CR48: 0 | CS48: 0 | CT48: 0 | CU48: 0 | CV48: 0 | CW48: 0 | CX48: 0 | CY48: 0 | CZ48: 0 | DA48: 0 | DB48: 0 | DC48: 0 | DD48: 0 | DE48: 0 | DF48: 0 | DG48: 0 | DH48: 0 | DI48: 0 | DJ48: 0 | DK48: 0 | DL48: 0 | DM48: 0 | DN48: 0 | DO48: 0 | DP48: 0 | DQ48: 0 | DR48: 0 | DS48: 0 | DT48: 0 | DU48: 0 | DV48: 0 | DW48: 0 | DX48: 0 | DY48: 0 | DZ48: 0 | EA48: 0 | EB48: =IF(EB47>$F8+1,0,1)*(IF(EC48=0,100,0)+IF($G8=1,1,0)*$J8*100+IF($G8=2,0.5,0)*$J8*100+IF($G8=4,0.25,0)*$J8*100) -> 0 | EC48: 0 | ED48: 0 | EE48: 0 | EF48: 0 | EG48: 0 | EH48: 0 | EI48: 0 | EJ48: 0 | EK48: 0 | EL48: 0 | EM48: 0 | EN48: 0 | EO48: 0 | EP48: 0 | EQ48: 0 | ER48: 0 | ES48: 0 | ET48: 0 | EU48: 0 | EV48: 0 | EW48: 0 | EX48: 0 | EY48: 0 | EZ48: 0 | FA48: 0 | FB48: 0 | FC48: 0 | FD48: 0 | FE48: 0 | FF48: 0 | FG48: 0 | FH48: 0 | FI48: 0 | FJ48: 0 | FK48: 0 | FL48: 0 | FM48: 0 | FN48: 0 | FO48: 0 | FP48: 0 | FQ48: 0 | FR48: 0 | FS48: 0 | FT48: 0 | FU48: 0 | FV48: 0 | FW48: 0 | FX48: 0 | FY48: 0 | FZ48: 0 | GA48: 0 | GB48: 0 | GC48: 0 | GD48: 0 | GE48: 0 | GF48: 0 | GG48: 0 | GH48: 0 | GI48: 0 | GJ48: 0 | GK48: 0 | GL48: 0 | GM48: 0 | GN48: =IF(GN47>$F8+1,0,1)*(IF(GO48=0,100,0)+IF($G8=1,1,0)*$J8*100+IF($G8=2,0.5,0)*$J8*100+IF($G8=4,0.25,0)*$J8*100) -> 0 | GO48: 0 | GP48: 0 | GQ48: 0 | GR48: 0 | GS48: 0
A49: Payment Dates | B49: =IF(E9=0,F9,E9) -> 00:00:00 | C49: =B49+IF($G9=1,365,0)+IF($G9=2,182.5,0)+IF($G9=4,91.25,0) -> 00:00:00 | D49: =C49+IF($G9=1,365,0)+IF($G9=2,182.5,0)+IF($G9=4,91.25,0) -> 00:00:00 | E49: 00:00:00 | F49: 00:00:00 | G49: 00:00:00 | H49: 00:00:00 | I49: 00:00:00 | J49: 00:00:00 | K49: 00:00:00 | L49: 00:00:00 | M49: 00:00:00 | N49: 00:00:00 | O49: 00:00:00 | P49: 00:00:00 | Q49: 00:00:00 | R49: 00:00:00 | S49: 00:00:00 | T49: 00:00:00 | U49: 00:00:00 | V49: 00:00:00 | W49: 00:00:00 | X49: 00:00:00 | Y49: 00:00:00 | Z49: 00:00:00 | AA49: 00:00:00 | AB49: 00:00:00 | AC49: 00:00:00 | AD49: 00:00:00 | AE49: 00:00:00 | AF49: 00:00:00 | AG49: 00:00:00 | AH49: 00:00:00 | AI49: 00:00:00 | AJ49: 00:00:00 | AK49: 00:00:00 | AL49: 00:00:00 | AM49: 00:00:00 | AN49: 00:00:00 | AO49: 00:00:00 | AP49: 00:00:00 | AQ49: 00:00:00 | AR49: 00:00:00 | AS49: 00:00:00 | AT49: 00:00:00 | AU49: 00:00:00 | AV49: 00:00:00 | AW49: 00:00:00 | AX49: 00:00:00 | AY49: 00:00:00 | AZ49: 00:00:00 | BA49: 00:00:00 | BB49: 00:00:00 | BC49: 00:00:00 | BD49: 00:00:00 | BE49: 00:00:00 | BF49: 00:00:00 | BG49: 00:00:00 | BH49: 00:00:00 | BI49: 00:00:00 | BJ49: 00:00:00 | BK49: 00:00:00 | BL49: 00:00:00 | BM49: 00:00:00 | BN49: 00:00:00 | BO49: 00:00:00 | BP49: =BO49+IF($G9=1,365,0)+IF($G9=2,182.5,0)+IF($G9=4,91.25,0) -> 00:00:00 | BQ49: 00:00:00 | BR49: 00:00:00 | BS49: 00:00:00 | BT49: 00:00:00 | BU49: 00:00:00 | BV49: 00:00:00 | BW49: 00:00:00 | BX49: 00:00:00 | BY49: 00:00:00 | BZ49: 00:00:00 | CA49: 00:00:00 | CB49: 00:00:00 | CC49: 00:00:00 | CD49: 00:00:00 | CE49: 00:00:00 | CF49: 00:00:00 | CG49: 00:00:00 | CH49: 00:00:00 | CI49: 00:00:00 | CJ49: 00:00:00 | CK49: 00:00:00 | CL49: 00:00:00 | CM49: 00:00:00 | CN49: 00:00:00 | CO49: 00:00:00 | CP49: 00:00:00 | CQ49: 00:00:00 | CR49: 00:00:00 | CS49: 00:00:00 | CT49: 00:00:00 | CU49: 00:00:00 | CV49: 00:00:00 | CW49: 00:00:00 | CX49: 00:00:00 | CY49: 00:00:00 | CZ49: 00:00:00 | DA49: 00:00:00 | DB49: 00:00:00 | DC49: 00:00:00 | DD49: 00:00:00 | DE49: 00:00:00 | DF49: 00:00:00 | DG49: 00:00:00 | DH49: 00:00:00 | DI49: 00:00:00 | DJ49: 00:00:00 | DK49: 00:00:00 | DL49: 00:00:00 | DM49: 00:00:00 | DN49: 00:00:00 | DO49: 00:00:00 | DP49: 00:00:00 | DQ49: 00:00:00 | DR49: 00:00:00 | DS49: 00:00:00 | DT49: 00:00:00 | DU49: 00:00:00 | DV49: 00:00:00 | DW49: 00:00:00 | DX49: 00:00:00 | DY49: 00:00:00 | DZ49: 00:00:00 | EA49: 00:00:00 | EB49: =EA49+IF($G9=1,365,0)+IF($G9=2,182.5,0)+IF($G9=4,91.25,0) -> 00:00:00 | EC49: 00:00:00 | ED49: 00:00:00 | EE49: 00:00:00 | EF49: 00:00:00 | EG49: 00:00:00 | EH49: 00:00:00 | EI49: 00:00:00 | EJ49: 00:00:00 | EK49: 00:00:00 | EL49: 00:00:00 | EM49: 00:00:00 | EN49: 00:00:00 | EO49: 00:00:00 | EP49: 00:00:00 | EQ49: 00:00:00 | ER49: 00:00:00 | ES49: 00:00:00 | ET49: 00:00:00 | EU49: 00:00:00 | EV49: 00:00:00 | EW49: 00:00:00 | EX49: 00:00:00 | EY49: 00:00:00 | EZ49: 00:00:00 | FA49: 00:00:00 | FB49: 00:00:00 | FC49: 00:00:00 | FD49: 00:00:00 | FE49: 00:00:00 | FF49: 00:00:00 | FG49: 00:00:00 | FH49: 00:00:00 | FI49: 00:00:00 | FJ49: 00:00:00 | FK49: 00:00:00 | FL49: 00:00:00 | FM49: 00:00:00 | FN49: 00:00:00 | FO49: 00:00:00 | FP49: 00:00:00 | FQ49: 00:00:00 | FR49: 00:00:00 | FS49: 00:00:00 | FT49: 00:00:00 | FU49: 00:00:00 | FV49: 00:00:00 | FW49: 00:00:00 | FX49: 00:00:00 | FY49: 00:00:00 | FZ49: 00:00:00 | GA49: 00:00:00 | GB49: 00:00:00 | GC49: 00:00:00 | GD49: 00:00:00 | GE49: 00:00:00 | GF49: 00:00:00 | GG49: 00:00:00 | GH49: 00:00:00 | GI49: 00:00:00 | GJ49: 00:00:00 | GK49: 00:00:00 | GL49: 00:00:00 | GM49: 00:00:00 | GN49: =GM49+IF($G9=1,365,0)+IF($G9=2,182.5,0)+IF($G9=4,91.25,0) -> 00:00:00 | GO49: 00:00:00 | GP49: 00:00:00 | GQ49: 00:00:00 | GR49: 00:00:00 | GS49: 00:00:00
A50: Bond 8 | B50: =(IF(B49=F9,100,0)+IF(G9=1,1,0)*J9*100+IF(G9=2,0.5,0)*J9*100+IF(G9=4,0.25,0)*J9*100)*IF(ISBLANK(F9)=TRUE,0,1) -> 0 | C50: =IF(C49>$F9+1,0,1)*(IF(D50=0,100,0)+IF($G9=1,1,0)*$J9*100+IF($G9=2,0.5,0)*$J9*100+IF($G9=4,0.25,0)*$J9*100) -> 100 | D50: =IF(D49>$F9+1,0,1)*(IF(E50=0,100,0)+IF($G9=1,1,0)*$J9*100+IF($G9=2,0.5,0)*$J9*100+IF($G9=4,0.25,0)*$J9*100) -> 0 | E50: 100 | F50: 0 | G50: 100 | H50: 0 | I50: 100 | J50: 0 | K50: 100 | L50: 0 | M50: 100 | N50: 0 | O50: 100 | P50: 0 | Q50: 100 | R50: 0 | S50: 100 | T50: 0 | U50: 100 | V50: 0 | W50: 100 | X50: 0 | Y50: 100 | Z50: 0 | AA50: 100 | AB50: 0 | AC50: 100 | AD50: 0 | AE50: 100 | AF50: 0 | AG50: 100 | AH50: 0 | AI50: 100 | AJ50: 0 | AK50: 100 | AL50: 0 | AM50: 100 | AN50: 0 | AO50: 100 | AP50: 0 | AQ50: 100 | AR50: 0 | AS50: 100 | AT50: 0 | AU50: 100 | AV50: 0 | AW50: 100 | AX50: 0 | AY50: 100 | AZ50: 0 | BA50: 100 | BB50: 0 | BC50: 100 | BD50: 0 | BE50: 100 | BF50: 0 | BG50: 100 | BH50: 0 | BI50: 100 | BJ50: 0 | BK50: 100 | BL50: 0 | BM50: 100 | BN50: 0 | BO50: 100 | BP50: =IF(BP49>$F9+1,0,1)*(IF(BQ50=0,100,0)+IF($G9=1,1,0)*$J9*100+IF($G9=2,0.5,0)*$J9*100+IF($G9=4,0.25,0)*$J9*100) -> 0 | BQ50: 100 | BR50: 0 | BS50: 100 | BT50: 0 | BU50: 100 | BV50: 0 | BW50: 100 | BX50: 0 | BY50: 100 | BZ50: 0 | CA50: 100 | CB50: 0 | CC50: 100 | CD50: 0 | CE50: 100 | CF50: 0 | CG50: 100 | CH50: 0 | CI50: 100 | CJ50: 0 | CK50: 100 | CL50: 0 | CM50: 100 | CN50: 0 | CO50: 100 | CP50: 0 | CQ50: 100 | CR50: 0 | CS50: 100 | CT50: 0 | CU50: 100 | CV50: 0 | CW50: 100 | CX50: 0 | CY50: 100 | CZ50: 0 | DA50: 100 | DB50: 0 | DC50: 100 | DD50: 0 | DE50: 100 | DF50: 0 | DG50: 100 | DH50: 0 | DI50: 100 | DJ50: 0 | DK50: 100 | DL50: 0 | DM50: 100 | DN50: 0 | DO50: 100 | DP50: 0 | DQ50: 100 | DR50: 0 | DS50: 100 | DT50: 0 | DU50: 100 | DV50: 0 | DW50: 100 | DX50: 0 | DY50: 100 | DZ50: 0 | EA50: 100 | EB50: =IF(EB49>$F9+1,0,1)*(IF(EC50=0,100,0)+IF($G9=1,1,0)*$J9*100+IF($G9=2,0.5,0)*$J9*100+IF($G9=4,0.25,0)*$J9*100) -> 0 | EC50: 100 | ED50: 0 | EE50: 100 | EF50: 0 | EG50: 100 | EH50: 0 | EI50: 100 | EJ50: 0 | EK50: 100 | EL50: 0 | EM50: 100 | EN50: 0 | EO50: 100 | EP50: 0 | EQ50: 100 | ER50: 0 | ES50: 100 | ET50: 0 | EU50: 100 | EV50: 0 | EW50: 100 | EX50: 0 | EY50: 100 | EZ50: 0 | FA50: 100 | FB50: 0 | FC50: 100 | FD50: 0 | FE50: 100 | FF50: 0 | FG50: 100 | FH50: 0 | FI50: 100 | FJ50: 0 | FK50: 100 | FL50: 0 | FM50: 100 | FN50: 0 | FO50: 100 | FP50: 0 | FQ50: 100 | FR50: 0 | FS50: 100 | FT50: 0 | FU50: 100 | FV50: 0 | FW50: 100 | FX50: 0 | FY50: 100 | FZ50: 0 | GA50: 100 | GB50: 0 | GC50: 100 | GD50: 0 | GE50: 100 | GF50: 0 | GG50: 100 | GH50: 0 | GI50: 100 | GJ50: 0 | GK50: 100 | GL50: 0 | GM50: 100 | GN50: =IF(GN49>$F9+1,0,1)*(IF(GO50=0,100,0)+IF($G9=1,1,0)*$J9*100+IF($G9=2,0.5,0)*$J9*100+IF($G9=4,0.25,0)*$J9*100) -> 0 | GO50: 100 | GP50: 0 | GQ50: 100 | GR50: 0 | GS50: 100
A51: Payment Dates | B51: =IF(E10=0,F10,E10) -> 10/17/2019 | C51: =B51+IF($G10=1,365,0)+IF($G10=2,182.5,0)+IF($G10=4,91.25,0) -> 2020-10-16 | D51: =C51+IF($G10=1,365,0)+IF($G10=2,182.5,0)+IF($G10=4,91.25,0) -> 2021-10-16 | E51: 2022-10-16 | F51: 2023-10-16 | G51: 2024-10-15 | H51: 2025-10-15 | I51: 2026-10-15 | J51: 2027-10-15 | K51: 2028-10-14 | L51: 2029-10-14 | M51: 2030-10-14 | N51: 2031-10-14 | O51: 2032-10-13 | P51: 2033-10-13 | Q51: 2034-10-13 | R51: 2035-10-13 | S51: 2036-10-12 | T51: 2037-10-12 | U51: 2038-10-12 | V51: 2039-10-12 | W51: 2040-10-11 | X51: 2041-10-11 | Y51: 2042-10-11 | Z51: 2043-10-11 | AA51: 2044-10-10 | AB51: 2045-10-10 | AC51: 2046-10-10 | AD51: 2047-10-10 | AE51: 2048-10-09 | AF51: 2049-10-09 | AG51: 2050-10-09 | AH51: 2051-10-09 | AI51: 2052-10-08 | AJ51: 2053-10-08 | AK51: 2054-10-08 | AL51: 2055-10-08 | AM51: 2056-10-07 | AN51: 2057-10-07 | AO51: 2058-10-07 | AP51: 2059-10-07 | AQ51: 2060-10-06 | AR51: 2061-10-06 | AS51: 2062-10-06 | AT51: 2063-10-06 | AU51: 2064-10-05 | AV51: 2065-10-05 | AW51: 2066-10-05 | AX51: 2067-10-05 | AY51: 2068-10-04 | AZ51: 2069-10-04 | BA51: 2070-10-04 | BB51: 2071-10-04 | BC51: 2072-10-03 | BD51: 2073-10-03 | BE51: 2074-10-03 | BF51: 2075-10-03 | BG51: 2076-10-02 | BH51: 2077-10-02 | BI51: 2078-10-02 | BJ51: 2079-10-02 | BK51: 2080-10-01 | BL51: 2081-10-01 | BM51: 2082-10-01 | BN51: 2083-10-01 | BO51: 2084-09-30 | BP51: =BO51+IF($G10=1,365,0)+IF($G10=2,182.5,0)+IF($G10=4,91.25,0) -> 2085-09-30 | BQ51: 2086-09-30 | BR51: 2087-09-30 | BS51: 2088-09-29 | BT51: 2089-09-29 | BU51: 2090-09-29 | BV51: 2091-09-29 | BW51: 2092-09-28 | BX51: 2093-09-28 | BY51: 2094-09-28 | BZ51: 2095-09-28 | CA51: 2096-09-27 | CB51: 2097-09-27 | CC51: 2098-09-27 | CD51: 2099-09-27 | CE51: 2100-09-27 | CF51: 2101-09-27 | CG51: 2102-09-27 | CH51: 2103-09-27 | CI51: 2104-09-26 | CJ51: 2105-09-26 | CK51: 2106-09-26 | CL51: 2107-09-26 | CM51: 2108-09-25 | CN51: 2109-09-25 | CO51: 2110-09-25 | CP51: 2111-09-25 | CQ51: 2112-09-24 | CR51: 2113-09-24 | CS51: 2114-09-24 | CT51: 2115-09-24 | CU51: 2116-09-23 | CV51: 2117-09-23 | CW51: 2118-09-23 | CX51: 2119-09-23 | CY51: 2120-09-22 | CZ51: 2121-09-22 | DA51: 2122-09-22 | DB51: 2123-09-22 | DC51: 2124-09-21 | DD51: 2125-09-21 | DE51: 2126-09-21 | DF51: 2127-09-21 | DG51: 2128-09-20 | DH51: 2129-09-20 | DI51: 2130-09-20 | DJ51: 2131-09-20 | DK51: 2132-09-19 | DL51: 2133-09-19 | DM51: 2134-09-19 | DN51: 2135-09-19 | DO51: 2136-09-18 | DP51: 2137-09-18 | DQ51: 2138-09-18 | DR51: 2139-09-18 | DS51: 2140-09-17 | DT51: 2141-09-17 | DU51: 2142-09-17 | DV51: 2143-09-17 | DW51: 2144-09-16 | DX51: 2145-09-16 | DY51: 2146-09-16 | DZ51: 2147-09-16 | EA51: 2148-09-15 | EB51: =EA51+IF($G10=1,365,0)+IF($G10=2,182.5,0)+IF($G10=4,91.25,0) -> 2149-09-15 | EC51: 2150-09-15 | ED51: 2151-09-15 | EE51: 2152-09-14 | EF51: 2153-09-14 | EG51: 2154-09-14 | EH51: 2155-09-14 | EI51: 2156-09-13 | EJ51: 2157-09-13 | EK51: 2158-09-13 | EL51: 2159-09-13 | EM51: 2160-09-12 | EN51: 2161-09-12 | EO51: 2162-09-12 | EP51: 2163-09-12 | EQ51: 2164-09-11 | ER51: 2165-09-11 | ES51: 2166-09-11 | ET51: 2167-09-11 | EU51: 2168-09-10 | EV51: 2169-09-10 | EW51: 2170-09-10 | EX51: 2171-09-10 | EY51: 2172-09-09 | EZ51: 2173-09-09 | FA51: 2174-09-09 | FB51: 2175-09-09 | FC51: 2176-09-08 | FD51: 2177-09-08 | FE51: 2178-09-08 | FF51: 2179-09-08 | FG51: 2180-09-07 | FH51: 2181-09-07 | FI51: 2182-09-07 | FJ51: 2183-09-07 | FK51: 2184-09-06 | FL51: 2185-09-06 | FM51: 2186-09-06 | FN51: 2187-09-06 | FO51: 2188-09-05 | FP51: 2189-09-05 | FQ51: 2190-09-05 | FR51: 2191-09-05 | FS51: 2192-09-04 | FT51: 2193-09-04 | FU51: 2194-09-04 | FV51: 2195-09-04 | FW51: 2196-09-03 | FX51: 2197-09-03 | FY51: 2198-09-03 | FZ51: 2199-09-03 | GA51: 2200-09-03 | GB51: 2201-09-03 | GC51: 2202-09-03 | GD51: 2203-09-03 | GE51: 2204-09-02 | GF51: 2205-09-02 | GG51: 2206-09-02 | GH51: 2207-09-02 | GI51: 2208-09-01 | GJ51: 2209-09-01 | GK51: 2210-09-01 | GL51: 2211-09-01 | GM51: 2212-08-31 | GN51: =GM51+IF($G10=1,365,0)+IF($G10=2,182.5,0)+IF($G10=4,91.25,0) -> 2213-08-31 | GO51: 2214-08-31 | GP51: 2215-08-31 | GQ51: 2216-08-30 | GR51: 2217-08-30 | GS51: 2218-08-30
A52: Bond 9 | B52: =(IF(B51=F10,100,0)+IF(G10=1,1,0)*J10*100+IF(G10=2,0.5,0)*J10*100+IF(G10=4,0.25,0)*J10*100)*IF(ISBLANK(F10)=TRUE,0,1) -> 2.947 | C52: =IF(C51>$F10+1,0,1)*(IF(D52=0,100,0)+IF($G10=1,1,0)*$J10*100+IF($G10=2,0.5,0)*$J10*100+IF($G10=4,0.25,0)*$J10*100) -> 2.947 | D52: =IF(D51>$F10+1,0,1)*(IF(E52=0,100,0)+IF($G10=1,1,0)*$J10*100+IF($G10=2,0.5,0)*$J10*100+IF($G10=4,0.25,0)*$J10*100) -> 2.947 | E52: 2.947 | F52: 2.947 | G52: 2.947 | H52: 2.947 | I52: 2.947 | J52: 2.947 | K52: 102.947 | L52: 0 | M52: 0 | N52: 0 | O52: 0 | P52: 0 | Q52: 0 | R52: 0 | S52: 0 | T52: 0 | U52: 0 | V52: 0 | W52: 0 | X52: 0 | Y52: 0 | Z52: 0 | AA52: 0 | AB52: 0 | AC52: 0 | AD52: 0 | AE52: 0 | AF52: 0 | AG52: 0 | AH52: 0 | AI52: 0 | AJ52: 0 | AK52: 0 | AL52: 0 | AM52: 0 | AN52: 0 | AO52: 0 | AP52: 0 | AQ52: 0 | AR52: 0 | AS52: 0 | AT52: 0 | AU52: 0 | AV52: 0 | AW52: 0 | AX52: 0 | AY52: 0 | AZ52: 0 | BA52: 0 | BB52: 0 | BC52: 0 | BD52: 0 | BE52: 0 | BF52: 0 | BG52: 0 | BH52: 0 | BI52: 0 | BJ52: 0 | BK52: 0 | BL52: 0 | BM52: 0 | BN52: 0 | BO52: 0 | BP52: =IF(BP51>$F10+1,0,1)*(IF(BQ52=0,100,0)+IF($G10=1,1,0)*$J10*100+IF($G10=2,0.5,0)*$J10*100+IF($G10=4,0.25,0)*$J10*100) -> 0 | BQ52: 0 | BR52: 0 | BS52: 0 | BT52: 0 | BU52: 0 | BV52: 0 | BW52: 0 | BX52: 0 | BY52: 0 | BZ52: 0 | CA52: 0 | CB52: 0 | CC52: 0 | CD52: 0 | CE52: 0 | CF52: 0 | CG52: 0 | CH52: 0 | CI52: 0 | CJ52: 0 | CK52: 0 | CL52: 0 | CM52: 0 | CN52: 0 | CO52: 0 | CP52: 0 | CQ52: 0 | CR52: 0 | CS52: 0 | CT52: 0 | CU52: 0 | CV52: 0 | CW52: 0 | CX52: 0 | CY52: 0 | CZ52: 0 | DA52: 0 | DB52: 0 | DC52: 0 | DD52: 0 | DE52: 0 | DF52: 0 | DG52: 0 | DH52: 0 | DI52: 0 | DJ52: 0 | DK52: 0 | DL52: 0 | DM52: 0 | DN52: 0 | DO52: 0 | DP52: 0 | DQ52: 0 | DR52: 0 | DS52: 0 | DT52: 0 | DU52: 0 | DV52: 0 | DW52: 0 | DX52: 0 | DY52: 0 | DZ52: 0 | EA52: 0 | EB52: =IF(EB51>$F10+1,0,1)*(IF(EC52=0,100,0)+IF($G10=1,1,0)*$J10*100+IF($G10=2,0.5,0)*$J10*100+IF($G10=4,0.25,0)*$J10*100) -> 0 | EC52: 0 | ED52: 0 | EE52: 0 | EF52: 0 | EG52: 0 | EH52: 0 | EI52: 0 | EJ52: 0 | EK52: 0 | EL52: 0 | EM52: 0 | EN52: 0 | EO52: 0 | EP52: 0 | EQ52: 0 | ER52: 0 | ES52: 0 | ET52: 0 | EU52: 0 | EV52: 0 | EW52: 0 | EX52: 0 | EY52: 0 | EZ52: 0 | FA52: 0 | FB52: 0 | FC52: 0 | FD52: 0 | FE52: 0 | FF52: 0 | FG52: 0 | FH52: 0 | FI52: 0 | FJ52: 0 | FK52: 0 | FL52: 0 | FM52: 0 | FN52: 0 | FO52: 0 | FP52: 0 | FQ52: 0 | FR52: 0 | FS52: 0 | FT52: 0 | FU52: 0 | FV52: 0 | FW52: 0 | FX52: 0 | FY52: 0 | FZ52: 0 | GA52: 0 | GB52: 0 | GC52: 0 | GD52: 0 | GE52: 0 | GF52: 0 | GG52: 0 | GH52: 0 | GI52: 0 | GJ52: 0 | GK52: 0 | GL52: 0 | GM52: 0 | GN52: =IF(GN51>$F10+1,0,1)*(IF(GO52=0,100,0)+IF($G10=1,1,0)*$J10*100+IF($G10=2,0.5,0)*$J10*100+IF($G10=4,0.25,0)*$J10*100) -> 0 | GO52: 0 | GP52: 0 | GQ52: 0 | GR52: 0 | GS52: 0
A53: Payment Dates | B53: =IF(E11=0,F11,E11) -> 4/2/2020 | C53: =B53+IF($G11=1,365,0)+IF($G11=2,182.5,0)+IF($G11=4,91.25,0) -> 2021-04-02 | D53: =C53+IF($G11=1,365,0)+IF($G11=2,182.5,0)+IF($G11=4,91.25,0) -> 2022-04-02 | E53: 2023-04-02 | F53: 2024-04-01 | G53: 2025-04-01 | H53: 2026-04-01 | I53: 2027-04-01 | J53: 2028-03-31 | K53: 2029-03-31 | L53: 2030-03-31 | M53: 2031-03-31 | N53: 2032-03-30 | O53: 2033-03-30 | P53: 2034-03-30 | Q53: 2035-03-30 | R53: 2036-03-29 | S53: 2037-03-29 | T53: 2038-03-29 | U53: 2039-03-29 | V53: 2040-03-28 | W53: 2041-03-28 | X53: 2042-03-28 | Y53: 2043-03-28 | Z53: 2044-03-27 | AA53: 2045-03-27 | AB53: 2046-03-27 | AC53: 2047-03-27 | AD53: 2048-03-26 | AE53: 2049-03-26 | AF53: 2050-03-26 | AG53: 2051-03-26 | AH53: 2052-03-25 | AI53: 2053-03-25 | AJ53: 2054-03-25 | AK53: 2055-03-25 | AL53: 2056-03-24 | AM53: 2057-03-24 | AN53: 2058-03-24 | AO53: 2059-03-24 | AP53: 2060-03-23 | AQ53: 2061-03-23 | AR53: 2062-03-23 | AS53: 2063-03-23 | AT53: 2064-03-22 | AU53: 2065-03-22 | AV53: 2066-03-22 | AW53: 2067-03-22 | AX53: 2068-03-21 | AY53: 2069-03-21 | AZ53: 2070-03-21 | BA53: 2071-03-21 | BB53: 2072-03-20 | BC53: 2073-03-20 | BD53: 2074-03-20 | BE53: 2075-03-20 | BF53: 2076-03-19 | BG53: 2077-03-19 | BH53: 2078-03-19 | BI53: 2079-03-19 | BJ53: 2080-03-18 | BK53: 2081-03-18 | BL53: 2082-03-18 | BM53: 2083-03-18 | BN53: 2084-03-17 | BO53: 2085-03-17 | BP53: =BO53+IF($G11=1,365,0)+IF($G11=2,182.5,0)+IF($G11=4,91.25,0) -> 2086-03-17 | BQ53: 2087-03-17 | BR53: 2088-03-16 | BS53: 2089-03-16 | BT53: 2090-03-16 | BU53: 2091-03-16 | BV53: 2092-03-15 | BW53: 2093-03-15 | BX53: 2094-03-15 | BY53: 2095-03-15 | BZ53: 2096-03-14 | CA53: 2097-03-14 | CB53: 2098-03-14 | CC53: 2099-03-14 | CD53: 2100-03-14 | CE53: 2101-03-14 | CF53: 2102-03-14 | CG53: 2103-03-14 | CH53: 2104-03-13 | CI53: 2105-03-13 | CJ53: 2106-03-13 | CK53: 2107-03-13 | CL53: 2108-03-12 | CM53: 2109-03-12 | CN53: 2110-03-12 | CO53: 2111-03-12 | CP53: 2112-03-11 | CQ53: 2113-03-11 | CR53: 2114-03-11 | CS53: 2115-03-11 | CT53: 2116-03-10 | CU53: 2117-03-10 | CV53: 2118-03-10 | CW53: 2119-03-10 | CX53: 2120-03-09 | CY53: 2121-03-09 | CZ53: 2122-03-09 | DA53: 2123-03-09 | DB53: 2124-03-08 | DC53: 2125-03-08 | DD53: 2126-03-08 | DE53: 2127-03-08 | DF53: 2128-03-07 | DG53: 2129-03-07 | DH53: 2130-03-07 | DI53: 2131-03-07 | DJ53: 2132-03-06 | DK53: 2133-03-06 | DL53: 2134-03-06 | DM53: 2135-03-06 | DN53: 2136-03-05 | DO53: 2137-03-05 | DP53: 2138-03-05 | DQ53: 2139-03-05 | DR53: 2140-03-04 | DS53: 2141-03-04 | DT53: 2142-03-04 | DU53: 2143-03-04 | DV53: 2144-03-03 | DW53: 2145-03-03 | DX53: 2146-03-03 | DY53: 2147-03-03 | DZ53: 2148-03-02 | EA53: 2149-03-02 | EB53: =EA53+IF($G11=1,365,0)+IF($G11=2,182.5,0)+IF($G11=4,91.25,0) -> 2150-03-02 | EC53: 2151-03-02 | ED53: 2152-03-01 | EE53: 2153-03-01 | EF53: 2154-03-01 | EG53: 2155-03-01 | EH53: 2156-02-29 | EI53: 2157-02-28 | EJ53: 2158-02-28 | EK53: 2159-02-28 | EL53: 2160-02-28 | EM53: 2161-02-27 | EN53: 2162-02-27 | EO53: 2163-02-27 | EP53: 2164-02-27 | EQ53: 2165-02-26 | ER53: 2166-02-26 | ES53: 2167-02-26 | ET53: 2168-02-26 | EU53: 2169-02-25 | EV53: 2170-02-25 | EW53: 2171-02-25 | EX53: 2172-02-25 | EY53: 2173-02-24 | EZ53: 2174-02-24 | FA53: 2175-02-24 | FB53: 2176-02-24 | FC53: 2177-02-23 | FD53: 2178-02-23 | FE53: 2179-02-23 | FF53: 2180-02-23 | FG53: 2181-02-22 | FH53: 2182-02-22 | FI53: 2183-02-22 | FJ53: 2184-02-22 | FK53: 2185-02-21 | FL53: 2186-02-21 | FM53: 2187-02-21 | FN53: 2188-02-21 | FO53: 2189-02-20 | FP53: 2190-02-20 | FQ53: 2191-02-20 | FR53: 2192-02-20 | FS53: 2193-02-19 | FT53: 2194-02-19 | FU53: 2195-02-19 | FV53: 2196-02-19 | FW53: 2197-02-18 | FX53: 2198-02-18 | FY53: 2199-02-18 | FZ53: 2200-02-18 | GA53: 2201-02-18 | GB53: 2202-02-18 | GC53: 2203-02-18 | GD53: 2204-02-18 | GE53: 2205-02-17 | GF53: 2206-02-17 | GG53: 2207-02-17 | GH53: 2208-02-17 | GI53: 2209-02-16 | GJ53: 2210-02-16 | GK53: 2211-02-16 | GL53: 2212-02-16 | GM53: 2213-02-15 | GN53: =GM53+IF($G11=1,365,0)+IF($G11=2,182.5,0)+IF($G11=4,91.25,0) -> 2214-02-15 | GO53: 2215-02-15 | GP53: 2216-02-15 | GQ53: 2217-02-14 | GR53: 2218-02-14 | GS53: 2219-02-14
A54: Bond 10 | B54: =(IF(B53=F11,100,0)+IF(G11=1,1,0)*J11*100+IF(G11=2,0.5,0)*J11*100+IF(G11=4,0.25,0)*J11*100)*IF(ISBLANK(F11)=TRUE,0,1) -> 4.4 | C54: =IF(C53>$F11+1,0,1)*(IF(D54=0,100,0)+IF($G11=1,1,0)*$J11*100+IF($G11=2,0.5,0)*$J11*100+IF($G11=4,0.25,0)*$J11*100) -> 4.4 | D54: =IF(D53>$F11+1,0,1)*(IF(E54=0,100,0)+IF($G11=1,1,0)*$J11*100+IF($G11=2,0.5,0)*$J11*100+IF($G11=4,0.25,0)*$J11*100) -> 4.4 | E54: 4.4 | F54: 4.4 | G54: 4.4 | H54: 4.4 | I54: 104.4 | J54: 0 | K54: 0 | L54: 0 | M54: 0 | N54: 0 | O54: 0 | P54: 0 | Q54: 0 | R54: 0 | S54: 0 | T54: 0 | U54: 0 | V54: 0 | W54: 0 | X54: 0 | Y54: 0 | Z54: 0 | AA54: 0 | AB54: 0 | AC54: 0 | AD54: 0 | AE54: 0 | AF54: 0 | AG54: 0 | AH54: 0 | AI54: 0 | AJ54: 0 | AK54: 0 | AL54: 0 | AM54: 0 | AN54: 0 | AO54: 0 | AP54: 0 | AQ54: 0 | AR54: 0 | AS54: 0 | AT54: 0 | AU54: 0 | AV54: 0 | AW54: 0 | AX54: 0 | AY54: 0 | AZ54: 0 | BA54: 0 | BB54: 0 | BC54: 0 | BD54: 0 | BE54: 0 | BF54: 0 | BG54: 0 | BH54: 0 | BI54: 0 | BJ54: 0 | BK54: 0 | BL54: 0 | BM54: 0 | BN54: 0 | BO54: 0 | BP54: =IF(BP53>$F11+1,0,1)*(IF(BQ54=0,100,0)+IF($G11=1,1,0)*$J11*100+IF($G11=2,0.5,0)*$J11*100+IF($G11=4,0.25,0)*$J11*100) -> 0 | BQ54: 0 | BR54: 0 | BS54: 0 | BT54: 0 | BU54: 0 | BV54: 0 | BW54: 0 | BX54: 0 | BY54: 0 | BZ54: 0 | CA54: 0 | CB54: 0 | CC54: 0 | CD54: 0 | CE54: 0 | CF54: 0 | CG54: 0 | CH54: 0 | CI54: 0 | CJ54: 0 | CK54: 0 | CL54: 0 | CM54: 0 | CN54: 0 | CO54: 0 | CP54: 0 | CQ54: 0 | CR54: 0 | CS54: 0 | CT54: 0 | CU54: 0 | CV54: 0 | CW54: 0 | CX54: 0 | CY54: 0 | CZ54: 0 | DA54: 0 | DB54: 0 | DC54: 0 | DD54: 0 | DE54: 0 | DF54: 0 | DG54: 0 | DH54: 0 | DI54: 0 | DJ54: 0 | DK54: 0 | DL54: 0 | DM54: 0 | DN54: 0 | DO54: 0 | DP54: 0 | DQ54: 0 | DR54: 0 | DS54: 0 | DT54: 0 | DU54: 0 | DV54: 0 | DW54: 0 | DX54: 0 | DY54: 0 | DZ54: 0 | EA54: 0 | EB54: =IF(EB53>$F11+1,0,1)*(IF(EC54=0,100,0)+IF($G11=1,1,0)*$J11*100+IF($G11=2,0.5,0)*$J11*100+IF($G11=4,0.25,0)*$J11*100) -> 0 | EC54: 0 | ED54: 0 | EE54: 0 | EF54: 0 | EG54: 0 | EH54: 0 | EI54: 0 | EJ54: 0 | EK54: 0 | EL54: 0 | EM54: 0 | EN54: 0 | EO54: 0 | EP54: 0 | EQ54: 0 | ER54: 0 | ES54: 0 | ET54: 0 | EU54: 0 | EV54: 0 | EW54: 0 | EX54: 0 | EY54: 0 | EZ54: 0 | FA54: 0 | FB54: 0 | FC54: 0 | FD54: 0 | FE54: 0 | FF54: 0 | FG54: 0 | FH54: 0 | FI54: 0 | FJ54: 0 | FK54: 0 | FL54: 0 | FM54: 0 | FN54: 0 | FO54: 0 | FP54: 0 | FQ54: 0 | FR54: 0 | FS54: 0 | FT54: 0 | FU54: 0 | FV54: 0 | FW54: 0 | FX54: 0 | FY54: 0 | FZ54: 0 | GA54: 0 | GB54: 0 | GC54: 0 | GD54: 0 | GE54: 0 | GF54: 0 | GG54: 0 | GH54: 0 | GI54: 0 | GJ54: 0 | GK54: 0 | GL54: 0 | GM54: 0 | GN54: =IF(GN53>$F11+1,0,1)*(IF(GO54=0,100,0)+IF($G11=1,1,0)*$J11*100+IF($G11=2,0.5,0)*$J11*100+IF($G11=4,0.25,0)*$J11*100) -> 0 | GO54: 0 | GP54: 0 | GQ54: 0 | GR54: 0 | GS54: 0
A55: Payment Dates | B55: =IF(E12=0,F12,E12) -> 00:00:00 | C55: =B55+IF($G12=1,365,0)+IF($G12=2,182.5,0)+IF($G12=4,91.25,0) -> 00:00:00 | D55: =C55+IF($G12=1,365,0)+IF($G12=2,182.5,0)+IF($G12=4,91.25,0) -> 00:00:00 | E55: 00:00:00 | F55: 00:00:00 | G55: 00:00:00 | H55: 00:00:00 | I55: 00:00:00 | J55: 00:00:00 | K55: 00:00:00 | L55: 00:00:00 | M55: 00:00:00 | N55: 00:00:00 | O55: 00:00:00 | P55: 00:00:00 | Q55: 00:00:00 | R55: 00:00:00 | S55: 00:00:00 | T55: 00:00:00 | U55: 00:00:00 | V55: 00:00:00 | W55: 00:00:00 | X55: 00:00:00 | Y55: 00:00:00 | Z55: 00:00:00 | AA55: 00:00:00 | AB55: 00:00:00 | AC55: 00:00:00 | AD55: 00:00:00 | AE55: 00:00:00 | AF55: 00:00:00 | AG55: 00:00:00 | AH55: 00:00:00 | AI55: 00:00:00 | AJ55: 00:00:00 | AK55: 00:00:00 | AL55: 00:00:00 | AM55: 00:00:00 | AN55: 00:00:00 | AO55: 00:00:00 | AP55: 00:00:00 | AQ55: 00:00:00 | AR55: 00:00:00 | AS55: 00:00:00 | AT55: 00:00:00 | AU55: 00:00:00 | AV55: 00:00:00 | AW55: 00:00:00 | AX55: 00:00:00 | AY55: 00:00:00 | AZ55: 00:00:00 | BA55: 00:00:00 | BB55: 00:00:00 | BC55: 00:00:00 | BD55: 00:00:00 | BE55: 00:00:00 | BF55: 00:00:00 | BG55: 00:00:00 | BH55: 00:00:00 | BI55: 00:00:00 | BJ55: 00:00:00 | BK55: 00:00:00 | BL55: 00:00:00 | BM55: 00:00:00 | BN55: 00:00:00 | BO55: 00:00:00 | BP55: =BO55+IF($G12=1,365,0)+IF($G12=2,182.5,0)+IF($G12=4,91.25,0) -> 00:00:00 | BQ55: 00:00:00 | BR55: 00:00:00 | BS55: 00:00:00 | BT55: 00:00:00 | BU55: 00:00:00 | BV55: 00:00:00 | BW55: 00:00:00 | BX55: 00:00:00 | BY55: 00:00:00 | BZ55: 00:00:00 | CA55: 00:00:00 | CB55: 00:00:00 | CC55: 00:00:00 | CD55: 00:00:00 | CE55: 00:00:00 | CF55: 00:00:00 | CG55: 00:00:00 | CH55: 00:00:00 | CI55: 00:00:00 | CJ55: 00:00:00 | CK55: 00:00:00 | CL55: 00:00:00 | CM55: 00:00:00 | CN55: 00:00:00 | CO55: 00:00:00 | CP55: 00:00:00 | CQ55: 00:00:00 | CR55: 00:00:00 | CS55: 00:00:00 | CT55: 00:00:00 | CU55: 00:00:00 | CV55: 00:00:00 | CW55: 00:00:00 | CX55: 00:00:00 | CY55: 00:00:00 | CZ55: 00:00:00 | DA55: 00:00:00 | DB55: 00:00:00 | DC55: 00:00:00 | DD55: 00:00:00 | DE55: 00:00:00 | DF55: 00:00:00 | DG55: 00:00:00 | DH55: 00:00:00 | DI55: 00:00:00 | DJ55: 00:00:00 | DK55: 00:00:00 | DL55: 00:00:00 | DM55: 00:00:00 | DN55: 00:00:00 | DO55: 00:00:00 | DP55: 00:00:00 | DQ55: 00:00:00 | DR55: 00:00:00 | DS55: 00:00:00 | DT55: 00:00:00 | DU55: 00:00:00 | DV55: 00:00:00 | DW55: 00:00:00 | DX55: 00:00:00 | DY55: 00:00:00 | DZ55: 00:00:00 | EA55: 00:00:00 | EB55: =EA55+IF($G12=1,365,0)+IF($G12=2,182.5,0)+IF($G12=4,91.25,0) -> 00:00:00 | EC55: 00:00:00 | ED55: 00:00:00 | EE55: 00:00:00 | EF55: 00:00:00 | EG55: 00:00:00 | EH55: 00:00:00 | EI55: 00:00:00 | EJ55: 00:00:00 | EK55: 00:00:00 | EL55: 00:00:00 | EM55: 00:00:00 | EN55: 00:00:00 | EO55: 00:00:00 | EP55: 00:00:00 | EQ55: 00:00:00 | ER55: 00:00:00 | ES55: 00:00:00 | ET55: 00:00:00 | EU55: 00:00:00 | EV55: 00:00:00 | EW55: 00:00:00 | EX55: 00:00:00 | EY55: 00:00:00 | EZ55: 00:00:00 | FA55: 00:00:00 | FB55: 00:00:00 | FC55: 00:00:00 | FD55: 00:00:00 | FE55: 00:00:00 | FF55: 00:00:00 | FG55: 00:00:00 | FH55: 00:00:00 | FI55: 00:00:00 | FJ55: 00:00:00 | FK55: 00:00:00 | FL55: 00:00:00 | FM55: 00:00:00 | FN55: 00:00:00 | FO55: 00:00:00 | FP55: 00:00:00 | FQ55: 00:00:00 | FR55: 00:00:00 | FS55: 00:00:00 | FT55: 00:00:00 | FU55: 00:00:00 | FV55: 00:00:00 | FW55: 00:00:00 | FX55: 00:00:00 | FY55: 00:00:00 | FZ55: 00:00:00 | GA55: 00:00:00 | GB55: 00:00:00 | GC55: 00:00:00 | GD55: 00:00:00 | GE55: 00:00:00 | GF55: 00:00:00 | GG55: 00:00:00 | GH55: 00:00:00 | GI55: 00:00:00 | GJ55: 00:00:00 | GK55: 00:00:00 | GL55: 00:00:00 | GM55: 00:00:00 | GN55: =GM55+IF($G12=1,365,0)+IF($G12=2,182.5,0)+IF($G12=4,91.25,0) -> 00:00:00 | GO55: 00:00:00 | GP55: 00:00:00 | GQ55: 00:00:00 | GR55: 00:00:00 | GS55: 00:00:00
A56: Bond 11 | B56: =(IF(B55=F12,100,0)+IF(G12=1,1,0)*J12*100+IF(G12=2,0.5,0)*J12*100+IF(G12=4,0.25,0)*J12*100)*IF(ISBLANK(F12)=TRUE,0,1) -> 0 | C56: =IF(C55>$F12+1,0,1)*(IF(D56=0,100,0)+IF($G12=1,1,0)*$J12*100+IF($G12=2,0.5,0)*$J12*100+IF($G12=4,0.25,0)*$J12*100) -> 100 | D56: =IF(D55>$F12+1,0,1)*(IF(E56=0,100,0)+IF($G12=1,1,0)*$J12*100+IF($G12=2,0.5,0)*$J12*100+IF($G12=4,0.25,0)*$J12*100) -> 0 | E56: 100 | F56: 0 | G56: 100 | H56: 0 | I56: 100 | J56: 0 | K56: 100 | L56: 0 | M56: 100 | N56: 0 | O56: 100 | P56: 0 | Q56: 100 | R56: 0 | S56: 100 | T56: 0 | U56: 100 | V56: 0 | W56: 100 | X56: 0 | Y56: 100 | Z56: 0 | AA56: 100 | AB56: 0 | AC56: 100 | AD56: 0 | AE56: 100 | AF56: 0 | AG56: 100 | AH56: 0 | AI56: 100 | AJ56: 0 | AK56: 100 | AL56: 0 | AM56: 100 | AN56: 0 | AO56: 100 | AP56: 0 | AQ56: 100 | AR56: 0 | AS56: 100 | AT56: 0 | AU56: 100 | AV56: 0 | AW56: 100 | AX56: 0 | AY56: 100 | AZ56: 0 | BA56: 100 | BB56: 0 | BC56: 100 | BD56: 0 | BE56: 100 | BF56: 0 | BG56: 100 | BH56: 0 | BI56: 100 | BJ56: 0 | BK56: 100 | BL56: 0 | BM56: 100 | BN56: 0 | BO56: 100 | BP56: =IF(BP55>$F12+1,0,1)*(IF(BQ56=0,100,0)+IF($G12=1,1,0)*$J12*100+IF($G12=2,0.5,0)*$J12*100+IF($G12=4,0.25,0)*$J12*100) -> 0 | BQ56: 100 | BR56: 0 | BS56: 100 | BT56: 0 | BU56: 100 | BV56: 0 | BW56: 100 | BX56: 0 | BY56: 100 | BZ56: 0 | CA56: 100 | CB56: 0 | CC56: 100 | CD56: 0 | CE56: 100 | CF56: 0 | CG56: 100 | CH56: 0 | CI56: 100 | CJ56: 0 | CK56: 100 | CL56: 0 | CM56: 100 | CN56: 0 | CO56: 100 | CP56: 0 | CQ56: 100 | CR56: 0 | CS56: 100 | CT56: 0 | CU56: 100 | CV56: 0 | CW56: 100 | CX56: 0 | CY56: 100 | CZ56: 0 | DA56: 100 | DB56: 0 | DC56: 100 | DD56: 0 | DE56: 100 | DF56: 0 | DG56: 100 | DH56: 0 | DI56: 100 | DJ56: 0 | DK56: 100 | DL56: 0 | DM56: 100 | DN56: 0 | DO56: 100 | DP56: 0 | DQ56: 100 | DR56: 0 | DS56: 100 | DT56: 0 | DU56: 100 | DV56: 0 | DW56: 100 | DX56: 0 | DY56: 100 | DZ56: 0 | EA56: 100 | EB56: =IF(EB55>$F12+1,0,1)*(IF(EC56=0,100,0)+IF($G12=1,1,0)*$J12*100+IF($G12=2,0.5,0)*$J12*100+IF($G12=4,0.25,0)*$J12*100) -> 0 | EC56: 100 | ED56: 0 | EE56: 100 | EF56: 0 | EG56: 100 | EH56: 0 | EI56: 100 | EJ56: 0 | EK56: 100 | EL56: 0 | EM56: 100 | EN56: 0 | EO56: 100 | EP56: 0 | EQ56: 100 | ER56: 0 | ES56: 100 | ET56: 0 | EU56: 100 | EV56: 0 | EW56: 100 | EX56: 0 | EY56: 100 | EZ56: 0 | FA56: 100 | FB56: 0 | FC56: 100 | FD56: 0 | FE56: 100 | FF56: 0 | FG56: 100 | FH56: 0 | FI56: 100 | FJ56: 0 | FK56: 100 | FL56: 0 | FM56: 100 | FN56: 0 | FO56: 100 | FP56: 0 | FQ56: 100 | FR56: 0 | FS56: 100 | FT56: 0 | FU56: 100 | FV56: 0 | FW56: 100 | FX56: 0 | FY56: 100 | FZ56: 0 | GA56: 100 | GB56: 0 | GC56: 100 | GD56: 0 | GE56: 100 | GF56: 0 | GG56: 100 | GH56: 0 | GI56: 100 | GJ56: 0 | GK56: 100 | GL56: 0 | GM56: 100 | GN56: =IF(GN55>$F12+1,0,1)*(IF(GO56=0,100,0)+IF($G12=1,1,0)*$J12*100+IF($G12=2,0.5,0)*$J12*100+IF($G12=4,0.25,0)*$J12*100) -> 0 | GO56: 100 | GP56: 0 | GQ56: 100 | GR56: 0 | GS56: 100
A57: Payment Dates | B57: =IF(E13=0,F13,E13) -> 00:00:00 | C57: =B57+IF($G13=1,365,0)+IF($G13=2,182.5,0)+IF($G13=4,91.25,0) -> 00:00:00 | D57: =C57+IF($G13=1,365,0)+IF($G13=2,182.5,0)+IF($G13=4,91.25,0) -> 00:00:00 | E57: 00:00:00 | F57: 00:00:00 | G57: 00:00:00 | H57: 00:00:00 | I57: 00:00:00 | J57: 00:00:00 | K57: 00:00:00 | L57: 00:00:00 | M57: 00:00:00 | N57: 00:00:00 | O57: 00:00:00 | P57: 00:00:00 | Q57: 00:00:00 | R57: 00:00:00 | S57: 00:00:00 | T57: 00:00:00 | U57: 00:00:00 | V57: 00:00:00 | W57: 00:00:00 | X57: 00:00:00 | Y57: 00:00:00 | Z57: 00:00:00 | AA57: 00:00:00 | AB57: 00:00:00 | AC57: 00:00:00 | AD57: 00:00:00 | AE57: 00:00:00 | AF57: 00:00:00 | AG57: 00:00:00 | AH57: 00:00:00 | AI57: 00:00:00 | AJ57: 00:00:00 | AK57: 00:00:00 | AL57: 00:00:00 | AM57: 00:00:00 | AN57: 00:00:00 | AO57: 00:00:00 | AP57: 00:00:00 | AQ57: 00:00:00 | AR57: 00:00:00 | AS57: 00:00:00 | AT57: 00:00:00 | AU57: 00:00:00 | AV57: 00:00:00 | AW57: 00:00:00 | AX57: 00:00:00 | AY57: 00:00:00 | AZ57: 00:00:00 | BA57: 00:00:00 | BB57: 00:00:00 | BC57: 00:00:00 | BD57: 00:00:00 | BE57: 00:00:00 | BF57: 00:00:00 | BG57: 00:00:00 | BH57: 00:00:00 | BI57: 00:00:00 | BJ57: 00:00:00 | BK57: 00:00:00 | BL57: 00:00:00 | BM57: 00:00:00 | BN57: 00:00:00 | BO57: 00:00:00 | BP57: =BO57+IF($G13=1,365,0)+IF($G13=2,182.5,0)+IF($G13=4,91.25,0) -> 00:00:00 | BQ57: 00:00:00 | BR57: 00:00:00 | BS57: 00:00:00 | BT57: 00:00:00 | BU57: 00:00:00 | BV57: 00:00:00 | BW57: 00:00:00 | BX57: 00:00:00 | BY57: 00:00:00 | BZ57: 00:00:00 | CA57: 00:00:00 | CB57: 00:00:00 | CC57: 00:00:00 | CD57: 00:00:00 | CE57: 00:00:00 | CF57: 00:00:00 | CG57: 00:00:00 | CH57: 00:00:00 | CI57: 00:00:00 | CJ57: 00:00:00 | CK57: 00:00:00 | CL57: 00:00:00 | CM57: 00:00:00 | CN57: 00:00:00 | CO57: 00:00:00 | CP57: 00:00:00 | CQ57: 00:00:00 | CR57: 00:00:00 | CS57: 00:00:00 | CT57: 00:00:00 | CU57: 00:00:00 | CV57: 00:00:00 | CW57: 00:00:00 | CX57: 00:00:00 | CY57: 00:00:00 | CZ57: 00:00:00 | DA57: 00:00:00 | DB57: 00:00:00 | DC57: 00:00:00 | DD57: 00:00:00 | DE57: 00:00:00 | DF57: 00:00:00 | DG57: 00:00:00 | DH57: 00:00:00 | DI57: 00:00:00 | DJ57: 00:00:00 | DK57: 00:00:00 | DL57: 00:00:00 | DM57: 00:00:00 | DN57: 00:00:00 | DO57: 00:00:00 | DP57: 00:00:00 | DQ57: 00:00:00 | DR57: 00:00:00 | DS57: 00:00:00 | DT57: 00:00:00 | DU57: 00:00:00 | DV57: 00:00:00 | DW57: 00:00:00 | DX57: 00:00:00 | DY57: 00:00:00 | DZ57: 00:00:00 | EA57: 00:00:00 | EB57: =EA57+IF($G13=1,365,0)+IF($G13=2,182.5,0)+IF($G13=4,91.25,0) -> 00:00:00 | EC57: 00:00:00 | ED57: 00:00:00 | EE57: 00:00:00 | EF57: 00:00:00 | EG57: 00:00:00 | EH57: 00:00:00 | EI57: 00:00:00 | EJ57: 00:00:00 | EK57: 00:00:00 | EL57: 00:00:00 | EM57: 00:00:00 | EN57: 00:00:00 | EO57: 00:00:00 | EP57: 00:00:00 | EQ57: 00:00:00 | ER57: 00:00:00 | ES57: 00:00:00 | ET57: 00:00:00 | EU57: 00:00:00 | EV57: 00:00:00 | EW57: 00:00:00 | EX57: 00:00:00 | EY57: 00:00:00 | EZ57: 00:00:00 | FA57: 00:00:00 | FB57: 00:00:00 | FC57: 00:00:00 | FD57: 00:00:00 | FE57: 00:00:00 | FF57: 00:00:00 | FG57: 00:00:00 | FH57: 00:00:00 | FI57: 00:00:00 | FJ57: 00:00:00 | FK57: 00:00:00 | FL57: 00:00:00 | FM57: 00:00:00 | FN57: 00:00:00 | FO57: 00:00:00 | FP57: 00:00:00 | FQ57: 00:00:00 | FR57: 00:00:00 | FS57: 00:00:00 | FT57: 00:00:00 | FU57: 00:00:00 | FV57: 00:00:00 | FW57: 00:00:00 | FX57: 00:00:00 | FY57: 00:00:00 | FZ57: 00:00:00 | GA57: 00:00:00 | GB57: 00:00:00 | GC57: 00:00:00 | GD57: 00:00:00 | GE57: 00:00:00 | GF57: 00:00:00 | GG57: 00:00:00 | GH57: 00:00:00 | GI57: 00:00:00 | GJ57: 00:00:00 | GK57: 00:00:00 | GL57: 00:00:00 | GM57: 00:00:00 | GN57: =GM57+IF($G13=1,365,0)+IF($G13=2,182.5,0)+IF($G13=4,91.25,0) -> 00:00:00 | GO57: 00:00:00 | GP57: 00:00:00 | GQ57: 00:00:00 | GR57: 00:00:00 | GS57: 00:00:00
A58: Bond 12 | B58: =(IF(B57=F13,100,0)+IF(G13=1,1,0)*J13*100+IF(G13=2,0.5,0)*J13*100+IF(G13=4,0.25,0)*J13*100)*IF(ISBLANK(F13)=TRUE,0,1) -> 0 | C58: =IF(C57>$F13+1,0,1)*(IF(D58=0,100,0)+IF($G13=1,1,0)*$J13*100+IF($G13=2,0.5,0)*$J13*100+IF($G13=4,0.25,0)*$J13*100) -> 100 | D58: =IF(D57>$F13+1,0,1)*(IF(E58=0,100,0)+IF($G13=1,1,0)*$J13*100+IF($G13=2,0.5,0)*$J13*100+IF($G13=4,0.25,0)*$J13*100) -> 0 | E58: 100 | F58: 0 | G58: 100 | H58: 0 | I58: 100 | J58: 0 | K58: 100 | L58: 0 | M58: 100 | N58: 0 | O58: 100 | P58: 0 | Q58: 100 | R58: 0 | S58: 100 | T58: 0 | U58: 100 | V58: 0 | W58: 100 | X58: 0 | Y58: 100 | Z58: 0 | AA58: 100 | AB58: 0 | AC58: 100 | AD58: 0 | AE58: 100 | AF58: 0 | AG58: 100 | AH58: 0 | AI58: 100 | AJ58: 0 | AK58: 100 | AL58: 0 | AM58: 100 | AN58: 0 | AO58: 100 | AP58: 0 | AQ58: 100 | AR58: 0 | AS58: 100 | AT58: 0 | AU58: 100 | AV58: 0 | AW58: 100 | AX58: 0 | AY58: 100 | AZ58: 0 | BA58: 100 | BB58: 0 | BC58: 100 | BD58: 0 | BE58: 100 | BF58: 0 | BG58: 100 | BH58: 0 | BI58: 100 | BJ58: 0 | BK58: 100 | BL58: 0 | BM58: 100 | BN58: 0 | BO58: 100 | BP58: =IF(BP57>$F13+1,0,1)*(IF(BQ58=0,100,0)+IF($G13=1,1,0)*$J13*100+IF($G13=2,0.5,0)*$J13*100+IF($G13=4,0.25,0)*$J13*100) -> 0 | BQ58: 100 | BR58: 0 | BS58: 100 | BT58: 0 | BU58: 100 | BV58: 0 | BW58: 100 | BX58: 0 | BY58: 100 | BZ58: 0 | CA58: 100 | CB58: 0 | CC58: 100 | CD58: 0 | CE58: 100 | CF58: 0 | CG58: 100 | CH58: 0 | CI58: 100 | CJ58: 0 | CK58: 100 | CL58: 0 | CM58: 100 | CN58: 0 | CO58: 100 | CP58: 0 | CQ58: 100 | CR58: 0 | CS58: 100 | CT58: 0 | CU58: 100 | CV58: 0 | CW58: 100 | CX58: 0 | CY58: 100 | CZ58: 0 | DA58: 100 | DB58: 0 | DC58: 100 | DD58: 0 | DE58: 100 | DF58: 0 | DG58: 100 | DH58: 0 | DI58: 100 | DJ58: 0 | DK58: 100 | DL58: 0 | DM58: 100 | DN58: 0 | DO58: 100 | DP58: 0 | DQ58: 100 | DR58: 0 | DS58: 100 | DT58: 0 | DU58: 100 | DV58: 0 | DW58: 100 | DX58: 0 | DY58: 100 | DZ58: 0 | EA58: 100 | EB58: =IF(EB57>$F13+1,0,1)*(IF(EC58=0,100,0)+IF($G13=1,1,0)*$J13*100+IF($G13=2,0.5,0)*$J13*100+IF($G13=4,0.25,0)*$J13*100) -> 0 | EC58: 100 | ED58: 0 | EE58: 100 | EF58: 0 | EG58: 100 | EH58: 0 | EI58: 100 | EJ58: 0 | EK58: 100 | EL58: 0 | EM58: 100 | EN58: 0 | EO58: 100 | EP58: 0 | EQ58: 100 | ER58: 0 | ES58: 100 | ET58: 0 | EU58: 100 | EV58: 0 | EW58: 100 | EX58: 0 | EY58: 100 | EZ58: 0 | FA58: 100 | FB58: 0 | FC58: 100 | FD58: 0 | FE58: 100 | FF58: 0 | FG58: 100 | FH58: 0 | FI58: 100 | FJ58: 0 | FK58: 100 | FL58: 0 | FM58: 100 | FN58: 0 | FO58: 100 | FP58: 0 | FQ58: 100 | FR58: 0 | FS58: 100 | FT58: 0 | FU58: 100 | FV58: 0 | FW58: 100 | FX58: 0 | FY58: 100 | FZ58: 0 | GA58: 100 | GB58: 0 | GC58: 100 | GD58: 0 | GE58: 100 | GF58: 0 | GG58: 100 | GH58: 0 | GI58: 100 | GJ58: 0 | GK58: 100 | GL58: 0 | GM58: 100 | GN58: =IF(GN57>$F13+1,0,1)*(IF(GO58=0,100,0)+IF($G13=1,1,0)*$J13*100+IF($G13=2,0.5,0)*$J13*100+IF($G13=4,0.25,0)*$J13*100) -> 0 | GO58: 100 | GP58: 0 | GQ58: 100 | GR58: 0 | GS58: 100
A59: Payment Dates | B59: =IF(E14=0,F14,E14) -> 00:00:00 | C59: =B59+IF($G14=1,365,0)+IF($G14=2,182.5,0)+IF($G14=4,91.25,0) -> 00:00:00 | D59: =C59+IF($G14=1,365,0)+IF($G14=2,182.5,0)+IF($G14=4,91.25,0) -> 00:00:00 | E59: 00:00:00 | F59: 00:00:00 | G59: 00:00:00 | H59: 00:00:00 | I59: 00:00:00 | J59: 00:00:00 | K59: 00:00:00 | L59: 00:00:00 | M59: 00:00:00 | N59: 00:00:00 | O59: 00:00:00 | P59: 00:00:00 | Q59: 00:00:00 | R59: 00:00:00 | S59: 00:00:00 | T59: 00:00:00 | U59: 00:00:00 | V59: 00:00:00 | W59: 00:00:00 | X59: 00:00:00 | Y59: 00:00:00 | Z59: 00:00:00 | AA59: 00:00:00 | AB59: 00:00:00 | AC59: 00:00:00 | AD59: 00:00:00 | AE59: 00:00:00 | AF59: 00:00:00 | AG59: 00:00:00 | AH59: 00:00:00 | AI59: 00:00:00 | AJ59: 00:00:00 | AK59: 00:00:00 | AL59: 00:00:00 | AM59: 00:00:00 | AN59: 00:00:00 | AO59: 00:00:00 | AP59: 00:00:00 | AQ59: 00:00:00 | AR59: 00:00:00 | AS59: 00:00:00 | AT59: 00:00:00 | AU59: 00:00:00 | AV59: 00:00:00 | AW59: 00:00:00 | AX59: 00:00:00 | AY59: 00:00:00 | AZ59: 00:00:00 | BA59: 00:00:00 | BB59: 00:00:00 | BC59: 00:00:00 | BD59: 00:00:00 | BE59: 00:00:00 | BF59: 00:00:00 | BG59: 00:00:00 | BH59: 00:00:00 | BI59: 00:00:00 | BJ59: 00:00:00 | BK59: 00:00:00 | BL59: 00:00:00 | BM59: 00:00:00 | BN59: 00:00:00 | BO59: 00:00:00 | BP59: =BO59+IF($G14=1,365,0)+IF($G14=2,182.5,0)+IF($G14=4,91.25,0) -> 00:00:00 | BQ59: 00:00:00 | BR59: 00:00:00 | BS59: 00:00:00 | BT59: 00:00:00 | BU59: 00:00:00 | BV59: 00:00:00 | BW59: 00:00:00 | BX59: 00:00:00 | BY59: 00:00:00 | BZ59: 00:00:00 | CA59: 00:00:00 | CB59: 00:00:00 | CC59: 00:00:00 | CD59: 00:00:00 | CE59: 00:00:00 | CF59: 00:00:00 | CG59: 00:00:00 | CH59: 00:00:00 | CI59: 00:00:00 | CJ59: 00:00:00 | CK59: 00:00:00 | CL59: 00:00:00 | CM59: 00:00:00 | CN59: 00:00:00 | CO59: 00:00:00 | CP59: 00:00:00 | CQ59: 00:00:00 | CR59: 00:00:00 | CS59: 00:00:00 | CT59: 00:00:00 | CU59: 00:00:00 | CV59: 00:00:00 | CW59: 00:00:00 | CX59: 00:00:00 | CY59: 00:00:00 | CZ59: 00:00:00 | DA59: 00:00:00 | DB59: 00:00:00 | DC59: 00:00:00 | DD59: 00:00:00 | DE59: 00:00:00 | DF59: 00:00:00 | DG59: 00:00:00 | DH59: 00:00:00 | DI59: 00:00:00 | DJ59: 00:00:00 | DK59: 00:00:00 | DL59: 00:00:00 | DM59: 00:00:00 | DN59: 00:00:00 | DO59: 00:00:00 | DP59: 00:00:00 | DQ59: 00:00:00 | DR59: 00:00:00 | DS59: 00:00:00 | DT59: 00:00:00 | DU59: 00:00:00 | DV59: 00:00:00 | DW59: 00:00:00 | DX59: 00:00:00 | DY59: 00:00:00 | DZ59: 00:00:00 | EA59: 00:00:00 | EB59: =EA59+IF($G14=1,365,0)+IF($G14=2,182.5,0)+IF($G14=4,91.25,0) -> 00:00:00 | EC59: 00:00:00 | ED59: 00:00:00 | EE59: 00:00:00 | EF59: 00:00:00 | EG59: 00:00:00 | EH59: 00:00:00 | EI59: 00:00:00 | EJ59: 00:00:00 | EK59: 00:00:00 | EL59: 00:00:00 | EM59: 00:00:00 | EN59: 00:00:00 | EO59: 00:00:00 | EP59: 00:00:00 | EQ59: 00:00:00 | ER59: 00:00:00 | ES59: 00:00:00 | ET59: 00:00:00 | EU59: 00:00:00 | EV59: 00:00:00 | EW59: 00:00:00 | EX59: 00:00:00 | EY59: 00:00:00 | EZ59: 00:00:00 | FA59: 00:00:00 | FB59: 00:00:00 | FC59: 00:00:00 | FD59: 00:00:00 | FE59: 00:00:00 | FF59: 00:00:00 | FG59: 00:00:00 | FH59: 00:00:00 | FI59: 00:00:00 | FJ59: 00:00:00 | FK59: 00:00:00 | FL59: 00:00:00 | FM59: 00:00:00 | FN59: 00:00:00 | FO59: 00:00:00 | FP59: 00:00:00 | FQ59: 00:00:00 | FR59: 00:00:00 | FS59: 00:00:00 | FT59: 00:00:00 | FU59: 00:00:00 | FV59: 00:00:00 | FW59: 00:00:00 | FX59: 00:00:00 | FY59: 00:00:00 | FZ59: 00:00:00 | GA59: 00:00:00 | GB59: 00:00:00 | GC59: 00:00:00 | GD59: 00:00:00 | GE59: 00:00:00 | GF59: 00:00:00 | GG59: 00:00:00 | GH59: 00:00:00 | GI59: 00:00:00 | GJ59: 00:00:00 | GK59: 00:00:00 | GL59: 00:00:00 | GM59: 00:00:00 | GN59: =GM59+IF($G14=1,365,0)+IF($G14=2,182.5,0)+IF($G14=4,91.25,0) -> 00:00:00 | GO59: 00:00:00 | GP59: 00:00:00 | GQ59: 00:00:00 | GR59: 00:00:00 | GS59: 00:00:00
A60: Bond 13 | B60: =(IF(B59=F14,100,0)+IF(G14=1,1,0)*J14*100+IF(G14=2,0.5,0)*J14*100+IF(G14=4,0.25,0)*J14*100)*IF(ISBLANK(F14)=TRUE,0,1) -> 0 | C60: =IF(C59>$F14+1,0,1)*(IF(D60=0,100,0)+IF($G14=1,1,0)*$J14*100+IF($G14=2,0.5,0)*$J14*100+IF($G14=4,0.25,0)*$J14*100) -> 100 | D60: =IF(D59>$F14+1,0,1)*(IF(E60=0,100,0)+IF($G14=1,1,0)*$J14*100+IF($G14=2,0.5,0)*$J14*100+IF($G14=4,0.25,0)*$J14*100) -> 0 | E60: 100 | F60: 0 | G60: 100 | H60: 0 | I60: 100 | J60: 0 | K60: 100 | L60: 0 | M60: 100 | N60: 0 | O60: 100 | P60: 0 | Q60: 100 | R60: 0 | S60: 100 | T60: 0 | U60: 100 | V60: 0 | W60: 100 | X60: 0 | Y60: 100 | Z60: 0 | AA60: 100 | AB60: 0 | AC60: 100 | AD60: 0 | AE60: 100 | AF60: 0 | AG60: 100 | AH60: 0 | AI60: 100 | AJ60: 0 | AK60: 100 | AL60: 0 | AM60: 100 | AN60: 0 | AO60: 100 | AP60: 0 | AQ60: 100 | AR60: 0 | AS60: 100 | AT60: 0 | AU60: 100 | AV60: 0 | AW60: 100 | AX60: 0 | AY60: 100 | AZ60: 0 | BA60: 100 | BB60: 0 | BC60: 100 | BD60: 0 | BE60: 100 | BF60: 0 | BG60: 100 | BH60: 0 | BI60: 100 | BJ60: 0 | BK60: 100 | BL60: 0 | BM60: 100 | BN60: 0 | BO60: 100 | BP60: =IF(BP59>$F14+1,0,1)*(IF(BQ60=0,100,0)+IF($G14=1,1,0)*$J14*100+IF($G14=2,0.5,0)*$J14*100+IF($G14=4,0.25,0)*$J14*100) -> 0 | BQ60: 100 | BR60: 0 | BS60: 100 | BT60: 0 | BU60: 100 | BV60: 0 | BW60: 100 | BX60: 0 | BY60: 100 | BZ60: 0 | CA60: 100 | CB60: 0 | CC60: 100 | CD60: 0 | CE60: 100 | CF60: 0 | CG60: 100 | CH60: 0 | CI60: 100 | CJ60: 0 | CK60: 100 | CL60: 0 | CM60: 100 | CN60: 0 | CO60: 100 | CP60: 0 | CQ60: 100 | CR60: 0 | CS60: 100 | CT60: 0 | CU60: 100 | CV60: 0 | CW60: 100 | CX60: 0 | CY60: 100 | CZ60: 0 | DA60: 100 | DB60: 0 | DC60: 100 | DD60: 0 | DE60: 100 | DF60: 0 | DG60: 100 | DH60: 0 | DI60: 100 | DJ60: 0 | DK60: 100 | DL60: 0 | DM60: 100 | DN60: 0 | DO60: 100 | DP60: 0 | DQ60: 100 | DR60: 0 | DS60: 100 | DT60: 0 | DU60: 100 | DV60: 0 | DW60: 100 | DX60: 0 | DY60: 100 | DZ60: 0 | EA60: 100 | EB60: =IF(EB59>$F14+1,0,1)*(IF(EC60=0,100,0)+IF($G14=1,1,0)*$J14*100+IF($G14=2,0.5,0)*$J14*100+IF($G14=4,0.25,0)*$J14*100) -> 0 | EC60: 100 | ED60: 0 | EE60: 100 | EF60: 0 | EG60: 100 | EH60: 0 | EI60: 100 | EJ60: 0 | EK60: 100 | EL60: 0 | EM60: 100 | EN60: 0 | EO60: 100 | EP60: 0 | EQ60: 100 | ER60: 0 | ES60: 100 | ET60: 0 | EU60: 100 | EV60: 0 | EW60: 100 | EX60: 0 | EY60: 100 | EZ60: 0 | FA60: 100 | FB60: 0 | FC60: 100 | FD60: 0 | FE60: 100 | FF60: 0 | FG60: 100 | FH60: 0 | FI60: 100 | FJ60: 0 | FK60: 100 | FL60: 0 | FM60: 100 | FN60: 0 | FO60: 100 | FP60: 0 | FQ60: 100 | FR60: 0 | FS60: 100 | FT60: 0 | FU60: 100 | FV60: 0 | FW60: 100 | FX60: 0 | FY60: 100 | FZ60: 0 | GA60: 100 | GB60: 0 | GC60: 100 | GD60: 0 | GE60: 100 | GF60: 0 | GG60: 100 | GH60: 0 | GI60: 100 | GJ60: 0 | GK60: 100 | GL60: 0 | GM60: 100 | GN60: =IF(GN59>$F14+1,0,1)*(IF(GO60=0,100,0)+IF($G14=1,1,0)*$J14*100+IF($G14=2,0.5,0)*$J14*100+IF($G14=4,0.25,0)*$J14*100) -> 0 | GO60: 100 | GP60: 0 | GQ60: 100 | GR60: 0 | GS60: 100
A61: Payment Dates | B61: =IF(E15=0,F15,E15) -> 4/2/2020 | C61: =B61+IF($G15=1,365,0)+IF($G15=2,182.5,0)+IF($G15=4,91.25,0) -> 2021-04-02 | D61: =C61+IF($G15=1,365,0)+IF($G15=2,182.5,0)+IF($G15=4,91.25,0) -> 2022-04-02 | E61: 2023-04-02 | F61: 2024-04-01 | G61: 2025-04-01 | H61: 2026-04-01 | I61: 2027-04-01 | J61: 2028-03-31 | K61: 2029-03-31 | L61: 2030-03-31 | M61: 2031-03-31 | N61: 2032-03-30 | O61: 2033-03-30 | P61: 2034-03-30 | Q61: 2035-03-30 | R61: 2036-03-29 | S61: 2037-03-29 | T61: 2038-03-29 | U61: 2039-03-29 | V61: 2040-03-28 | W61: 2041-03-28 | X61: 2042-03-28 | Y61: 2043-03-28 | Z61: 2044-03-27 | AA61: 2045-03-27 | AB61: 2046-03-27 | AC61: 2047-03-27 | AD61: 2048-03-26 | AE61: 2049-03-26 | AF61: 2050-03-26 | AG61: 2051-03-26 | AH61: 2052-03-25 | AI61: 2053-03-25 | AJ61: 2054-03-25 | AK61: 2055-03-25 | AL61: 2056-03-24 | AM61: 2057-03-24 | AN61: 2058-03-24 | AO61: 2059-03-24 | AP61: 2060-03-23 | AQ61: 2061-03-23 | AR61: 2062-03-23 | AS61: 2063-03-23 | AT61: 2064-03-22 | AU61: 2065-03-22 | AV61: 2066-03-22 | AW61: 2067-03-22 | AX61: 2068-03-21 | AY61: 2069-03-21 | AZ61: 2070-03-21 | BA61: 2071-03-21 | BB61: 2072-03-20 | BC61: 2073-03-20 | BD61: 2074-03-20 | BE61: 2075-03-20 | BF61: 2076-03-19 | BG61: 2077-03-19 | BH61: 2078-03-19 | BI61: 2079-03-19 | BJ61: 2080-03-18 | BK61: 2081-03-18 | BL61: 2082-03-18 | BM61: 2083-03-18 | BN61: 2084-03-17 | BO61: 2085-03-17 | BP61: =BO61+IF($G15=1,365,0)+IF($G15=2,182.5,0)+IF($G15=4,91.25,0) -> 2086-03-17 | BQ61: 2087-03-17 | BR61: 2088-03-16 | BS61: 2089-03-16 | BT61: 2090-03-16 | BU61: 2091-03-16 | BV61: 2092-03-15 | BW61: 2093-03-15 | BX61: 2094-03-15 | BY61: 2095-03-15 | BZ61: 2096-03-14 | CA61: 2097-03-14 | CB61: 2098-03-14 | CC61: 2099-03-14 | CD61: 2100-03-14 | CE61: 2101-03-14 | CF61: 2102-03-14 | CG61: 2103-03-14 | CH61: 2104-03-13 | CI61: 2105-03-13 | CJ61: 2106-03-13 | CK61: 2107-03-13 | CL61: 2108-03-12 | CM61: 2109-03-12 | CN61: 2110-03-12 | CO61: 2111-03-12 | CP61: 2112-03-11 | CQ61: 2113-03-11 | CR61: 2114-03-11 | CS61: 2115-03-11 | CT61: 2116-03-10 | CU61: 2117-03-10 | CV61: 2118-03-10 | CW61: 2119-03-10 | CX61: 2120-03-09 | CY61: 2121-03-09 | CZ61: 2122-03-09 | DA61: 2123-03-09 | DB61: 2124-03-08 | DC61: 2125-03-08 | DD61: 2126-03-08 | DE61: 2127-03-08 | DF61: 2128-03-07 | DG61: 2129-03-07 | DH61: 2130-03-07 | DI61: 2131-03-07 | DJ61: 2132-03-06 | DK61: 2133-03-06 | DL61: 2134-03-06 | DM61: 2135-03-06 | DN61: 2136-03-05 | DO61: 2137-03-05 | DP61: 2138-03-05 | DQ61: 2139-03-05 | DR61: 2140-03-04 | DS61: 2141-03-04 | DT61: 2142-03-04 | DU61: 2143-03-04 | DV61: 2144-03-03 | DW61: 2145-03-03 | DX61: 2146-03-03 | DY61: 2147-03-03 | DZ61: 2148-03-02 | EA61: 2149-03-02 | EB61: =EA61+IF($G15=1,365,0)+IF($G15=2,182.5,0)+IF($G15=4,91.25,0) -> 2150-03-02 | EC61: 2151-03-02 | ED61: 2152-03-01 | EE61: 2153-03-01 | EF61: 2154-03-01 | EG61: 2155-03-01 | EH61: 2156-02-29 | EI61: 2157-02-28 | EJ61: 2158-02-28 | EK61: 2159-02-28 | EL61: 2160-02-28 | EM61: 2161-02-27 | EN61: 2162-02-27 | EO61: 2163-02-27 | EP61: 2164-02-27 | EQ61: 2165-02-26 | ER61: 2166-02-26 | ES61: 2167-02-26 | ET61: 2168-02-26 | EU61: 2169-02-25 | EV61: 2170-02-25 | EW61: 2171-02-25 | EX61: 2172-02-25 | EY61: 2173-02-24 | EZ61: 2174-02-24 | FA61: 2175-02-24 | FB61: 2176-02-24 | FC61: 2177-02-23 | FD61: 2178-02-23 | FE61: 2179-02-23 | FF61: 2180-02-23 | FG61: 2181-02-22 | FH61: 2182-02-22 | FI61: 2183-02-22 | FJ61: 2184-02-22 | FK61: 2185-02-21 | FL61: 2186-02-21 | FM61: 2187-02-21 | FN61: 2188-02-21 | FO61: 2189-02-20 | FP61: 2190-02-20 | FQ61: 2191-02-20 | FR61: 2192-02-20 | FS61: 2193-02-19 | FT61: 2194-02-19 | FU61: 2195-02-19 | FV61: 2196-02-19 | FW61: 2197-02-18 | FX61: 2198-02-18 | FY61: 2199-02-18 | FZ61: 2200-02-18 | GA61: 2201-02-18 | GB61: 2202-02-18 | GC61: 2203-02-18 | GD61: 2204-02-18 | GE61: 2205-02-17 | GF61: 2206-02-17 | GG61: 2207-02-17 | GH61: 2208-02-17 | GI61: 2209-02-16 | GJ61: 2210-02-16 | GK61: 2211-02-16 | GL61: 2212-02-16 | GM61: 2213-02-15 | GN61: =GM61+IF($G15=1,365,0)+IF($G15=2,182.5,0)+IF($G15=4,91.25,0) -> 2214-02-15 | GO61: 2215-02-15 | GP61: 2216-02-15 | GQ61: 2217-02-14 | GR61: 2218-02-14 | GS61: 2219-02-14
A62: Bond 14 | B62: =(IF(B61=F15,100,0)+IF(G15=1,1,0)*J15*100+IF(G15=2,0.5,0)*J15*100+IF(G15=4,0.25,0)*J15*100)*IF(ISBLANK(F15)=TRUE,0,1) -> 4.4 | C62: =IF(C61>$F15+1,0,1)*(IF(D62=0,100,0)+IF($G15=1,1,0)*$J15*100+IF($G15=2,0.5,0)*$J15*100+IF($G15=4,0.25,0)*$J15*100) -> 4.4 | D62: =IF(D61>$F15+1,0,1)*(IF(E62=0,100,0)+IF($G15=1,1,0)*$J15*100+IF($G15=2,0.5,0)*$J15*100+IF($G15=4,0.25,0)*$J15*100) -> 4.4 | E62: 4.4 | F62: 4.4 | G62: 4.4 | H62: 4.4 | I62: 104.4 | J62: 0 | K62: 0 | L62: 0 | M62: 0 | N62: 0 | O62: 0 | P62: 0 | Q62: 0 | R62: 0 | S62: 0 | T62: 0 | U62: 0 | V62: 0 | W62: 0 | X62: 0 | Y62: 0 | Z62: 0 | AA62: 0 | AB62: 0 | AC62: 0 | AD62: 0 | AE62: 0 | AF62: 0 | AG62: 0 | AH62: 0 | AI62: 0 | AJ62: 0 | AK62: 0 | AL62: 0 | AM62: 0 | AN62: 0 | AO62: 0 | AP62: 0 | AQ62: 0 | AR62: 0 | AS62: 0 | AT62: 0 | AU62: 0 | AV62: 0 | AW62: 0 | AX62: 0 | AY62: 0 | AZ62: 0 | BA62: 0 | BB62: 0 | BC62: 0 | BD62: 0 | BE62: 0 | BF62: 0 | BG62: 0 | BH62: 0 | BI62: 0 | BJ62: 0 | BK62: 0 | BL62: 0 | BM62: 0 | BN62: 0 | BO62: 0 | BP62: =IF(BP61>$F15+1,0,1)*(IF(BQ62=0,100,0)+IF($G15=1,1,0)*$J15*100+IF($G15=2,0.5,0)*$J15*100+IF($G15=4,0.25,0)*$J15*100) -> 0 | BQ62: 0 | BR62: 0 | BS62: 0 | BT62: 0 | BU62: 0 | BV62: 0 | BW62: 0 | BX62: 0 | BY62: 0 | BZ62: 0 | CA62: 0 | CB62: 0 | CC62: 0 | CD62: 0 | CE62: 0 | CF62: 0 | CG62: 0 | CH62: 0 | CI62: 0 | CJ62: 0 | CK62: 0 | CL62: 0 | CM62: 0 | CN62: 0 | CO62: 0 | CP62: 0 | CQ62: 0 | CR62: 0 | CS62: 0 | CT62: 0 | CU62: 0 | CV62: 0 | CW62: 0 | CX62: 0 | CY62: 0 | CZ62: 0 | DA62: 0 | DB62: 0 | DC62: 0 | DD62: 0 | DE62: 0 | DF62: 0 | DG62: 0 | DH62: 0 | DI62: 0 | DJ62: 0 | DK62: 0 | DL62: 0 | DM62: 0 | DN62: 0 | DO62: 0 | DP62: 0 | DQ62: 0 | DR62: 0 | DS62: 0 | DT62: 0 | DU62: 0 | DV62: 0 | DW62: 0 | DX62: 0 | DY62: 0 | DZ62: 0 | EA62: 0 | EB62: =IF(EB61>$F15+1,0,1)*(IF(EC62=0,100,0)+IF($G15=1,1,0)*$J15*100+IF($G15=2,0.5,0)*$J15*100+IF($G15=4,0.25,0)*$J15*100) -> 0 | EC62: 0 | ED62: 0 | EE62: 0 | EF62: 0 | EG62: 0 | EH62: 0 | EI62: 0 | EJ62: 0 | EK62: 0 | EL62: 0 | EM62: 0 | EN62: 0 | EO62: 0 | EP62: 0 | EQ62: 0 | ER62: 0 | ES62: 0 | ET62: 0 | EU62: 0 | EV62: 0 | EW62: 0 | EX62: 0 | EY62: 0 | EZ62: 0 | FA62: 0 | FB62: 0 | FC62: 0 | FD62: 0 | FE62: 0 | FF62: 0 | FG62: 0 | FH62: 0 | FI62: 0 | FJ62: 0 | FK62: 0 | FL62: 0 | FM62: 0 | FN62: 0 | FO62: 0 | FP62: 0 | FQ62: 0 | FR62: 0 | FS62: 0 | FT62: 0 | FU62: 0 | FV62: 0 | FW62: 0 | FX62: 0 | FY62: 0 | FZ62: 0 | GA62: 0 | GB62: 0 | GC62: 0 | GD62: 0 | GE62: 0 | GF62: 0 | GG62: 0 | GH62: 0 | GI62: 0 | GJ62: 0 | GK62: 0 | GL62: 0 | GM62: 0 | GN62: =IF(GN61>$F15+1,0,1)*(IF(GO62=0,100,0)+IF($G15=1,1,0)*$J15*100+IF($G15=2,0.5,0)*$J15*100+IF($G15=4,0.25,0)*$J15*100) -> 0 | GO62: 0 | GP62: 0 | GQ62: 0 | GR62: 0 | GS62: 0
A63: Payment Dates | B63: =IF(E16=0,F16,E16) -> 00:00:00 | C63: =B63+IF($G16=1,365,0)+IF($G16=2,182.5,0)+IF($G16=4,91.25,0) -> 00:00:00 | D63: =C63+IF($G16=1,365,0)+IF($G16=2,182.5,0)+IF($G16=4,91.25,0) -> 00:00:00 | E63: 00:00:00 | F63: 00:00:00 | G63: 00:00:00 | H63: 00:00:00 | I63: 00:00:00 | J63: 00:00:00 | K63: 00:00:00 | L63: 00:00:00 | M63: 00:00:00 | N63: 00:00:00 | O63: 00:00:00 | P63: 00:00:00 | Q63: 00:00:00 | R63: 00:00:00 | S63: 00:00:00 | T63: 00:00:00 | U63: 00:00:00 | V63: 00:00:00 | W63: 00:00:00 | X63: 00:00:00 | Y63: 00:00:00 | Z63: 00:00:00 | AA63: 00:00:00 | AB63: 00:00:00 | AC63: 00:00:00 | AD63: 00:00:00 | AE63: 00:00:00 | AF63: 00:00:00 | AG63: 00:00:00 | AH63: 00:00:00 | AI63: 00:00:00 | AJ63: 00:00:00 | AK63: 00:00:00 | AL63: 00:00:00 | AM63: 00:00:00 | AN63: 00:00:00 | AO63: 00:00:00 | AP63: 00:00:00 | AQ63: 00:00:00 | AR63: 00:00:00 | AS63: 00:00:00 | AT63: 00:00:00 | AU63: 00:00:00 | AV63: 00:00:00 | AW63: 00:00:00 | AX63: 00:00:00 | AY63: 00:00:00 | AZ63: 00:00:00 | BA63: 00:00:00 | BB63: 00:00:00 | BC63: 00:00:00 | BD63: 00:00:00 | BE63: 00:00:00 | BF63: 00:00:00 | BG63: 00:00:00 | BH63: 00:00:00 | BI63: 00:00:00 | BJ63: 00:00:00 | BK63: 00:00:00 | BL63: 00:00:00 | BM63: 00:00:00 | BN63: 00:00:00 | BO63: 00:00:00 | BP63: =BO63+IF($G16=1,365,0)+IF($G16=2,182.5,0)+IF($G16=4,91.25,0) -> 00:00:00 | BQ63: 00:00:00 | BR63: 00:00:00 | BS63: 00:00:00 | BT63: 00:00:00 | BU63: 00:00:00 | BV63: 00:00:00 | BW63: 00:00:00 | BX63: 00:00:00 | BY63: 00:00:00 | BZ63: 00:00:00 | CA63: 00:00:00 | CB63: 00:00:00 | CC63: 00:00:00 | CD63: 00:00:00 | CE63: 00:00:00 | CF63: 00:00:00 | CG63: 00:00:00 | CH63: 00:00:00 | CI63: 00:00:00 | CJ63: 00:00:00 | CK63: 00:00:00 | CL63: 00:00:00 | CM63: 00:00:00 | CN63: 00:00:00 | CO63: 00:00:00 | CP63: 00:00:00 | CQ63: 00:00:00 | CR63: 00:00:00 | CS63: 00:00:00 | CT63: 00:00:00 | CU63: 00:00:00 | CV63: 00:00:00 | CW63: 00:00:00 | CX63: 00:00:00 | CY63: 00:00:00 | CZ63: 00:00:00 | DA63: 00:00:00 | DB63: 00:00:00 | DC63: 00:00:00 | DD63: 00:00:00 | DE63: 00:00:00 | DF63: 00:00:00 | DG63: 00:00:00 | DH63: 00:00:00 | DI63: 00:00:00 | DJ63: 00:00:00 | DK63: 00:00:00 | DL63: 00:00:00 | DM63: 00:00:00 | DN63: 00:00:00 | DO63: 00:00:00 | DP63: 00:00:00 | DQ63: 00:00:00 | DR63: 00:00:00 | DS63: 00:00:00 | DT63: 00:00:00 | DU63: 00:00:00 | DV63: 00:00:00 | DW63: 00:00:00 | DX63: 00:00:00 | DY63: 00:00:00 | DZ63: 00:00:00 | EA63: 00:00:00 | EB63: =EA63+IF($G16=1,365,0)+IF($G16=2,182.5,0)+IF($G16=4,91.25,0) -> 00:00:00 | EC63: 00:00:00 | ED63: 00:00:00 | EE63: 00:00:00 | EF63: 00:00:00 | EG63: 00:00:00 | EH63: 00:00:00 | EI63: 00:00:00 | EJ63: 00:00:00 | EK63: 00:00:00 | EL63: 00:00:00 | EM63: 00:00:00 | EN63: 00:00:00 | EO63: 00:00:00 | EP63: 00:00:00 | EQ63: 00:00:00 | ER63: 00:00:00 | ES63: 00:00:00 | ET63: 00:00:00 | EU63: 00:00:00 | EV63: 00:00:00 | EW63: 00:00:00 | EX63: 00:00:00 | EY63: 00:00:00 | EZ63: 00:00:00 | FA63: 00:00:00 | FB63: 00:00:00 | FC63: 00:00:00 | FD63: 00:00:00 | FE63: 00:00:00 | FF63: 00:00:00 | FG63: 00:00:00 | FH63: 00:00:00 | FI63: 00:00:00 | FJ63: 00:00:00 | FK63: 00:00:00 | FL63: 00:00:00 | FM63: 00:00:00 | FN63: 00:00:00 | FO63: 00:00:00 | FP63: 00:00:00 | FQ63: 00:00:00 | FR63: 00:00:00 | FS63: 00:00:00 | FT63: 00:00:00 | FU63: 00:00:00 | FV63: 00:00:00 | FW63: 00:00:00 | FX63: 00:00:00 | FY63: 00:00:00 | FZ63: 00:00:00 | GA63: 00:00:00 | GB63: 00:00:00 | GC63: 00:00:00 | GD63: 00:00:00 | GE63: 00:00:00 | GF63: 00:00:00 | GG63: 00:00:00 | GH63: 00:00:00 | GI63: 00:00:00 | GJ63: 00:00:00 | GK63: 00:00:00 | GL63: 00:00:00 | GM63: 00:00:00 | GN63: =GM63+IF($G16=1,365,0)+IF($G16=2,182.5,0)+IF($G16=4,91.25,0) -> 00:00:00 | GO63: 00:00:00 | GP63: 00:00:00 | GQ63: 00:00:00 | GR63: 00:00:00 | GS63: 00:00:00
A64: Bond 15 | B64: =(IF(B63=F16,100,0)+IF(G16=1,1,0)*J16*100+IF(G16=2,0.5,0)*J16*100+IF(G16=4,0.25,0)*J16*100)*IF(ISBLANK(F16)=TRUE,0,1) -> 0 | C64: =IF(C63>$F16+1,0,1)*(IF(D64=0,100,0)+IF($G16=1,1,0)*$J16*100+IF($G16=2,0.5,0)*$J16*100+IF($G16=4,0.25,0)*$J16*100) -> 100 | D64: =IF(D63>$F16+1,0,1)*(IF(E64=0,100,0)+IF($G16=1,1,0)*$J16*100+IF($G16=2,0.5,0)*$J16*100+IF($G16=4,0.25,0)*$J16*100) -> 0 | E64: 100 | F64: 0 | G64: 100 | H64: 0 | I64: 100 | J64: 0 | K64: 100 | L64: 0 | M64: 100 | N64: 0 | O64: 100 | P64: 0 | Q64: 100 | R64: 0 | S64: 100 | T64: 0 | U64: 100 | V64: 0 | W64: 100 | X64: 0 | Y64: 100 | Z64: 0 | AA64: 100 | AB64: 0 | AC64: 100 | AD64: 0 | AE64: 100 | AF64: 0 | AG64: 100 | AH64: 0 | AI64: 100 | AJ64: 0 | AK64: 100 | AL64: 0 | AM64: 100 | AN64: 0 | AO64: 100 | AP64: 0 | AQ64: 100 | AR64: 0 | AS64: 100 | AT64: 0 | AU64: 100 | AV64: 0 | AW64: 100 | AX64: 0 | AY64: 100 | AZ64: 0 | BA64: 100 | BB64: 0 | BC64: 100 | BD64: 0 | BE64: 100 | BF64: 0 | BG64: 100 | BH64: 0 | BI64: 100 | BJ64: 0 | BK64: 100 | BL64: 0 | BM64: 100 | BN64: 0 | BO64: 100 | BP64: =IF(BP63>$F16+1,0,1)*(IF(BQ64=0,100,0)+IF($G16=1,1,0)*$J16*100+IF($G16=2,0.5,0)*$J16*100+IF($G16=4,0.25,0)*$J16*100) -> 0 | BQ64: 100 | BR64: 0 | BS64: 100 | BT64: 0 | BU64: 100 | BV64: 0 | BW64: 100 | BX64: 0 | BY64: 100 | BZ64: 0 | CA64: 100 | CB64: 0 | CC64: 100 | CD64: 0 | CE64: 100 | CF64: 0 | CG64: 100 | CH64: 0 | CI64: 100 | CJ64: 0 | CK64: 100 | CL64: 0 | CM64: 100 | CN64: 0 | CO64: 100 | CP64: 0 | CQ64: 100 | CR64: 0 | CS64: 100 | CT64: 0 | CU64: 100 | CV64: 0 | CW64: 100 | CX64: 0 | CY64: 100 | CZ64: 0 | DA64: 100 | DB64: 0 | DC64: 100 | DD64: 0 | DE64: 100 | DF64: 0 | DG64: 100 | DH64: 0 | DI64: 100 | DJ64: 0 | DK64: 100 | DL64: 0 | DM64: 100 | DN64: 0 | DO64: 100 | DP64: 0 | DQ64: 100 | DR64: 0 | DS64: 100 | DT64: 0 | DU64: 100 | DV64: 0 | DW64: 100 | DX64: 0 | DY64: 100 | DZ64: 0 | EA64: 100 | EB64: =IF(EB63>$F16+1,0,1)*(IF(EC64=0,100,0)+IF($G16=1,1,0)*$J16*100+IF($G16=2,0.5,0)*$J16*100+IF($G16=4,0.25,0)*$J16*100) -> 0 | EC64: 100 | ED64: 0 | EE64: 100 | EF64: 0 | EG64: 100 | EH64: 0 | EI64: 100 | EJ64: 0 | EK64: 100 | EL64: 0 | EM64: 100 | EN64: 0 | EO64: 100 | EP64: 0 | EQ64: 100 | ER64: 0 | ES64: 100 | ET64: 0 | EU64: 100 | EV64: 0 | EW64: 100 | EX64: 0 | EY64: 100 | EZ64: 0 | FA64: 100 | FB64: 0 | FC64: 100 | FD64: 0 | FE64: 100 | FF64: 0 | FG64: 100 | FH64: 0 | FI64: 100 | FJ64: 0 | FK64: 100 | FL64: 0 | FM64: 100 | FN64: 0 | FO64: 100 | FP64: 0 | FQ64: 100 | FR64: 0 | FS64: 100 | FT64: 0 | FU64: 100 | FV64: 0 | FW64: 100 | FX64: 0 | FY64: 100 | FZ64: 0 | GA64: 100 | GB64: 0 | GC64: 100 | GD64: 0 | GE64: 100 | GF64: 0 | GG64: 100 | GH64: 0 | GI64: 100 | GJ64: 0 | GK64: 100 | GL64: 0 | GM64: 100 | GN64: =IF(GN63>$F16+1,0,1)*(IF(GO64=0,100,0)+IF($G16=1,1,0)*$J16*100+IF($G16=2,0.5,0)*$J16*100+IF($G16=4,0.25,0)*$J16*100) -> 0 | GO64: 100 | GP64: 0 | GQ64: 100 | GR64: 0 | GS64: 100
A65: Payment Dates | B65: =IF(E17=0,F17,E17) -> 00:00:00 | C65: =B65+IF($G17=1,365,0)+IF($G17=2,182.5,0)+IF($G17=4,91.25,0) -> 00:00:00 | D65: =C65+IF($G17=1,365,0)+IF($G17=2,182.5,0)+IF($G17=4,91.25,0) -> 00:00:00 | E65: 00:00:00 | F65: 00:00:00 | G65: 00:00:00 | H65: 00:00:00 | I65: 00:00:00 | J65: 00:00:00 | K65: 00:00:00 | L65: 00:00:00 | M65: 00:00:00 | N65: 00:00:00 | O65: 00:00:00 | P65: 00:00:00 | Q65: 00:00:00 | R65: 00:00:00 | S65: 00:00:00 | T65: 00:00:00 | U65: 00:00:00 | V65: 00:00:00 | W65: 00:00:00 | X65: 00:00:00 | Y65: 00:00:00 | Z65: 00:00:00 | AA65: 00:00:00 | AB65: 00:00:00 | AC65: 00:00:00 | AD65: 00:00:00 | AE65: 00:00:00 | AF65: 00:00:00 | AG65: 00:00:00 | AH65: 00:00:00 | AI65: 00:00:00 | AJ65: 00:00:00 | AK65: 00:00:00 | AL65: 00:00:00 | AM65: 00:00:00 | AN65: 00:00:00 | AO65: 00:00:00 | AP65: 00:00:00 | AQ65: 00:00:00 | AR65: 00:00:00 | AS65: 00:00:00 | AT65: 00:00:00 | AU65: 00:00:00 | AV65: 00:00:00 | AW65: 00:00:00 | AX65: 00:00:00 | AY65: 00:00:00 | AZ65: 00:00:00 | BA65: 00:00:00 | BB65: 00:00:00 | BC65: 00:00:00 | BD65: 00:00:00 | BE65: 00:00:00 | BF65: 00:00:00 | BG65: 00:00:00 | BH65: 00:00:00 | BI65: 00:00:00 | BJ65: 00:00:00 | BK65: 00:00:00 | BL65: 00:00:00 | BM65: 00:00:00 | BN65: 00:00:00 | BO65: 00:00:00 | BP65: =BO65+IF($G17=1,365,0)+IF($G17=2,182.5,0)+IF($G17=4,91.25,0) -> 00:00:00 | BQ65: 00:00:00 | BR65: 00:00:00 | BS65: 00:00:00 | BT65: 00:00:00 | BU65: 00:00:00 | BV65: 00:00:00 | BW65: 00:00:00 | BX65: 00:00:00 | BY65: 00:00:00 | BZ65: 00:00:00 | CA65: 00:00:00 | CB65: 00:00:00 | CC65: 00:00:00 | CD65: 00:00:00 | CE65: 00:00:00 | CF65: 00:00:00 | CG65: 00:00:00 | CH65: 00:00:00 | CI65: 00:00:00 | CJ65: 00:00:00 | CK65: 00:00:00 | CL65: 00:00:00 | CM65: 00:00:00 | CN65: 00:00:00 | CO65: 00:00:00 | CP65: 00:00:00 | CQ65: 00:00:00 | CR65: 00:00:00 | CS65: 00:00:00 | CT65: 00:00:00 | CU65: 00:00:00 | CV65: 00:00:00 | CW65: 00:00:00 | CX65: 00:00:00 | CY65: 00:00:00 | CZ65: 00:00:00 | DA65: 00:00:00 | DB65: 00:00:00 | DC65: 00:00:00 | DD65: 00:00:00 | DE65: 00:00:00 | DF65: 00:00:00 | DG65: 00:00:00 | DH65: 00:00:00 | DI65: 00:00:00 | DJ65: 00:00:00 | DK65: 00:00:00 | DL65: 00:00:00 | DM65: 00:00:00 | DN65: 00:00:00 | DO65: 00:00:00 | DP65: 00:00:00 | DQ65: 00:00:00 | DR65: 00:00:00 | DS65: 00:00:00 | DT65: 00:00:00 | DU65: 00:00:00 | DV65: 00:00:00 | DW65: 00:00:00 | DX65: 00:00:00 | DY65: 00:00:00 | DZ65: 00:00:00 | EA65: 00:00:00 | EB65: =EA65+IF($G17=1,365,0)+IF($G17=2,182.5,0)+IF($G17=4,91.25,0) -> 00:00:00 | EC65: 00:00:00 | ED65: 00:00:00 | EE65: 00:00:00 | EF65: 00:00:00 | EG65: 00:00:00 | EH65: 00:00:00 | EI65: 00:00:00 | EJ65: 00:00:00 | EK65: 00:00:00 | EL65: 00:00:00 | EM65: 00:00:00 | EN65: 00:00:00 | EO65: 00:00:00 | EP65: 00:00:00 | EQ65: 00:00:00 | ER65: 00:00:00 | ES65: 00:00:00 | ET65: 00:00:00 | EU65: 00:00:00 | EV65: 00:00:00 | EW65: 00:00:00 | EX65: 00:00:00 | EY65: 00:00:00 | EZ65: 00:00:00 | FA65: 00:00:00 | FB65: 00:00:00 | FC65: 00:00:00 | FD65: 00:00:00 | FE65: 00:00:00 | FF65: 00:00:00 | FG65: 00:00:00 | FH65: 00:00:00 | FI65: 00:00:00 | FJ65: 00:00:00 | FK65: 00:00:00 | FL65: 00:00:00 | FM65: 00:00:00 | FN65: 00:00:00 | FO65: 00:00:00 | FP65: 00:00:00 | FQ65: 00:00:00 | FR65: 00:00:00 | FS65: 00:00:00 | FT65: 00:00:00 | FU65: 00:00:00 | FV65: 00:00:00 | FW65: 00:00:00 | FX65: 00:00:00 | FY65: 00:00:00 | FZ65: 00:00:00 | GA65: 00:00:00 | GB65: 00:00:00 | GC65: 00:00:00 | GD65: 00:00:00 | GE65: 00:00:00 | GF65: 00:00:00 | GG65: 00:00:00 | GH65: 00:00:00 | GI65: 00:00:00 | GJ65: 00:00:00 | GK65: 00:00:00 | GL65: 00:00:00 | GM65: 00:00:00 | GN65: =GM65+IF($G17=1,365,0)+IF($G17=2,182.5,0)+IF($G17=4,91.25,0) -> 00:00:00 | GO65: 00:00:00 | GP65: 00:00:00 | GQ65: 00:00:00 | GR65: 00:00:00 | GS65: 00:00:00
A66: Bond 16 | B66: =(IF(B65=F17,100,0)+IF(G17=1,1,0)*J17*100+IF(G17=2,0.5,0)*J17*100+IF(G17=4,0.25,0)*J17*100)*IF(ISBLANK(F17)=TRUE,0,1) -> 0 | C66: =IF(C65>$F17+1,0,1)*(IF(D66=0,100,0)+IF($G17=1,1,0)*$J17*100+IF($G17=2,0.5,0)*$J17*100+IF($G17=4,0.25,0)*$J17*100) -> 100 | D66: =IF(D65>$F17+1,0,1)*(IF(E66=0,100,0)+IF($G17=1,1,0)*$J17*100+IF($G17=2,0.5,0)*$J17*100+IF($G17=4,0.25,0)*$J17*100) -> 0 | E66: 100 | F66: 0 | G66: 100 | H66: 0 | I66: 100 | J66: 0 | K66: 100 | L66: 0 | M66: 100 | N66: 0 | O66: 100 | P66: 0 | Q66: 100 | R66: 0 | S66: 100 | T66: 0 | U66: 100 | V66: 0 | W66: 100 | X66: 0 | Y66: 100 | Z66: 0 | AA66: 100 | AB66: 0 | AC66: 100 | AD66: 0 | AE66: 100 | AF66: 0 | AG66: 100 | AH66: 0 | AI66: 100 | AJ66: 0 | AK66: 100 | AL66: 0 | AM66: 100 | AN66: 0 | AO66: 100 | AP66: 0 | AQ66: 100 | AR66: 0 | AS66: 100 | AT66: 0 | AU66: 100 | AV66: 0 | AW66: 100 | AX66: 0 | AY66: 100 | AZ66: 0 | BA66: 100 | BB66: 0 | BC66: 100 | BD66: 0 | BE66: 100 | BF66: 0 | BG66: 100 | BH66: 0 | BI66: 100 | BJ66: 0 | BK66: 100 | BL66: 0 | BM66: 100 | BN66: 0 | BO66: 100 | BP66: =IF(BP65>$F17+1,0,1)*(IF(BQ66=0,100,0)+IF($G17=1,1,0)*$J17*100+IF($G17=2,0.5,0)*$J17*100+IF($G17=4,0.25,0)*$J17*100) -> 0 | BQ66: 100 | BR66: 0 | BS66: 100 | BT66: 0 | BU66: 100 | BV66: 0 | BW66: 100 | BX66: 0 | BY66: 100 | BZ66: 0 | CA66: 100 | CB66: 0 | CC66: 100 | CD66: 0 | CE66: 100 | CF66: 0 | CG66: 100 | CH66: 0 | CI66: 100 | CJ66: 0 | CK66: 100 | CL66: 0 | CM66: 100 | CN66: 0 | CO66: 100 | CP66: 0 | CQ66: 100 | CR66: 0 | CS66: 100 | CT66: 0 | CU66: 100 | CV66: 0 | CW66: 100 | CX66: 0 | CY66: 100 | CZ66: 0 | DA66: 100 | DB66: 0 | DC66: 100 | DD66: 0 | DE66: 100 | DF66: 0 | DG66: 100 | DH66: 0 | DI66: 100 | DJ66: 0 | DK66: 100 | DL66: 0 | DM66: 100 | DN66: 0 | DO66: 100 | DP66: 0 | DQ66: 100 | DR66: 0 | DS66: 100 | DT66: 0 | DU66: 100 | DV66: 0 | DW66: 100 | DX66: 0 | DY66: 100 | DZ66: 0 | EA66: 100 | EB66: =IF(EB65>$F17+1,0,1)*(IF(EC66=0,100,0)+IF($G17=1,1,0)*$J17*100+IF($G17=2,0.5,0)*$J17*100+IF($G17=4,0.25,0)*$J17*100) -> 0 | EC66: 100 | ED66: 0 | EE66: 100 | EF66: 0 | EG66: 100 | EH66: 0 | EI66: 100 | EJ66: 0 | EK66: 100 | EL66: 0 | EM66: 100 | EN66: 0 | EO66: 100 | EP66: 0 | EQ66: 100 | ER66: 0 | ES66: 100 | ET66: 0 | EU66: 100 | EV66: 0 | EW66: 100 | EX66: 0 | EY66: 100 | EZ66: 0 | FA66: 100 | FB66: 0 | FC66: 100 | FD66: 0 | FE66: 100 | FF66: 0 | FG66: 100 | FH66: 0 | FI66: 100 | FJ66: 0 | FK66: 100 | FL66: 0 | FM66: 100 | FN66: 0 | FO66: 100 | FP66: 0 | FQ66: 100 | FR66: 0 | FS66: 100 | FT66: 0 | FU66: 100 | FV66: 0 | FW66: 100 | FX66: 0 | FY66: 100 | FZ66: 0 | GA66: 100 | GB66: 0 | GC66: 100 | GD66: 0 | GE66: 100 | GF66: 0 | GG66: 100 | GH66: 0 | GI66: 100 | GJ66: 0 | GK66: 100 | GL66: 0 | GM66: 100 | GN66: =IF(GN65>$F17+1,0,1)*(IF(GO66=0,100,0)+IF($G17=1,1,0)*$J17*100+IF($G17=2,0.5,0)*$J17*100+IF($G17=4,0.25,0)*$J17*100) -> 0 | GO66: 100 | GP66: 0 | GQ66: 100 | GR66: 0 | GS66: 100
A67: Payment Dates | B67: =IF(E18=0,F18,E18) -> 00:00:00 | C67: =B67+IF($G18=1,365,0)+IF($G18=2,182.5,0)+IF($G18=4,91.25,0) -> 00:00:00 | D67: =C67+IF($G18=1,365,0)+IF($G18=2,182.5,0)+IF($G18=4,91.25,0) -> 00:00:00 | E67: 00:00:00 | F67: 00:00:00 | G67: 00:00:00 | H67: 00:00:00 | I67: 00:00:00 | J67: 00:00:00 | K67: 00:00:00 | L67: 00:00:00 | M67: 00:00:00 | N67: 00:00:00 | O67: 00:00:00 | P67: 00:00:00 | Q67: 00:00:00 | R67: 00:00:00 | S67: 00:00:00 | T67: 00:00:00 | U67: 00:00:00 | V67: 00:00:00 | W67: 00:00:00 | X67: 00:00:00 | Y67: 00:00:00 | Z67: 00:00:00 | AA67: 00:00:00 | AB67: 00:00:00 | AC67: 00:00:00 | AD67: 00:00:00 | AE67: 00:00:00 | AF67: 00:00:00 | AG67: 00:00:00 | AH67: 00:00:00 | AI67: 00:00:00 | AJ67: 00:00:00 | AK67: 00:00:00 | AL67: 00:00:00 | AM67: 00:00:00 | AN67: 00:00:00 | AO67: 00:00:00 | AP67: 00:00:00 | AQ67: 00:00:00 | AR67: 00:00:00 | AS67: 00:00:00 | AT67: 00:00:00 | AU67: 00:00:00 | AV67: 00:00:00 | AW67: 00:00:00 | AX67: 00:00:00 | AY67: 00:00:00 | AZ67: 00:00:00 | BA67: 00:00:00 | BB67: 00:00:00 | BC67: 00:00:00 | BD67: 00:00:00 | BE67: 00:00:00 | BF67: 00:00:00 | BG67: 00:00:00 | BH67: 00:00:00 | BI67: 00:00:00 | BJ67: 00:00:00 | BK67: 00:00:00 | BL67: 00:00:00 | BM67: 00:00:00 | BN67: 00:00:00 | BO67: 00:00:00 | BP67: =BO67+IF($G18=1,365,0)+IF($G18=2,182.5,0)+IF($G18=4,91.25,0) -> 00:00:00 | BQ67: 00:00:00 | BR67: 00:00:00 | BS67: 00:00:00 | BT67: 00:00:00 | BU67: 00:00:00 | BV67: 00:00:00 | BW67: 00:00:00 | BX67: 00:00:00 | BY67: 00:00:00 | BZ67: 00:00:00 | CA67: 00:00:00 | CB67: 00:00:00 | CC67: 00:00:00 | CD67: 00:00:00 | CE67: 00:00:00 | CF67: 00:00:00 | CG67: 00:00:00 | CH67: 00:00:00 | CI67: 00:00:00 | CJ67: 00:00:00 | CK67: 00:00:00 | CL67: 00:00:00 | CM67: 00:00:00 | CN67: 00:00:00 | CO67: 00:00:00 | CP67: 00:00:00 | CQ67: 00:00:00 | CR67: 00:00:00 | CS67: 00:00:00 | CT67: 00:00:00 | CU67: 00:00:00 | CV67: 00:00:00 | CW67: 00:00:00 | CX67: 00:00:00 | CY67: 00:00:00 | CZ67: 00:00:00 | DA67: 00:00:00 | DB67: 00:00:00 | DC67: 00:00:00 | DD67: 00:00:00 | DE67: 00:00:00 | DF67: 00:00:00 | DG67: 00:00:00 | DH67: 00:00:00 | DI67: 00:00:00 | DJ67: 00:00:00 | DK67: 00:00:00 | DL67: 00:00:00 | DM67: 00:00:00 | DN67: 00:00:00 | DO67: 00:00:00 | DP67: 00:00:00 | DQ67: 00:00:00 | DR67: 00:00:00 | DS67: 00:00:00 | DT67: 00:00:00 | DU67: 00:00:00 | DV67: 00:00:00 | DW67: 00:00:00 | DX67: 00:00:00 | DY67: 00:00:00 | DZ67: 00:00:00 | EA67: 00:00:00 | EB67: =EA67+IF($G18=1,365,0)+IF($G18=2,182.5,0)+IF($G18=4,91.25,0) -> 00:00:00 | EC67: 00:00:00 | ED67: 00:00:00 | EE67: 00:00:00 | EF67: 00:00:00 | EG67: 00:00:00 | EH67: 00:00:00 | EI67: 00:00:00 | EJ67: 00:00:00 | EK67: 00:00:00 | EL67: 00:00:00 | EM67: 00:00:00 | EN67: 00:00:00 | EO67: 00:00:00 | EP67: 00:00:00 | EQ67: 00:00:00 | ER67: 00:00:00 | ES67: 00:00:00 | ET67: 00:00:00 | EU67: 00:00:00 | EV67: 00:00:00 | EW67: 00:00:00 | EX67: 00:00:00 | EY67: 00:00:00 | EZ67: 00:00:00 | FA67: 00:00:00 | FB67: 00:00:00 | FC67: 00:00:00 | FD67: 00:00:00 | FE67: 00:00:00 | FF67: 00:00:00 | FG67: 00:00:00 | FH67: 00:00:00 | FI67: 00:00:00 | FJ67: 00:00:00 | FK67: 00:00:00 | FL67: 00:00:00 | FM67: 00:00:00 | FN67: 00:00:00 | FO67: 00:00:00 | FP67: 00:00:00 | FQ67: 00:00:00 | FR67: 00:00:00 | FS67: 00:00:00 | FT67: 00:00:00 | FU67: 00:00:00 | FV67: 00:00:00 | FW67: 00:00:00 | FX67: 00:00:00 | FY67: 00:00:00 | FZ67: 00:00:00 | GA67: 00:00:00 | GB67: 00:00:00 | GC67: 00:00:00 | GD67: 00:00:00 | GE67: 00:00:00 | GF67: 00:00:00 | GG67: 00:00:00 | GH67: 00:00:00 | GI67: 00:00:00 | GJ67: 00:00:00 | GK67: 00:00:00 | GL67: 00:00:00 | GM67: 00:00:00 | GN67: =GM67+IF($G18=1,365,0)+IF($G18=2,182.5,0)+IF($G18=4,91.25,0) -> 00:00:00 | GO67: 00:00:00 | GP67: 00:00:00 | GQ67: 00:00:00 | GR67: 00:00:00 | GS67: 00:00:00
A68: Bond 17 | B68: =(IF(B67=F18,100,0)+IF(G18=1,1,0)*J18*100+IF(G18=2,0.5,0)*J18*100+IF(G18=4,0.25,0)*J18*100)*IF(ISBLANK(F18)=TRUE,0,1) -> 0 | C68: =IF(C67>$F18+1,0,1)*(IF(D68=0,100,0)+IF($G18=1,1,0)*$J18*100+IF($G18=2,0.5,0)*$J18*100+IF($G18=4,0.25,0)*$J18*100) -> 100 | D68: =IF(D67>$F18+1,0,1)*(IF(E68=0,100,0)+IF($G18=1,1,0)*$J18*100+IF($G18=2,0.5,0)*$J18*100+IF($G18=4,0.25,0)*$J18*100) -> 0 | E68: 100 | F68: 0 | G68: 100 | H68: 0 | I68: 100 | J68: 0 | K68: 100 | L68: 0 | M68: 100 | N68: 0 | O68: 100 | P68: 0 | Q68: 100 | R68: 0 | S68: 100 | T68: 0 | U68: 100 | V68: 0 | W68: 100 | X68: 0 | Y68: 100 | Z68: 0 | AA68: 100 | AB68: 0 | AC68: 100 | AD68: 0 | AE68: 100 | AF68: 0 | AG68: 100 | AH68: 0 | AI68: 100 | AJ68: 0 | AK68: 100 | AL68: 0 | AM68: 100 | AN68: 0 | AO68: 100 | AP68: 0 | AQ68: 100 | AR68: 0 | AS68: 100 | AT68: 0 | AU68: 100 | AV68: 0 | AW68: 100 | AX68: 0 | AY68: 100 | AZ68: 0 | BA68: 100 | BB68: 0 | BC68: 100 | BD68: 0 | BE68: 100 | BF68: 0 | BG68: 100 | BH68: 0 | BI68: 100 | BJ68: 0 | BK68: 100 | BL68: 0 | BM68: 100 | BN68: 0 | BO68: 100 | BP68: =IF(BP67>$F18+1,0,1)*(IF(BQ68=0,100,0)+IF($G18=1,1,0)*$J18*100+IF($G18=2,0.5,0)*$J18*100+IF($G18=4,0.25,0)*$J18*100) -> 0 | BQ68: 100 | BR68: 0 | BS68: 100 | BT68: 0 | BU68: 100 | BV68: 0 | BW68: 100 | BX68: 0 | BY68: 100 | BZ68: 0 | CA68: 100 | CB68: 0 | CC68: 100 | CD68: 0 | CE68: 100 | CF68: 0 | CG68: 100 | CH68: 0 | CI68: 100 | CJ68: 0 | CK68: 100 | CL68: 0 | CM68: 100 | CN68: 0 | CO68: 100 | CP68: 0 | CQ68: 100 | CR68: 0 | CS68: 100 | CT68: 0 | CU68: 100 | CV68: 0 | CW68: 100 | CX68: 0 | CY68: 100 | CZ68: 0 | DA68: 100 | DB68: 0 | DC68: 100 | DD68: 0 | DE68: 100 | DF68: 0 | DG68: 100 | DH68: 0 | DI68: 100 | DJ68: 0 | DK68: 100 | DL68: 0 | DM68: 100 | DN68: 0 | DO68: 100 | DP68: 0 | DQ68: 100 | DR68: 0 | DS68: 100 | DT68: 0 | DU68: 100 | DV68: 0 | DW68: 100 | DX68: 0 | DY68: 100 | DZ68: 0 | EA68: 100 | EB68: =IF(EB67>$F18+1,0,1)*(IF(EC68=0,100,0)+IF($G18=1,1,0)*$J18*100+IF($G18=2,0.5,0)*$J18*100+IF($G18=4,0.25,0)*$J18*100) -> 0 | EC68: 100 | ED68: 0 | EE68: 100 | EF68: 0 | EG68: 100 | EH68: 0 | EI68: 100 | EJ68: 0 | EK68: 100 | EL68: 0 | EM68: 100 | EN68: 0 | EO68: 100 | EP68: 0 | EQ68: 100 | ER68: 0 | ES68: 100 | ET68: 0 | EU68: 100 | EV68: 0 | EW68: 100 | EX68: 0 | EY68: 100 | EZ68: 0 | FA68: 100 | FB68: 0 | FC68: 100 | FD68: 0 | FE68: 100 | FF68: 0 | FG68: 100 | FH68: 0 | FI68: 100 | FJ68: 0 | FK68: 100 | FL68: 0 | FM68: 100 | FN68: 0 | FO68: 100 | FP68: 0 | FQ68: 100 | FR68: 0 | FS68: 100 | FT68: 0 | FU68: 100 | FV68: 0 | FW68: 100 | FX68: 0 | FY68: 100 | FZ68: 0 | GA68: 100 | GB68: 0 | GC68: 100 | GD68: 0 | GE68: 100 | GF68: 0 | GG68: 100 | GH68: 0 | GI68: 100 | GJ68: 0 | GK68: 100 | GL68: 0 | GM68: 100 | GN68: =IF(GN67>$F18+1,0,1)*(IF(GO68=0,100,0)+IF($G18=1,1,0)*$J18*100+IF($G18=2,0.5,0)*$J18*100+IF($G18=4,0.25,0)*$J18*100) -> 0 | GO68: 100 | GP68: 0 | GQ68: 100 | GR68: 0 | GS68: 100
A69: Payment Dates | B69: =IF(E19=0,F19,E19) -> 00:00:00 | C69: =B69+IF($G19=1,365,0)+IF($G19=2,182.5,0)+IF($G19=4,91.25,0) -> 00:00:00 | D69: =C69+IF($G19=1,365,0)+IF($G19=2,182.5,0)+IF($G19=4,91.25,0) -> 00:00:00 | E69: 00:00:00 | F69: 00:00:00 | G69: 00:00:00 | H69: 00:00:00 | I69: 00:00:00 | J69: 00:00:00 | K69: 00:00:00 | L69: 00:00:00 | M69: 00:00:00 | N69: 00:00:00 | O69: 00:00:00 | P69: 00:00:00 | Q69: 00:00:00 | R69: 00:00:00 | S69: 00:00:00 | T69: 00:00:00 | U69: 00:00:00 | V69: 00:00:00 | W69: 00:00:00 | X69: 00:00:00 | Y69: 00:00:00 | Z69: 00:00:00 | AA69: 00:00:00 | AB69: 00:00:00 | AC69: 00:00:00 | AD69: 00:00:00 | AE69: 00:00:00 | AF69: 00:00:00 | AG69: 00:00:00 | AH69: 00:00:00 | AI69: 00:00:00 | AJ69: 00:00:00 | AK69: 00:00:00 | AL69: 00:00:00 | AM69: 00:00:00 | AN69: 00:00:00 | AO69: 00:00:00 | AP69: 00:00:00 | AQ69: 00:00:00 | AR69: 00:00:00 | AS69: 00:00:00 | AT69: 00:00:00 | AU69: 00:00:00 | AV69: 00:00:00 | AW69: 00:00:00 | AX69: 00:00:00 | AY69: 00:00:00 | AZ69: 00:00:00 | BA69: 00:00:00 | BB69: 00:00:00 | BC69: 00:00:00 | BD69: 00:00:00 | BE69: 00:00:00 | BF69: 00:00:00 | BG69: 00:00:00 | BH69: 00:00:00 | BI69: 00:00:00 | BJ69: 00:00:00 | BK69: 00:00:00 | BL69: 00:00:00 | BM69: 00:00:00 | BN69: 00:00:00 | BO69: 00:00:00 | BP69: =BO69+IF($G19=1,365,0)+IF($G19=2,182.5,0)+IF($G19=4,91.25,0) -> 00:00:00 | BQ69: 00:00:00 | BR69: 00:00:00 | BS69: 00:00:00 | BT69: 00:00:00 | BU69: 00:00:00 | BV69: 00:00:00 | BW69: 00:00:00 | BX69: 00:00:00 | BY69: 00:00:00 | BZ69: 00:00:00 | CA69: 00:00:00 | CB69: 00:00:00 | CC69: 00:00:00 | CD69: 00:00:00 | CE69: 00:00:00 | CF69: 00:00:00 | CG69: 00:00:00 | CH69: 00:00:00 | CI69: 00:00:00 | CJ69: 00:00:00 | CK69: 00:00:00 | CL69: 00:00:00 | CM69: 00:00:00 | CN69: 00:00:00 | CO69: 00:00:00 | CP69: 00:00:00 | CQ69: 00:00:00 | CR69: 00:00:00 | CS69: 00:00:00 | CT69: 00:00:00 | CU69: 00:00:00 | CV69: 00:00:00 | CW69: 00:00:00 | CX69: 00:00:00 | CY69: 00:00:00 | CZ69: 00:00:00 | DA69: 00:00:00 | DB69: 00:00:00 | DC69: 00:00:00 | DD69: 00:00:00 | DE69: 00:00:00 | DF69: 00:00:00 | DG69: 00:00:00 | DH69: 00:00:00 | DI69: 00:00:00 | DJ69: 00:00:00 | DK69: 00:00:00 | DL69: 00:00:00 | DM69: 00:00:00 | DN69: 00:00:00 | DO69: 00:00:00 | DP69: 00:00:00 | DQ69: 00:00:00 | DR69: 00:00:00 | DS69: 00:00:00 | DT69: 00:00:00 | DU69: 00:00:00 | DV69: 00:00:00 | DW69: 00:00:00 | DX69: 00:00:00 | DY69: 00:00:00 | DZ69: 00:00:00 | EA69: 00:00:00 | EB69: =EA69+IF($G19=1,365,0)+IF($G19=2,182.5,0)+IF($G19=4,91.25,0) -> 00:00:00 | EC69: 00:00:00 | ED69: 00:00:00 | EE69: 00:00:00 | EF69: 00:00:00 | EG69: 00:00:00 | EH69: 00:00:00 | EI69: 00:00:00 | EJ69: 00:00:00 | EK69: 00:00:00 | EL69: 00:00:00 | EM69: 00:00:00 | EN69: 00:00:00 | EO69: 00:00:00 | EP69: 00:00:00 | EQ69: 00:00:00 | ER69: 00:00:00 | ES69: 00:00:00 | ET69: 00:00:00 | EU69: 00:00:00 | EV69: 00:00:00 | EW69: 00:00:00 | EX69: 00:00:00 | EY69: 00:00:00 | EZ69: 00:00:00 | FA69: 00:00:00 | FB69: 00:00:00 | FC69: 00:00:00 | FD69: 00:00:00 | FE69: 00:00:00 | FF69: 00:00:00 | FG69: 00:00:00 | FH69: 00:00:00 | FI69: 00:00:00 | FJ69: 00:00:00 | FK69: 00:00:00 | FL69: 00:00:00 | FM69: 00:00:00 | FN69: 00:00:00 | FO69: 00:00:00 | FP69: 00:00:00 | FQ69: 00:00:00 | FR69: 00:00:00 | FS69: 00:00:00 | FT69: 00:00:00 | FU69: 00:00:00 | FV69: 00:00:00 | FW69: 00:00:00 | FX69: 00:00:00 | FY69: 00:00:00 | FZ69: 00:00:00 | GA69: 00:00:00 | GB69: 00:00:00 | GC69: 00:00:00 | GD69: 00:00:00 | GE69: 00:00:00 | GF69: 00:00:00 | GG69: 00:00:00 | GH69: 00:00:00 | GI69: 00:00:00 | GJ69: 00:00:00 | GK69: 00:00:00 | GL69: 00:00:00 | GM69: 00:00:00 | GN69: =GM69+IF($G19=1,365,0)+IF($G19=2,182.5,0)+IF($G19=4,91.25,0) -> 00:00:00 | GO69: 00:00:00 | GP69: 00:00:00 | GQ69: 00:00:00 | GR69: 00:00:00 | GS69: 00:00:00
A70: Bond 18 | B70: =(IF(B69=F19,100,0)+IF(G19=1,1,0)*J19*100+IF(G19=2,0.5,0)*J19*100+IF(G19=4,0.25,0)*J19*100)*IF(ISBLANK(F19)=TRUE,0,1) -> 0 | C70: =IF(C69>$F19+1,0,1)*(IF(D70=0,100,0)+IF($G19=1,1,0)*$J19*100+IF($G19=2,0.5,0)*$J19*100+IF($G19=4,0.25,0)*$J19*100) -> 100 | D70: =IF(D69>$F19+1,0,1)*(IF(E70=0,100,0)+IF($G19=1,1,0)*$J19*100+IF($G19=2,0.5,0)*$J19*100+IF($G19=4,0.25,0)*$J19*100) -> 0 | E70: 100 | F70: 0 | G70: 100 | H70: 0 | I70: 100 | J70: 0 | K70: 100 | L70: 0 | M70: 100 | N70: 0 | O70: 100 | P70: 0 | Q70: 100 | R70: 0 | S70: 100 | T70: 0 | U70: 100 | V70: 0 | W70: 100 | X70: 0 | Y70: 100 | Z70: 0 | AA70: 100 | AB70: 0 | AC70: 100 | AD70: 0 | AE70: 100 | AF70: 0 | AG70: 100 | AH70: 0 | AI70: 100 | AJ70: 0 | AK70: 100 | AL70: 0 | AM70: 100 | AN70: 0 | AO70: 100 | AP70: 0 | AQ70: 100 | AR70: 0 | AS70: 100 | AT70: 0 | AU70: 100 | AV70: 0 | AW70: 100 | AX70: 0 | AY70: 100 | AZ70: 0 | BA70: 100 | BB70: 0 | BC70: 100 | BD70: 0 | BE70: 100 | BF70: 0 | BG70: 100 | BH70: 0 | BI70: 100 | BJ70: 0 | BK70: 100 | BL70: 0 | BM70: 100 | BN70: 0 | BO70: 100 | BP70: =IF(BP69>$F19+1,0,1)*(IF(BQ70=0,100,0)+IF($G19=1,1,0)*$J19*100+IF($G19=2,0.5,0)*$J19*100+IF($G19=4,0.25,0)*$J19*100) -> 0 | BQ70: 100 | BR70: 0 | BS70: 100 | BT70: 0 | BU70: 100 | BV70: 0 | BW70: 100 | BX70: 0 | BY70: 100 | BZ70: 0 | CA70: 100 | CB70: 0 | CC70: 100 | CD70: 0 | CE70: 100 | CF70: 0 | CG70: 100 | CH70: 0 | CI70: 100 | CJ70: 0 | CK70: 100 | CL70: 0 | CM70: 100 | CN70: 0 | CO70: 100 | CP70: 0 | CQ70: 100 | CR70: 0 | CS70: 100 | CT70: 0 | CU70: 100 | CV70: 0 | CW70: 100 | CX70: 0 | CY70: 100 | CZ70: 0 | DA70: 100 | DB70: 0 | DC70: 100 | DD70: 0 | DE70: 100 | DF70: 0 | DG70: 100 | DH70: 0 | DI70: 100 | DJ70: 0 | DK70: 100 | DL70: 0 | DM70: 100 | DN70: 0 | DO70: 100 | DP70: 0 | DQ70: 100 | DR70: 0 | DS70: 100 | DT70: 0 | DU70: 100 | DV70: 0 | DW70: 100 | DX70: 0 | DY70: 100 | DZ70: 0 | EA70: 100 | EB70: =IF(EB69>$F19+1,0,1)*(IF(EC70=0,100,0)+IF($G19=1,1,0)*$J19*100+IF($G19=2,0.5,0)*$J19*100+IF($G19=4,0.25,0)*$J19*100) -> 0 | EC70: 100 | ED70: 0 | EE70: 100 | EF70: 0 | EG70: 100 | EH70: 0 | EI70: 100 | EJ70: 0 | EK70: 100 | EL70: 0 | EM70: 100 | EN70: 0 | EO70: 100 | EP70: 0 | EQ70: 100 | ER70: 0 | ES70: 100 | ET70: 0 | EU70: 100 | EV70: 0 | EW70: 100 | EX70: 0 | EY70: 100 | EZ70: 0 | FA70: 100 | FB70: 0 | FC70: 100 | FD70: 0 | FE70: 100 | FF70: 0 | FG70: 100 | FH70: 0 | FI70: 100 | FJ70: 0 | FK70: 100 | FL70: 0 | FM70: 100 | FN70: 0 | FO70: 100 | FP70: 0 | FQ70: 100 | FR70: 0 | FS70: 100 | FT70: 0 | FU70: 100 | FV70: 0 | FW70: 100 | FX70: 0 | FY70: 100 | FZ70: 0 | GA70: 100 | GB70: 0 | GC70: 100 | GD70: 0 | GE70: 100 | GF70: 0 | GG70: 100 | GH70: 0 | GI70: 100 | GJ70: 0 | GK70: 100 | GL70: 0 | GM70: 100 | GN70: =IF(GN69>$F19+1,0,1)*(IF(GO70=0,100,0)+IF($G19=1,1,0)*$J19*100+IF($G19=2,0.5,0)*$J19*100+IF($G19=4,0.25,0)*$J19*100) -> 0 | GO70: 100 | GP70: 0 | GQ70: 100 | GR70: 0 | GS70: 100
A71: Payment Dates | B71: =IF(E20=0,F20,E20) -> 00:00:00 | C71: =B71+IF($G20=1,365,0)+IF($G20=2,182.5,0)+IF($G20=4,91.25,0) -> 00:00:00 | D71: =C71+IF($G20=1,365,0)+IF($G20=2,182.5,0)+IF($G20=4,91.25,0) -> 00:00:00 | E71: 00:00:00 | F71: 00:00:00 | G71: 00:00:00 | H71: 00:00:00 | I71: 00:00:00 | J71: 00:00:00 | K71: 00:00:00 | L71: 00:00:00 | M71: 00:00:00 | N71: 00:00:00 | O71: 00:00:00 | P71: 00:00:00 | Q71: 00:00:00 | R71: 00:00:00 | S71: 00:00:00 | T71: 00:00:00 | U71: 00:00:00 | V71: 00:00:00 | W71: 00:00:00 | X71: 00:00:00 | Y71: 00:00:00 | Z71: 00:00:00 | AA71: 00:00:00 | AB71: 00:00:00 | AC71: 00:00:00 | AD71: 00:00:00 | AE71: 00:00:00 | AF71: 00:00:00 | AG71: 00:00:00 | AH71: 00:00:00 | AI71: 00:00:00 | AJ71: 00:00:00 | AK71: 00:00:00 | AL71: 00:00:00 | AM71: 00:00:00 | AN71: 00:00:00 | AO71: 00:00:00 | AP71: 00:00:00 | AQ71: 00:00:00 | AR71: 00:00:00 | AS71: 00:00:00 | AT71: 00:00:00 | AU71: 00:00:00 | AV71: 00:00:00 | AW71: 00:00:00 | AX71: 00:00:00 | AY71: 00:00:00 | AZ71: 00:00:00 | BA71: 00:00:00 | BB71: 00:00:00 | BC71: 00:00:00 | BD71: 00:00:00 | BE71: 00:00:00 | BF71: 00:00:00 | BG71: 00:00:00 | BH71: 00:00:00 | BI71: 00:00:00 | BJ71: 00:00:00 | BK71: 00:00:00 | BL71: 00:00:00 | BM71: 00:00:00 | BN71: 00:00:00 | BO71: 00:00:00 | BP71: =BO71+IF($G20=1,365,0)+IF($G20=2,182.5,0)+IF($G20=4,91.25,0) -> 00:00:00 | BQ71: 00:00:00 | BR71: 00:00:00 | BS71: 00:00:00 | BT71: 00:00:00 | BU71: 00:00:00 | BV71: 00:00:00 | BW71: 00:00:00 | BX71: 00:00:00 | BY71: 00:00:00 | BZ71: 00:00:00 | CA71: 00:00:00 | CB71: 00:00:00 | CC71: 00:00:00 | CD71: 00:00:00 | CE71: 00:00:00 | CF71: 00:00:00 | CG71: 00:00:00 | CH71: 00:00:00 | CI71: 00:00:00 | CJ71: 00:00:00 | CK71: 00:00:00 | CL71: 00:00:00 | CM71: 00:00:00 | CN71: 00:00:00 | CO71: 00:00:00 | CP71: 00:00:00 | CQ71: 00:00:00 | CR71: 00:00:00 | CS71: 00:00:00 | CT71: 00:00:00 | CU71: 00:00:00 | CV71: 00:00:00 | CW71: 00:00:00 | CX71: 00:00:00 | CY71: 00:00:00 | CZ71: 00:00:00 | DA71: 00:00:00 | DB71: 00:00:00 | DC71: 00:00:00 | DD71: 00:00:00 | DE71: 00:00:00 | DF71: 00:00:00 | DG71: 00:00:00 | DH71: 00:00:00 | DI71: 00:00:00 | DJ71: 00:00:00 | DK71: 00:00:00 | DL71: 00:00:00 | DM71: 00:00:00 | DN71: 00:00:00 | DO71: 00:00:00 | DP71: 00:00:00 | DQ71: 00:00:00 | DR71: 00:00:00 | DS71: 00:00:00 | DT71: 00:00:00 | DU71: 00:00:00 | DV71: 00:00:00 | DW71: 00:00:00 | DX71: 00:00:00 | DY71: 00:00:00 | DZ71: 00:00:00 | EA71: 00:00:00 | EB71: =EA71+IF($G20=1,365,0)+IF($G20=2,182.5,0)+IF($G20=4,91.25,0) -> 00:00:00 | EC71: 00:00:00 | ED71: 00:00:00 | EE71: 00:00:00 | EF71: 00:00:00 | EG71: 00:00:00 | EH71: 00:00:00 | EI71: 00:00:00 | EJ71: 00:00:00 | EK71: 00:00:00 | EL71: 00:00:00 | EM71: 00:00:00 | EN71: 00:00:00 | EO71: 00:00:00 | EP71: 00:00:00 | EQ71: 00:00:00 | ER71: 00:00:00 | ES71: 00:00:00 | ET71: 00:00:00 | EU71: 00:00:00 | EV71: 00:00:00 | EW71: 00:00:00 | EX71: 00:00:00 | EY71: 00:00:00 | EZ71: 00:00:00 | FA71: 00:00:00 | FB71: 00:00:00 | FC71: 00:00:00 | FD71: 00:00:00 | FE71: 00:00:00 | FF71: 00:00:00 | FG71: 00:00:00 | FH71: 00:00:00 | FI71: 00:00:00 | FJ71: 00:00:00 | FK71: 00:00:00 | FL71: 00:00:00 | FM71: 00:00:00 | FN71: 00:00:00 | FO71: 00:00:00 | FP71: 00:00:00 | FQ71: 00:00:00 | FR71: 00:00:00 | FS71: 00:00:00 | FT71: 00:00:00 | FU71: 00:00:00 | FV71: 00:00:00 | FW71: 00:00:00 | FX71: 00:00:00 | FY71: 00:00:00 | FZ71: 00:00:00 | GA71: 00:00:00 | GB71: 00:00:00 | GC71: 00:00:00 | GD71: 00:00:00 | GE71: 00:00:00 | GF71: 00:00:00 | GG71: 00:00:00 | GH71: 00:00:00 | GI71: 00:00:00 | GJ71: 00:00:00 | GK71: 00:00:00 | GL71: 00:00:00 | GM71: 00:00:00 | GN71: =GM71+IF($G20=1,365,0)+IF($G20=2,182.5,0)+IF($G20=4,91.25,0) -> 00:00:00 | GO71: 00:00:00 | GP71: 00:00:00 | GQ71: 00:00:00 | GR71: 00:00:00 | GS71: 00:00:00
A72: Bond 19 | B72: =(IF(B71=F20,100,0)+IF(G20=1,1,0)*J20*100+IF(G20=2,0.5,0)*J20*100+IF(G20=4,0.25,0)*J20*100)*IF(ISBLANK(F20)=TRUE,0,1) -> 0 | C72: =IF(C71>$F20+1,0,1)*(IF(D72=0,100,0)+IF($G20=1,1,0)*$J20*100+IF($G20=2,0.5,0)*$J20*100+IF($G20=4,0.25,0)*$J20*100) -> 100 | D72: =IF(D71>$F20+1,0,1)*(IF(E72=0,100,0)+IF($G20=1,1,0)*$J20*100+IF($G20=2,0.5,0)*$J20*100+IF($G20=4,0.25,0)*$J20*100) -> 0 | E72: 100 | F72: 0 | G72: 100 | H72: 0 | I72: 100 | J72: 0 | K72: 100 | L72: 0 | M72: 100 | N72: 0 | O72: 100 | P72: 0 | Q72: 100 | R72: 0 | S72: 100 | T72: 0 | U72: 100 | V72: 0 | W72: 100 | X72: 0 | Y72: 100 | Z72: 0 | AA72: 100 | AB72: 0 | AC72: 100 | AD72: 0 | AE72: 100 | AF72: 0 | AG72: 100 | AH72: 0 | AI72: 100 | AJ72: 0 | AK72: 100 | AL72: 0 | AM72: 100 | AN72: 0 | AO72: 100 | AP72: 0 | AQ72: 100 | AR72: 0 | AS72: 100 | AT72: 0 | AU72: 100 | AV72: 0 | AW72: 100 | AX72: 0 | AY72: 100 | AZ72: 0 | BA72: 100 | BB72: 0 | BC72: 100 | BD72: 0 | BE72: 100 | BF72: 0 | BG72: 100 | BH72: 0 | BI72: 100 | BJ72: 0 | BK72: 100 | BL72: 0 | BM72: 100 | BN72: 0 | BO72: 100 | BP72: =IF(BP71>$F20+1,0,1)*(IF(BQ72=0,100,0)+IF($G20=1,1,0)*$J20*100+IF($G20=2,0.5,0)*$J20*100+IF($G20=4,0.25,0)*$J20*100) -> 0 | BQ72: 100 | BR72: 0 | BS72: 100 | BT72: 0 | BU72: 100 | BV72: 0 | BW72: 100 | BX72: 0 | BY72: 100 | BZ72: 0 | CA72: 100 | CB72: 0 | CC72: 100 | CD72: 0 | CE72: 100 | CF72: 0 | CG72: 100 | CH72: 0 | CI72: 100 | CJ72: 0 | CK72: 100 | CL72: 0 | CM72: 100 | CN72: 0 | CO72: 100 | CP72: 0 | CQ72: 100 | CR72: 0 | CS72: 100 | CT72: 0 | CU72: 100 | CV72: 0 | CW72: 100 | CX72: 0 | CY72: 100 | CZ72: 0 | DA72: 100 | DB72: 0 | DC72: 100 | DD72: 0 | DE72: 100 | DF72: 0 | DG72: 100 | DH72: 0 | DI72: 100 | DJ72: 0 | DK72: 100 | DL72: 0 | DM72: 100 | DN72: 0 | DO72: 100 | DP72: 0 | DQ72: 100 | DR72: 0 | DS72: 100 | DT72: 0 | DU72: 100 | DV72: 0 | DW72: 100 | DX72: 0 | DY72: 100 | DZ72: 0 | EA72: 100 | EB72: =IF(EB71>$F20+1,0,1)*(IF(EC72=0,100,0)+IF($G20=1,1,0)*$J20*100+IF($G20=2,0.5,0)*$J20*100+IF($G20=4,0.25,0)*$J20*100) -> 0 | EC72: 100 | ED72: 0 | EE72: 100 | EF72: 0 | EG72: 100 | EH72: 0 | EI72: 100 | EJ72: 0 | EK72: 100 | EL72: 0 | EM72: 100 | EN72: 0 | EO72: 100 | EP72: 0 | EQ72: 100 | ER72: 0 | ES72: 100 | ET72: 0 | EU72: 100 | EV72: 0 | EW72: 100 | EX72: 0 | EY72: 100 | EZ72: 0 | FA72: 100 | FB72: 0 | FC72: 100 | FD72: 0 | FE72: 100 | FF72: 0 | FG72: 100 | FH72: 0 | FI72: 100 | FJ72: 0 | FK72: 100 | FL72: 0 | FM72: 100 | FN72: 0 | FO72: 100 | FP72: 0 | FQ72: 100 | FR72: 0 | FS72: 100 | FT72: 0 | FU72: 100 | FV72: 0 | FW72: 100 | FX72: 0 | FY72: 100 | FZ72: 0 | GA72: 100 | GB72: 0 | GC72: 100 | GD72: 0 | GE72: 100 | GF72: 0 | GG72: 100 | GH72: 0 | GI72: 100 | GJ72: 0 | GK72: 100 | GL72: 0 | GM72: 100 | GN72: =IF(GN71>$F20+1,0,1)*(IF(GO72=0,100,0)+IF($G20=1,1,0)*$J20*100+IF($G20=2,0.5,0)*$J20*100+IF($G20=4,0.25,0)*$J20*100) -> 0 | GO72: 100 | GP72: 0 | GQ72: 100 | GR72: 0 | GS72: 100
A73: Payment Dates | B73: =IF(E21=0,F21,E21) -> 1/24/2020 | C73: =B73+IF($G21=1,365,0)+IF($G21=2,182.5,0)+IF($G21=4,91.25,0) -> 2021-01-23 | D73: =C73+IF($G21=1,365,0)+IF($G21=2,182.5,0)+IF($G21=4,91.25,0) -> 2022-01-23 | E73: 2023-01-23 | F73: 2024-01-23 | G73: 2025-01-22 | H73: 2026-01-22 | I73: 2027-01-22 | J73: 2028-01-22 | K73: 2029-01-21 | L73: 2030-01-21 | M73: 2031-01-21 | N73: 2032-01-21 | O73: 2033-01-20 | P73: 2034-01-20 | Q73: 2035-01-20 | R73: 2036-01-20 | S73: 2037-01-19 | T73: 2038-01-19 | U73: 2039-01-19 | V73: 2040-01-19 | W73: 2041-01-18 | X73: 2042-01-18 | Y73: 2043-01-18 | Z73: 2044-01-18 | AA73: 2045-01-17 | AB73: 2046-01-17 | AC73: 2047-01-17 | AD73: 2048-01-17 | AE73: 2049-01-16 | AF73: 2050-01-16 | AG73: 2051-01-16 | AH73: 2052-01-16 | AI73: 2053-01-15 | AJ73: 2054-01-15 | AK73: 2055-01-15 | AL73: 2056-01-15 | AM73: 2057-01-14 | AN73: 2058-01-14 | AO73: 2059-01-14 | AP73: 2060-01-14 | AQ73: 2061-01-13 | AR73: 2062-01-13 | AS73: 2063-01-13 | AT73: 2064-01-13 | AU73: 2065-01-12 | AV73: 2066-01-12 | AW73: 2067-01-12 | AX73: 2068-01-12 | AY73: 2069-01-11 | AZ73: 2070-01-11 | BA73: 2071-01-11 | BB73: 2072-01-11 | BC73: 2073-01-10 | BD73: 2074-01-10 | BE73: 2075-01-10 | BF73: 2076-01-10 | BG73: 2077-01-09 | BH73: 2078-01-09 | BI73: 2079-01-09 | BJ73: 2080-01-09 | BK73: 2081-01-08 | BL73: 2082-01-08 | BM73: 2083-01-08 | BN73: 2084-01-08 | BO73: 2085-01-07 | BP73: =BO73+IF($G21=1,365,0)+IF($G21=2,182.5,0)+IF($G21=4,91.25,0) -> 2086-01-07 | BQ73: 2087-01-07 | BR73: 2088-01-07 | BS73: 2089-01-06 | BT73: 2090-01-06 | BU73: 2091-01-06 | BV73: 2092-01-06 | BW73: 2093-01-05 | BX73: 2094-01-05 | BY73: 2095-01-05 | BZ73: 2096-01-05 | CA73: 2097-01-04 | CB73: 2098-01-04 | CC73: 2099-01-04 | CD73: 2100-01-04 | CE73: 2101-01-04 | CF73: 2102-01-04 | CG73: 2103-01-04 | CH73: 2104-01-04 | CI73: 2105-01-03 | CJ73: 2106-01-03 | CK73: 2107-01-03 | CL73: 2108-01-03 | CM73: 2109-01-02 | CN73: 2110-01-02 | CO73: 2111-01-02 | CP73: 2112-01-02 | CQ73: 2113-01-01 | CR73: 2114-01-01 | CS73: 2115-01-01 | CT73: 2116-01-01 | CU73: 2116-12-31 | CV73: 2117-12-31 | CW73: 2118-12-31 | CX73: 2119-12-31 | CY73: 2120-12-30 | CZ73: 2121-12-30 | DA73: 2122-12-30 | DB73: 2123-12-30 | DC73: 2124-12-29 | DD73: 2125-12-29 | DE73: 2126-12-29 | DF73: 2127-12-29 | DG73: 2128-12-28 | DH73: 2129-12-28 | DI73: 2130-12-28 | DJ73: 2131-12-28 | DK73: 2132-12-27 | DL73: 2133-12-27 | DM73: 2134-12-27 | DN73: 2135-12-27 | DO73: 2136-12-26 | DP73: 2137-12-26 | DQ73: 2138-12-26 | DR73: 2139-12-26 | DS73: 2140-12-25 | DT73: 2141-12-25 | DU73: 2142-12-25 | DV73: 2143-12-25 | DW73: 2144-12-24 | DX73: 2145-12-24 | DY73: 2146-12-24 | DZ73: 2147-12-24 | EA73: 2148-12-23 | EB73: =EA73+IF($G21=1,365,0)+IF($G21=2,182.5,0)+IF($G21=4,91.25,0) -> 2149-12-23 | EC73: 2150-12-23 | ED73: 2151-12-23 | EE73: 2152-12-22 | EF73: 2153-12-22 | EG73: 2154-12-22 | EH73: 2155-12-22 | EI73: 2156-12-21 | EJ73: 2157-12-21 | EK73: 2158-12-21 | EL73: 2159-12-21 | EM73: 2160-12-20 | EN73: 2161-12-20 | EO73: 2162-12-20 | EP73: 2163-12-20 | EQ73: 2164-12-19 | ER73: 2165-12-19 | ES73: 2166-12-19 | ET73: 2167-12-19 | EU73: 2168-12-18 | EV73: 2169-12-18 | EW73: 2170-12-18 | EX73: 2171-12-18 | EY73: 2172-12-17 | EZ73: 2173-12-17 | FA73: 2174-12-17 | FB73: 2175-12-17 | FC73: 2176-12-16 | FD73: 2177-12-16 | FE73: 2178-12-16 | FF73: 2179-12-16 | FG73: 2180-12-15 | FH73: 2181-12-15 | FI73: 2182-12-15 | FJ73: 2183-12-15 | FK73: 2184-12-14 | FL73: 2185-12-14 | FM73: 2186-12-14 | FN73: 2187-12-14 | FO73: 2188-12-13 | FP73: 2189-12-13 | FQ73: 2190-12-13 | FR73: 2191-12-13 | FS73: 2192-12-12 | FT73: 2193-12-12 | FU73: 2194-12-12 | FV73: 2195-12-12 | FW73: 2196-12-11 | FX73: 2197-12-11 | FY73: 2198-12-11 | FZ73: 2199-12-11 | GA73: 2200-12-11 | GB73: 2201-12-11 | GC73: 2202-12-11 | GD73: 2203-12-11 | GE73: 2204-12-10 | GF73: 2205-12-10 | GG73: 2206-12-10 | GH73: 2207-12-10 | GI73: 2208-12-09 | GJ73: 2209-12-09 | GK73: 2210-12-09 | GL73: 2211-12-09 | GM73: 2212-12-08 | GN73: =GM73+IF($G21=1,365,0)+IF($G21=2,182.5,0)+IF($G21=4,91.25,0) -> 2213-12-08 | GO73: 2214-12-08 | GP73: 2215-12-08 | GQ73: 2216-12-07 | GR73: 2217-12-07 | GS73: 2218-12-07
A74: Bond 20 | B74: =(IF(B73=F21,100,0)+IF(G21=1,1,0)*J21*100+IF(G21=2,0.5,0)*J21*100+IF(G21=4,0.25,0)*J21*100)*IF(ISBLANK(F21)=TRUE,0,1) -> 4.125 | C74: =IF(C73>$F21+1,0,1)*(IF(D74=0,100,0)+IF($G21=1,1,0)*$J21*100+IF($G21=2,0.5,0)*$J21*100+IF($G21=4,0.25,0)*$J21*100) -> 4.125 | D74: =IF(D73>$F21+1,0,1)*(IF(E74=0,100,0)+IF($G21=1,1,0)*$J21*100+IF($G21=2,0.5,0)*$J21*100+IF($G21=4,0.25,0)*$J21*100) -> 4.125 | E74: 4.125 | F74: 104.125 | G74: 0 | H74: 0 | I74: 0 | J74: 0 | K74: 0 | L74: 0 | M74: 0 | N74: 0 | O74: 0 | P74: 0 | Q74: 0 | R74: 0 | S74: 0 | T74: 0 | U74: 0 | V74: 0 | W74: 0 | X74: 0 | Y74: 0 | Z74: 0 | AA74: 0 | AB74: 0 | AC74: 0 | AD74: 0 | AE74: 0 | AF74: 0 | AG74: 0 | AH74: 0 | AI74: 0 | AJ74: 0 | AK74: 0 | AL74: 0 | AM74: 0 | AN74: 0 | AO74: 0 | AP74: 0 | AQ74: 0 | AR74: 0 | AS74: 0 | AT74: 0 | AU74: 0 | AV74: 0 | AW74: 0 | AX74: 0 | AY74: 0 | AZ74: 0 | BA74: 0 | BB74: 0 | BC74: 0 | BD74: 0 | BE74: 0 | BF74: 0 | BG74: 0 | BH74: 0 | BI74: 0 | BJ74: 0 | BK74: 0 | BL74: 0 | BM74: 0 | BN74: 0 | BO74: 0 | BP74: =IF(BP73>$F21+1,0,1)*(IF(BQ74=0,100,0)+IF($G21=1,1,0)*$J21*100+IF($G21=2,0.5,0)*$J21*100+IF($G21=4,0.25,0)*$J21*100) -> 0 | BQ74: 0 | BR74: 0 | BS74: 0 | BT74: 0 | BU74: 0 | BV74: 0 | BW74: 0 | BX74: 0 | BY74: 0 | BZ74: 0 | CA74: 0 | CB74: 0 | CC74: 0 | CD74: 0 | CE74: 0 | CF74: 0 | CG74: 0 | CH74: 0 | CI74: 0 | CJ74: 0 | CK74: 0 | CL74: 0 | CM74: 0 | CN74: 0 | CO74: 0 | CP74: 0 | CQ74: 0 | CR74: 0 | CS74: 0 | CT74: 0 | CU74: 0 | CV74: 0 | CW74: 0 | CX74: 0 | CY74: 0 | CZ74: 0 | DA74: 0 | DB74: 0 | DC74: 0 | DD74: 0 | DE74: 0 | DF74: 0 | DG74: 0 | DH74: 0 | DI74: 0 | DJ74: 0 | DK74: 0 | DL74: 0 | DM74: 0 | DN74: 0 | DO74: 0 | DP74: 0 | DQ74: 0 | DR74: 0 | DS74: 0 | DT74: 0 | DU74: 0 | DV74: 0 | DW74: 0 | DX74: 0 | DY74: 0 | DZ74: 0 | EA74: 0 | EB74: =IF(EB73>$F21+1,0,1)*(IF(EC74=0,100,0)+IF($G21=1,1,0)*$J21*100+IF($G21=2,0.5,0)*$J21*100+IF($G21=4,0.25,0)*$J21*100) -> 0 | EC74: 0 | ED74: 0 | EE74: 0 | EF74: 0 | EG74: 0 | EH74: 0 | EI74: 0 | EJ74: 0 | EK74: 0 | EL74: 0 | EM74: 0 | EN74: 0 | EO74: 0 | EP74: 0 | EQ74: 0 | ER74: 0 | ES74: 0 | ET74: 0 | EU74: 0 | EV74: 0 | EW74: 0 | EX74: 0 | EY74: 0 | EZ74: 0 | FA74: 0 | FB74: 0 | FC74: 0 | FD74: 0 | FE74: 0 | FF74: 0 | FG74: 0 | FH74: 0 | FI74: 0 | FJ74: 0 | FK74: 0 | FL74: 0 | FM74: 0 | FN74: 0 | FO74: 0 | FP74: 0 | FQ74: 0 | FR74: 0 | FS74: 0 | FT74: 0 | FU74: 0 | FV74: 0 | FW74: 0 | FX74: 0 | FY74: 0 | FZ74: 0 | GA74: 0 | GB74: 0 | GC74: 0 | GD74: 0 | GE74: 0 | GF74: 0 | GG74: 0 | GH74: 0 | GI74: 0 | GJ74: 0 | GK74: 0 | GL74: 0 | GM74: 0 | GN74: =IF(GN73>$F21+1,0,1)*(IF(GO74=0,100,0)+IF($G21=1,1,0)*$J21*100+IF($G21=2,0.5,0)*$J21*100+IF($G21=4,0.25,0)*$J21*100) -> 0 | GO74: 0 | GP74: 0 | GQ74: 0 | GR74: 0 | GS74: 0
